Workbook

Sheet Instructions
A1: Determining Safety Risk
A3: The purpose of this spreadsheet is to assist practitioners to determine the safety risk of intersections or corridors where 'road improvement projects' are proposed.
A5: This method is appropriate for strategic case, programme business cases, single-stage or detailed business cases as this gives a more accurate measures of DSI casualty equivalents using Crash Analysis System (CAS) data for the last 5 or 10 years. | D5: Movement crash codes
D6: A | E6: Overtaking and lane change
A7: Information requirements are: | D7: B | E7: Head on
A8: 1. Crash Analysis System (CAS) data for the last 5 or 10 years. | D8: C | E8: Lost control or off road (straight roads)
A9: 2. Traffic Volume information (AADT- Annual Average Daily Traffic). | D9: D | E9: Cornering
A10: 3. Corridor length measurement for the section under consideration. | D10: E | E10: Collision with obstruction
A11: 4. Details of proposed intervention. | D11: F | E11: Rear end
D12: G | E12: Turning versus same direction
A13: Procedure | D13: H | E13: Crossing (no turns)
A14: 1. Enter details for the Do Minimum situation into the Do Minimum Forecast Assessment worksheet, in the light grey cells. | D14: J | E14: Crossing (vehicle turning)
A15: B1 Project name | D15: K | E15: Merging
A16: J1 Date | D16: L | E16: Right turn against
A17: B2 Relevant local government area from the drop down menu | D17: M | E17: Manoeuvering
A18: B3 Model type from the drop down menu | D18: Q | E18: Miscellaneous
A19: B4 Corridor or intersection from the drop down menu
A20: B5 Speed limit from the drop down menu | D20: Source:
A21: B7-B10 vary according to the selection in B4 | D21: https://www.nzta.govt.nz/assets/resources/guide-to-coded-crash-reports/docs/guide-to-coded-crash-reports.pdf
A22: B11 Crash analysis period
A23: B12 and B13 Start year and finish year of the period in cell B11
A24: B14 Forecast year when intervention is effective
A25: B15 Monitoring period beginning from and including the year in B14
A27: 2. Enter details for the proposed intervention into the Intervention Forecast Assessment worksheet. Fields that do not change from the Do Minimum are automatically carried over from the Do Minimum Forecast Assessment worksheet.
A29: 3. The Intervention Forecast Assessment worksheet summarises the DSI, error margins and confidence ratings for the Do Minimum and Intervention scenarios.
A31: 4. In the Error Margins worksheet it is possible to over-ride various components of the forecasts; population, vehicles per capita, travel per vehicle and DSI per unit of travel. Further information is given in An Approach for Forecasting the Number of Do Minimum Deaths and Serious Injuries by Infometrics.
A33: 5. 'Note that the numbers of crashes and DSI are cumulative over 5 or 10 years (as selected) so as to reduce volatility.
A35: Introduction
A36: Death and Serious Injury (DSI) severity indices are embedded in road safety practices throughout New Zealand. Using the DSI severity indices risk estimation approach is industry-accepted best practice method for estimating the likelihood of future DSIs. The severity indices are documented in national guidance, utilised in identifying road safety risk on the network and are often used in determining the crash cost savings associated with implementing road safety interventions.
A38: What are DSI Severity Indices
A39: DSI severity indices represent the average number of people killed and seriously injured for every reported injury crash. Severity indices are commonly calculated for different speed environments, intersection and midblock locations, different intersection controls, different road user groups and for different crash movement types. For the latter, the severity indices are associated with the primary CAS movement code i.e. the first letter of the two-letter crash movement code.
A41: Calculating DSI Casualty Equivalents
A42: DSI casualty equivalents are an estimation of the number of deaths and serious injuries likely to occur at an intersection or on a corridor based on the total number of injury crashes that have occurred.
A44: Determing the number of injury crashes
A45: The number of injury crashes that have occurred in the last 5- or 10-year interval is determined using relevant data from the Crash Analysis System (CAS). By using all injury crashes instead of just fatal and serious crashes to predict the number of DSI likely to occur in future, the number of crashes analysed increases, and the impact of individual high severity or low severity crashes are normalised. For assessments completed after 31 March each year, include crash data from the previous calendar year in the analysis. See 'Calculating DSI casualty equivalents' for approved methods for calculating estimated DSI casualty equivalents. Note: Crashes can take up to three months to appear in CAS, therefore if you complete your assessments after 31 March each year, include the previous calendar year of information in the five-year analysis period. If you prepare your assessments earlier in the calendar year you may use an older five-year analysis period.
A47: Hidden Worksheets
A48: A number of worksheets have been hidden. They may be unhidden by right clicking any of the visible worksheet name tabs and then
A49: clicking on 'unhide' to reveal the desired worksheet.

Sheet Do Minimum Forecast Assessment
A1: Project Name | B1: SNP Boost 3: SH2 Te Puke - Otamarakau | H1: Assessment Date | J1: 2020-11-02 | L1: Key | O1: B - DSI Equivalents
A2: Local govt area | B2: Western Bay Of Plenty District | L2: Input required
A3: Model Type | B3: Standard Model (designed for an input of coded crash data and provides a more accurate risk score) | L3: Leave blank
A4: Corridor or Intersection | B4: Corridor | L4: Leave value
A5: Speed Limit | B5: 100 | C5: (km/h)
A6: Speed Environment | B6: =IF(B5<79,"Urban","Rural") -> Rural
A7: =IF(B4="Intersection","Major Road AADT","Corridor AADT") -> Corridor AADT | B7: 4925 | C7: =IF(B4="Intersection","Average of the two major intersection approaches","Two-way AADT in vehicles/day") -> Two-way AADT in vehicles/day
A8: =IF(B4="Intersection","Minor Road AADT"," ") -> 
A9: =IF(B4="Intersection","Product of Flow (PoF)","") ->  | B9: =IF(A9="","",(B7*B8)^0.4) ->  | C9: Only populated for intersections
A10: =IF(B4="intersection","","Corridor Length (km)") -> Corridor Length (km) | B10: 20.01
A11: Crash Analysis Period | B11: 5 | C11: Number of years in crash analysis period
A12: Start Year | B12: 2015
A13: End Year | B13: 2019
A14: Forecast year | B14: 2025 | C14: First year when intervention will be effective
A15: Monitoring period | B15: 5 | C15: Years to monitor DSI starting from Forecast year
A17: Crash History | T17: Movement code factor | AK17: Crash History x Movement code factor | BC17: Speed factors | BT17: Overall scoring
C18: Number of Injury Crashes | T18: Movement crash code | U18: Number of Injury Crashes | AK18: Movement crash code | AL18: Number of Injury Crashes | BC18: Speed Enviroment | BD18: Speed factrors | BT18: Movement crash code | BU18: Number of Injury Crashes
C19: Generic | F19: Intersections | I19: Pedestrian crashes | L19: Cyclist Crashes | O19: Motorcyclist Crashes | U19: Generic | X19: Intersections | AA19: Pedestrain crashes | AD19: Cyclist Crashes | AG19: Motorcyclist Crashes | AL19: Generic | AO19: Intersections | AR19: Pedestrain crashes | AU19: Cyclist Crashes | AX19: Motorcyclist Crashes | BD19: Generic | BG19: Intersections | BJ19: Pedestrain crashes | BM19: Cyclist Crashes | BP19: Motorcyclist Crashes | BU19: Generic | BX19: Intersections | CA19: Pedestrain crashes | CD19: Cyclist Crashes | CG19: Motorcyclist Crashes
A20: Movement crash code | C20: Generic | D20: Midblock | E20: Intersection | F20: Signalised | G20: Roundabout | H20: Priority | I20: Generic | J20: Midblock | K20: Intersection | L20: Generic | M20: Midblock | N20: Intersection | O20: Generic | P20: Midblock | Q20: Intersection | R20: Sum | U20: Generic | V20: Midblock | W20: Intersection | X20: Signalised | Y20: Rounabout | Z20: Priority | AA20: Generic | AB20: Midblock | AC20: Intersection | AD20: Generic | AE20: Midblock | AF20: Intersection | AG20: Generic | AH20: Midblock | AI20: Intersection | AL20: Generic | AM20: Midblock | AN20: Intersection | AO20: Signalised | AP20: Rounabout | AQ20: Priority | AR20: Generic | AS20: Midblock | AT20: Intersection | AU20: Generic | AV20: Midblock | AW20: Intersection | AX20: Generic | AY20: Midblock | AZ20: Intersection | BD20: Generic | BE20: Midblock | BF20: Intersection | BG20: Signalised | BH20: Rounabout | BI20: Priority | BJ20: Generic | BK20: Midblock | BL20: Intersection | BM20: Generic | BN20: Midblock | BO20: Intersection | BP20: Generic | BQ20: Midblock | BR20: Intersection | BU20: Generic | BV20: Midblock | BW20: Intersection | BX20: Signalised | BY20: Rounabout | BZ20: Priority | CA20: Generic | CB20: Midblock | CC20: Intersection | CD20: Generic | CE20: Midblock | CF20: Intersection | CG20: Generic | CH20: Midblock | CI20: Intersection
A21: All | I21: 1 | R21: =SUM(C21:Q21) -> 1 | T21: All | U21: 0.16 | V21: 0.19 | W21: 0.14 | X21: 0.13 | Y21: 0.1 | Z21: 0.15 | AA21: 0.3 | AB21: 0.33 | AC21: 0.29 | AD21: 0.22 | AE21: 0.26 | AF21: 0.22 | AG21: 0.33 | AH21: 0.38 | AI21: 0.31 | AK21: All | AL21: =IF($B$5>79,C21*U40,C21*U21) -> 0 | AM21: =IF($B$5>79,D21*V40,D21*V21) -> 0 | AN21: =IF($B$5>79,E21*W40,E21*W21) -> 0 | AO21: =IF($B$5>79,F21*X40,F21*X21) -> 0 | AP21: =IF($B$5>79,G21*Y40,G21*Y21) -> 0 | AQ21: =IF($B$5>79,H21*Z40,H21*Z21) -> 0 | AR21: =IF($B$5>79,I21*AA40,I21*AA21) -> 0.7 | AS21: =IF($B$5>79,J21*AB40,J21*AB21) -> 0 | AT21: =IF($B$5>79,K21*AC40,K21*AC21) -> 0 | AU21: =IF($B$5>79,L21*AD40,L21*AD21) -> 0 | AV21: =IF($B$5>79,M21*AE40,M21*AE21) -> 0 | AW21: =IF($B$5>79,N21*AF40,N21*AF21) -> 0 | AX21: =IF($B$5>79,O21*AG40,O21*AG21) -> 0 | AY21: =IF($B$5>79,P21*AH40,P21*AH21) -> 0 | AZ21: =IF($B$5>79,Q21*AI40,Q21*AI21) -> 0 | BA21: =SUM(AL21:AZ21) -> 0.7 | BC21: <=30 | BD21: 0.95 | BE21: 0.95 | BF21: 0.95 | BG21: 0.9 | BH21: 1 | BI21: 0.95 | BJ21: 0.75 | BK21: 0.7 | BL21: 0.75 | BM21: 0.8 | BN21: 0.8 | BO21: 0.75 | BP21: 0.95 | BQ21: 0.95 | BR21: 0.95 | BT21: All | BU21: =AL21* IF($B$5=$BC$21,BD$21, IF($B$5=$BC$22,BD$22, IF($B$5=$BC$23,BD$23, IF($B$5=$BC$24,BD$24, IF($B$5=$BC$25,BD$25, IF($B$5=$BC$26,BD$26, IF($B$5=$BC$27,BD$27, ))))))) -> 0 | BV21: =AM21* IF($B$5=$BC$21,BE$21, IF($B$5=$BC$22,BE$22, IF($B$5=$BC$23,BE$23, IF($B$5=$BC$24,BE$24, IF($B$5=$BC$25,BE$25, IF($B$5=$BC$26,BE$26, IF($B$5=$BC$27,BE$27, ))))))) -> 0 | BW21: =AN21* IF($B$5=$BC$21,BF$21, IF($B$5=$BC$22,BF$22, IF($B$5=$BC$23,BF$23, IF($B$5=$BC$24,BF$24, IF($B$5=$BC$25,BF$25, IF($B$5=$BC$26,BF$26, IF($B$5=$BC$27,BF$27, ))))))) -> 0 | BX21: =AO21* IF($B$5=$BC$21,BG$21, IF($B$5=$BC$22,BG$22, IF($B$5=$BC$23,BG$23, IF($B$5=$BC$24,BG$24, IF($B$5=$BC$25,BG$25, IF($B$5=$BC$26,BG$26, IF($B$5=$BC$27,BG$27, ))))))) -> 0 | BY21: =AP21* IF($B$5=$BC$21,BH$21, IF($B$5=$BC$22,BH$22, IF($B$5=$BC$23,BH$23, IF($B$5=$BC$24,BH$24, IF($B$5=$BC$25,BH$25, IF($B$5=$BC$26,BH$26, IF($B$5=$BC$27,BH$27, ))))))) -> 0 | BZ21: =AQ21* IF($B$5=$BC$21,BI$21, IF($B$5=$BC$22,BI$22, IF($B$5=$BC$23,BI$23, IF($B$5=$BC$24,BI$24, IF($B$5=$BC$25,BI$25, IF($B$5=$BC$26,BI$26, IF($B$5=$BC$27,BI$27, ))))))) -> 0 | CA21: =AR21* IF($B$5=$BC$21,BJ$21, IF($B$5=$BC$22,BJ$22, IF($B$5=$BC$23,BJ$23, IF($B$5=$BC$24,BJ$24, IF($B$5=$BC$25,BJ$25, IF($B$5=$BC$26,BJ$26, IF($B$5=$BC$27,BJ$27, ))))))) -> 0.7 | CB21: =AS21* IF($B$5=$BC$21,BK$21, IF($B$5=$BC$22,BK$22, IF($B$5=$BC$23,BK$23, IF($B$5=$BC$24,BK$24, IF($B$5=$BC$25,BK$25, IF($B$5=$BC$26,BK$26, IF($B$5=$BC$27,BK$27, ))))))) -> 0 | CC21: =AT21* IF($B$5=$BC$21,BL$21, IF($B$5=$BC$22,BL$22, IF($B$5=$BC$23,BL$23, IF($B$5=$BC$24,BL$24, IF($B$5=$BC$25,BL$25, IF($B$5=$BC$26,BL$26, IF($B$5=$BC$27,BL$27, ))))))) -> 0 | CD21: =AU21* IF($B$5=$BC$21,BM$21, IF($B$5=$BC$22,BM$22, IF($B$5=$BC$23,BM$23, IF($B$5=$BC$24,BM$24, IF($B$5=$BC$25,BM$25, IF($B$5=$BC$26,BM$26, IF($B$5=$BC$27,BM$27, ))))))) -> 0 | CE21: =AV21* IF($B$5=$BC$21,BN$21, IF($B$5=$BC$22,BN$22, IF($B$5=$BC$23,BN$23, IF($B$5=$BC$24,BN$24, IF($B$5=$BC$25,BN$25, IF($B$5=$BC$26,BN$26, IF($B$5=$BC$27,BN$27, ))))))) -> 0 | CF21: =AW21* IF($B$5=$BC$21,BO$21, IF($B$5=$BC$22,BO$22, IF($B$5=$BC$23,BO$23, IF($B$5=$BC$24,BO$24, IF($B$5=$BC$25,BO$25, IF($B$5=$BC$26,BO$26, IF($B$5=$BC$27,BO$27, ))))))) -> 0 | CG21: =AX21* IF($B$5=$BC$21,BP$21, IF($B$5=$BC$22,BP$22, IF($B$5=$BC$23,BP$23, IF($B$5=$BC$24,BP$24, IF($B$5=$BC$25,BP$25, IF($B$5=$BC$26,BP$26, IF($B$5=$BC$27,BP$27, ))))))) -> 0 | CH21: =AY21* IF($B$5=$BC$21,BQ$21, IF($B$5=$BC$22,BQ$22, IF($B$5=$BC$23,BQ$23, IF($B$5=$BC$24,BQ$24, IF($B$5=$BC$25,BQ$25, IF($B$5=$BC$26,BQ$26, IF($B$5=$BC$27,BQ$27, ))))))) -> 0 | CI21: =AZ21* IF($B$5=$BC$21,BR$21, IF($B$5=$BC$22,BR$22, IF($B$5=$BC$23,BR$23, IF($B$5=$BC$24,BR$24, IF($B$5=$BC$25,BR$25, IF($B$5=$BC$26,BR$26, IF($B$5=$BC$27,BR$27, ))))))) -> 0
A22: A | R22: 0 | T22: A | U22: 0.16 | V22: 0.19 | W22: 0.14 | X22: 0.13 | Y22: 0.1 | Z22: 0.15 | AK22: A | AL22: 0 | AM22: 0 | AN22: 0 | AO22: 0 | AP22: 0 | AQ22: 0 | AR22: 0 | AS22: 0 | AT22: 0 | AU22: 0 | AV22: 0 | AW22: 0 | AX22: 0 | AY22: 0 | AZ22: 0 | BA22: =SUM(AL22:AZ22) -> 0 | BC22: 40 | BD22: 0.95 | BE22: 0.95 | BF22: 0.95 | BG22: 0.9 | BH22: 1 | BI22: 0.95 | BJ22: 0.8 | BK22: 0.75 | BL22: 0.75 | BM22: 0.8 | BN22: 0.8 | BO22: 0.75 | BP22: 0.95 | BQ22: 0.95 | BR22: 0.95 | BT22: A | BU22: 0 | BV22: 0 | BW22: 0 | BX22: 0 | BY22: 0 | BZ22: 0 | CA22: 0 | CB22: 0 | CC22: 0 | CD22: 0 | CE22: 0 | CF22: 0 | CG22: 0 | CH22: 0 | CI22: 0
A23: B | C23: 8 | R23: 8 | T23: B | U23: 0.33 | V23: 0.35 | W23: 0.14 | X23: 0.13 | Y23: 0.1 | Z23: 0.32 | AK23: B | AL23: 6.88 | AM23: 0 | AN23: 0 | AO23: 0 | AP23: 0 | AQ23: 0 | AR23: 0 | AS23: 0 | AT23: 0 | AU23: 0 | AV23: 0 | AW23: 0 | AX23: 0 | AY23: 0 | AZ23: 0 | BA23: 6.88 | BC23: 50 | BD23: 0.95 | BE23: 0.95 | BF23: 0.95 | BG23: 0.9 | BH23: 1 | BI23: 0.95 | BJ23: 1 | BK23: 1 | BL23: 1 | BM23: 1 | BN23: 0.95 | BO23: 1 | BP23: 0.95 | BQ23: 0.95 | BR23: 0.95 | BT23: B | BU23: 7.224 | BV23: 0 | BW23: 0 | BX23: 0 | BY23: 0 | BZ23: 0 | CA23: 0 | CB23: 0 | CC23: 0 | CD23: 0 | CE23: 0 | CF23: 0 | CG23: 0 | CH23: 0 | CI23: 0
A24: C | C24: 6 | R24: 6 | T24: C | U24: 0.23 | V24: 0.23 | W24: 0.23 | X24: 0.13 | Y24: 0.27 | Z24: 0.22 | AK24: C | AL24: 1.56 | AM24: 0 | AN24: 0 | AO24: 0 | AP24: 0 | AQ24: 0 | AR24: 0 | AS24: 0 | AT24: 0 | AU24: 0 | AV24: 0 | AW24: 0 | AX24: 0 | AY24: 0 | AZ24: 0 | BA24: 1.56 | BC24: 60 | BD24: 1.25 | BE24: 1.3 | BF24: 1.1 | BG24: 1.5 | BH24: 1 | BI24: 1.2 | BJ24: 1.6 | BK24: 1.7 | BL24: 1.5 | BM24: 1.25 | BN24: 1.35 | BO24: 1.15 | BP24: 1.3 | BQ24: 1.2 | BR24: 1.3 | BT24: C | BU24: 1.638 | BV24: 0 | BW24: 0 | BX24: 0 | BY24: 0 | BZ24: 0 | CA24: 0 | CB24: 0 | CC24: 0 | CD24: 0 | CE24: 0 | CF24: 0 | CG24: 0 | CH24: 0 | CI24: 0
A25: D | C25: 5 | R25: 5 | T25: D | U25: 0.24 | V25: 0.26 | W25: 0.22 | X25: 0.18 | Y25: 0.16 | Z25: 0.23 | AK25: D | AL25: 1.35 | AM25: 0 | AN25: 0 | AO25: 0 | AP25: 0 | AQ25: 0 | AR25: 0 | AS25: 0 | AT25: 0 | AU25: 0 | AV25: 0 | AW25: 0 | AX25: 0 | AY25: 0 | AZ25: 0 | BA25: 1.35 | BC25: 70 | BD25: 1.55 | BE25: 1.6 | BF25: 1.4 | BG25: 1.5 | BH25: 1 | BI25: 1.6 | BJ25: 1.6 | BK25: 1.7 | BL25: 1.5 | BM25: 1.25 | BN25: 1.35 | BO25: 1.15 | BP25: 1.3 | BQ25: 1.3 | BR25: 1.3 | BT25: D | BU25: 1.4175 | BV25: 0 | BW25: 0 | BX25: 0 | BY25: 0 | BZ25: 0 | CA25: 0 | CB25: 0 | CC25: 0 | CD25: 0 | CE25: 0 | CF25: 0 | CG25: 0 | CH25: 0 | CI25: 0
A26: E | R26: 0 | T26: E | U26: 0.12 | V26: 0.12 | W26: 0.13 | X26: 0.13 | Y26: 0.1 | Z26: 0.13 | AK26: E | AL26: 0 | AM26: 0 | AN26: 0 | AO26: 0 | AP26: 0 | AQ26: 0 | AR26: 0 | AS26: 0 | AT26: 0 | AU26: 0 | AV26: 0 | AW26: 0 | AX26: 0 | AY26: 0 | AZ26: 0 | BA26: 0 | BC26: 80 | BD26: 0.75 | BE26: 0.75 | BF26: 0.75 | BG26: 0.55 | BH26: 1 | BI26: 0.75 | BJ26: 1 | BK26: 0.95 | BL26: 1 | BM26: 1 | BN26: 1 | BO26: 0.95 | BP26: 0.8 | BQ26: 0.8 | BR26: 0.75 | BT26: E | BU26: 0 | BV26: 0 | BW26: 0 | BX26: 0 | BY26: 0 | BZ26: 0 | CA26: 0 | CB26: 0 | CC26: 0 | CD26: 0 | CE26: 0 | CF26: 0 | CG26: 0 | CH26: 0 | CI26: 0
A27: F | C27: 5 | R27: 5 | T27: F | U27: 0.06 | V27: 0.05 | W27: 0.06 | X27: 0.06 | Y27: 0.06 | Z27: 0.06 | AK27: F | AL27: 0.45 | AM27: 0 | AN27: 0 | AO27: 0 | AP27: 0 | AQ27: 0 | AR27: 0 | AS27: 0 | AT27: 0 | AU27: 0 | AV27: 0 | AW27: 0 | AX27: 0 | AY27: 0 | AZ27: 0 | BA27: 0.45 | BC27: 100 | BD27: 1.05 | BE27: 1.05 | BF27: 1.1 | BG27: 1.65 | BH27: 1 | BI27: 1.05 | BJ27: 1 | BK27: 1 | BL27: 1 | BM27: 1 | BN27: 1 | BO27: 1 | BP27: 1.05 | BQ27: 1.05 | BR27: 1.1 | BT27: F | BU27: 0.4725 | BV27: 0 | BW27: 0 | BX27: 0 | BY27: 0 | BZ27: 0 | CA27: 0 | CB27: 0 | CC27: 0 | CD27: 0 | CE27: 0 | CF27: 0 | CG27: 0 | CH27: 0 | CI27: 0
A28: G | C28: 3 | R28: 3 | T28: G | U28: 0.16 | V28: 0.19 | W28: 0.14 | X28: 0.13 | Y28: 0.1 | Z28: 0.15 | AK28: G | AL28: 0.96 | AM28: 0 | AN28: 0 | AO28: 0 | AP28: 0 | AQ28: 0 | AR28: 0 | AS28: 0 | AT28: 0 | AU28: 0 | AV28: 0 | AW28: 0 | AX28: 0 | AY28: 0 | AZ28: 0 | BA28: 0.96 | BT28: G | BU28: 1.008 | BV28: 0 | BW28: 0 | BX28: 0 | BY28: 0 | BZ28: 0 | CA28: 0 | CB28: 0 | CC28: 0 | CD28: 0 | CE28: 0 | CF28: 0 | CG28: 0 | CH28: 0 | CI28: 0
A29: H | R29: 0 | T29: H | U29: 0.13 | V29: 0.19 | W29: 0.13 | X29: 0.18 | Y29: 0.08 | Z29: 0.12 | AK29: H | AL29: 0 | AM29: 0 | AN29: 0 | AO29: 0 | AP29: 0 | AQ29: 0 | AR29: 0 | AS29: 0 | AT29: 0 | AU29: 0 | AV29: 0 | AW29: 0 | AX29: 0 | AY29: 0 | AZ29: 0 | BA29: 0 | BT29: H | BU29: 0 | BV29: 0 | BW29: 0 | BX29: 0 | BY29: 0 | BZ29: 0 | CA29: 0 | CB29: 0 | CC29: 0 | CD29: 0 | CE29: 0 | CF29: 0 | CG29: 0 | CH29: 0 | CI29: 0
A30: J | C30: 4 | R30: 4 | T30: J | U30: 0.1 | V30: 0.19 | W30: 0.1 | X30: 0.16 | Y30: 0.06 | Z30: 0.1 | AK30: J | AL30: 1.28 | AM30: 0 | AN30: 0 | AO30: 0 | AP30: 0 | AQ30: 0 | AR30: 0 | AS30: 0 | AT30: 0 | AU30: 0 | AV30: 0 | AW30: 0 | AX30: 0 | AY30: 0 | AZ30: 0 | BA30: 1.28 | BT30: J | BU30: 1.344 | BV30: 0 | BW30: 0 | BX30: 0 | BY30: 0 | BZ30: 0 | CA30: 0 | CB30: 0 | CC30: 0 | CD30: 0 | CE30: 0 | CF30: 0 | CG30: 0 | CH30: 0 | CI30: 0
A31: K | R31: 0 | T31: K | U31: 0.16 | V31: 0.19 | W31: 0.14 | X31: 0.13 | Y31: 0.02 | Z31: 0.15 | AK31: K | AL31: 0 | AM31: 0 | AN31: 0 | AO31: 0 | AP31: 0 | AQ31: 0 | AR31: 0 | AS31: 0 | AT31: 0 | AU31: 0 | AV31: 0 | AW31: 0 | AX31: 0 | AY31: 0 | AZ31: 0 | BA31: 0 | BT31: K | BU31: 0 | BV31: 0 | BW31: 0 | BX31: 0 | BY31: 0 | BZ31: 0 | CA31: 0 | CB31: 0 | CC31: 0 | CD31: 0 | CE31: 0 | CF31: 0 | CG31: 0 | CH31: 0 | CI31: 0
A32: L | C32: 1 | R32: 1 | T32: L | U32: 0.09 | V32: 0.19 | W32: 0.1 | X32: 0.1 | Y32: 0 | Z32: 0.1 | AK32: L | AL32: 0.32 | AM32: 0 | AN32: 0 | AO32: 0 | AP32: 0 | AQ32: 0 | AR32: 0 | AS32: 0 | AT32: 0 | AU32: 0 | AV32: 0 | AW32: 0 | AX32: 0 | AY32: 0 | AZ32: 0 | BA32: 0.32 | BT32: L | BU32: 0.336 | BV32: 0 | BW32: 0 | BX32: 0 | BY32: 0 | BZ32: 0 | CA32: 0 | CB32: 0 | CC32: 0 | CD32: 0 | CE32: 0 | CF32: 0 | CG32: 0 | CH32: 0 | CI32: 0
A33: M | R33: 0 | T33: M | U33: 0.12 | V33: 0.14 | W33: 0.14 | X33: 0.13 | Y33: 0.1 | Z33: 0.11 | AK33: M | AL33: 0 | AM33: 0 | AN33: 0 | AO33: 0 | AP33: 0 | AQ33: 0 | AR33: 0 | AS33: 0 | AT33: 0 | AU33: 0 | AV33: 0 | AW33: 0 | AX33: 0 | AY33: 0 | AZ33: 0 | BA33: 0 | BT33: M | BU33: 0 | BV33: 0 | BW33: 0 | BX33: 0 | BY33: 0 | BZ33: 0 | CA33: 0 | CB33: 0 | CC33: 0 | CD33: 0 | CE33: 0 | CF33: 0 | CG33: 0 | CH33: 0 | CI33: 0
A34: Q | R34: 0 | T34: Q | U34: 0.16 | V34: 0.19 | W34: 0.14 | X34: 0.13 | Y34: 0.1 | Z34: 0.15 | AK34: Q | AL34: 0 | AM34: 0 | AN34: 0 | AO34: 0 | AP34: 0 | AQ34: 0 | AR34: 0 | AS34: 0 | AT34: 0 | AU34: 0 | AV34: 0 | AW34: 0 | AX34: 0 | AY34: 0 | AZ34: 0 | BA34: =SUM(AL34:AZ34) -> 0 | BT34: Q | BU34: 0 | BV34: 0 | BW34: 0 | BX34: 0 | BY34: 0 | BZ34: 0 | CA34: 0 | CB34: 0 | CC34: 0 | CD34: 0 | CE34: 0 | CF34: 0 | CG34: 0 | CH34: 0 | CI34: 0
A35: Total Injury crashes | C35: =SUM(C21:C34) -> 32 | D35: =SUM(D21:D34) -> 0 | E35: 0 | F35: 0 | G35: 0 | H35: 0 | I35: 1 | J35: 0 | K35: 0 | L35: 0 | M35: 0 | N35: 0 | O35: 0 | P35: 0 | Q35: 0 | R35: 33 | AK35: Sum | AL35: =SUM(AL21:AL34) -> 12.8 | AM35: =SUM(AM21:AM34) -> 0 | AN35: =SUM(AN21:AN34) -> 0 | AO35: =SUM(AO21:AO34) -> 0 | AP35: =SUM(AP21:AP34) -> 0 | AQ35: =SUM(AQ21:AQ34) -> 0 | AR35: =SUM(AR21:AR34) -> 0.7 | AS35: =SUM(AS21:AS34) -> 0 | AT35: =SUM(AT21:AT34) -> 0 | AU35: =SUM(AU21:AU34) -> 0 | AV35: =SUM(AV21:AV34) -> 0 | AW35: =SUM(AW21:AW34) -> 0 | AX35: =SUM(AX21:AX34) -> 0 | AY35: =SUM(AY21:AY34) -> 0 | AZ35: =SUM(AZ21:AZ34) -> 0 | BA35: =SUM(AL35:AZ35) -> 13.5 | BT35: Sum | BU35: =SUM(BU21:BU34) -> 13.44 | BV35: =SUM(BV21:BV34) -> 0 | BW35: =SUM(BW21:BW34) -> 0 | BX35: =SUM(BX21:BX34) -> 0 | BY35: =SUM(BY21:BY34) -> 0 | BZ35: =SUM(BZ21:BZ34) -> 0 | CA35: =SUM(CA21:CA34) -> 0.7 | CB35: =SUM(CB21:CB34) -> 0 | CC35: =SUM(CC21:CC34) -> 0 | CD35: =SUM(CD21:CD34) -> 0 | CE35: =SUM(CE21:CE34) -> 0 | CF35: =SUM(CF21:CF34) -> 0 | CG35: =SUM(CG21:CG34) -> 0 | CH35: =SUM(CH21:CH34) -> 0 | CI35: =SUM(CI21:CI34) -> 0 | CJ35: =SUM(BU35:CI35) -> 14.14
A37: DSI Equivalents | C37: =CJ35 -> 14.14 | D37: ="(total over " &B15& " years)" -> (total over 5 years) | U37: Rural
A38: Collective Risk | C38: =IF(B4="Intersection",C37/B11,(C37/(B11*B10))) -> 0.1413293353 | D38: =IF(AND(B4="intersection",C37>1.6),"HIGH",IF(AND(B4="intersection",C37>1.1),"MEDIUM HIGH",IF(AND(B4="intersection",C37>0.6),"MEDIUM",IF(AND(B4="intersection",C37>0.3),"LOW MEDIUM",IF(AND(B4="Corridor",B6="Urban",C38>(0.74004*(B10^-0.338))),"HIGH",IF(AND(B4="Corridor",B6="Urban",C38>(0.44402*(B10^-0.338))),"MEDIUM HIGH",IF(AND(B4="Corridor",B6="Urban",C38>(0.22202*(B10^-0.338))),"MEDIUM",IF(AND(B4="Corridor",B6="Urban",C38>(0.074*(B10^-0.338))),"LOW MEDIUM",IF(AND(B4="Corridor",B6="Rural",C38>(0.42146*(B10^-0.196))),"HIGH",IF(AND(B4="Corridor",B6="Rural",C38>(0.19664*(B10^-0.109))),"MEDIUM HIGH",IF(AND(B4="Corridor",B6="Rural",(C38>0.07384)),"MEDIUM",IF(AND(B4="Corridor",B6="Rural",(C38>0.02332)),"LOW MEDIUM","LOW")))))))))))) -> MEDIUM | U38: Generic | X38: Intersections | AA38: Pedestrain crashes | AD38: Cyclist Crashes | AG38: Motorcyclist Crashes
A39: Personal Risk | C39: =IF(B4="Intersection",((C38*100000000)/(B9*365*1.7)),((C38*100000000)/(B7*365))) -> 7.862003217 | D39: =IF(AND(B4="Intersection",C39>=32),"HIGH",IF(AND(B4="intersection",C39>=16),"MEDIUM HIGH",IF(AND(B4="intersection",C39>=10),"MEDIUM",IF(AND(B4="intersection",C39>=6),"LOW MEDIUM",IF(AND(B4="Corridor",C39>=20,C37>=3),"HIGH",IF(AND(B4="Corridor",C39>=12,C37>=2),"MEDIUM HIGH",IF(AND(B4="Corridor",C39>=20,C37>=2),"MEDIUM HIGH",IF(AND(B4="Corridor",C39>=20,C37>=1),"MEDIUM",IF(AND(B4="Corridor",C39>=12,C37>=1),"MEDIUM",IF(AND(B4="Corridor",C39>=5),"MEDIUM",IF(AND(B4="Corridor",C39>=2),"LOW MEDIUM","LOW"))))))))))) -> MEDIUM | U39: Generic | V39: Midblock | W39: Intersection | X39: Signalised | Y39: Rounabout | Z39: Priority | AA39: Generic | AB39: Midblock | AC39: Intersection | AD39: Generic | AE39: Midblock | AF39: Intersection | AG39: Generic | AH39: Midblock | AI39: Intersection
A40: Infrastructure Risk Rating | C40: ='Infrastructure Risk Rating'!B3 -> 1.232299998 | D40: ='Infrastructure Risk Rating'!C3 -> MEDIUM | T40: All | U40: 0.32 | V40: 0.32 | W40: 0.34 | X40: 0.27 | Y40: 0.11 | Z40: 0.35 | AA40: 0.7 | AB40: 0.72 | AC40: 0.64 | AD40: 0.47 | AE40: 0.54 | AF40: 0.33 | AG40: 0.52 | AH40: 0.52 | AI40: 0.49
T41: A | U41: 0.32 | V41: 0.32 | W41: 0.34 | X41: 0.27 | Y41: 0.11 | Z41: 0.35
A42: Strategic Fit | D42: =IF(AND(B4="Intersection",C37>=1.1),"HIGH",IF(AND(B4="Intersection",C37>=0.6),"MEDIUM",IF(AND(B4="Intersection",D39="High"),"HIGH",IF(AND(B4="Intersection",D39="Medium High"),"MEDIUM",IF(AND(B4="Corridor",D38="High",R35>=3),"HIGH",IF(AND(B4="Corridor",D38="Medium High",R35>=3),"HIGH",IF(AND(B4="Corridor",R35>=3,D39="HIGH"),"HIGH",IF(AND(B4="Corridor",R35>=3,C39>=12),"HIGH",IF(AND(B4="corridor",R35>=3,D40="MEDIUM HIGH"),"HIGH",IF(AND(B4="corridor",R35>=3,D40="HIGH"),"HIGH",IF(AND(B4="corridor",D38="Medium"),"MEDIUM",IF(AND(B4="Corridor",D39="Medium"),"MEDIUM",IF(AND(B4="Corridor",D40="MEDIUM"),"MEDIUM",IF(AND(B4="Corridor",D40="MEDIUM HIGH"),"MEDIUM",IF(AND(B4="Corridor",D40="HIGH"),"MEDIUM","LOW"))))))))))))))) -> MEDIUM | T42: B | U42: 0.86 | V42: 0.87 | W42: 0.34 | X42: 0.27 | Y42: 0.11 | Z42: 0.35
T43: C | U43: 0.26 | V43: 0.26 | W43: 0.2 | X43: 0.27 | Y43: 0.25 | Z43: 0.19
T44: D | U44: 0.27 | V44: 0.27 | W44: 0.29 | X44: 0.27 | Y44: 0.18 | Z44: 0.29
T45: E | U45: 0.32 | V45: 0.32 | W45: 0.34 | X45: 0.27 | Y45: 0.11 | Z45: 0.35
T46: F | U46: 0.09 | V46: 0.09 | W46: 0.08 | X46: 0.13 | Y46: 0 | Z46: 0.08
T47: G | U47: 0.32 | V47: 0.32 | W47: 0.29 | X47: 0.27 | Y47: 0.11 | Z47: 0.31
T48: H | U48: 0.32 | V48: 0.32 | W48: 0.56 | X48: 0.3 | Y48: 0.11 | Z48: 0.59
T49: J | U49: 0.32 | V49: 0.32 | W49: 0.41 | X49: 0.27 | Y49: 0.11 | Z49: 0.42
T50: K | U50: 0.32 | V50: 0.32 | W50: 0.34 | X50: 0.27 | Y50: 0.11 | Z50: 0.35
T51: L | U51: 0.32 | V51: 0.32 | W51: 0.4 | X51: 0.27 | Y51: 0.11 | Z51: 0.44
T52: M | U52: 0.32 | V52: 0.32 | W52: 0.34 | X52: 0.27 | Y52: 0.11 | Z52: 0.35
T53: Q | U53: 0.32 | V53: 0.32 | W53: 0.34 | X53: 0.27 | Y53: 0.11 | Z53: 0.35

Sheet Intervention ForecastAssessment
A1: Project Name | B1: ='Do Minimum Forecast Assessment'!B1 -> SNP Boost 3: SH2 Te Puke - Otamarakau | H1: Assessment Date | J1: ='Do Minimum Forecast Assessment'!J1 -> 2020-11-02 | L1: Key | O1: B - DSI Equivalents
A2: Local govt area | B2: ='Do Minimum Forecast Assessment'!B2 -> Western Bay Of Plenty District | L2: Input required
A3: Model Type | B3: ='Do Minimum Forecast Assessment'!B3 -> Standard Model (designed for an input of coded crash data and provides a more accurate risk score) | L3: Leave blank
A4: Corridor or Intersection | B4: ='Do Minimum Forecast Assessment'!B4 -> Corridor | L4: Leave value
A5: Speed Limit | B5: ='Do Minimum Forecast Assessment'!B5 -> 100 | C5: (km/h)
A6: Speed Environment | B6: ='Do Minimum Forecast Assessment'!B6 -> Rural
A7: =IF(B4="Intersection","Major Road AADT","Corridor AADT") -> Corridor AADT | B7: ='Do Minimum Forecast Assessment'!B7 -> 4925 | C7: =IF(B4="Intersection","Average of the two major intersection approaches","Two-way AADT in vehicles/day") -> Two-way AADT in vehicles/day
A8: =IF(B4="Intersection","Minor Road AADT"," ") -> 
A9: =IF(B4="Intersection","Product of Flow (PoF)","") ->  | B9: =IF(A9="","",(B7*B8)^0.4) ->  | C9: Only populated for intersections
A10: =IF(B4="intersection","","Corridor Length (km)") -> Corridor Length (km) | B10: ='Do Minimum Forecast Assessment'!B10 -> 20.01
A11: Crash Analysis Period | B11: ='Do Minimum Forecast Assessment'!B11 -> 5 | C11: Number of years in crash analysis period
A12: Start Year | B12: ='Do Minimum Forecast Assessment'!B12 -> 2015
A13: End Year | B13: ='Do Minimum Forecast Assessment'!B13 -> 2019
A14: Forecast year | B14: ='Do Minimum Forecast Assessment'!B14 -> 2025 | C14: First year when intervention will be effective
A15: Monitoring period | B15: ='Do Minimum Forecast Assessment'!B15 -> 5 | C15: Years to monitor DSI starting from Forecast year
A17: Crash History as if Intervention Implemented | S17: Movement code factor | AJ17: Crash History x Movement code factor | BB17: Speed factors | BS17: Overall scoring
B18: Number of Injury Crashes | S18: Movement crash code | T18: Number of Injury Crashes | AJ18: Movement crash code | AK18: Number of Injury Crashes | BB18: Speed Enviroment | BC18: Speed factrors | BS18: Movement crash code | BT18: Number of Injury Crashes
B19: Generic | E19: Intersections | H19: Pedestrian crashes | K19: Cyclist Crashes | N19: Motorcyclist Crashes | T19: Generic | W19: Intersections | Z19: Pedestrain crashes | AC19: Cyclist Crashes | AF19: Motorcyclist Crashes | AK19: Generic | AN19: Intersections | AQ19: Pedestrain crashes | AT19: Cyclist Crashes | AW19: Motorcyclist Crashes | BC19: Generic | BF19: Intersections | BI19: Pedestrain crashes | BL19: Cyclist Crashes | BO19: Motorcyclist Crashes | BT19: Generic | BW19: Intersections | BZ19: Pedestrain crashes | CC19: Cyclist Crashes | CF19: Motorcyclist Crashes
A20: Movement crash code | B20: Generic | C20: Midblock | D20: Intersection | E20: Signalised | F20: Roundabout | G20: Priority | H20: Generic | I20: Midblock | J20: Intersection | K20: Generic | L20: Midblock | M20: Intersection | N20: Generic | O20: Midblock | P20: Intersection | Q20: Sum | T20: Generic | U20: Midblock | V20: Intersection | W20: Signalised | X20: Rounabout | Y20: Priority | Z20: Generic | AA20: Midblock | AB20: Intersection | AC20: Generic | AD20: Midblock | AE20: Intersection | AF20: Generic | AG20: Midblock | AH20: Intersection | AK20: Generic | AL20: Midblock | AM20: Intersection | AN20: Signalised | AO20: Rounabout | AP20: Priority | AQ20: Generic | AR20: Midblock | AS20: Intersection | AT20: Generic | AU20: Midblock | AV20: Intersection | AW20: Generic | AX20: Midblock | AY20: Intersection | BC20: Generic | BD20: Midblock | BE20: Intersection | BF20: Signalised | BG20: Rounabout | BH20: Priority | BI20: Generic | BJ20: Midblock | BK20: Intersection | BL20: Generic | BM20: Midblock | BN20: Intersection | BO20: Generic | BP20: Midblock | BQ20: Intersection | BT20: Generic | BU20: Midblock | BV20: Intersection | BW20: Signalised | BX20: Rounabout | BY20: Priority | BZ20: Generic | CA20: Midblock | CB20: Intersection | CC20: Generic | CD20: Midblock | CE20: Intersection | CF20: Generic | CG20: Midblock | CH20: Intersection
A21: All | H21: 1 | Q21: =SUM(B21:P21) -> 1 | S21: All | T21: 0.16 | U21: 0.19 | V21: 0.14 | W21: 0.13 | X21: 0.1 | Y21: 0.15 | Z21: 0.3 | AA21: 0.33 | AB21: 0.29 | AC21: 0.22 | AD21: 0.26 | AE21: 0.22 | AF21: 0.33 | AG21: 0.38 | AH21: 0.31 | AJ21: All | AK21: =IF($B$5>79,B21*T40,B21*T21) -> 0 | AL21: =IF($B$5>79,C21*U40,C21*U21) -> 0 | AM21: 0 | AN21: 0 | AO21: 0 | AP21: 0 | AQ21: 0.7 | AR21: 0 | AS21: 0 | AT21: 0 | AU21: 0 | AV21: 0 | AW21: 0 | AX21: 0 | AY21: 0 | AZ21: =SUM(AK21:AY21) -> 0.7 | BB21: <=30 | BC21: 0.95 | BD21: 0.95 | BE21: 0.95 | BF21: 0.9 | BG21: 1 | BH21: 0.95 | BI21: 0.75 | BJ21: 0.7 | BK21: 0.75 | BL21: 0.8 | BM21: 0.8 | BN21: 0.75 | BO21: 0.95 | BP21: 0.95 | BQ21: 0.95 | BS21: All | BT21: =AK21* IF($B$5=$BB$21,BC$21, IF($B$5=$BB$22,BC$22, IF($B$5=$BB$23,BC$23, IF($B$5=$BB$24,BC$24, IF($B$5=$BB$25,BC$25, IF($B$5=$BB$26,BC$26, IF($B$5=$BB$27,BC$27, ))))))) -> 0 | BU21: 0 | BV21: 0 | BW21: 0 | BX21: 0 | BY21: 0 | BZ21: 0.7 | CA21: 0 | CB21: 0 | CC21: 0 | CD21: 0 | CE21: 0 | CF21: 0 | CG21: 0 | CH21: 0
A22: A | Q22: =SUM(B22:P22) -> 0 | S22: A | T22: 0.16 | U22: 0.19 | V22: 0.14 | W22: 0.13 | X22: 0.1 | Y22: 0.15 | AJ22: A | AK22: =IF($B$5>79,B22*T41,B22*T22) -> 0 | AL22: 0 | AM22: 0 | AN22: 0 | AO22: 0 | AP22: 0 | AQ22: 0 | AR22: 0 | AS22: 0 | AT22: 0 | AU22: 0 | AV22: 0 | AW22: 0 | AX22: 0 | AY22: 0 | AZ22: =SUM(AK22:AY22) -> 0 | BB22: 40 | BC22: 0.95 | BD22: 0.95 | BE22: 0.95 | BF22: 0.9 | BG22: 1 | BH22: 0.95 | BI22: 0.8 | BJ22: 0.75 | BK22: 0.75 | BL22: 0.8 | BM22: 0.8 | BN22: 0.75 | BO22: 0.95 | BP22: 0.95 | BQ22: 0.95 | BS22: A | BT22: 0 | BU22: 0 | BV22: 0 | BW22: 0 | BX22: 0 | BY22: 0 | BZ22: 0 | CA22: 0 | CB22: 0 | CC22: 0 | CD22: 0 | CE22: 0 | CF22: 0 | CG22: 0 | CH22: 0
A23: B | B23: 6 | Q23: 6 | S23: B | T23: 0.33 | U23: 0.35 | V23: 0.14 | W23: 0.13 | X23: 0.1 | Y23: 0.32 | AJ23: B | AK23: 5.16 | AL23: 0 | AM23: 0 | AN23: 0 | AO23: 0 | AP23: 0 | AQ23: 0 | AR23: 0 | AS23: 0 | AT23: 0 | AU23: 0 | AV23: 0 | AW23: 0 | AX23: 0 | AY23: 0 | AZ23: 5.16 | BB23: 50 | BC23: 0.95 | BD23: 0.95 | BE23: 0.95 | BF23: 0.9 | BG23: 1 | BH23: 0.95 | BI23: 1 | BJ23: 1 | BK23: 1 | BL23: 1 | BM23: 0.95 | BN23: 1 | BO23: 0.95 | BP23: 0.95 | BQ23: 0.95 | BS23: B | BT23: 5.418 | BU23: 0 | BV23: 0 | BW23: 0 | BX23: 0 | BY23: 0 | BZ23: 0 | CA23: 0 | CB23: 0 | CC23: 0 | CD23: 0 | CE23: 0 | CF23: 0 | CG23: 0 | CH23: 0
A24: C | B24: 6 | Q24: 6 | S24: C | T24: 0.23 | U24: 0.23 | V24: 0.23 | W24: 0.13 | X24: 0.27 | Y24: 0.22 | AJ24: C | AK24: 1.56 | AL24: 0 | AM24: 0 | AN24: 0 | AO24: 0 | AP24: 0 | AQ24: 0 | AR24: 0 | AS24: 0 | AT24: 0 | AU24: 0 | AV24: 0 | AW24: 0 | AX24: 0 | AY24: 0 | AZ24: 1.56 | BB24: 60 | BC24: 1.25 | BD24: 1.3 | BE24: 1.1 | BF24: 1.5 | BG24: 1 | BH24: 1.2 | BI24: 1.6 | BJ24: 1.7 | BK24: 1.5 | BL24: 1.25 | BM24: 1.35 | BN24: 1.15 | BO24: 1.3 | BP24: 1.2 | BQ24: 1.3 | BS24: C | BT24: 1.638 | BU24: 0 | BV24: 0 | BW24: 0 | BX24: 0 | BY24: 0 | BZ24: 0 | CA24: 0 | CB24: 0 | CC24: 0 | CD24: 0 | CE24: 0 | CF24: 0 | CG24: 0 | CH24: 0
A25: D | B25: 5 | Q25: 5 | S25: D | T25: 0.24 | U25: 0.26 | V25: 0.22 | W25: 0.18 | X25: 0.16 | Y25: 0.23 | AJ25: D | AK25: 1.35 | AL25: 0 | AM25: 0 | AN25: 0 | AO25: 0 | AP25: 0 | AQ25: 0 | AR25: 0 | AS25: 0 | AT25: 0 | AU25: 0 | AV25: 0 | AW25: 0 | AX25: 0 | AY25: 0 | AZ25: 1.35 | BB25: 70 | BC25: 1.55 | BD25: 1.6 | BE25: 1.4 | BF25: 1.5 | BG25: 1 | BH25: 1.6 | BI25: 1.6 | BJ25: 1.7 | BK25: 1.5 | BL25: 1.25 | BM25: 1.35 | BN25: 1.15 | BO25: 1.3 | BP25: 1.3 | BQ25: 1.3 | BS25: D | BT25: 1.4175 | BU25: 0 | BV25: 0 | BW25: 0 | BX25: 0 | BY25: 0 | BZ25: 0 | CA25: 0 | CB25: 0 | CC25: 0 | CD25: 0 | CE25: 0 | CF25: 0 | CG25: 0 | CH25: 0
A26: E | Q26: 0 | S26: E | T26: 0.12 | U26: 0.12 | V26: 0.13 | W26: 0.13 | X26: 0.1 | Y26: 0.13 | AJ26: E | AK26: 0 | AL26: 0 | AM26: 0 | AN26: 0 | AO26: 0 | AP26: 0 | AQ26: 0 | AR26: 0 | AS26: 0 | AT26: 0 | AU26: 0 | AV26: 0 | AW26: 0 | AX26: 0 | AY26: 0 | AZ26: 0 | BB26: 80 | BC26: 0.75 | BD26: 0.75 | BE26: 0.75 | BF26: 0.55 | BG26: 1 | BH26: 0.75 | BI26: 1 | BJ26: 0.95 | BK26: 1 | BL26: 1 | BM26: 1 | BN26: 0.95 | BO26: 0.8 | BP26: 0.8 | BQ26: 0.75 | BS26: E | BT26: 0 | BU26: 0 | BV26: 0 | BW26: 0 | BX26: 0 | BY26: 0 | BZ26: 0 | CA26: 0 | CB26: 0 | CC26: 0 | CD26: 0 | CE26: 0 | CF26: 0 | CG26: 0 | CH26: 0
A27: F | B27: 2 | Q27: 2 | S27: F | T27: 0.06 | U27: 0.05 | V27: 0.06 | W27: 0.06 | X27: 0.06 | Y27: 0.06 | AJ27: F | AK27: 0.18 | AL27: 0 | AM27: 0 | AN27: 0 | AO27: 0 | AP27: 0 | AQ27: 0 | AR27: 0 | AS27: 0 | AT27: 0 | AU27: 0 | AV27: 0 | AW27: 0 | AX27: 0 | AY27: 0 | AZ27: 0.18 | BB27: 100 | BC27: 1.05 | BD27: 1.05 | BE27: 1.1 | BF27: 1.65 | BG27: 1 | BH27: 1.05 | BI27: 1 | BJ27: 1 | BK27: 1 | BL27: 1 | BM27: 1 | BN27: 1 | BO27: 1.05 | BP27: 1.05 | BQ27: 1.1 | BS27: F | BT27: 0.189 | BU27: 0 | BV27: 0 | BW27: 0 | BX27: 0 | BY27: 0 | BZ27: 0 | CA27: 0 | CB27: 0 | CC27: 0 | CD27: 0 | CE27: 0 | CF27: 0 | CG27: 0 | CH27: 0
A28: G | B28: 3 | Q28: 3 | S28: G | T28: 0.16 | U28: 0.19 | V28: 0.14 | W28: 0.13 | X28: 0.1 | Y28: 0.15 | AJ28: G | AK28: =IF($B$5>79,B28*T53,B28*T28) -> 0.96 | AL28: 0 | AM28: 0 | AN28: 0 | AO28: 0 | AP28: 0 | AQ28: 0 | AR28: 0 | AS28: 0 | AT28: 0 | AU28: 0 | AV28: 0 | AW28: 0 | AX28: 0 | AY28: 0 | AZ28: 0.96 | BS28: G | BT28: 1.008 | BU28: 0 | BV28: 0 | BW28: 0 | BX28: 0 | BY28: 0 | BZ28: 0 | CA28: 0 | CB28: 0 | CC28: 0 | CD28: 0 | CE28: 0 | CF28: 0 | CG28: 0 | CH28: 0
A29: H | Q29: 0 | S29: H | T29: 0.13 | U29: 0.19 | V29: 0.13 | W29: 0.18 | X29: 0.08 | Y29: 0.12 | AJ29: H | AK29: =IF($B$5>79,B29*T55,B29*T29) -> 0 | AL29: 0 | AM29: 0 | AN29: 0 | AO29: 0 | AP29: 0 | AQ29: 0 | AR29: 0 | AS29: 0 | AT29: 0 | AU29: 0 | AV29: 0 | AW29: 0 | AX29: 0 | AY29: 0 | AZ29: 0 | BS29: H | BT29: 0 | BU29: 0 | BV29: 0 | BW29: 0 | BX29: 0 | BY29: 0 | BZ29: 0 | CA29: 0 | CB29: 0 | CC29: 0 | CD29: 0 | CE29: 0 | CF29: 0 | CG29: 0 | CH29: 0
A30: J | B30: 2 | Q30: 2 | S30: J | T30: 0.1 | U30: 0.19 | V30: 0.1 | W30: 0.16 | X30: 0.06 | Y30: 0.1 | AJ30: J | AK30: 0.64 | AL30: 0 | AM30: 0 | AN30: 0 | AO30: 0 | AP30: 0 | AQ30: 0 | AR30: 0 | AS30: 0 | AT30: 0 | AU30: 0 | AV30: 0 | AW30: 0 | AX30: 0 | AY30: 0 | AZ30: 0.64 | BS30: J | BT30: 0.672 | BU30: 0 | BV30: 0 | BW30: 0 | BX30: 0 | BY30: 0 | BZ30: 0 | CA30: 0 | CB30: 0 | CC30: 0 | CD30: 0 | CE30: 0 | CF30: 0 | CG30: 0 | CH30: 0
A31: K | Q31: 0 | S31: K | T31: 0.16 | U31: 0.19 | V31: 0.14 | W31: 0.13 | X31: 0.02 | Y31: 0.15 | AJ31: K | AK31: 0 | AL31: 0 | AM31: 0 | AN31: 0 | AO31: 0 | AP31: 0 | AQ31: 0 | AR31: 0 | AS31: 0 | AT31: 0 | AU31: 0 | AV31: 0 | AW31: 0 | AX31: 0 | AY31: 0 | AZ31: 0 | BS31: K | BT31: 0 | BU31: 0 | BV31: 0 | BW31: 0 | BX31: 0 | BY31: 0 | BZ31: 0 | CA31: 0 | CB31: 0 | CC31: 0 | CD31: 0 | CE31: 0 | CF31: 0 | CG31: 0 | CH31: 0
A32: L | B32: 1 | Q32: 1 | S32: L | T32: 0.09 | U32: 0.19 | V32: 0.1 | W32: 0.1 | X32: 0 | Y32: 0.1 | AJ32: L | AK32: 0.32 | AL32: 0 | AM32: 0 | AN32: 0 | AO32: 0 | AP32: 0 | AQ32: 0 | AR32: 0 | AS32: 0 | AT32: 0 | AU32: 0 | AV32: 0 | AW32: 0 | AX32: 0 | AY32: 0 | AZ32: 0.32 | BS32: L | BT32: 0.336 | BU32: 0 | BV32: 0 | BW32: 0 | BX32: 0 | BY32: 0 | BZ32: 0 | CA32: 0 | CB32: 0 | CC32: 0 | CD32: 0 | CE32: 0 | CF32: 0 | CG32: 0 | CH32: 0
A33: M | Q33: 0 | S33: M | T33: 0.12 | U33: 0.14 | V33: 0.14 | W33: 0.13 | X33: 0.1 | Y33: 0.11 | AJ33: M | AK33: 0 | AL33: 0 | AM33: 0 | AN33: 0 | AO33: 0 | AP33: 0 | AQ33: 0 | AR33: 0 | AS33: 0 | AT33: 0 | AU33: 0 | AV33: 0 | AW33: 0 | AX33: 0 | AY33: 0 | AZ33: 0 | BS33: M | BT33: 0 | BU33: 0 | BV33: 0 | BW33: 0 | BX33: 0 | BY33: 0 | BZ33: 0 | CA33: 0 | CB33: 0 | CC33: 0 | CD33: 0 | CE33: 0 | CF33: 0 | CG33: 0 | CH33: 0
A34: Q | Q34: 0 | S34: Q | T34: 0.16 | U34: 0.19 | V34: 0.14 | W34: 0.13 | X34: 0.1 | Y34: 0.15 | AJ34: Q | AK34: 0 | AL34: 0 | AM34: 0 | AN34: 0 | AO34: 0 | AP34: 0 | AQ34: 0 | AR34: 0 | AS34: 0 | AT34: 0 | AU34: 0 | AV34: 0 | AW34: 0 | AX34: 0 | AY34: 0 | AZ34: =SUM(AK34:AY34) -> 0 | BS34: Q | BT34: 0 | BU34: 0 | BV34: 0 | BW34: 0 | BX34: 0 | BY34: 0 | BZ34: 0 | CA34: 0 | CB34: 0 | CC34: 0 | CD34: 0 | CE34: 0 | CF34: 0 | CG34: 0 | CH34: 0
A35: Total Injury crashes | B35: =SUM(B21:B34) -> 25 | C35: =SUM(C21:C34) -> 0 | D35: 0 | E35: 0 | F35: 0 | G35: 0 | H35: 1 | I35: 0 | J35: 0 | K35: 0 | L35: 0 | M35: 0 | N35: 0 | O35: 0 | P35: 0 | Q35: 26 | AJ35: Sum | AK35: =SUM(AK21:AK34) -> 10.17 | AL35: =SUM(AL21:AL34) -> 0 | AM35: 0 | AN35: 0 | AO35: 0 | AP35: 0 | AQ35: 0.7 | AR35: 0 | AS35: 0 | AT35: 0 | AU35: 0 | AV35: 0 | AW35: 0 | AX35: 0 | AY35: 0 | AZ35: =SUM(AK35:AY35) -> 10.87 | BS35: Sum | BT35: =SUM(BT21:BT34) -> 10.6785 | BU35: =SUM(BU21:BU34) -> 0 | BV35: 0 | BW35: 0 | BX35: 0 | BY35: 0 | BZ35: 0.7 | CA35: 0 | CB35: 0 | CC35: 0 | CD35: 0 | CE35: 0 | CF35: 0 | CG35: 0 | CH35: 0 | CI35: =SUM(BT35:CH35) -> 11.3785
B37: Do Minimum | H37: Intervention | T37: Rural
A38: DSI Equivalents | B38: ='Do Minimum Forecast Assessment'!C37 -> 14.14 | C38: ='Do Minimum Forecast Assessment'!D37 -> (total over 5 years) | H38: =CI35 -> 11.3785 | I38: ="(total over " &B15& " years)" -> (total over 5 years) | T38: Generic | W38: Intersections | Z38: Pedestrain crashes | AC38: Cyclist Crashes | AF38: Motorcyclist Crashes
T39: Generic | U39: Midblock | V39: Intersection | W39: Signalised | X39: Rounabout | Y39: Priority | Z39: Generic | AA39: Midblock | AB39: Intersection | AC39: Generic | AD39: Midblock | AE39: Intersection | AF39: Generic | AG39: Midblock | AH39: Intersection
B40: Do min DSI | D40: ="Cumulative over "&$B15&" years to" -> Cumulative over 5 years to | E40: =$B14+$B15-1 -> 2029 | F40: =VLOOKUP($B$14+$B$15-1,'Error Margins'!$B$30:$AF$51,31,FALSE) -> 15.30024228 | H40: DSI with intervention | K40: ="Cumulative over "&$B15&" years to" -> Cumulative over 5 years to | L40: =$B14+$B15-1 -> 2029 | M40: =F40*(H38/B38) -> 12.31215041 | S40: All | T40: 0.32 | U40: 0.32 | V40: 0.34 | W40: 0.27 | X40: 0.11 | Y40: 0.35 | Z40: 0.7 | AA40: 0.72 | AB40: 0.64 | AC40: 0.47 | AD40: 0.54 | AE40: 0.33 | AF40: 0.52 | AG40: 0.52 | AH40: 0.49
B41: Standard deviation (Poisson) | F41: =SQRT(F40) -> 3.911552413 | H41: Standard deviation (Poisson) | M41: =SQRT(M40) -> 3.508867397 | S41: A | T41: 0.32 | U41: 0.32 | V41: 0.34 | W41: 0.27 | X41: 0.11 | Y41: 0.35
B42: Do min DSI -1 std error/deviation | F42: =MAX(0,F40-F41) -> 11.38868987 | H42: Intervention DSI -1 std error/deviation | M42: =MAX(0,M40-M41) -> 8.803283012 | S42: B | T42: 0.86 | U42: 0.87 | V42: 0.34 | W42: 0.27 | X42: 0.11 | Y42: 0.35
B43: Do min DSI +1 std error/deviation | F43: =F40+F41 -> 19.21179469 | H43: Intervention DSI +1 std error/deviation | M43: =M40+M41 -> 15.82101781 | S43: C | T43: 0.26 | U43: 0.26 | V43: 0.2 | W43: 0.27 | X43: 0.25 | Y43: 0.19
B44: Implied forecast range | F44: =ROUND(F42,1)&" - "&ROUND(F43,1) -> 11.4 - 19.2 | H44: Implied forecast range | M44: =ROUND(M42,1)&" - "&ROUND(M43,1) -> 8.8 - 15.8 | S44: D | T44: 0.27 | U44: 0.27 | V44: 0.29 | W44: 0.27 | X44: 0.18 | Y44: 0.29
S45: E | T45: 0.32 | U45: 0.32 | V45: 0.34 | W45: 0.27 | X45: 0.11 | Y45: 0.35
B46: Confidence Rating | F46: =IF(F41/F40<0.2,"High",IF(F41/F40<0.35,"Medium","Low")) -> Medium | H46: Confidence Rating | M46: =IF(M41/M40<0.2,"High",IF(M41/M40<0.35,"Medium","Low")) -> Medium | S46: F | T46: 0.09 | U46: 0.09 | V46: 0.08 | W46: 0.13 | X46: 0 | Y46: 0.08
B48: Note
B49: Error margins are for one standard deviation of a Poisson
B50: distribution for DSI. The effects of uncertainty in the underlying
B51: forecasts for P, V/P and T/V should be assessed by testing alternative
B52: scenarios. See the paper An Approach for Forecasting the Number of
B53: Do Minimum' Deaths and Serious Injuries, by Infometrics for more | S53: G | T53: 0.32 | U53: 0.32 | V53: 0.29 | W53: 0.27 | X53: 0.11 | Y53: 0.31
B54: detail.
S55: H | T55: 0.32 | U55: 0.32 | V55: 0.56 | W55: 0.3 | X55: 0.11 | Y55: 0.59
B56: Graph below is from Error Margins worksheet | S56: J | T56: 0.32 | U56: 0.32 | V56: 0.41 | W56: 0.27 | X56: 0.11 | Y56: 0.42
S57: K | T57: 0.32 | U57: 0.32 | V57: 0.34 | W57: 0.27 | X57: 0.11 | Y57: 0.35
S58: L | T58: 0.32 | U58: 0.32 | V58: 0.4 | W58: 0.27 | X58: 0.11 | Y58: 0.44
S59: M | T59: 0.32 | U59: 0.32 | V59: 0.34 | W59: 0.27 | X59: 0.11 | Y59: 0.35
S60: Q | T60: 0.32 | U60: 0.32 | V60: 0.34 | W60: 0.27 | X60: 0.11 | Y60: 0.35
B69: P | C69: population of relevant local government area
B70: V/P | C70: vehicles per capita
B71: T/V | C71: travel per vehicle
B72: DSI/T | C72: number of DSI per unit travel

Sheet Urban DSi Indices (hidden)

Sheet Rural DSi indices (hidden)

Sheet Example of DSI Calc (hidden)

Sheet Infrastructure Risk Rating
A1: Corridor Assessment
A3: Infrastructure Risk Rating | B3: =LOG10(B5*B7*B9*B11*B13*B15*B17*B19) -> 1.232299998 | C3: =IF(B3<0.8,"LOW",IF(B3<1.2,"LOW MEDIUM",IF(B3<1.6,"MEDIUM",IF(B3<2,"MEDIUM HIGH","HIGH")))) -> MEDIUM
A4: Road Stereotype
A5: Two Lane Undivided | B5: =LOOKUP(A5,'IRR Lookup Data'!$A$3:$A$8,'IRR Lookup Data'!$B$3:$B$8) -> 3.7
A6: Alignment
A7: Straight | B7: =LOOKUP(A7,'IRR Lookup Data'!$A$12:$A$15,'IRR Lookup Data'!$B$12:$B$15) -> 1
A8: Carriageway
A9: Shoulder 1.0+ to 2.0 | B9: =LOOKUP(A9,'IRR Lookup Data'!$A$19:$A$22,'IRR Lookup Data'!$B$19:$B$22) -> 1
A10: Roadside Hazard
A11: Moderate-High | B11: =LOOKUP(A11,'IRR Lookup Data'!$A$26:$A$31,'IRR Lookup Data'!$B$26:$B$31) -> 1.855
A12: Land Use
A13: Rural Residential | B13: =LOOKUP(A13,'IRR Lookup Data'!$A$35:$A$42,'IRR Lookup Data'!$B$35:$B$42) -> 1.5
A14: Intersection Density
A15: 1 - <2 / km | B15: =LOOKUP(A15,'IRR Lookup Data'!$A$46:$A$51,'IRR Lookup Data'!$B$46:$B$51) -> 1.15
A16: Access Density
A17: 2 - <5 / km | B17: =LOOKUP(A17,'IRR Lookup Data'!$A$55:$A$60,'IRR Lookup Data'!$B$55:$B$60) -> 1.03
A18: Traffic Volume
A19: 1,000 - <6,000 vpd | B19: =LOOKUP(A19,'IRR Lookup Data'!$A$64:$A$67,'IRR Lookup Data'!$B$64:$B$67) -> 1.4

Sheet Sheet3 (hidden)
A1: Model types
A2: Standard Model (designed for an input of coded crash data and provides a more accurate risk score)
A3: Simple Model (reduces the complexity of the input data but provides a less accurate indicatiuon of risk score)
A5: Corridor
A6: intersection
A12: 5
A13: 6
A14: 7
A15: 8
A16: 9
A17: 10

Sheet Speeds 2 (hidden)
A1: Speeds
A2: <=30
A3: 40
A4: 50
A5: 60
A6: 70
A7: 80
A8: 100

Sheet IRR Lookup Data
A1: Road Stereotype | B1: Risk Score
A2: Please select…
A3: Divided Non-Traversable | B3: 1
A4: Divided Traversable | B4: 3
A5: Multi-lane Undivided | B5: 3.4
A6: One Way | B6: 1
A7: Two Lane Undivided | B7: 3.7
A8: Unsealed | B8: 10
A10: Alignment | B10: Risk Score
A11: Please select…
A12: Curved | B12: 1.8
A13: Straight | B13: 1
A14: Tortuous | B14: 6
A15: Winding | B15: 4 | C15: Adjusted from 3 to represent Winding / Tortuous combination weighted 2/3 to Winding
A17: Carriageway | B17: Risk Score
A18: Please select…
A19: Shoulder 0 to <0.5 | B19: 1.79
A20: Shoulder 0.5 to 1.0 | B20: 1.45
A21: Shoulder 1.0+ to 2.0 | B21: 1
A22: Shoulder 2.0+ | B22: 0.78
A24: Roadside Hazard | B24: Risk Score
A25: Please select…
A26: High | B26: 2.28
A27: Low | B27: 0.4
A28: Minor | B28: 0.67
A29: Moderate | B29: 1.43
A30: Moderate-High | B30: =(B26+B29)/2 -> 1.855
A31: Severe | B31: 2.8
A33: Land Use | B33: Risk Score
A34: Please select…
A35: Commercial Other / Industrial | B35: 4
A36: Commercial Strip | B36: 5
A37: Controlled Access | B37: 2
A38: No Access | B38: 1
A39: Remote Rural | B39: 1
A40: Rural Residential | B40: 1.5
A41: Rural Town | B41: 2.5
A42: Urban Residential | B42: 3
A44: Intersection Density | B44: Risk Score
A45: Please select…
A46: <1 / km | B46: 1
A47: 1 - <2 / km | B47: 1.15
A48: 10+ / km | B48: 5
A49: 2 - <3 / km | B49: 1.25
A50: 3 - <5 / km | B50: 1.5
A51: 5 - <10 / km | B51: 2.6
A53: Access Density | B53: Risk Score
A54: Please select…
A55: <1 / km | B55: 1
A56: 1 - <2 / km | B56: 1.01
A57: 10 - <20 / km | B57: 1.1
A58: 2 - <5 / km | B58: 1.03
A59: 20+ / km | B59: 1.3
A60: 5 - <10 / km | B60: 1.06
A62: Traffic Volume | B62: Risk Score
A63: Please select…
A64: < 1,000 vpd | B64: 1
A65: 1,000 - <6,000 vpd | B65: 1.4
A66: 12,000+ vpd | B66: 3
A67: 6,000 - <12,000 vpd | B67: 2.2

Sheet Error Margins
A1: Do Minimum Projections for Deaths and Serious Injuries
C3: Select local authority | E3: ='Do Minimum Forecast Assessment'!B2 -> Western Bay Of Plenty District | H3: Cells shaded yellow are for alternative assumptions and sensitivity analysis. They will over-ride default values.
C4: Implied region | E4: =HLOOKUP(E3,LA!B3:BS4,2,FALSE) -> BP | H4: Results are given in cells shaded light blue.
C5: Region name | E5: =VLOOKUP(E4,Region!R3:S17,2,FALSE) -> Bay of Plenty
C6: End year for Figure 5 | E6: ='Do Minimum Forecast Assessment'!B14+'Do Minimum Forecast Assessment'!B15-1 -> 2029
C7: (see below)
C8: New Zealand | L8: =E3 -> Western Bay Of Plenty District | Q8: =E3 -> Western Bay Of Plenty District | T8: =E5 -> Bay of Plenty | Z8: =E3 -> Western Bay Of Plenty District | AF8: Area within LA
C9: V/P | G9: T/V | L9: P | Q9: T | T9: DSI/T | Z9: DSI | AA9: DSI-1se | AB9: DSI+1se | AC9: DSI-1sd | AD9: DSI+1sd | AF9: DSI | AG9: DSI-1sd | AH9: DSI+1sd
C10: level | D10: endog change | E10: exog change | F10: selected change | G10: level | H10: endog change | I10: exog change | J10: selected change | L10: level | M10: endog change | N10: exog change | O10: selected change | Q10: level | R10: change | T10: value | U10: endog change | V10: exog change | W10: selected change | X10: error
A11: 1 | B11: 2000 | Z11: =HLOOKUP(Z$8,LA!B$3:BS5,A11+2,FALSE) -> 52
A12: =A11+1 -> 2 | B12: =B11+1 -> 2001 | C12: =NZ!C4 -> 0.6606396083 | G12: =NZ!B4 -> 13266.49157 | L12: =HLOOKUP(E$3,Popn!C$4:BT6,A12+1,FALSE) -> 39000 | T12: =HLOOKUP(E$4,Region!B$3:P4,A12,FALSE) -> 86.87651534 | Z12: =HLOOKUP(Z$8,LA!B$3:BS6,A12+2,FALSE) -> 49
A13: =A12+1 -> 3 | B13: =B12+1 -> 2002 | C13: =NZ!C5 -> 0.6706093453 | G13: =NZ!B5 -> 13256.972 | L13: =HLOOKUP(E$3,Popn!C$4:BT7,A13+1,FALSE) -> 39700 | T13: =HLOOKUP(E$4,Region!B$3:P5,A13,FALSE) -> 94.27753936 | Z13: =HLOOKUP(Z$8,LA!B$3:BS7,A13+2,FALSE) -> 47
A14: 4 | B14: 2003 | C14: =NZ!C6 -> 0.6851832539 | G14: =NZ!B6 -> 13106.60016 | L14: =HLOOKUP(E$3,Popn!C$4:BT8,A14+1,FALSE) -> 40600 | T14: =HLOOKUP(E$4,Region!B$3:P6,A14,FALSE) -> 99.50603828 | Z14: =HLOOKUP(Z$8,LA!B$3:BS8,A14+2,FALSE) -> 63
A15: 5 | B15: 2004 | C15: =NZ!C7 -> 0.7013856881 | G15: =NZ!B7 -> 12949.35729 | L15: =HLOOKUP(E$3,Popn!C$4:BT9,A15+1,FALSE) -> 41400 | T15: =HLOOKUP(E$4,Region!B$3:P7,A15,FALSE) -> 82.54174401 | Z15: =HLOOKUP(Z$8,LA!B$3:BS9,A15+2,FALSE) -> 45
A16: 6 | B16: 2005 | C16: =NZ!C8 -> 0.7177481313 | G16: =NZ!B8 -> 12607.21146 | L16: =HLOOKUP(E$3,Popn!C$4:BT10,A16+1,FALSE) -> 42300 | T16: =HLOOKUP(E$4,Region!B$3:P8,A16,FALSE) -> 74.79432995 | Z16: =HLOOKUP(Z$8,LA!B$3:BS10,A16+2,FALSE) -> 31
A17: 7 | B17: 2006 | C17: =NZ!C9 -> 0.7239972757 | G17: =NZ!B9 -> 12314.91695 | L17: =HLOOKUP(E$3,Popn!C$4:BT11,A17+1,FALSE) -> 43000 | T17: =HLOOKUP(E$4,Region!B$3:P9,A17,FALSE) -> 91.03360157 | Z17: =HLOOKUP(Z$8,LA!B$3:BS11,A17+2,FALSE) -> 50
A18: 8 | B18: 2007 | C18: =NZ!C10 -> 0.7312455609 | G18: =NZ!B10 -> 12254.34918 | L18: =HLOOKUP(E$3,Popn!C$4:BT12,A18+1,FALSE) -> 43600 | T18: =HLOOKUP(E$4,Region!B$3:P10,A18,FALSE) -> 99.74504953 | Z18: =HLOOKUP(Z$8,LA!B$3:BS12,A18+2,FALSE) -> 59
A19: 9 | B19: 2008 | C19: =NZ!C11 -> 0.7297596131 | G19: =NZ!B11 -> 11981.01724 | L19: =HLOOKUP(E$3,Popn!C$4:BT13,A19+1,FALSE) -> 44100 | T19: =HLOOKUP(E$4,Region!B$3:P11,A19,FALSE) -> 83.76791416 | Z19: =HLOOKUP(Z$8,LA!B$3:BS13,A19+2,FALSE) -> 61 | AF19: =VLOOKUP(RAND(),AM$19:AN$69,2) -> 12 | AL19: =EXP(-AF$29)*(AF$29^AN19)/FACT(AN19) -> 7.228963399e-07 | AM19: =AL19 -> 7.228963399e-07 | AN19: 0
A20: 10 | B20: 2009 | C20: =NZ!C12 -> 0.7204567006 | G20: =NZ!B12 -> 12041.20967 | L20: =HLOOKUP(E$3,Popn!C$4:BT14,A20+1,FALSE) -> 44600 | T20: =HLOOKUP(E$4,Region!B$3:P12,A20,FALSE) -> 82.01599722 | Z20: =HLOOKUP(Z$8,LA!B$3:BS14,A20+2,FALSE) -> 60 | AF20: =VLOOKUP(RAND(),AM$19:AN$69,2) -> 16 | AL20: 1.022175425e-05 | AM20: =AM19+AL20 -> 1.094465059e-05 | AN20: =AN19+1 -> 1
A21: 11 | B21: 2010 | C21: =NZ!C13 -> 0.7176658928 | G21: =NZ!B13 -> 11944.66036 | L21: =HLOOKUP(E$3,Popn!C$4:BT15,A21+1,FALSE) -> 45200 | T21: =HLOOKUP(E$4,Region!B$3:P13,A21,FALSE) -> 86.20795622 | Z21: =HLOOKUP(Z$8,LA!B$3:BS15,A21+2,FALSE) -> 54 | AF21: 11 | AL21: 7.226780252e-05 | AM21: 8.321245311e-05 | AN21: 2
A22: 12 | B22: 2011 | C22: =NZ!C14 -> 0.7111119982 | G22: =NZ!B14 -> 11817.28632 | L22: =HLOOKUP(E$3,Popn!C$4:BT16,A22+1,FALSE) -> 45600 | T22: =HLOOKUP(E$4,Region!B$3:P14,A22,FALSE) -> 79.72462033 | Z22: =HLOOKUP(Z$8,LA!B$3:BS16,A22+2,FALSE) -> 52 | AF22: 13 | AL22: 0.0003406222426 | AM22: 0.0004238346957 | AN22: 3
A23: 13 | B23: 2012 | C23: =NZ!C15 -> 0.7181651959 | G23: =NZ!B15 -> 11661.47914 | L23: =HLOOKUP(E$3,Popn!C$4:BT17,A23+1,FALSE) -> 45500 | T23: =HLOOKUP(E$4,Region!B$3:P15,A23,FALSE) -> 76.58774381 | Z23: =HLOOKUP(Z$8,LA!B$3:BS17,A23+2,FALSE) -> 60 | AF23: 13 | AL23: 0.001204099627 | AM23: 0.001627934323 | AN23: 4
A24: 14 | B24: 2013 | C24: =NZ!C16 -> 0.730162986 | G24: =NZ!B16 -> 11551.9755 | L24: =HLOOKUP(E$3,Popn!C$4:BT18,A24+1,FALSE) -> 45500 | Q24: =G24*C24*L24/10^9 -> 0.383784534 | T24: =HLOOKUP(E$4,Region!B$3:P16,A24,FALSE) -> 69.48980902 | Z24: =HLOOKUP(Z$8,LA!B$3:BS18,A24+2,FALSE) -> 45 | AF24: 16 | AL24: 0.003405193746 | AM24: 0.00503312807 | AN24: 5
A25: 15 | B25: 2014 | C25: =NZ!C17 -> 0.74486906 | G25: =NZ!B17 -> 11430.22815 | L25: =HLOOKUP(E$3,Popn!C$4:BT19,A25+1,FALSE) -> 46700 | Q25: 0.3976048879 | T25: =HLOOKUP(E$4,Region!B$3:P17,A25,FALSE) -> 62.12863002 | Z25: =HLOOKUP(Z$8,LA!B$3:BS19,A25+2,FALSE) -> 51 | AF25: 13 | AL25: 0.008024906596 | AM25: 0.01305803467 | AN25: 6
A26: 16 | B26: 2015 | C26: =NZ!C18 -> 0.7578081685 | G26: =NZ!B18 -> 11443.98084 | L26: =HLOOKUP(E$3,Popn!C$4:BT20,A26+1,FALSE) -> 47900 | Q26: 0.4154051894 | T26: =HLOOKUP(E$4,Region!B$3:P18,A26,FALSE) -> 57.82672227 | Z26: =HLOOKUP(Z$8,LA!B$3:BS20,A26+2,FALSE) -> 46 | AF26: 13 | AL26: 0.01621031132 | AM26: 0.02926834599 | AN26: 7
A27: 17 | B27: 2016 | C27: =NZ!C19 -> 0.7738511037 | G27: =NZ!B19 -> 11512.29974 | L27: =HLOOKUP(E$3,Popn!C$4:BT21,A27+1,FALSE) -> 49400 | Q27: 0.4400950094 | T27: =HLOOKUP(E$4,Region!B$3:P19,A27,FALSE) -> 67.59460891 | Z27: =HLOOKUP(Z$8,LA!B$3:BS21,A27+2,FALSE) -> 45 | AF27: 12 | AL27: 0.02865172526 | AM27: 0.05792007125 | AN27: 8
A28: 18 | B28: 2017 | C28: =NZ!C20 -> 0.7907002649 | G28: =NZ!B20 -> 11437.87072 | L28: =HLOOKUP(E$3,Popn!C$4:BT22,A28+1,FALSE) -> 51500 | Q28: 0.4657622615 | T28: =HLOOKUP(E$4,Region!B$3:P20,A28,FALSE) -> 68.76155116 | Z28: =HLOOKUP(Z$8,LA!B$3:BS22,A28+2,FALSE) -> 53 | AA28: =Z28 -> 53 | AB28: =Z28 -> 53 | AC28: =Z28 -> 53 | AD28: =Z28 -> 53 | AF28: 15 | AG28: =AF28 -> 15 | AH28: =AF28 -> 15 | AL28: 0.04501504391 | AM28: 0.1029351152 | AN28: 9
A29: 19 | B29: 2018 | C29: =NZ!C21 -> 0.8098376369 | D29: =C29/C28 -> 1.024203068 | F29: =IF(ISNUMBER(E29)=TRUE,E29,D29) -> 1.024203068 | G29: =NZ!B21 -> 11446.2414 | H29: =G29/G28 -> 1.000731839 | J29: =IF(ISNUMBER(I29)=TRUE,I29,H29) -> 1.000731839 | L29: =HLOOKUP(E$3,Popn!C$4:BT40,A29+18,FALSE) -> 53403.42472 | M29: =L29/L28 -> 1.036959703 | O29: =IF(ISNUMBER(N29)=TRUE,N29,M29) -> 1.036959703 | Q29: =Q28*R29 -> 0.4950282303 | R29: =F29*J29*O29 -> 1.062834564 | T29: =HLOOKUP(E$4,Region!B$3:P21,A29,FALSE) -> 61.654591 | U29: =T29/T28 -> 0.8966433996 | W29: =IF(ISNUMBER(V29)=TRUE,V29,U29) -> 0.8966433996 | X29: =HLOOKUP(E$4,Region!B$3:P46,A29+25,FALSE) -> 0.1055381091 | Z29: =W29*R29*AVERAGE(Z24:Z28) -> 45.74321266 | AA29: =Z29*(1-X29) -> 40.91556049 | AB29: =Z29*(1+X29) -> 50.57086483 | AC29: =$Z29-STDEV($Z$11:$Z$28) -> 37.93066201 | AD29: =$Z29+STDEV($Z$11:$Z$28) -> 53.55576331 | AF29: ='Do Minimum Forecast Assessment'!C37 -> 14.14 | AG29: =MAX(0,$AF29-SQRT($AF29)) -> 10.37968086 | AH29: =$AF29+SQRT($AF29) -> 17.90031914 | AL29: 0.0636512721 | AM29: 0.1665863873 | AN29: 10
A30: 20 | B30: 2019 | C30: =NZ!C22 -> 0.7914995585 | D30: 0.9773558581 | F30: =IF(ISNUMBER(E30)=TRUE,E30,D30) -> 0.9773558581 | G30: =NZ!B22 -> 11314.35025 | H30: 0.9884773397 | J30: =IF(ISNUMBER(I30)=TRUE,I30,H30) -> 0.9884773397 | L30: =HLOOKUP(E$3,Popn!C$4:BT41,A30+18,FALSE) -> 53919.4963 | M30: 1.009663642 | O30: =IF(ISNUMBER(N30)=TRUE,N30,M30) -> 1.009663642 | Q30: =Q29*R30 -> 0.4828654392 | R30: =F30*J30*O30 -> 0.9754301061 | T30: =HLOOKUP(E$4,Region!B$3:P22,A30,FALSE) -> 63.408428 | U30: =T30/T29 -> 1.02844617 | W30: =IF(ISNUMBER(V30)=TRUE,V30,U30) -> 1.02844617 | X30: =HLOOKUP(E$4,Region!B$3:P47,A30+25,FALSE) -> 0.1288902376 | Z30: =W30*R30*Z29 -> 45.88855518 | AA30: 39.9739684 | AB30: 51.80314196 | AC30: =$Z30-STDEV($Z$11:$Z$28) -> 38.07600453 | AD30: =$Z30+STDEV($Z$11:$Z$28) -> 53.70110583 | AF30: =W30*R30*AF29 -> 14.18492783 | AG30: 10.41863949 | AH30: 17.95121617 | AL30: 0.08182081704 | AM30: 0.2484072043 | AN30: 11
A31: 21 | B31: 2020 | C31: =NZ!C23 -> 0.7992085632 | D31: 1.009739746 | F31: 1.009739746 | G31: =NZ!B23 -> 11208.3452 | H31: 0.9906309202 | J31: 0.9906309202 | L31: =HLOOKUP(E$3,Popn!C$4:BT42,A31+18,FALSE) -> 54424.60875 | M31: 1.0093679 | O31: 1.0093679 | Q31: 0.4875250577 | R31: =F31*J31*O31 -> 1.009649932 | T31: =HLOOKUP(E$4,Region!B$3:P23,A31,FALSE) -> 65.110484 | U31: =T31/T30 -> 1.026842741 | W31: 1.026842741 | X31: =HLOOKUP(E$4,Region!B$3:P48,A31+25,FALSE) -> 0.1362911907 | Z31: =W31*R31*Z30 -> 47.57503773 | AA31: 41.09097919 | AB31: 54.05909627 | AC31: 39.76248708 | AD31: 55.38758839 | AF31: =W31*R31*AF30 -> 14.70624808 | AG31: 10.87137545 | AH31: 18.54112071 | AL31: 0.09641219608 | AM31: 0.3448194004 | AN31: 12
A32: 22 | B32: 2021 | C32: =NZ!C24 -> 0.8067955975 | D32: 1.009493184 | F32: 1.009493184 | G32: =NZ!B24 -> 11117.19325 | H32: 0.9918674926 | J32: 0.9918674926 | L32: =HLOOKUP(E$3,Popn!C$4:BT43,A32+18,FALSE) -> 54918.52237 | M32: 1.009075189 | O32: 1.009075189 | Q32: 0.4925808439 | R32: 1.01037031 | T32: =HLOOKUP(E$4,Region!B$3:P24,A32,FALSE) -> 65.301777 | U32: 1.002937975 | W32: 1.002937975 | X32: =HLOOKUP(E$4,Region!B$3:P49,A32+25,FALSE) -> 0.1402555613 | Z32: 48.20962944 | AA32: 41.4479608 | AB32: 54.97129807 | AC32: 40.39707878 | AD32: 56.02218009 | AF32: 14.9024111 | AG32: 11.04204699 | AH32: 18.76277522 | AL32: 0.104866804 | AM32: 0.4496862044 | AN32: 13
A33: 23 | B33: 2022 | C33: =NZ!C25 -> 0.8143635179 | D33: 1.00938022 | F33: 1.00938022 | G33: =NZ!B25 -> 11034.98901 | H33: 0.9926056661 | J33: 0.9926056661 | L33: =HLOOKUP(E$3,Popn!C$4:BT44,A33+18,FALSE) -> 55400.9974 | M33: 1.008785288 | O33: 1.008785288 | Q33: 0.4978606461 | R33: 1.010718651 | T33: =HLOOKUP(E$4,Region!B$3:P25,A33,FALSE) -> 65.138759 | U33: 0.9975036208 | W33: 0.9975036208 | X33: =HLOOKUP(E$4,Region!B$3:P50,A33+25,FALSE) -> 0.1428506908 | Z33: 48.60473214 | AA33: 41.66151257 | AB33: 55.5479517 | AC33: 40.79218148 | AD33: 56.41728279 | AF33: 15.02454402 | AG33: 11.14839335 | AH33: 18.9006947 | AL33: 0.1059154721 | AM33: 0.5556016765 | AN33: 14
A34: 24 | B34: 2023 | C34: =NZ!C26 -> 0.8219237459 | D34: 1.009283603 | F34: 1.009283603 | G34: =NZ!B26 -> 10957.99356 | H34: 0.9930226077 | J34: 0.9930226077 | L34: =HLOOKUP(E$3,Popn!C$4:BT45,A34+18,FALSE) -> 55871.79413 | M34: 1.008497983 | O34: 1.008497983 | Q34: 0.5032168632 | R34: 1.010758466 | T34: =HLOOKUP(E$4,Region!B$3:P26,A34,FALSE) -> 64.873889 | U34: 0.9959337574 | W34: 0.9959337574 | X34: =HLOOKUP(E$4,Region!B$3:P51,A34+25,FALSE) -> 0.1446375725 | Z34: 48.92787959 | AA34: 41.85106986 | AB34: 56.00468932 | AC34: 41.11532894 | AD34: 56.74043024 | AF34: 15.12443436 | AG34: 11.23541979 | AH34: 19.01344894 | AL34: 0.09984298502 | AM34: 0.6554446615 | AN34: 15
A35: 25 | B35: 2024 | C35: =NZ!C27 -> 0.8294800327 | D35: 1.009193416 | F35: 1.009193416 | G35: =NZ!B27 -> 10883.85854 | H35: 0.9932346173 | J35: 0.9932346173 | L35: =HLOOKUP(E$3,Popn!C$4:BT46,A35+18,FALSE) -> 56330.67282 | M35: 1.008213065 | O35: 1.008213065 | Q35: 0.5085501226 | R35: 1.010598332 | T35: =HLOOKUP(E$4,Region!B$3:P27,A35,FALSE) -> 64.514376 | U35: 0.9944582789 | W35: 0.9944582789 | X35: =HLOOKUP(E$4,Region!B$3:P52,A35+25,FALSE) -> 0.145918756 | Z35: 49.17241516 | AA35: 41.99723751 | AB35: 56.34759281 | AC35: 41.35986451 | AD35: 56.98496582 | AF35: 15.20002444 | AG35: 11.30130357 | AH35: 19.09874531 | AL35: 0.08823623801 | AM35: 0.7436808995 | AN35: 16
A36: 26 | B36: 2025 | C36: =NZ!C28 -> 0.837033814 | D36: 1.009106646 | F36: 1.009106646 | G36: =NZ!B28 -> 10811.12168 | H36: 0.9933169965 | J36: 0.9933169965 | L36: =HLOOKUP(E$3,Popn!C$4:BT47,A36+18,FALSE) -> 56777.39375 | M36: 1.007930332 | O36: 1.007930332 | Q36: 0.5137942165 | R36: 1.010311853 | T36: =HLOOKUP(E$4,Region!B$3:P28,A36,FALSE) -> 64.095632 | U36: 0.9935092916 | W36: 0.9935092916 | X36: =HLOOKUP(E$4,Region!B$3:P53,A36+25,FALSE) -> 0.1468623874 | Z36: 49.35701888 | AA36: 42.10832925 | AB36: 56.60570851 | AC36: 41.54446823 | AD36: 57.16956954 | AF36: 15.25708857 | AG36: 11.35105624 | AH36: 19.1631209 | AL36: 0.07339178855 | AM36: 0.8170726881 | AN36: 17
A37: 27 | B37: 2026 | C37: =NZ!C29 -> 0.8445862478 | D37: 1.009022854 | F37: 1.009022854 | G37: =NZ!B29 -> 10738.87239 | H37: 0.9933171332 | J37: 0.9933171332 | L37: =HLOOKUP(E$3,Popn!C$4:BT48,A37+18,FALSE) -> 57211.71717 | M37: 1.007649584 | O37: 1.007649584 | Q37: 0.518904779 | R37: 1.009946711 | T37: =HLOOKUP(E$4,Region!B$3:P29,A37,FALSE) -> 63.611441 | U37: 0.9924458035 | W37: 0.9924458035 | X37: =HLOOKUP(E$4,Region!B$3:P54,A37+25,FALSE) -> 0.1475671183 | Z37: 49.4713976 | AA37: 42.17104602 | AB37: 56.77174919 | AC37: 41.65884695 | AD37: 57.28394826 | AF37: 15.29244497 | AG37: 11.38188938 | AH37: 19.20300055 | AL37: 0.05765332723 | AM37: 0.8747260153 | AN37: 18
A38: 28 | B38: 2027 | C38: =NZ!C30 -> 0.8521384602 | D38: 1.008941908 | F38: 1.008941908 | G38: =NZ!B30 -> 10666.54207 | H38: 0.9932646262 | J38: 0.9932646262 | L38: =HLOOKUP(E$3,Popn!C$4:BT49,A38+18,FALSE) -> 57633.40337 | M38: 1.007370626 | O38: 1.007370626 | Q38: 0.5238513701 | R38: 1.009532753 | T38: =HLOOKUP(E$4,Region!B$3:P30,A38,FALSE) -> 63.08942 | U38: 0.9917935989 | W38: 0.9917935989 | X38: =HLOOKUP(E$4,Region!B$3:P55,A38+25,FALSE) -> 0.1480978566 | Z38: 49.53314396 | AA38: 42.19739151 | AB38: 56.86889641 | AC38: 41.72059331 | AD38: 57.34569461 | AF38: 15.31153181 | AG38: 11.39853656 | AH38: 19.22452705 | AL38: 0.042906213 | AM38: 0.9176322283 | AN38: 19
A39: 29 | B39: 2028 | C39: =NZ!C31 -> 0.8596916104 | D39: 1.008863759 | F39: 1.008863759 | G39: =NZ!B31 -> 10593.77333 | H39: 0.9931778507 | J39: 0.9931778507 | L39: =HLOOKUP(E$3,Popn!C$4:BT50,A39+18,FALSE) -> 58042.2126 | M39: 1.007093269 | O39: 1.007093269 | Q39: 0.5286123734 | R39: 1.009088462 | T39: =HLOOKUP(E$4,Region!B$3:P31,A39,FALSE) -> 62.530813 | U39: 0.9911457896 | W39: 0.9911457896 | X39: =HLOOKUP(E$4,Region!B$3:P56,A39+25,FALSE) -> 0.1484999762 | Z39: 49.54076118 | AA39: 42.18395933 | AB39: 56.89756304 | AC39: 41.72821053 | AD39: 57.35331184 | AF39: 15.31388642 | AG39: 11.40059031 | AH39: 19.22718253 | AL39: 0.03033469259 | AM39: 0.9479669209 | AN39: 20
A40: 30 | B40: 2029 | C40: =NZ!C32 -> 0.8672469008 | D40: 1.008788373 | F40: 1.008788373 | G40: =NZ!B32 -> 10520.33905 | H40: 0.9930681659 | J40: 0.9930681659 | L40: =HLOOKUP(E$3,Popn!C$4:BT51,A40+18,FALSE) -> 58437.90515 | M40: 1.006817324 | O40: 1.006817324 | Q40: 0.5331717524 | R40: 1.008625184 | T40: =HLOOKUP(E$4,Region!B$3:P32,A40,FALSE) -> 61.940849 | U40: 0.9905652274 | W40: 0.9905652274 | X40: =HLOOKUP(E$4,Region!B$3:P57,A40+25,FALSE) -> 0.1488060684 | Z40: 49.49662209 | AA40: 42.13122436 | AB40: 56.86201982 | AC40: 41.68407144 | AD40: 57.30917274 | AF40: 15.30024228 | AG40: 11.38868987 | AH40: 19.21179469 | AL40: 0.02042535968 | AM40: =AM39+AL40 -> 0.9683922806 | AN40: 21
A41: 31 | B41: 2030 | C41: =NZ!C33 -> 0.8748055834 | D41: 1.008715722 | F41: 1.008715722 | G41: =NZ!B33 -> 10446.09236 | H41: 0.9929425572 | J41: 0.9929425572 | L41: =HLOOKUP(E$3,Popn!C$4:BT52,A41+18,FALSE) -> 58820.24127 | M41: 1.006542605 | O41: 1.006542605 | Q41: 0.5375170063 | R41: 1.00814982 | T41: =HLOOKUP(E$4,Region!B$3:P33,A41,FALSE) -> 61.324015 | U41: 0.9900415637 | W41: 0.9900415637 | X41: =HLOOKUP(E$4,Region!B$3:P58,A41+25,FALSE) -> 0.1490398905 | Z41: 49.40308458 | AA41: 42.04005426 | AB41: 56.76611489 | AC41: 41.59053392 | AD41: 57.21563523 | AF41: 15.27132825 | AG41: 11.36347357 | AH41: 19.17918294 | AL41: 0.01312793572 | AM41: 0.9815202163 | AN41: 22
A42: 32 | B42: 2031 | C42: =NZ!C34 -> 0.8823689613 | D42: 1.008645781 | F42: 1.008645781 | G42: =NZ!B34 -> 10370.93574 | H42: 0.9928052883 | J42: 0.9928052883 | L42: =HLOOKUP(E$3,Popn!C$4:BT53,A42+18,FALSE) -> 59188.98124 | M42: 1.00626893 | O42: 1.00626893 | Q42: 0.5416378817 | R42: 1.007666502 | T42: =HLOOKUP(E$4,Region!B$3:P34,A42,FALSE) -> 60.672243 | U42: 0.9893716679 | W42: 0.9893716679 | X42: =HLOOKUP(E$4,Region!B$3:P59,A42+25,FALSE) -> 0.1492189534 | Z42: 49.25273559 | AA42: 41.90329393 | AB42: 56.60217725 | AC42: 41.44018493 | AD42: 57.06528624 | AF42: 15.22485284 | AG42: 11.3229491 | AH42: 19.12675659 | AL42: 0.008070826569 | AM42: 0.9895910429 | AN42: 23
A43: 33 | B43: 2032 | C43: =NZ!C35 -> 0.8899383908 | D43: 1.008578531 | F43: 1.008578531 | G43: =NZ!B35 -> 10294.80194 | H43: 0.9926589269 | J43: 0.9926589269 | L43: =HLOOKUP(E$3,Popn!C$4:BT54,A43+18,FALSE) -> 59543.88533 | M43: 1.005996118 | O43: 1.005996118 | Q43: 0.5455255646 | R43: 1.007177642 | T43: =HLOOKUP(E$4,Region!B$3:P35,A43,FALSE) -> 59.997961 | U43: 0.9888864831 | W43: 0.9888864831 | X43: =HLOOKUP(E$4,Region!B$3:P60,A43+25,FALSE) -> 0.1493563076 | Z43: 49.05495416 | AA43: 41.72828733 | AB43: 56.38162098 | AC43: 41.2424035 | AD43: 56.86750481 | AF43: 15.16371526 | AG43: 11.26965372 | AH43: 19.0577768 | AL43: 0.004755061987 | AM43: 0.9943461049 | AN43: 24
A44: 34 | B44: 2033 | C44: =NZ!C36 -> 0.897515284 | D44: 1.008513953 | F44: 1.008513953 | G44: =NZ!B36 -> 10217.64224 | H44: 0.9925049842 | J44: 0.9925049842 | L44: =HLOOKUP(E$3,Popn!C$4:BT55,A44+18,FALSE) -> 59884.7138 | M44: 1.005723988 | O44: 1.005723988 | Q44: 0.5491721736 | R44: 1.006684579 | T44: =HLOOKUP(E$4,Region!B$3:P36,A44,FALSE) -> 59.291654 | U44: 0.9882278166 | W44: 0.9882278166 | X44: =HLOOKUP(E$4,Region!B$3:P61,A44+25,FALSE) -> 0.149461751 | Z44: 48.80152174 | AA44: 41.50756085 | AB44: 56.09548263 | AC44: 40.98897109 | AD44: 56.61407239 | AF44: 15.08537502 | AG44: 11.20138544 | AH44: 18.96936459 | AL44: 0.00268946306 | AM44: 0.9970355679 | AN44: 25
A45: 35 | B45: 2034 | C45: =NZ!C37 -> 0.9051011115 | D45: 1.008452032 | F45: 1.008452032 | G45: =NZ!B37 -> 10139.41913 | H45: 0.9923443097 | J45: 0.9923443097 | L45: =HLOOKUP(E$3,Popn!C$4:BT56,A45+18,FALSE) -> 60211.22694 | M45: 1.005452362 | O45: 1.005452362 | Q45: 0.5525704434 | R45: 1.006187986 | T45: =HLOOKUP(E$4,Region!B$3:P37,A45,FALSE) -> 58.563695 | U45: 0.9877224036 | W45: 0.9877224036 | X45: =HLOOKUP(E$4,Region!B$3:P62,A45+25,FALSE) -> 0.1495427063 | Z45: 48.50063187 | AA45: 41.24771612 | AB45: 55.75354761 | AC45: 40.68808121 | AD45: 56.31318252 | AF45: 14.99236487 | AG45: 11.12036734 | AH45: 18.8643624 | AL45: 0.001462654141 | AM45: 0.9984982221 | AN45: 26
A46: 36 | B46: 2035 | C46: =NZ!C38 -> 0.9126974038 | D46: 1.008392755 | F46: 1.008392755 | G46: =NZ!B38 -> 10060.10189 | H46: 0.9921773387 | J46: 0.9921773387 | L46: =HLOOKUP(E$3,Popn!C$4:BT57,A46+18,FALSE) -> 60523.18499 | M46: 1.005181061 | O46: 1.005181061 | Q46: 0.5557135278 | R46: 1.005688115 | T46: =HLOOKUP(E$4,Region!B$3:P38,A46,FALSE) -> 57.79404 | U46: 0.9868578135 | W46: 0.9868578135 | X46: =HLOOKUP(E$4,Region!B$3:P63,A46+25,FALSE) -> 0.1496048384 | Z46: 48.13547907 | AA46: 40.9341785 | AB46: 55.33677964 | AC46: 40.32292842 | AD46: 55.94802973 | AF46: 14.87948997 | AG46: 11.02209578 | AH46: 18.73688417 | AL46: 0.0007659973909 | AM46: 0.9992642195 | AN46: 27
A47: 37 | B47: 2036 | C47: =NZ!C39 -> 0.920305755 | D47: 1.008336116 | F47: 1.008336116 | G47: =NZ!B39 -> 9979.66375 | H47: 0.9920042418 | J47: 0.9920042418 | L47: =HLOOKUP(E$3,Popn!C$4:BT58,A47+18,FALSE) -> 60820.34824 | M47: 1.004909908 | O47: 1.004909908 | Q47: 0.5585948778 | R47: 1.005184956 | T47: =HLOOKUP(E$4,Region!B$3:P39,A47,FALSE) -> 56.983718 | U47: 0.9859791425 | W47: 0.9859791425 | X47: =HLOOKUP(E$4,Region!B$3:P64,A47+25,FALSE) -> 0.1496524963 | Z47: 47.70665937 | AA47: 40.56723871 | AB47: 54.84608004 | AC47: 39.89410872 | AD47: 55.51921003 | AF47: 14.74693456 | AG47: 10.90676079 | AH47: 18.58710832 | AL47: 0.0003868286824 | AM47: 0.9996510481 | AN47: 28
A48: 38 | B48: 2037 | C48: =NZ!C40 -> 0.9279278247 | D48: 1.008282106 | F48: 1.008282106 | G48: =NZ!B40 -> 9898.080202 | H48: 0.9918250203 | J48: 0.9918250203 | L48: =HLOOKUP(E$3,Popn!C$4:BT59,A48+18,FALSE) -> 61102.47696 | M48: 1.004638722 | O48: 1.004638722 | Q48: 0.5612081664 | R48: 1.004678325 | T48: =HLOOKUP(E$4,Region!B$3:P40,A48,FALSE) -> 56.154894 | U48: 0.9854550733 | W48: 0.9854550733 | X48: =HLOOKUP(E$4,Region!B$3:P65,A48+25,FALSE) -> 0.1496890156 | Z48: 47.23271054 | AA48: 40.1624926 | AB48: 54.30292849 | AC48: 39.42015989 | AD48: 55.0452612 | AF48: 14.60042897 | AG48: 10.7793782 | AH48: 18.42147973 | AL48: 0.00018861233 | AM48: 0.9998396605 | AN48: 29
A49: 39 | B49: 2038 | C49: =NZ!C41 -> 0.9355653411 | D49: 1.008230722 | F49: 1.008230722 | G49: =NZ!B41 -> 9815.32793 | H49: 0.9916395634 | J49: 0.9916395634 | L49: =HLOOKUP(E$3,Popn!C$4:BT60,A49+18,FALSE) -> 61369.33141 | M49: 1.004367326 | O49: 1.004367326 | Q49: 0.5635472442 | R49: 1.004167933 | T49: =HLOOKUP(E$4,Region!B$3:P41,A49,FALSE) -> 55.274147 | U49: 0.9843157571 | W49: 0.9843157571 | X49: =HLOOKUP(E$4,Region!B$3:P66,A49+25,FALSE) -> 0.1497169646 | Z49: 46.68567635 | AA49: 39.69603859 | AB49: 53.6753141 | AC49: 38.87312569 | AD49: 54.498227 | AF49: 14.43133145 | AG49: 10.63247222 | AH49: 18.23019068 | AL49: 8.889927819e-05 | AM49: 0.9999285597 | AN49: 30
A50: 40 | B50: 2039 | C50: =NZ!C42 -> 0.9432201032 | D50: 1.008181964 | F50: 1.008181964 | G50: =NZ!B42 -> 9731.384142 | H50: 0.9914476838 | J50: 0.9914476838 | L50: =HLOOKUP(E$3,Popn!C$4:BT61,A50+18,FALSE) -> 61620.67186 | M50: 1.004095538 | O50: 1.004095538 | Q50: 0.5656061124 | R50: 1.003653408 | T50: =HLOOKUP(E$4,Region!B$3:P42,A50,FALSE) -> 54.36243 | U50: 0.9835055437 | W50: 0.9835055437 | X50: =HLOOKUP(E$4,Region!B$3:P67,A50+25,FALSE) -> 0.1497383257 | Z50: 46.08337001 | AA50: 39.18292334 | AB50: 52.98381668 | AC50: 38.27081936 | AD50: 53.89592067 | AF50: 14.24514839 | AG50: 10.47087384 | AH50: 18.01942294 | AL50: 4.054954173e-05 | AM50: =AM49+AL50 -> 0.9999691093 | AN50: 31
A51: 41 | B51: 2040 | C51: =NZ!C43 -> 0.9508937 | D51: 1.008135531 | F51: 1.008135531 | G51: =NZ!B43 -> 9646.226155 | H51: 0.9912491393 | J51: 0.9912491393 | L51: =HLOOKUP(E$3,Popn!C$4:BT62,A51+18,FALSE) -> 61856.25859 | M51: 1.003823177 | O51: 1.003823177 | Q51: 0.5673787389 | R51: 1.00313403 | T51: =HLOOKUP(E$4,Region!B$3:P43,A51,FALSE) -> 53.410773 | U51: 0.9824942152 | W51: 0.9824942152 | X51: =HLOOKUP(E$4,Region!B$3:P68,A51+25,FALSE) -> 0.1497546429 | Z51: 45.41854282 | AA51: 38.61690516 | AB51: 52.22018048 | AC51: 37.60599217 | AD51: 53.23109347 | AF51: 14.03963907 | AG51: 10.29268843 | AH51: 17.7865897 | AL51: =EXP(-AF$29)*(AF$29^AN51)/FACT(AN51) -> 1.791782875e-05 | AM51: 0.9999870271 | AN51: 32
AL52: 7.677518138e-06 | AM52: 0.9999947046 | AN52: 33
AL53: 3.192944308e-06 | AM53: 0.9999978976 | AN53: 34
AL54: 1.2899495e-06 | AM54: 0.9999991875 | AN54: 35
AL55: 5.066634982e-07 | AM55: 0.9999996942 | AN55: 36
F56: =PRODUCT(F30:INDIRECT("F"&28+MATCH($E6,$B29:$B51,1))) -> 1.070889844 | J56: =PRODUCT(J30:INDIRECT("J"&28+MATCH($E6,$B29:$B51,1))) -> 0.9191086123 | O56: =PRODUCT(O30:INDIRECT("O"&28+MATCH($E6,$B29:$B51,1))) -> 1.094272614 | R56: =PRODUCT(R30:INDIRECT("R"&28+MATCH($E6,$B29:$B51,1))) -> 1.077053226 | W56: =PRODUCT(W30:INDIRECT("W"&28+MATCH($E6,$B29:$B51,1))) -> 1.004642931 | Z56: =VLOOKUP($E6,$B29:$Z51,25)/Z29 -> 1.08205391 | AF56: =VLOOKUP($E6,$B29:$AF51,31)/AF29 -> 1.08205391 | AL56: 1.93627618e-07 | AM56: 0.9999998878 | AN56: 37
F57: =F56-1 -> 0.07088984426 | J57: =J56-1 -> -0.08089138765 | O57: =O56-1 -> 0.09427261359 | W57: =W56-1 -> 0.004642930808 | Z57: =Z56-1 -> 0.08205390951 | AF57: =AF56-1 -> 0.08205390951 | AL57: 7.204985574e-08 | AM57: =AM56+AL57 -> 0.9999999599 | AN57: 38
F58: V/P | J58: T/V | O58: P | W58: DSI/T | Z58: DSI | AF58: DSI | AL58: 2.612269129e-08 | AM58: 0.999999986 | AN58: 39
AL59: 9.23437137e-09 | AM59: 0.9999999952 | AN59: 40
AL60: 3.18473198e-09 | AM60: 0.9999999984 | AN60: 41
AL61: 1.0721931e-09 | AM61: 0.9999999995 | AN61: 42
AL62: 3.525769868e-10 | AM62: 0.9999999998 | AN62: 43
AL63: 1.133054226e-10 | AM63: 0.9999999999 | AN63: 44
AL64: 3.560308167e-11 | AM64: 1 | AN64: 45
AL65: 1.094407771e-11 | AM65: =AM64+AL65 -> 1 | AN65: 46
AL66: 3.292537423e-12 | AM66: 1 | AN66: 47
AL67: 9.699266491e-13 | AM67: 1 | AN67: 48
AL68: 2.798931187e-13 | AM68: 1 | AN68: 49
AL69: 7.915377398e-14 | AM69: =AM68+AL69 -> 1 | AN69: 50

Sheet NZ (hidden)
A1: T/V and P/V for New Zealand
B3: T/V | C3: V/P
A4: 2001 | B4: 13266.49157 | C4: 0.6606396083
A5: =A4+1 -> 2002 | B5: 13256.972 | C5: 0.6706093453
A6: =A5+1 -> 2003 | B6: 13106.60016 | C6: 0.6851832539
A7: 2004 | B7: 12949.35729 | C7: 0.7013856881
A8: 2005 | B8: 12607.21146 | C8: 0.7177481313
A9: 2006 | B9: 12314.91695 | C9: 0.7239972757
A10: 2007 | B10: 12254.34918 | C10: 0.7312455609
A11: 2008 | B11: 11981.01724 | C11: 0.7297596131
A12: 2009 | B12: 12041.20967 | C12: 0.7204567006
A13: 2010 | B13: 11944.66036 | C13: 0.7176658928
A14: 2011 | B14: 11817.28632 | C14: 0.7111119982
A15: 2012 | B15: 11661.47914 | C15: 0.7181651959
A16: 2013 | B16: 11551.9755 | C16: 0.730162986
A17: 2014 | B17: 11430.22815 | C17: 0.74486906
A18: 2015 | B18: 11443.98084 | C18: 0.7578081685
A19: 2016 | B19: 11512.29974 | C19: 0.7738511037
A20: 2017 | B20: 11437.87072 | C20: 0.7907002649
A21: 2018 | B21: 11446.2414 | C21: 0.8098376369
A22: 2019 | B22: 11314.35025 | C22: 0.7914995585
A23: 2020 | B23: 11208.3452 | C23: 0.7992085632
A24: 2021 | B24: 11117.19325 | C24: 0.8067955975
A25: 2022 | B25: 11034.98901 | C25: 0.8143635179
A26: 2023 | B26: 10957.99356 | C26: 0.8219237459
A27: 2024 | B27: 10883.85854 | C27: 0.8294800327
A28: 2025 | B28: 10811.12168 | C28: 0.837033814
A29: 2026 | B29: 10738.87239 | C29: 0.8445862478
A30: 2027 | B30: 10666.54207 | C30: 0.8521384602
A31: 2028 | B31: 10593.77333 | C31: 0.8596916104
A32: 2029 | B32: 10520.33905 | C32: 0.8672469008
A33: 2030 | B33: 10446.09236 | C33: 0.8748055834
A34: 2031 | B34: 10370.93574 | C34: 0.8823689613
A35: 2032 | B35: 10294.80194 | C35: 0.8899383908
A36: 2033 | B36: 10217.64224 | C36: 0.897515284
A37: 2034 | B37: 10139.41913 | C37: 0.9051011115
A38: 2035 | B38: 10060.10189 | C38: 0.9126974038
A39: 2036 | B39: 9979.66375 | C39: 0.920305755
A40: 2037 | B40: 9898.080202 | C40: 0.9279278247
A41: 2038 | B41: 9815.32793 | C41: 0.9355653411
A42: 2039 | B42: 9731.384142 | C42: 0.9432201032
A43: 2040 | B43: 9646.226155 | C43: 0.9508937
A45: Standard errors
B46: 70.92 | C46: 0.0068

Sheet Region (hidden)
A1: DSI/T (T in billion km) by region
B3: NL | C3: AK | D3: WK | E3: BP | F3: GS | G3: HB | H3: TN | I3: MW | J3: WL | K3: NM | L3: WC | M3: CB | N3: OT | O3: SL | P3: NZ | R3: NL | S3: Northland
A4: 2001 | B4: 88.1468271 | C4: 57.31939606 | D4: 89.80713627 | E4: 86.87651534 | F4: 86.7998868 | G4: 98.15892564 | H4: 86.94435845 | I4: 92.82790777 | J4: 57.40822023 | K4: 93.06229479 | L4: 121.995843 | M4: 78.69225937 | N4: 133.5175654 | O4: 143.469286 | P4: 84.97466509 | R4: AK | S4: Auckland
A5: 2002 | B5: 91.03889787 | C5: 63.96416714 | D5: 78.65451365 | E5: 94.27753936 | F5: 53.32051057 | G5: 97.21000718 | H5: 62.03123224 | I5: 92.86391446 | J5: 63.32228393 | K5: 102.3550247 | L5: 103.4388444 | M5: 67.79944814 | N5: 151.5125629 | O5: 168.820197 | P5: 85.60485458 | R5: WK | S5: Waikato
A6: 2003 | B6: 84.37293646 | C6: 52.9525151 | D6: 93.34297942 | E6: 99.50603828 | F6: 80.7629604 | G6: 102.9843907 | H6: 78.16184274 | I6: 97.04799245 | J6: 60.29372728 | K6: 93.05452008 | L6: 83.70113392 | M6: 71.64506367 | N6: 138.893687 | O6: 153.6415454 | P6: 84.02929332 | R6: BP | S6: Bay of Plenty
A7: 2004 | B7: 100.9400819 | C7: 52.47189243 | D7: 93.76753937 | E7: 82.54174401 | F7: 66.7519634 | G7: 91.54510982 | H7: 91.65782033 | I7: 91.8850418 | J7: 58.36601952 | K7: 87.23039537 | L7: 84.2850405 | M7: 61.68950021 | N7: 128.1988148 | O7: 104.8545252 | P7: 78.8154651 | R7: GS | S7: Gisborne
A8: 2005 | B8: 87.21172297 | C8: 45.66774305 | D8: 84.45065945 | E8: 74.79432995 | F8: 110.6848926 | G8: 110.5000939 | H8: 65.76516806 | I8: 102.6025239 | J8: 59.97030535 | K8: 61.74853734 | L8: 95.04547919 | M8: 71.20919648 | N8: 143.4895645 | O8: 144.6853124 | P8: 78.48830979 | R8: HB | S8: Hawkes Bay
A9: 2006 | B9: 90.02243797 | C9: 56.52685625 | D9: 80.79206753 | E9: 91.03360157 | F9: 74.55864397 | G9: 118.9682891 | H9: 65.5428374 | I9: 98.04578736 | J9: 61.97677491 | K9: 81.47949231 | L9: 96.52766122 | M9: 62.84483066 | N9: 114.981627 | O9: 162.5297344 | P9: 80.99758866 | R9: TN | S9: Taranaki
A10: 2007 | B10: 102.9482547 | C10: 42.89217501 | D10: 92.64818747 | E10: 99.74504953 | F10: 93.59735733 | G10: 103.2339097 | H10: 80.05377648 | I10: 98.61539736 | J10: 71.52117629 | K10: 81.12684551 | L10: 91.59601313 | M10: 79.1622643 | N10: 105.6332433 | O10: 127.031286 | P10: 81.24343558 | R10: MW | S10: Manawatu/Wanganui
A11: 2008 | B11: 94.2583093 | C11: 44.74302264 | D11: 89.29788322 | E11: 83.76791416 | F11: 122.8941359 | G11: 101.4542982 | H11: 78.21726997 | I11: 99.05814925 | J11: 67.80745302 | K11: 80.71509433 | L11: 108.5590101 | M11: 73.67182523 | N11: 92.01434007 | O11: 96.41717584 | P11: 77.78319321 | R11: WL | S11: Wellington
A12: 2009 | B12: 85.8645241 | C12: 46.48744201 | D12: 90.75739531 | E12: 82.01599722 | F12: 87.0203927 | G12: 87.57122126 | H12: 77.0684025 | I12: 87.99463969 | J12: 53.68563336 | K12: 75.2917732 | L12: 103.0518963 | M12: 71.92353633 | N12: 98.78204914 | O12: 104.7756423 | P12: 75.25628278 | R12: NM | S12: Nelson/Marlborough
A13: 2010 | B13: 81.41522457 | C13: 41.59366106 | D13: 73.2439249 | E13: 86.20795622 | F13: 77.38355551 | G13: 91.18942441 | H13: 60.47167872 | I13: 95.04956896 | J13: 52.39793641 | K13: 80.93901609 | L13: 123.1540114 | M13: 75.60918097 | N13: 80.2193506 | O13: 95.2058871 | P13: 71.42972373 | R13: WC | S13: West Coast
A14: 2011 | B14: 67.64245937 | C14: 36.94588181 | D14: 87.55223649 | E14: 79.72462033 | F14: 81.87547729 | G14: 58.64349989 | H14: 65.79401051 | I14: 73.58749171 | J14: 51.94370624 | K14: 48.4049743 | L14: 102.4638222 | M14: 61.60085054 | N14: 74.99081565 | O14: 69.94216834 | P14: 63.62551307 | R14: CB | S14: Canterbury
A15: 2012 | B15: 87.46059772 | C15: 33.79288346 | D15: 77.8213328 | E15: 76.58774381 | F15: 59.85290577 | G15: 69.9918587 | H15: 81.29185792 | I15: 81.70897126 | J15: 55.01357275 | K15: 60.12040241 | L15: 75.25457788 | M15: 59.49922477 | N15: 97.42755759 | O15: 83.92812585 | P15: 64.49558155 | R15: OT | S15: Otago
A16: 2013 | B16: 89.26814856 | C16: 38.32909014 | D16: 65.71406377 | E16: 69.48980902 | F16: 78.68834816 | G16: 61.1633963 | H16: 55.84185052 | I16: 71.25601545 | J16: 36.0391383 | K16: 51.80333257 | L16: 96.26624216 | M16: 62.58438201 | N16: 84.76488974 | O16: 59.52763104 | P16: 59.62367831 | R16: SL | S16: Southland
A17: 2014 | B17: 88.37277644 | C17: 36.86972761 | D17: 62.56164213 | E17: 62.12863002 | F17: 89.30679755 | G17: 71.17844017 | H17: 54.33350627 | I17: 87.67853558 | J17: 44.21009973 | K17: 54.25647259 | L17: 86.01015666 | M17: 63.87129248 | N17: 83.8153535 | O17: 64.18302589 | P17: 61.12665113 | R17: NZ | S17: New Zealand
A18: 2015 | B18: 101.4673614 | C18: 45.10377236 | D18: 70.43140575 | E18: 57.82672227 | F18: 45.39476443 | G18: 67.0350083 | H18: 59.01738536 | I18: 79.17501256 | J18: 37.80510351 | K18: 47.75707989 | L18: 78.96621945 | M18: 58.23189573 | N18: 75.78151346 | O18: 59.66407457 | P18: 61.89863535
A19: 2016 | B19: 121.283065 | C19: 45.91233943 | D19: 72.46183683 | E19: 67.59460891 | F19: 153.020661 | G19: 77.86660128 | H19: 72.99683827 | I19: 66.10441944 | J19: 52.95398431 | K19: 60.215867 | L19: 102.002219 | M19: 58.1971446 | N19: 82.85831672 | O19: 88.18371144 | P19: 67.61409689
A20: 2017 | B20: 111.0584734 | C20: 54.40246517 | D20: 83.60246926 | E20: 68.76155116 | F20: 107.595613 | G20: 76.60581029 | H20: 70.55739928 | I20: 87.9189405 | J20: 61.8794614 | K20: 76.41669294 | L20: 106.7932525 | M20: 62.05080596 | N20: 74.23045614 | O20: 74.92259962 | P20: 74.50003625
A21: 2018 | B21: 101.73127 | C21: 49.017636 | D21: 81.339684 | E21: 61.654591 | F21: 92.592846 | G21: 57.5131 | H21: 63.574182 | I21: 74.623076 | J21: 48.963175 | K21: 55.674254 | L21: 103.851702 | M21: 58.36196 | N21: 68.007124 | O21: 41.654439 | P21: 66.52
A22: 2019 | B22: 101.559899 | C22: 48.332244 | D22: 79.767643 | E22: 63.408428 | F22: 92.627814 | G22: 58.673505 | H22: 64.551255 | I22: 76.589342 | J22: 48.511971 | K22: 55.848286 | L22: 101.344167 | M22: 59.351398 | N22: 68.737892 | O22: 46.628117 | P22: 65.54
A23: 2020 | B23: 101.879062 | C23: 47.65077 | D23: 78.346325 | E23: 65.110484 | F23: 91.858489 | G23: 58.955613 | H23: 65.216154 | I23: 76.957207 | J23: 48.023929 | K23: 55.606365 | L23: 99.578439 | M23: 59.697444 | N23: 68.673778 | O23: 50.256588 | P23: 64.77
A24: 2021 | B24: 102.181365 | C24: 47.201968 | D24: 77.288551 | E24: 65.301777 | F24: 91.630108 | G24: 58.845909 | H24: 64.978401 | I24: 76.749411 | J24: 47.546599 | K24: 55.207362 | L24: 98.33174 | M24: 59.78328 | N24: 68.26635 | O24: 50.182711 | P24: 64.19
A25: 2022 | B25: 102.466411 | C25: 46.843478 | D25: 76.454114 | E25: 65.138759 | F25: 91.434501 | G25: 58.480278 | H25: 64.654781 | I25: 76.367611 | J25: 47.003632 | K25: 54.645167 | L25: 97.407674 | M25: 59.712592 | N25: 67.909297 | O25: 49.846608 | P25: 63.64
A26: 2023 | B26: 102.723693 | C26: 46.556902 | D26: 75.778947 | E26: 64.873889 | F26: 91.261631 | G26: 57.930212 | H26: 64.358372 | I26: 75.877686 | J26: 46.415365 | K26: 53.981139 | L26: 96.695396 | M26: 59.549476 | N26: 67.577951 | O26: 49.361686 | P26: 63.1
A27: 2024 | B27: 102.952935 | C27: 46.323502 | D27: 75.214728 | E27: 64.514376 | F27: 91.093992 | G27: 57.236843 | H27: 64.052824 | I27: 75.319347 | J27: 45.793029 | K27: 53.249234 | L27: 96.122069 | M27: 59.327247 | N27: 67.266476 | O27: 48.636677 | P27: 62.56
A28: 2025 | B28: 103.169732 | C28: 46.138444 | D28: 74.73054 | E28: 64.095632 | F28: 90.945863 | G28: 56.454566 | H28: 63.744703 | I28: 74.731298 | J28: 45.164117 | K28: 52.499161 | L28: 95.642309 | M28: 59.072545 | N28: 66.981296 | O28: 47.768208 | P28: 62.03
A29: 2026 | B29: 103.348056 | C29: 45.978348 | D29: 74.296645 | E29: 63.611441 | F29: 90.768128 | G29: 55.53218 | H29: 63.417257 | I29: 74.080406 | J29: 44.488195 | K29: 51.672793 | L29: 95.220513 | M29: 58.780792 | N29: 66.70015 | O29: 46.67883 | P29: 61.48
A30: 2027 | B30: 103.505899 | C30: 45.843631 | D30: 73.897041 | E30: 63.08942 | F30: 90.588076 | G30: 54.517457 | H30: 63.082705 | I30: 73.399155 | J30: 43.788629 | K30: 50.811874 | L30: 94.834795 | M30: 58.467717 | N30: 66.432513 | O30: 45.452702 | P30: 60.92
A31: 2028 | B31: 103.638835 | C31: 45.724681 | D31: 73.517098 | E31: 62.530813 | F31: 90.390239 | G31: 53.398067 | H31: 62.735378 | I31: 72.677309 | J31: 43.053103 | K31: 49.899509 | L31: 94.469086 | M31: 58.132368 | N31: 66.16991 | O31: 44.077805 | P31: 60.34
A32: 2029 | B32: 103.752502 | C32: 45.618678 | D32: 73.14756 | E32: 61.940849 | F32: 90.180791 | G32: 52.186308 | H32: 62.375647 | I32: 71.921077 | J32: 42.285045 | K32: 48.943365 | L32: 94.112691 | M32: 57.778567 | N32: 65.912028 | O32: 42.573472 | P32: 59.74
A33: 2030 | B33: 103.851733 | C33: 45.523206 | D33: 72.781829 | E33: 61.324015 | F33: 89.962047 | G33: 50.89038 | H33: 62.004203 | I33: 71.133538 | J33: 41.486531 | K33: 47.947888 | L33: 93.758608 | M33: 57.408407 | N33: 65.657952 | O33: 40.957114 | P33: 59.12
A34: 2031 | B34: 103.930813 | C34: 45.431553 | D34: 72.412924 | E34: 60.672243 | F34: 89.72147 | G34: 49.493317 | H34: 61.613783 | I34: 70.301516 | J34: 40.643578 | K34: 46.892665 | L34: 93.400277 | M34: 57.017543 | N34: 65.400391 | O34: 39.201217 | P34: 58.47
A35: 2032 | B35: 104.004489 | C35: 45.347872 | D35: 72.039127 | E35: 59.997961 | F35: 89.479486 | G35: 48.026133 | H35: 61.212669 | I35: 69.443785 | J35: 39.773794 | K35: 45.80621 | L35: 93.035244 | M35: 56.612961 | N35: 65.146337 | O35: 37.359648 | P35: 57.8
A36: 2033 | B36: 104.06537 | C36: 45.265833 | D36: 71.656001 | E36: 59.291654 | F36: 89.219227 | G36: 46.466947 | H36: 60.793042 | I36: 68.543631 | J36: 38.861624 | K36: 44.664411 | L36: 92.660102 | M36: 56.188851 | N36: 64.887271 | O36: 35.397193 | P36: 57.1
A37: 2034 | B37: 104.126558 | C37: 45.190025 | D37: 71.263742 | E37: 58.563695 | F37: 88.959876 | G37: 44.84453 | H37: 60.362395 | I37: 67.618621 | J37: 37.923866 | K37: 43.493897 | L37: 92.274407 | M37: 55.751651 | N37: 64.629893 | O37: 33.360202 | P37: 56.38
A38: 2035 | B38: 104.170177 | C38: 45.109691 | D38: 70.856777 | E38: 57.79404 | F38: 88.669568 | G38: 43.11262 | H38: 59.905882 | I38: 66.637043 | J38: 36.929312 | K38: 42.246676 | L38: 91.874071 | M38: 55.289693 | N38: 64.360072 | O38: 31.173761 | P38: 55.62
A39: 2036 | B39: 104.201468 | C39: 45.025899 | D39: 70.43281 | E39: 56.983718 | F39: 88.358264 | G39: 41.27875 | H39: 59.42519 | I39: 65.604478 | J39: 35.880684 | K39: 40.929651 | L39: 91.456139 | M39: 54.804187 | N39: 64.080986 | O39: 28.852672 | P39: 54.82
A40: 2037 | B40: 104.2438 | C40: 44.948837 | D40: 69.994868 | E40: 56.154894 | F40: 88.057566 | G40: 39.391173 | H40: 58.93598 | I40: 64.551171 | J40: 34.809616 | K40: 39.591835 | L40: 91.022739 | M40: 54.306133 | N40: 63.805194 | O40: 26.482999 | P40: 54
A41: 2038 | B41: 104.267464 | C41: 44.862863 | D41: 69.536449 | E41: 55.274147 | F41: 87.716824 | G41: 37.375256 | H41: 58.41386 | I41: 63.426408 | J41: 33.667782 | K41: 38.157788 | L41: 90.569592 | M41: 53.777151 | N41: 63.510078 | O41: 23.936156 | P41: 53.13
A42: 2039 | B42: 104.297049 | C42: 44.779496 | D42: 69.060183 | E42: 54.36243 | F42: 87.378127 | G42: 35.286219 | H42: 57.875287 | I42: 62.267695 | J42: 32.489237 | K42: 36.682506 | L42: 90.097444 | M42: 53.23019 | N42: 63.212681 | O42: 21.304699 | P42: 52.23
A43: 2040 | B43: 104.323676 | C43: 44.693316 | D43: 68.563719 | E43: 53.410773 | F43: 87.021483 | G43: 33.096597 | H43: 57.312893 | I43: 61.055434 | J43: 31.257262 | K43: 35.139228 | L43: 89.605371 | M43: 52.658274 | N43: 62.90416 | O43: 18.549235 | P43: 51.29
A45: Standard errors for forecasts
A46: 2018 | B46: 0.09896993165 | C46: 0.1075158221 | D46: 0.09567521753 | E46: 0.1055381091 | F46: 0.3108553081 | G46: 0.1601884068 | H46: 0.1491362255 | I46: 0.1155639558 | J46: 0.1307875682 | K46: 0.1641079236 | L46: 0.1209508198 | M46: 0.1032065954 | N46: 0.1579363717 | O46: 0.2976800561 | P46: 0.04685223278
A47: 2019 | B47: 0.1294653547 | C47: 0.1411043858 | D47: 0.1214783158 | E47: 0.1288902376 | F47: 0.3733896378 | G47: 0.2079744944 | H47: 0.1742450269 | I47: 0.1398835075 | J47: 0.1723004114 | K47: 0.2105511826 | L47: 0.1506713818 | M47: 0.1246962864 | N47: 0.2031415253 | O47: 0.3721813804 | P47: 0.06468435231
A48: 2020 | B48: 0.1467406793 | C48: 0.1634229816 | D48: 0.1342541052 | E48: 0.1362911907 | F48: 0.403045203 | G48: 0.2371481257 | H48: 0.1797162356 | I48: 0.1521471396 | J48: 0.1967571978 | K48: 0.2367245928 | L48: 0.1634598969 | M48: 0.1348865745 | N48: 0.2305738511 | O48: 0.4074246422 | P48: 0.0760185925
A49: 2021 | B49: 0.1573635187 | C49: 0.1780798866 | D49: 0.1411640961 | E49: 0.1402555613 | F49: 0.4175423158 | G49: 0.2551847952 | H49: 0.1822335801 | I49: 0.1587504257 | J49: 0.2110256276 | K49: 0.2511560955 | L49: 0.1697974587 | M49: 0.1397061192 | N49: 0.249489734 | O49: 0.4289905764 | P49: 0.08286745963
A50: 2022 | B50: 0.1641431213 | C50: 0.1881171177 | D50: 0.1452257305 | E50: 0.1428506908 | F50: 0.424742888 | G50: 0.2668598294 | H50: 0.1837738977 | I50: 0.1626495407 | J50: 0.2196818849 | K50: 0.2595131928 | L50: 0.1732772417 | M50: 0.1422767567 | N50: 0.262884769 | O50: 0.4422327544 | P50: 0.08706215594
A51: 2023 | B51: 0.1685421178 | C51: 0.1950747743 | D51: 0.1477709491 | E51: 0.1446375725 | F51: 0.4281781232 | G51: 0.274572703 | H51: 0.1848031488 | I51: 0.1650969489 | J51: 0.225060736 | K51: 0.2644997904 | L51: 0.1753622156 | M51: 0.1437791902 | N51: 0.2725530327 | O51: 0.4504172186 | P51: 0.08964786257
A52: 2024 | B52: 0.1714083457 | C52: 0.1999387122 | D52: 0.1494500045 | E52: 0.145918756 | F52: 0.4296667998 | G52: 0.279740098 | H52: 0.1855519624 | I52: 0.1667119314 | J52: 0.228491953 | K52: 0.2675755901 | L52: 0.1767054343 | M52: 0.1447368536 | N52: 0.2796213215 | O52: 0.4555299952 | P52: 0.09126344321
A53: 2025 | B53: 0.1732625781 | C53: 0.2033472317 | D53: 0.1506022042 | E53: 0.1468623874 | F53: 0.4301533294 | G53: 0.2832327116 | H53: 0.1861170305 | I53: 0.1678207676 | J53: 0.2307352402 | K53: 0.269528392 | L53: 0.1776196536 | M53: 0.1453895323 | N53: 0.2848338221 | O53: 0.4587297794 | P53: 0.0922887873
A54: 2026 | B54: 0.1744395856 | C54: 0.2057330045 | D54: 0.151416548 | E54: 0.1475671183 | F54: 0.4301429629 | G54: 0.2856076256 | H54: 0.1865465734 | I54: 0.1686065474 | J54: 0.2322365811 | K54: 0.2707996066 | L54: 0.1782662021 | M54: 0.1458563112 | N54: 0.2887029101 | O54: 0.4607266528 | P54: 0.09295116294
A55: 2027 | B55: 0.175161524 | C55: 0.2073956892 | D55: 0.1520046681 | E55: 0.1480978566 | F55: 0.4299065212 | G55: 0.2872295478 | H55: 0.1868730844 | I55: 0.16917733 | J55: 0.2332628555 | K55: 0.2716441208 | L55: 0.1787351091 | M55: 0.1462010573 | N55: 0.2915900279 | O55: 0.4619651063 | P55: 0.09338716501
A56: 2028 | B56: 0.1755789941 | C56: 0.2085461071 | D56: 0.1524360616 | E56: 0.1484999762 | F56: 0.429587718 | G56: 0.2883409238 | H56: 0.1871209377 | I56: 0.169599871 | J56: 0.2339774692 | K56: 0.2722142895 | L56: 0.1790806329 | M56: 0.1464609634 | N56: 0.2937543627 | O56: 0.4627251149 | P56: 0.09367962579
A57: 2029 | B57: 0.1757951852 | C57: 0.2093340256 | D57: 0.1527560311 | E57: 0.1488060684 | F57: 0.4292601672 | G57: 0.289104609 | H57: 0.1873087391 | I57: 0.1699171215 | J57: 0.2344828231 | K57: 0.2726040908 | L57: 0.1793378079 | M57: 0.1466593587 | N57: 0.2953838418 | O57: 0.4631840001 | P57: 0.09387941637
A58: 2030 | B58: 0.1758810717 | C58: 0.2098662658 | D58: 0.1529952204 | E58: 0.1490398905 | F58: 0.4289587718 | G58: 0.2896306569 | H58: 0.1874508309 | I58: 0.1701577793 | J58: 0.2348447506 | K58: 0.2728731963 | L58: 0.1795304168 | M58: 0.1468119165 | N58: 0.2966157577 | O58: 0.4634542995 | P58: 0.09401822645
A59: 2031 | B59: 0.1758853057 | C59: 0.2102192023 | D59: 0.1531750257 | E59: 0.1492189534 | F59: 0.4286974471 | G59: 0.2899939098 | H59: 0.1875582119 | I59: 0.1703416181 | J59: 0.2351065589 | K59: 0.2730604027 | L59: 0.1796752085 | M59: 0.1469296827 | N59: 0.2975510727 | O59: 0.4636075117 | P59: 0.09411612669
A60: 2032 | B60: 0.1758409152 | C60: 0.2104473262 | D60: 0.1533106746 | E60: 0.1493563076 | F60: 0.4284790111 | G60: 0.290245355 | H60: 0.187639291 | I60: 0.1704827251 | J60: 0.2352974184 | K60: 0.2731914518 | L60: 0.1797843433 | M60: 0.1470207381 | N60: 0.2982642861 | O60: 0.4636888926 | P60: 0.0941860855
A61: 2033 | B61: 0.1757700144 | C61: 0.2105894029 | D61: 0.153413278 | E61: 0.149461751 | F61: 0.4283008447 | G61: 0.2904198789 | H61: 0.1877004781 | I61: 0.1705913417 | J61: 0.2354373896 | K61: 0.2732836597 | L61: 0.1798667018 | M61: 0.1470911697 | N61: 0.2988106416 | O61: 0.4637270383 | P61: 0.09423662994
A62: 2034 | B62: 0.1756870875 | C62: 0.2106729049 | D62: 0.1534909982 | E62: 0.1495427063 | F62: 0.4281580428 | G62: 0.2905413423 | H62: 0.1877466323 | I62: 0.1706750742 | J62: 0.2355404893 | K62: 0.273348828 | L62: 0.1799289185 | M62: 0.1471456139 | N62: 0.2992311721 | O62: 0.4637398558 | P62: 0.09427347385
A63: 2035 | B63: 0.1756013542 | C63: 0.2107171731 | D63: 0.1535499052 | E63: 0.1496048384 | F63: 0.4280450392 | G63: 0.2906261547 | H63: 0.1877814279 | I63: 0.1707396728 | J63: 0.2356166862 | K63: 0.2733950703 | L63: 0.1799759489 | M63: 0.147187642 | N63: 0.2995565121 | O63: 0.4637385004 | P63: 0.0943005337
A64: 2036 | B64: 0.1755184129 | C64: 0.2107357222 | D64: 0.1535945887 | E64: 0.1496524963 | F64: 0.4279564844 | G64: 0.2906855794 | H64: 0.1878076707 | I64: 0.1707894791 | J64: 0.2356731558 | K64: 0.273427994 | L64: 0.1800115112 | M64: 0.1472200492 | N64: 0.299809506 | O64: 0.4637297706 | P64: 0.09432051716
A65: 2037 | B65: 0.1754414214 | C65: 0.2107379291 | D65: 0.1536284616 | E65: 0.1496890156 | F65: 0.4278875873 | G65: 0.2907273933 | H65: 0.1878274478 | I65: 0.1708278791 | J65: 0.2357150927 | K65: 0.2734515306 | L65: 0.1800383913 | M65: 0.1472449954 | N65: 0.3000073247 | O65: 0.4637177548 | P65: 0.09433533944
A66: 2038 | B66: 0.1753719486 | C66: 0.2107302123 | D66: 0.1536541364 | E66: 0.1497169646 | F66: 0.4278343096 | G66: 0.2907569397 | H66: 0.1878423405 | I66: 0.1708574555 | J66: 0.2357462576 | K66: 0.2734683793 | L66: 0.1800587258 | M66: 0.1472641782 | N66: 0.3001628819 | O66: 0.4637048581 | P66: 0.09434637135
A67: 2039 | B67: 0.175310517 | C67: 0.2107168733 | D67: 0.1536735868 | E67: 0.1497383257 | F67: 0.427793301 | G67: 0.2907779221 | H67: 0.1878535723 | I67: 0.1708802003 | J67: 0.2357694689 | K67: 0.273480512 | L67: 0.1800741 | M67: 0.1472788969 | N67: 0.3002858841 | O67: 0.4636923754 | P67: 0.09435461735
A68: 2040 | B68: 0.1752570175 | C68: 0.2107008156 | D68: 0.1536882928 | E68: 0.1497546429 | F68: 0.4277618628 | G68: 0.2907929087 | H68: 0.1878620313 | I68: 0.1708976825 | J68: 0.2357867531 | K68: 0.2734892366 | L68: 0.1800857212 | M68: 0.1472901626 | N68: 0.3003837371 | O68: 0.4636809868 | P68: 0.09436076796

Sheet LA (hidden)
A1: DSI by Local Authority (historical) | BT1: Actual sum
BT2: not equal total
B3: Far North District | C3: Whangarei District | D3: Kaipara District | E3: Akl North | F3: Akl West | G3: Akl Central | H3: Akl South | I3: Thames-Coromandel District | J3: Hauraki District | K3: Waikato District | L3: Matamata-Piako District | M3: Hamilton City | N3: Waipa District | O3: Otorohanga District | P3: South Waikato District | Q3: Waitomo District | R3: Taupo District | S3: Western Bay Of Plenty District | T3: Tauranga City | U3: Rotorua District | V3: Whakatane District | W3: Kawerau District | X3: Opotiki District | Y3: Gisborne District | Z3: Wairoa District | AA3: Hastings District | AB3: Napier City | AC3: Central Hawkes Bay District | AD3: New Plymouth District | AE3: Stratford District | AF3: South Taranaki District | AG3: Ruapehu District | AH3: Wanganui District | AI3: Rangitikei District | AJ3: Manawatu District | AK3: Palmerston North City | AL3: Tararua District | AM3: Horowhenua District | AN3: Kapiti Coast District | AO3: Porirua City | AP3: Upper Hutt City | AQ3: Hutt City | AR3: Wellington City | AS3: Masterton District | AT3: Carterton District | AU3: South Wairarapa District | AV3: Tasman District | AW3: Nelson City | AX3: Marlborough District | AY3: Kaikoura District | AZ3: Buller District | BA3: Grey District | BB3: Westland District | BC3: Hurunui District | BD3: Waimakariri District | BE3: Christchurch City | BF3: Selwyn District | BG3: Ashburton District | BH3: Timaru District | BI3: Mackenzie District | BJ3: Waimate District | BK3: Waitaki District | BL3: Central Otago District | BM3: Queenstown-Lakes District | BN3: Dunedin City | BO3: Clutha District | BP3: Southland District | BQ3: Gore District | BR3: Invercargill City | BS3: NZ
B4: NL | C4: NL | D4: NL | E4: AK | F4: AK | G4: AK | H4: AK | I4: WK | J4: WK | K4: WK | L4: WK | M4: WK | N4: WK | O4: WK | P4: WK | Q4: WK | R4: WK | S4: BP | T4: BP | U4: BP | V4: BP | W4: BP | X4: BP | Y4: GS | Z4: HB | AA4: HB | AB4: HB | AC4: HB | AD4: TN | AE4: TN | AF4: TN | AG4: MW | AH4: MW | AI4: MW | AJ4: MW | AK4: MW | AL4: MW | AM4: MW | AN4: WL | AO4: WL | AP4: WL | AQ4: WL | AR4: WL | AS4: WL | AT4: WL | AU4: WL | AV4: NM | AW4: NM | AX4: NM | AY4: CB | AZ4: WC | BA4: WC | BB4: WC | BC4: CB | BD4: CB | BE4: CB | BF4: CB | BG4: CB | BH4: CB | BI4: CB | BJ4: CB | BK4: CB | BL4: OT | BM4: OT | BN4: OT | BO4: OT | BP4: SL | BQ4: SL | BR4: SL | BS4: NZ
A5: 2000 | B5: 69 | C5: 61 | D5: 32 | E5: 165 | F5: 69 | G5: 179 | H5: 163 | I5: 13 | J5: 36 | K5: 100 | L5: 49 | M5: 57 | N5: 44 | O5: 17 | P5: 42 | Q5: 14 | R5: 55 | S5: 52 | T5: 45 | U5: 45 | V5: 21 | W5: 4 | X5: 7 | Y5: 44 | Z5: 18 | AA5: 66 | AB5: 21 | AC5: 19 | AD5: 51 | AE5: 6 | AF5: 37 | AG5: 29 | AH5: 30 | AI5: 43 | AJ5: 40 | AK5: 35 | AL5: 27 | AM5: 32 | AN5: 28 | AO5: 31 | AP5: 20 | AQ5: 30 | AR5: 50 | AS5: 13 | AT5: 7 | AU5: 17 | AV5: 45 | AW5: 13 | AX5: 35 | AY5: 3 | AZ5: 18 | BA5: 13 | BB5: 17 | BC5: 21 | BD5: 34 | BE5: 142 | BF5: 42 | BG5: 16 | BH5: 36 | BI5: 7 | BJ5: 11 | BK5: 22 | BL5: 22 | BM5: 26 | BN5: 57 | BO5: 38 | BP5: 58 | BQ5: 4 | BR5: 34 | BS5: =SUM(B5:BR5) -> 2747
A6: 2001 | B6: 61 | C6: 61 | D6: 35 | E6: 174 | F6: 85 | G6: 167 | H6: 183 | I6: 18 | J6: 26 | K6: 78 | L6: 31 | M6: 41 | N6: 36 | O6: 16 | P6: 52 | Q6: 16 | R6: 68 | S6: 49 | T6: 36 | U6: 51 | V6: 35 | W6: 3 | X6: 9 | Y6: 37 | Z6: 23 | AA6: 66 | AB6: 26 | AC6: 23 | AD6: 46 | AE6: 10 | AF6: 33 | AG6: 22 | AH6: 27 | AI6: 39 | AJ6: 32 | AK6: 37 | AL6: 22 | AM6: 26 | AN6: 36 | AO6: 16 | AP6: 12 | AQ6: 38 | AR6: 65 | AS6: 12 | AT6: 6 | AU6: 11 | AV6: 59 | AW6: 31 | AX6: 21 | AY6: 5 | AZ6: 23 | BA6: 13 | BB6: 16 | BC6: 26 | BD6: 30 | BE6: 183 | BF6: 42 | BG6: 17 | BH6: 35 | BI6: 5 | BJ6: 17 | BK6: 32 | BL6: 22 | BM6: 31 | BN6: 134 | BO6: 44 | BP6: 91 | BQ6: 11 | BR6: 44 | BS6: 2890 | BT6: =SUM(B6:BR6) -> 2928
A7: 2002 | B7: 82 | C7: 60 | D7: 20 | E7: 182 | F7: 116 | G7: 187 | H7: 222 | I7: 13 | J7: 25 | K7: 78 | L7: 32 | M7: 47 | N7: 26 | O7: 16 | P7: 47 | Q7: 16 | R7: 44 | S7: 47 | T7: 58 | U7: 52 | V7: 32 | W7: 2 | X7: 12 | Y7: 23 | Z7: 13 | AA7: 74 | AB7: 30 | AC7: 23 | AD7: 35 | AE7: 8 | AF7: 22 | AG7: 20 | AH7: 30 | AI7: 23 | AJ7: 36 | AK7: 39 | AL7: 19 | AM7: 41 | AN7: 40 | AO7: 26 | AP7: 11 | AQ7: 44 | AR7: 69 | AS7: 10 | AT7: 10 | AU7: 12 | AV7: 55 | AW7: 22 | AX7: 49 | AY7: 11 | AZ7: 18 | BA7: 9 | BB7: 18 | BC7: 30 | BD7: 15 | BE7: 171 | BF7: 22 | BG7: 16 | BH7: 29 | BI7: 16 | BJ7: 7 | BK7: 33 | BL7: 36 | BM7: 56 | BN7: 150 | BO7: 42 | BP7: 93 | BQ7: 17 | BR7: 62 | BS7: 3005 | BT7: 3051
A8: 2003 | B8: 75 | C8: 63 | D8: 14 | E8: 135 | F8: 100 | G8: 172 | H8: 203 | I8: 23 | J8: 33 | K8: 86 | L8: 29 | M8: 62 | N8: 27 | O8: 19 | P8: 45 | Q8: 25 | R8: 69 | S8: 63 | T8: 54 | U8: 48 | V8: 40 | W8: 2 | X8: 16 | Y8: 35 | Z8: 11 | AA8: 76 | AB8: 42 | AC8: 22 | AD8: 55 | AE8: 3 | AF8: 25 | AG8: 17 | AH8: 52 | AI8: 20 | AJ8: 40 | AK8: 37 | AL8: 30 | AM8: 24 | AN8: 21 | AO8: 24 | AP8: 19 | AQ8: 45 | AR8: 61 | AS8: 22 | AT8: 9 | AU8: 16 | AV8: 68 | AW8: 20 | AX8: 30 | AY8: 1 | AZ8: 10 | BA8: 16 | BB8: 12 | BC8: 28 | BD8: 27 | BE8: 178 | BF8: 29 | BG8: 27 | BH8: 33 | BI8: 10 | BJ8: 7 | BK8: 45 | BL8: 40 | BM8: 43 | BN8: 140 | BO8: 45 | BP8: 80 | BQ8: 17 | BR8: 62 | BS8: 3039 | BT8: 3077
A9: 2004 | B9: 79 | C9: 75 | D9: 30 | E9: 194 | F9: 85 | G9: 155 | H9: 192 | I9: 12 | J9: 35 | K9: 114 | L9: 35 | M9: 47 | N9: 45 | O9: 20 | P9: 40 | Q9: 28 | R9: 53 | S9: 45 | T9: 49 | U9: 53 | V9: 32 | W9: 1 | X9: 16 | Y9: 29 | Z9: 12 | AA9: 77 | AB9: 33 | AC9: 15 | AD9: 70 | AE9: 3 | AF9: 26 | AG9: 31 | AH9: 34 | AI9: 23 | AJ9: 34 | AK9: 42 | AL9: 18 | AM9: 29 | AN9: 36 | AO9: 36 | AP9: 8 | AQ9: 44 | AR9: 58 | AS9: 16 | AT9: 3 | AU9: 15 | AV9: 41 | AW9: 26 | AX9: 48 | AY9: 15 | AZ9: 18 | BA9: 10 | BB9: 12 | BC9: 14 | BD9: 31 | BE9: 152 | BF9: 28 | BG9: 20 | BH9: 21 | BI9: 6 | BJ9: 17 | BK9: 40 | BL9: 35 | BM9: 40 | BN9: 145 | BO9: 29 | BP9: 59 | BQ9: 10 | BR9: 41 | BS9: 2926 | BT9: 2985
A10: 2005 | B10: 73 | C10: 52 | D10: 33 | E10: 159 | F10: 64 | G10: 162 | H10: 170 | I10: 22 | J10: 44 | K10: 79 | L10: 36 | M10: 53 | N10: 43 | O10: 10 | P10: 33 | Q10: 24 | R10: 45 | S10: 31 | T10: 43 | U10: 52 | V10: 43 | W10: 2 | X10: 13 | Y10: 47 | Z10: 22 | AA10: 96 | AB10: 26 | AC10: 21 | AD10: 36 | AE10: 6 | AF10: 29 | AG10: 25 | AH10: 32 | AI10: 34 | AJ10: 35 | AK10: 47 | AL10: 33 | AM10: 29 | AN10: 40 | AO10: 27 | AP10: 32 | AQ10: 35 | AR10: 60 | AS10: 13 | AT10: 11 | AU10: 5 | AV10: 34 | AW10: 16 | AX10: 32 | AY10: 14 | AZ10: 14 | BA10: 15 | BB10: 16 | BC10: 37 | BD10: 24 | BE10: 190 | BF10: 39 | BG10: 19 | BH10: 24 | BI10: 10 | BJ10: 16 | BK10: 27 | BL10: 46 | BM10: 52 | BN10: 142 | BO10: 42 | BP10: 80 | BQ10: 18 | BR10: 54 | BS10: 2936 | BT10: 2988
A11: 2006 | B11: 72 | C11: 62 | D11: 26 | E11: 172 | F11: 98 | G11: 164 | H11: 258 | I11: 37 | J11: 22 | K11: 99 | L11: 32 | M11: 45 | N11: 34 | O11: 16 | P11: 23 | Q11: 30 | R11: 34 | S11: 50 | T11: 59 | U11: 66 | V11: 32 | W11: 3 | X11: 13 | Y11: 31 | Z11: 9 | AA11: 94 | AB11: 45 | AC11: 29 | AD11: 41 | AE11: 9 | AF11: 20 | AG11: 24 | AH11: 38 | AI11: 21 | AJ11: 26 | AK11: 42 | AL11: 30 | AM11: 41 | AN11: 42 | AO11: 23 | AP11: 16 | AQ11: 49 | AR11: 71 | AS11: 13 | AT11: 4 | AU11: 11 | AV11: 43 | AW11: 25 | AX11: 40 | AY11: 8 | AZ11: 16 | BA11: 8 | BB11: 22 | BC11: 36 | BD11: 24 | BE11: 178 | BF11: 27 | BG11: 15 | BH11: 28 | BI11: 4 | BJ11: 2 | BK11: 32 | BL11: 31 | BM11: 18 | BN11: 139 | BO11: 39 | BP11: 74 | BQ11: 16 | BR11: 80 | BS11: 3022 | BT11: 3081
A12: 2007 | B12: 100 | C12: 56 | D12: 26 | E12: 152 | F12: 55 | G12: 138 | H12: 187 | I12: 24 | J12: 26 | K12: 107 | L12: 40 | M12: 64 | N12: 33 | O12: 14 | P12: 44 | Q12: 19 | R12: 62 | S12: 59 | T12: 54 | U12: 75 | V12: 50 | W12: 3 | X12: 8 | Y12: 39 | Z12: 21 | AA12: 80 | AB12: 39 | AC12: 15 | AD12: 53 | AE12: 14 | AF12: 20 | AG12: 18 | AH12: 27 | AI12: 29 | AJ12: 29 | AK12: 56 | AL12: 22 | AM12: 45 | AN12: 33 | AO12: 21 | AP12: 22 | AQ12: 51 | AR12: 100 | AS12: 18 | AT12: 13 | AU12: 11 | AV12: 47 | AW12: 23 | AX12: 41 | AY12: 6 | AZ12: 22 | BA12: 7 | BB12: 15 | BC12: 26 | BD12: 26 | BE12: 235 | BF12: 53 | BG12: 32 | BH12: 32 | BI12: 12 | BJ12: 13 | BK12: 24 | BL12: 25 | BM12: 35 | BN12: 115 | BO12: 38 | BP12: 73 | BQ12: 9 | BR12: 53 | BS12: 3075 | BT12: 3134
A13: 2008 | B13: 62 | C13: 66 | D13: 33 | E13: 134 | F13: 58 | G13: 146 | H13: 211 | I13: 23 | J13: 26 | K13: 72 | L13: 59 | M13: 63 | N13: 40 | O13: 14 | P13: 44 | Q13: 10 | R13: 60 | S13: 61 | T13: 44 | U13: 49 | V13: 34 | W13: 2 | X13: 17 | Y13: 49 | Z13: 16 | AA13: 73 | AB13: 32 | AC13: 28 | AD13: 51 | AE13: 10 | AF13: 23 | AG13: 12 | AH13: 22 | AI13: 19 | AJ13: 47 | AK13: 58 | AL13: 25 | AM13: 38 | AN13: 21 | AO13: 27 | AP13: 24 | AQ13: 46 | AR13: 101 | AS13: 16 | AT13: 4 | AU13: 12 | AV13: 49 | AW13: 25 | AX13: 35 | AY13: 7 | AZ13: 18 | BA13: 12 | BB13: 21 | BC13: 30 | BD13: 21 | BE13: 235 | BF13: 36 | BG13: 22 | BH13: 28 | BI13: 8 | BJ13: 11 | BK13: 27 | BL13: 27 | BM13: 31 | BN13: 105 | BO13: 21 | BP13: 59 | BQ13: 15 | BR13: 28 | BS13: 2897 | BT13: 2953
A14: 2009 | B14: 64 | C14: 55 | D14: 25 | E14: 150 | F14: 79 | G14: 145 | H14: 196 | I14: 17 | J14: 30 | K14: 86 | L14: 31 | M14: 66 | N14: 45 | O14: 7 | P14: 34 | Q14: 21 | R14: 76 | S14: 60 | T14: 37 | U14: 46 | V14: 29 | W14: 1 | X14: 29 | Y14: 34 | Z14: 30 | AA14: 56 | AB14: 36 | AC14: 6 | AD14: 53 | AE14: 12 | AF14: 18 | AG14: 31 | AH14: 18 | AI14: 17 | AJ14: 19 | AK14: 54 | AL14: 23 | AM14: 33 | AN14: 22 | AO14: 30 | AP14: 11 | AQ14: 30 | AR14: 62 | AS14: 19 | AT14: 11 | AU14: 14 | AV14: 34 | AW14: 34 | AX14: 33 | AY14: 18 | AZ14: 17 | BA14: 18 | BB14: 15 | BC14: 27 | BD14: 34 | BE14: 197 | BF14: 35 | BG14: 30 | BH14: 29 | BI14: 9 | BJ14: 7 | BK14: 30 | BL14: 19 | BM14: 32 | BN14: 123 | BO14: 26 | BP14: 53 | BQ14: 18 | BR14: 41 | BS14: 2809 | BT14: 2847
A15: 2010 | B15: 52 | C15: 58 | D15: 24 | E15: 127 | F15: 90 | G15: 126 | H15: 169 | I15: 15 | J15: 18 | K15: 72 | L15: 32 | M15: 55 | N15: 37 | O15: 19 | P15: 23 | Q15: 29 | R15: 37 | S15: 54 | T15: 32 | U15: 62 | V15: 40 | W15: 4 | X15: 19 | Y15: 30 | Z15: 14 | AA15: 80 | AB15: 19 | AC15: 19 | AD15: 33 | AE15: 14 | AF15: 18 | AG15: 39 | AH15: 32 | AI15: 19 | AJ15: 33 | AK15: 33 | AL15: 27 | AM15: 26 | AN15: 26 | AO15: 23 | AP15: 21 | AQ15: 31 | AR15: 66 | AS15: 8 | AT15: 7 | AU15: 13 | AV15: 37 | AW15: 27 | AX15: 44 | AY15: 0 | AZ15: 18 | BA15: 20 | BB15: 21 | BC15: 21 | BD15: 29 | BE15: 245 | BF15: 43 | BG15: 32 | BH15: 26 | BI15: 9 | BJ15: 7 | BK15: 27 | BL15: 21 | BM15: 20 | BN15: 93 | BO15: 27 | BP15: 61 | BQ15: 9 | BR15: 31 | BS15: 2664 | BT15: 2693
A16: 2011 | B16: 59 | C16: 28 | D16: 21 | E16: 103 | F16: 58 | G16: 141 | H16: 152 | I16: 39 | J16: 24 | K16: 98 | L16: 45 | M16: 60 | N16: 35 | O16: 12 | P16: 35 | Q16: 16 | R16: 38 | S16: 52 | T16: 56 | U16: 36 | V16: 29 | W16: 3 | X16: 16 | Y16: 31 | Z16: 3 | AA16: 47 | AB16: 24 | AC16: 9 | AD16: 38 | AE16: 9 | AF16: 22 | AG16: 20 | AH16: 20 | AI16: 23 | AJ16: 12 | AK16: 31 | AL16: 32 | AM16: 19 | AN16: 19 | AO16: 21 | AP16: 15 | AQ16: 22 | AR16: 88 | AS16: 14 | AT16: 4 | AU16: 8 | AV16: 24 | AW16: 14 | AX16: 26 | AY16: 4 | AZ16: 13 | BA16: 12 | BB16: 23 | BC16: 26 | BD16: 35 | BE16: 164 | BF16: 38 | BG16: 21 | BH16: 18 | BI16: 12 | BJ16: 10 | BK16: 24 | BL16: 21 | BM16: 23 | BN16: 71 | BO16: 32 | BP16: 46 | BQ16: 6 | BR16: 21 | BS16: 2344 | BT16: 2371
A17: 2012 | B17: 58 | C17: 46 | D17: 33 | E17: 112 | F17: 66 | G17: 101 | H17: 142 | I17: 29 | J17: 22 | K17: 79 | L17: 38 | M17: 60 | N17: 32 | O17: 7 | P17: 23 | Q17: 25 | R17: 41 | S17: 60 | T17: 28 | U17: 52 | V17: 26 | W17: 2 | X17: 15 | Y17: 22 | Z17: 26 | AA17: 43 | AB17: 20 | AC17: 9 | AD17: 45 | AE17: 11 | AF17: 29 | AG17: 27 | AH17: 23 | AI17: 20 | AJ17: 35 | AK17: 30 | AL17: 14 | AM17: 24 | AN17: 26 | AO17: 23 | AP17: 21 | AQ17: 27 | AR17: 86 | AS17: 6 | AT17: 6 | AU17: 6 | AV17: 26 | AW17: 26 | AX17: 27 | AY17: 10 | AZ17: 9 | BA17: 10 | BB17: 15 | BC17: 16 | BD17: 27 | BE17: 178 | BF17: 38 | BG17: 26 | BH17: 13 | BI17: 7 | BJ17: 9 | BK17: 23 | BL17: 34 | BM17: 32 | BN17: 94 | BO17: 28 | BP17: 54 | BQ17: 10 | BR17: 23 | BS17: 2381 | BT17: 2411
A18: 2013 | B18: 53 | C18: 55 | D18: 32 | E18: 99 | F18: 61 | G18: 141 | H18: 185 | I18: 18 | J18: 14 | K18: 75 | L18: 38 | M18: 53 | N18: 27 | O18: 15 | P18: 19 | Q18: 14 | R18: 31 | S18: 45 | T18: 38 | U18: 46 | V18: 26 | W18: 3 | X18: 11 | Y18: 29 | Z18: 9 | AA18: 46 | AB18: 19 | AC18: 12 | AD18: 29 | AE18: 8 | AF18: 22 | AG18: 29 | AH18: 19 | AI18: 8 | AJ18: 15 | AK18: 39 | AL18: 17 | AM18: 24 | AN18: 15 | AO18: 16 | AP18: 5 | AQ18: 25 | AR18: 38 | AS18: 18 | AT18: 8 | AU18: 8 | AV18: 35 | AW18: 21 | AX18: 13 | AY18: 10 | AZ18: 10 | BA18: 15 | BB18: 18 | BC18: 13 | BD18: 33 | BE18: 193 | BF18: 56 | BG18: 10 | BH18: 25 | BI18: 11 | BJ18: 8 | BK18: 17 | BL18: 16 | BM18: 35 | BN18: 94 | BO18: 22 | BP18: 38 | BQ18: 3 | BR18: 21 | BS18: 2234 | BT18: 2274
A19: 2014 | B19: 57 | C19: 65 | D19: 18 | E19: 125 | F19: 66 | G19: 140 | H19: 152 | I19: 31 | J19: 22 | K19: 70 | L19: 37 | M19: 34 | N19: 37 | O19: 3 | P19: 13 | Q19: 16 | R19: 33 | S19: 51 | T19: 40 | U19: 23 | V19: 22 | W19: 0 | X19: 19 | Y19: 33 | Z19: 19 | AA19: 52 | AB19: 20 | AC19: 10 | AD19: 26 | AE19: 9 | AF19: 23 | AG19: 16 | AH19: 21 | AI19: 20 | AJ19: 46 | AK19: 39 | AL19: 20 | AM19: 28 | AN19: 17 | AO19: 9 | AP19: 14 | AQ19: 42 | AR19: 64 | AS19: 10 | AT19: 3 | AU19: 6 | AV19: 25 | AW19: 23 | AX19: 26 | AY19: 11 | AZ19: 13 | BA19: 15 | BB19: 12 | BC19: 29 | BD19: 30 | BE19: 203 | BF19: 41 | BG19: 23 | BH19: 27 | BI19: 4 | BJ19: 9 | BK19: 20 | BL19: 21 | BM19: 37 | BN19: 91 | BO19: 21 | BP19: 42 | BQ19: 12 | BR19: 14 | BS19: 2347 | BT19: 2370
A20: 2015 | B20: 68 | C20: 77 | D20: 20 | E20: 153 | F20: 69 | G20: 177 | H20: 221 | I20: 21 | J20: 29 | K20: 71 | L20: 26 | M20: 44 | N20: 35 | O20: 12 | P20: 35 | Q20: 26 | R20: 52 | S20: 46 | T20: 28 | U20: 31 | V20: 21 | W20: 9 | X20: 10 | Y20: 17 | Z20: 12 | AA20: 57 | AB20: 21 | AC20: 8 | AD20: 41 | AE20: 9 | AF20: 14 | AG20: 12 | AH20: 16 | AI20: 27 | AJ20: 34 | AK20: 33 | AL20: 17 | AM20: 37 | AN20: 18 | AO20: 12 | AP20: 9 | AQ20: 31 | AR20: 51 | AS20: 9 | AT20: 7 | AU20: 7 | AV20: 25 | AW20: 16 | AX20: 27 | AY20: 8 | AZ20: 20 | BA20: 5 | BB20: 14 | BC20: 24 | BD20: 33 | BE20: 184 | BF20: 46 | BG20: 12 | BH20: 11 | BI20: 12 | BJ20: 15 | BK20: 27 | BL20: 25 | BM20: 25 | BN20: 76 | BO20: 34 | BP20: 41 | BQ20: 4 | BR20: 20 | BS20: 2467 | BT20: 2484
A21: 2016 | B21: 90 | C21: 71 | D21: 45 | E21: 188 | F21: 75 | G21: 185 | H21: 220 | I21: 18 | J21: 27 | K21: 106 | L21: 50 | M21: 47 | N21: 43 | O21: 6 | P21: 18 | Q21: 27 | R21: 37 | S21: 45 | T21: 36 | U21: 63 | V21: 21 | W21: 0 | X21: 15 | Y21: 59 | Z21: 13 | AA21: 53 | AB21: 32 | AC21: 21 | AD21: 39 | AE21: 7 | AF21: 35 | AG21: 13 | AH21: 28 | AI21: 20 | AJ21: 27 | AK21: 30 | AL21: 18 | AM21: 16 | AN21: 31 | AO21: 29 | AP21: 17 | AQ21: 39 | AR21: 67 | AS21: 15 | AT21: 3 | AU21: 8 | AV21: 43 | AW21: 24 | AX21: 24 | AY21: 4 | AZ21: 26 | BA21: 12 | BB21: 14 | BC21: 22 | BD21: 24 | BE21: 167 | BF21: 55 | BG21: 27 | BH21: 32 | BI21: 7 | BJ21: 6 | BK21: 43 | BL21: 26 | BM21: 29 | BN21: 97 | BO21: 31 | BP21: 63 | BQ21: 8 | BR21: 28 | BS21: 2827 | BT21: 2865
A22: 2017 | B22: 94 | C22: 73 | D22: 28 | E22: 208 | F22: 112 | G22: 192 | H22: 315 | I22: 29 | J22: 30 | K22: 102 | L22: 58 | M22: 66 | N22: 31 | O22: 8 | P22: 43 | Q22: 24 | R22: 62 | S22: 53 | T22: 57 | U22: 40 | V22: 30 | W22: 2 | X22: 9 | Y22: 43 | Z22: 24 | AA22: 75 | AB22: 16 | AC22: 7 | AD22: 49 | AE22: 12 | AF22: 19 | AG22: 21 | AH22: 31 | AI22: 20 | AJ22: 30 | AK22: 41 | AL22: 26 | AM22: 39 | AN22: 35 | AO22: 19 | AP22: 18 | AQ22: 52 | AR22: 84 | AS22: 22 | AT22: 7 | AU22: 16 | AV22: 56 | AW22: 30 | AX22: 37 | AY22: 2 | AZ22: 25 | BA22: 14 | BB22: 17 | BC22: 24 | BD22: 42 | BE22: 177 | BF22: 63 | BG22: 20 | BH22: 33 | BI22: 14 | BJ22: 19 | BK22: 29 | BL22: 30 | BM22: 33 | BN22: 80 | BO22: 27 | BP22: 42 | BQ22: 12 | BR22: 32 | BS22: 3230 | BT22: 3230
A24: Mean | B24: =AVERAGE(B5:B22) -> 70.44444444 | C24: =AVERAGE(C5:C22) -> 60.22222222 | D24: 27.5 | E24: 151.7777778 | F24: 78.11111111 | G24: 156.5555556 | H24: 196.7222222 | I24: 22.33333333 | J24: 27.16666667 | K24: 87.33333333 | L24: 38.77777778 | M24: 53.55555556 | N24: 36.11111111 | O24: 12.83333333 | P24: 34.05555556 | Q24: 21.11111111 | R24: 49.83333333 | S24: 51.27777778 | T24: 44.11111111 | U24: 49.44444444 | V24: 31.27777778 | W24: 2.555555556 | X24: 14.11111111 | Y24: 35.11111111 | Z24: 16.38888889 | AA24: 67.27777778 | AB24: 27.83333333 | AC24: 16.44444444 | AD24: 43.94444444 | AE24: 8.888888889 | AF24: 24.16666667 | AG24: 22.55555556 | AH24: 27.77777778 | AI24: 23.61111111 | AJ24: 31.66666667 | AK24: 40.16666667 | AL24: 23.33333333 | AM24: 30.61111111 | AN24: 28.11111111 | AO24: 22.94444444 | AP24: 16.38888889 | AQ24: 37.83333333 | AR24: 68.94444444 | AS24: 14.11111111 | AT24: 6.833333333 | AU24: 10.88888889 | AV24: 41.44444444 | AW24: 23.11111111 | AX24: 32.66666667 | AY24: 7.611111111 | AZ24: 17.11111111 | BA24: 12.44444444 | BB24: 16.55555556 | BC24: 25 | BD24: 28.83333333 | BE24: 187.3333333 | BF24: 40.72222222 | BG24: 21.38888889 | BH24: 26.66666667 | BI24: 9.055555556 | BJ24: 10.61111111 | BK24: 29 | BL24: 27.61111111 | BM24: 33.22222222 | BN24: 108.1111111 | BO24: =AVERAGE(BO5:BO22) -> 32.55555556 | BP24: 61.5 | BQ24: 11.05555556 | BR24: 38.27777778 | BS24: 2768.888889
A25: Std dev | B25: =STDEV(B5:B22) -> 14.07635574 | C25: =STDEV(C5:C22) -> 11.46121621 | D25: 7.477416981 | E25: 31.60334226 | F25: 18.78638083 | G25: 23.9072281 | H25: 41.8791055 | I25: 7.97791068 | J25: 6.997898844 | K25: 14.5076045 | L25: 9.68051746 | M25: 9.426010461 | N25: 6.229803971 | O25: 5.008815758 | P25: 11.58839289 | Q25: 6.076849889 | R25: 13.96739902 | S25: 7.812550653 | T25: 10.41994066 | U25: 12.50516233 | V25: 8.165966357 | W25: 1.976991839 | X25: 5.223126052 | Y25: 10.43686277 | Z25: 6.971698155 | AA25: 15.89970609 | AB25: 8.699222413 | AC25: 7.310123699 | AD25: 10.79472759 | AE25: 3.160210136 | AF25: 6.270847583 | AG25: 7.469327257 | AH25: 8.612955737 | AI25: 8.275682939 | AJ25: 9.461998297 | AK25: 8.604034621 | AL25: 5.698296959 | AM25: 8.153951686 | AN25: 8.770866809 | AO25: 6.855416255 | AP25: 6.590000347 | AQ25: 9.294210722 | AR25: 16.94097789 | AS25: 4.587564892 | AT25: 3.053445498 | AU25: 3.802304083 | AV25: 12.76586543 | AW25: 5.789329829 | AX25: 9.523963584 | AY25: 5.019244013 | AZ25: 4.992805281 | BA25: 3.853527371 | BB25: 3.416606886 | BC25: 6.579826567 | BD25: 6.157253016 | BE25: 27.83776529 | BF25: 10.9319045 | BG25: 6.563167177 | BH25: 7.104265496 | BI25: 3.386343199 | BJ25: 4.641740151 | BK25: 7.608045277 | BL25: 8.023046868 | BM25: 9.985610562 | BN25: 28.73589452 | BO25: =STDEV(BO5:BO22) -> 7.994279 | BP25: 17.08886807 | BQ25: 4.964251288 | BR25: 17.91090879 | BS25: 295.6030504
A26: CV | B26: =B25/B24 -> 0.1998220846 | C26: =C25/C24 -> 0.1903153984 | D26: 0.271906072 | E26: 0.2082211423 | F26: 0.2405084316 | G26: 0.1527076316 | H26: 0.2128844674 | I26: 0.3572198812 | J26: 0.2575913685 | K26: 0.1661176087 | L26: 0.2496408514 | M26: 0.1760043447 | N26: 0.1725176484 | O26: 0.3902973318 | P26: 0.3402790733 | Q26: 0.2878507842 | R26: 0.2802822545 | S26: 0.1523574342 | T26: 0.2362203173 | U26: 0.2529133955 | V26: 0.2610788533 | W26: 0.7736055023 | X26: 0.3701427911 | Y26: 0.2972524208 | Z26: 0.4253917518 | AA26: 0.2363292399 | AB26: 0.312546913 | AC26: 0.4445345493 | AD26: 0.2456448757 | AE26: 0.3555236403 | AF26: 0.2594833483 | AG26: 0.33115244 | AH26: 0.3100664065 | AI26: 0.3504995127 | AJ26: 0.2987999462 | AK26: 0.2142083308 | AL26: 0.2442127268 | AM26: 0.2663722874 | AN26: 0.3120071197 | AO26: 0.298783275 | AP26: 0.4021017161 | AQ26: 0.2456619574 | AR26: 0.2457192604 | AS26: 0.3251030238 | AT26: 0.4468456827 | AU26: 0.3491911913 | AV26: 0.3080235627 | AW26: 0.2504998484 | AX26: 0.2915499056 | AY26: 0.659462717 | AZ26: 0.2917873216 | BA26: 0.3096584495 | BB26: 0.206372228 | BC26: 0.2631930627 | BD26: 0.2135463474 | BE26: 0.1486001706 | BF26: 0.2684505879 | BG26: 0.3068493745 | BH26: 0.2664099561 | BI26: 0.3739520097 | BJ26: 0.4374414802 | BK26: 0.2623463889 | BL26: 0.290573126 | BM26: 0.3005702176 | BN26: 0.265799641 | BO26: =BO25/BO24 -> 0.245558058 | BP26: 0.2778677734 | BQ26: 0.4490277547 | BR26: 0.4679192426 | BS26: 0.1067587261

Sheet Popn (hidden)
A1: Population Projections by Local Authority (base 2013)
A2: The calculations in cols K-O are temporary until Stats NZ releases projections based on the 2018 census.
B4: end June | C4: Far North District | D4: Whangarei District | E4: Kaipara District | F4: Akl North | G4: Akl West | H4: Akl Central | I4: Akl South | J4: Thames-Coromandel District | K4: Hauraki District | L4: Waikato District | M4: Matamata-Piako District | N4: Hamilton City | O4: Waipa District | P4: Otorohanga District | Q4: South Waikato District | R4: Waitomo District | S4: Taupo District | T4: Western Bay Of Plenty District | U4: Tauranga City | V4: Rotorua District | W4: Whakatane District | X4: Kawerau District | Y4: Opotiki District | Z4: Gisborne District | AA4: Wairoa District | AB4: Hastings District | AC4: Napier City | AD4: Central Hawkes Bay District | AE4: New Plymouth District | AF4: Stratford District | AG4: South Taranaki District | AH4: Ruapehu District | AI4: Wanganui District | AJ4: Rangitikei District | AK4: Manawatu District | AL4: Palmerston North City | AM4: Tararua District | AN4: Horowhenua District | AO4: Kapiti Coast District | AP4: Porirua City | AQ4: Upper Hutt City | AR4: Hutt City | AS4: Wellington City | AT4: Masterton District | AU4: Carterton District | AV4: South Wairarapa District | AW4: Tasman District | AX4: Nelson City | AY4: Marlborough District | AZ4: Kaikoura District | BA4: Buller District | BB4: Grey District | BC4: Westland District | BD4: Hurunui District | BE4: Waimakariri District | BF4: Christchurch City | BG4: Selwyn District | BH4: Ashburton District | BI4: Timaru District | BJ4: Mackenzie District | BK4: Waimate District | BL4: Waitaki District | BM4: Central Otago District | BN4: Queenstown-Lakes District | BO4: Dunedin City | BP4: Clutha District | BQ4: Southland District | BR4: Gore District | BS4: Invercargill City | BT4: NZ | BV4: Auckland | BW4: Rodney local board area | BX4: Hibiscus and Bays local board area | BY4: Upper Harbour local board area | BZ4: Kaipatiki local board area | CA4: Devonport-Takapuna local board area | CB4: Henderson-Massey local board area | CC4: Waitakere Ranges local board area | CD4: Great Barrier local board area | CE4: Waiheke local board area | CF4: Waitemata local board area | CG4: Whau local board area | CH4: Albert-Eden local board area | CI4: Puketapapa local board area | CJ4: Orakei local board area | CK4: Maungakiekie-Tamaki local board area | CL4: Howick local board area | CM4: Mangere-Otahuhu local board area | CN4: Otara-Papatoetoe local board area | CO4: Manurewa local board area | CP4: Papakura local board area | CQ4: Franklin local board area
A6: Stats NZ | B6: 2001 | C6: 56400 | D6: 70000 | E6: 17950 | F6: =SUM(BW6:CA6) -> 283400 | G6: =CB6+CC6+CG6 -> 201300 | H6: =SUM(CD6:CJ6)-CG6 -> 273960 | I6: =SUM(CK6:CQ6) -> 459600 | J6: 25800 | K6: 18000 | L6: 53700 | M6: 30300 | N6: 121200 | O6: 40000 | P6: 9590 | Q6: 24200 | R6: 9780 | S6: 32500 | T6: 39000 | U6: 93500 | V6: 66900 | W6: 34100 | X6: 7290 | Y6: 9490 | Z6: 45500 | AA6: 9260 | AB6: 69600 | AC6: 55200 | AD6: 13200 | AE6: 68400 | AF6: 9110 | AG6: 28400 | AH6: 15000 | AI6: 44400 | AJ6: 15500 | AK6: 26300 | AL6: 77100 | AM6: 18350 | AN6: 30600 | AO6: 43600 | AP6: 49500 | AQ6: 37700 | AR6: 99100 | AS6: 171100 | AT6: 23200 | AU6: 7000 | AV6: 8940 | AW6: 42400 | AX6: 42900 | AY6: 40700 | AZ6: 3580 | BA6: 9860 | BB6: 13200 | BC6: 7990 | BD6: 10150 | BE6: 37900 | BF6: 335300 | BG6: 28300 | BH6: 26000 | BI6: 42800 | BJ6: 3790 | BK6: 7220 | BL6: 20500 | BM6: 14750 | BN6: 17850 | BO6: 119300 | BP6: 17550 | BQ6: 29400 | BR6: 12750 | BS6: 51100 | BT6: =SUM(C6:BS6) -> 3879310 | BV6: 1218300 | BW6: 44100 | BX6: 75100 | BY6: 33700 | BZ6: 78200 | CA6: 52300 | CB6: 90900 | CC6: 44200 | CD6: 1100 | CE6: 7560 | CF6: 52500 | CG6: 66200 | CH6: 90000 | CI6: 49800 | CJ6: 73000 | CK6: 66400 | CL6: 97300 | CM6: 64600 | CN6: 70400 | CO6: 69100 | CP6: 38900 | CQ6: 52900
B7: =B6+1 -> 2002 | C7: 56600 | D7: 71300 | E7: 18100 | F7: =SUM(BW7:CA7) -> 291400 | G7: =CB7+CC7+CG7 -> 207200 | H7: =SUM(CD7:CJ7)-CG7 -> 282670 | I7: =SUM(CK7:CQ7) -> 474600 | J7: 26000 | K7: 18050 | L7: 55000 | M7: 30400 | N7: 124000 | O7: 40600 | P7: 9560 | Q7: 24000 | R7: 9720 | S7: 32700 | T7: 39700 | U7: 96000 | V7: 67400 | W7: 34200 | X7: 7310 | Y7: 9470 | Z7: 45500 | AA7: 9190 | AB7: 70400 | AC7: 55500 | AD7: 13200 | AE7: 69000 | AF7: 9070 | AG7: 28100 | AH7: 14800 | AI7: 44300 | AJ7: 15450 | AK7: 26300 | AL7: 77800 | AM7: 18250 | AN7: 30600 | AO7: 44300 | AP7: 49800 | AQ7: 38100 | AR7: 99800 | AS7: 174400 | AT7: 23300 | AU7: 7050 | AV7: 8990 | AW7: 43200 | AX7: 43100 | AY7: 41200 | AZ7: 3620 | BA7: 9830 | BB7: 13200 | BC7: 8100 | BD7: 10250 | BE7: 39000 | BF7: 340500 | BG7: 29600 | BH7: 26300 | BI7: 43100 | BJ7: 3790 | BK7: 7230 | BL7: 20500 | BM7: 15200 | BN7: 19150 | BO7: 120200 | BP7: 17500 | BQ7: 29300 | BR7: 12650 | BS7: 51500 | BT7: 3947200 | BV7: 1255800 | BW7: 45400 | BX7: 77300 | BY7: 36400 | BZ7: 79300 | CA7: 53000 | CB7: 94000 | CC7: 44900 | CD7: 1080 | CE7: 7790 | CF7: 54100 | CG7: 68300 | CH7: 92700 | CI7: 51600 | CJ7: 75400 | CK7: 68300 | CL7: 102200 | CM7: 66400 | CN7: 71800 | CO7: 71800 | CP7: 39800 | CQ7: 54300
A8: Dataset: Subnational population estimates (TA, SA2), by age and sex, at 30 June 1996-2019 (2020 boundaries) | B8: =B7+1 -> 2003 | C8: 56900 | D8: 72700 | E8: 18250 | F8: 301100 | G8: 213300 | H8: 292800 | I8: 490400 | J8: 26200 | K8: 18150 | L8: 56300 | M8: 30600 | N8: 127100 | O8: 41400 | P8: 9490 | Q8: 23900 | R8: 9750 | S8: 33000 | T8: 40600 | U8: 99000 | V8: 67900 | W8: 34200 | X8: 7290 | Y8: 9460 | Z8: 45800 | AA8: 9070 | AB8: 71100 | AC8: 55900 | AD8: 13200 | AE8: 69700 | AF8: 9090 | AG8: 28000 | AH8: 14750 | AI8: 44100 | AJ8: 15450 | AK8: 26400 | AL8: 79000 | AM8: 18200 | AN8: 30600 | AO8: 45100 | AP8: 50300 | AQ8: 38500 | AR8: 100300 | AS8: 178800 | AT8: 23300 | AU8: 7120 | AV8: 8990 | AW8: 44100 | AX8: 43600 | AY8: 41800 | AZ8: 3660 | BA8: 9870 | BB8: 13250 | BC8: 8230 | BD8: 10350 | BE8: 40200 | BF8: 347600 | BG8: 30900 | BH8: 26800 | BI8: 43300 | BJ8: 3840 | BK8: 7280 | BL8: 20600 | BM8: 15700 | BN8: 20400 | BO8: 120900 | BP8: 17450 | BQ8: 29400 | BR8: 12650 | BS8: 52100 | BT8: 4026540 | BV8: 1297600 | BW8: 46800 | BX8: 80100 | BY8: 38900 | BZ8: 81100 | CA8: 54200 | CB8: 97200 | CC8: 45800 | CD8: 1050 | CE8: 8050 | CF8: 59100 | CG8: 70300 | CH8: 94400 | CI8: 52900 | CJ8: 77300 | CK8: 69600 | CL8: 107200 | CM8: 68300 | CN8: 73300 | CO8: 75200 | CP8: 40800 | CQ8: 56000
B9: 2004 | C9: 57000 | D9: 74100 | E9: 18350 | F9: 308600 | G9: 217200 | H9: 297970 | I9: 502200 | J9: 26400 | K9: 18200 | L9: 57300 | M9: 30900 | N9: 130000 | O9: 42100 | P9: 9410 | Q9: 23800 | R9: 9740 | S9: 33200 | T9: 41400 | U9: 101900 | V9: 68100 | W9: 34400 | X9: 7230 | Y9: 9440 | Z9: 45800 | AA9: 8920 | AB9: 71900 | AC9: 56200 | AD9: 13200 | AE9: 70100 | AF9: 9150 | AG9: 27700 | AH9: 14500 | AI9: 43900 | AJ9: 15350 | AK9: 26400 | AL9: 79900 | AM9: 18150 | AN9: 30600 | AO9: 45900 | AP9: 50500 | AQ9: 38900 | AR9: 100900 | AS9: 182100 | AT9: 23300 | AU9: 7170 | AV9: 9020 | AW9: 45000 | AX9: 44000 | AY9: 42500 | AZ9: 3700 | BA9: 9870 | BB9: 13300 | BC9: 8360 | BD9: 10550 | BE9: 41500 | BF9: 353200 | BG9: 32200 | BH9: 27200 | BI9: 43600 | BJ9: 3860 | BK9: 7340 | BL9: 20600 | BM9: 16150 | BN9: 21800 | BO9: 121600 | BP9: 17400 | BQ9: 29300 | BR9: 12600 | BS9: 52200 | BT9: 4086330 | BV9: 1326000 | BW9: 48200 | BX9: 82100 | BY9: 41200 | BZ9: 82300 | CA9: 54800 | CB9: 99700 | CC9: 46600 | CD9: 1020 | CE9: 8150 | CF9: 63600 | CG9: 70900 | CH9: 94800 | CI9: 53000 | CJ9: 77400 | CK9: 69400 | CL9: 111900 | CM9: 70000 | CN9: 74300 | CO9: 77500 | CP9: 41600 | CQ9: 57500
B10: 2005 | C10: 57200 | D10: 75300 | E10: 18450 | F10: 314600 | G10: 220500 | H10: 301430 | I10: 512500 | J10: 26500 | K10: 18250 | L10: 58400 | M10: 31100 | N10: 132300 | O10: 43000 | P10: 9360 | Q10: 23600 | R10: 9710 | S10: 33300 | T10: 42300 | U10: 104600 | V10: 68000 | W10: 34300 | X10: 7200 | Y10: 9330 | Z10: 45800 | AA10: 8800 | AB10: 72400 | AC10: 56500 | AD10: 13200 | AE10: 70400 | AF10: 9140 | AG10: 27400 | AH10: 14200 | AI10: 43800 | AJ10: 15250 | AK10: 26600 | AL10: 80200 | AM10: 18100 | AN10: 30600 | AO10: 46700 | AP10: 50400 | AQ10: 39200 | AR10: 101200 | AS10: 184500 | AT10: 23300 | AU10: 7200 | AV10: 9050 | AW10: 45500 | AX10: 44100 | AY10: 43000 | AZ10: 3710 | BA10: 9870 | BB10: 13400 | BC10: 8490 | BD10: 10650 | BE10: 42800 | BF10: 357200 | BG10: 33400 | BH10: 27600 | BI10: 43700 | BJ10: 3880 | BK10: 7340 | BL10: 20600 | BM10: 16550 | BN10: 22900 | BO10: 122000 | BP10: 17300 | BQ10: 29200 | BR10: 12500 | BS10: 52000 | BT10: 4132860 | BV10: 1348900 | BW10: 49700 | BX10: 83700 | BY10: 43200 | BZ10: 82900 | CA10: 55100 | CB10: 101600 | CC10: 47000 | CD10: 970 | CE10: 8160 | CF10: 66200 | CG10: 71900 | CH10: 95300 | CI10: 53200 | CJ10: 77600 | CK10: 69500 | CL10: 115700 | CM10: 71100 | CN10: 75300 | CO10: 79600 | CP10: 42400 | CQ10: 58900
B11: 2006 | C11: 57500 | D11: 76500 | E11: 18550 | F11: 320600 | G11: 224300 | H11: 304190 | I11: 523900 | J11: 26700 | K11: 18300 | L11: 59500 | M11: 31200 | N11: 134800 | O11: 43700 | P11: 9310 | Q11: 23200 | R11: 9680 | S11: 33400 | T11: 43000 | U11: 107000 | V11: 68100 | W11: 34500 | X11: 7150 | Y11: 9200 | Z11: 45900 | AA11: 8720 | AB11: 73200 | AC11: 56800 | AD11: 13250 | AE11: 71100 | AF11: 9120 | AG11: 27200 | AH11: 14050 | AI11: 43800 | AJ11: 15150 | AK11: 26800 | AL11: 80800 | AM11: 18050 | AN11: 30600 | AO11: 47500 | AP11: 50600 | AQ11: 39700 | AR11: 101300 | AS11: 187700 | AT11: 23200 | AU11: 7260 | AV11: 9120 | AW11: 45800 | AX11: 44300 | AY11: 43600 | AZ11: 3730 | BA11: 9940 | BB11: 13550 | BC11: 8620 | BD11: 10750 | BE11: 44100 | BF11: 361800 | BG11: 34900 | BH11: 28000 | BI11: 43800 | BJ11: 3900 | BK11: 7380 | BL11: 20700 | BM11: 17050 | BN11: 24100 | BO11: 122300 | BP11: 17200 | BQ11: 29200 | BR11: 12400 | BS11: 51600 | BT11: 4183920 | BV11: 1373000 | BW11: 51000 | BX11: 85200 | BY11: 45100 | BZ11: 83600 | CA11: 55700 | CB11: 103700 | CC11: 47500 | CD11: 940 | CE11: 8150 | CF11: 66600 | CG11: 73100 | CH11: 96200 | CI11: 53900 | CJ11: 78400 | CK11: 70400 | CL11: 119100 | CM11: 72500 | CN11: 76600 | CO11: 81600 | CP11: 43100 | CQ11: 60600
B12: 2007 | C12: 58100 | D12: 77800 | E12: 18800 | F12: 325500 | G12: 226400 | H12: 307780 | I12: 530700 | J12: 26800 | K12: 18350 | L12: 60600 | M12: 31300 | N12: 136900 | O12: 44600 | P12: 9280 | Q12: 23000 | R12: 9580 | S12: 33500 | T12: 43600 | U12: 109300 | V12: 67900 | W12: 34400 | X12: 7060 | Y12: 9160 | Z12: 45900 | AA12: 8610 | AB12: 73700 | AC12: 57200 | AD12: 13250 | AE12: 71700 | AF12: 9090 | AG12: 26900 | AH12: 13700 | AI12: 43600 | AJ12: 15000 | AK12: 26900 | AL12: 80800 | AM12: 17950 | AN12: 30600 | AO12: 48100 | AP12: 50800 | AQ12: 39900 | AR12: 101300 | AS12: 189500 | AT12: 23200 | AU12: 7390 | AV12: 9190 | AW12: 46200 | AX12: 44700 | AY12: 43800 | AZ12: 3730 | BA12: 10050 | BB12: 13600 | BC12: 8640 | BD12: 10800 | BE12: 45100 | BF12: 365600 | BG12: 36700 | BH12: 28600 | BI12: 44000 | BJ12: 3950 | BK12: 7430 | BL12: 20700 | BM12: 17350 | BN12: 25400 | BO12: 121900 | BP12: 17200 | BQ12: 29200 | BR12: 12300 | BS12: 51700 | BT12: 4223340 | BV12: 1390400 | BW12: 51900 | BX12: 86400 | BY12: 47200 | BZ12: 83900 | CA12: 56100 | CB12: 105000 | CC12: 47800 | CD12: 910 | CE12: 8170 | CF12: 68900 | CG12: 73600 | CH12: 96700 | CI12: 54300 | CJ12: 78800 | CK12: 70700 | CL12: 122400 | CM12: 72700 | CN12: 76800 | CO12: 82400 | CP12: 43700 | CQ12: 62000
B13: 2008 | C13: 58500 | D13: 78800 | E13: 19000 | F13: 329600 | G13: 228200 | H13: 310920 | I13: 536700 | J13: 26800 | K13: 18350 | L13: 61800 | M13: 31600 | N13: 138700 | O13: 45300 | P13: 9290 | Q13: 23000 | R13: 9580 | S13: 33500 | T13: 44100 | U13: 111300 | V13: 68000 | W13: 34300 | X13: 7020 | Y13: 9110 | Z13: 46000 | AA13: 8540 | AB13: 74100 | AC13: 57400 | AD13: 13300 | AE13: 72400 | AF13: 9100 | AG13: 26900 | AH13: 13450 | AI13: 43500 | AJ13: 14900 | AK13: 27200 | AL13: 80900 | AM13: 17750 | AN13: 30700 | AO13: 48600 | AP13: 51100 | AQ13: 40100 | AR13: 101100 | AS13: 190800 | AT13: 23300 | AU13: 7550 | AV13: 9290 | AW13: 46500 | AX13: 45200 | AY13: 44100 | AZ13: 3720 | BA13: 10100 | BB13: 13650 | BC13: 8660 | BD13: 10950 | BE13: 46000 | BF13: 368700 | BG13: 38200 | BH13: 29100 | BI13: 44000 | BJ13: 4010 | BK13: 7470 | BL13: 20800 | BM13: 17600 | BN13: 26300 | BO13: 121700 | BP13: 17300 | BQ13: 29300 | BR13: 12300 | BS13: 51700 | BT13: 4258810 | BV13: 1405500 | BW13: 52900 | BX13: 87300 | BY13: 48900 | BZ13: 84300 | CA13: 56200 | CB13: 106300 | CC13: 47900 | CD13: 880 | CE13: 8240 | CF13: 71200 | CG13: 74000 | CH13: 96900 | CI13: 54400 | CJ13: 79300 | CK13: 71100 | CL13: 124900 | CM13: 72900 | CN13: 77200 | CO13: 83200 | CP13: 44300 | CQ13: 63100
B14: 2009 | C14: 59000 | D14: 79900 | E14: 19350 | F14: 333500 | G14: 230800 | H14: 315080 | I14: 542500 | J14: 26900 | K14: 18400 | L14: 63000 | M14: 31900 | N14: 140900 | O14: 46100 | P14: 9350 | Q14: 23100 | R14: 9590 | S14: 33800 | T14: 44600 | U14: 113400 | V14: 68100 | W14: 34300 | X14: 6970 | Y14: 9090 | Z14: 46300 | AA14: 8520 | AB14: 74700 | AC14: 57900 | AD14: 13350 | AE14: 73300 | AF14: 9130 | AG14: 27100 | AH14: 13350 | AI14: 43500 | AJ14: 14850 | AK14: 27400 | AL14: 81500 | AM14: 17700 | AN14: 30800 | AO14: 49100 | AP14: 51700 | AQ14: 40400 | AR14: 101300 | AS14: 192500 | AT14: 23500 | AU14: 7700 | AV14: 9400 | AW14: 46900 | AX14: 45800 | AY14: 44400 | AZ14: 3720 | BA14: 10250 | BB14: 13750 | BC14: 8660 | BD14: 11150 | BE14: 46900 | BF14: 372300 | BG14: 39600 | BH14: 29600 | BI14: 44200 | BJ14: 4060 | BK14: 7520 | BL14: 20900 | BM14: 17800 | BN14: 26900 | BO14: 121900 | BP14: 17350 | BQ14: 29500 | BR14: 12350 | BS14: 52100 | BT14: 4302240 | BV14: 1421700 | BW14: 53800 | BX14: 88300 | BY14: 50100 | BZ14: 84800 | CA14: 56500 | CB14: 107900 | CC14: 48300 | CD14: 870 | CE14: 8310 | CF14: 73500 | CG14: 74600 | CH14: 97600 | CI14: 54800 | CJ14: 80000 | CK14: 71600 | CL14: 126900 | CM14: 73200 | CN14: 77900 | CO14: 83900 | CP14: 44800 | CQ14: 64200
B15: 2010 | C15: 59600 | D15: 81200 | E15: 19750 | F15: 338100 | G15: 233600 | H15: 319090 | I15: 548900 | J15: 27100 | K15: 18550 | L15: 64300 | M15: 32200 | N15: 143300 | O15: 46900 | P15: 9430 | Q15: 23200 | R15: 9590 | S15: 34200 | T15: 45200 | U15: 115400 | V15: 68400 | W15: 34400 | X15: 6950 | Y15: 9090 | Z15: 46700 | AA15: 8570 | AB15: 75600 | AC15: 58600 | AD15: 13450 | AE15: 74400 | AF15: 9150 | AG15: 27200 | AH15: 13150 | AI15: 43700 | AJ15: 14800 | AK15: 27700 | AL15: 82200 | AM15: 17750 | AN15: 31000 | AO15: 49700 | AP15: 52300 | AQ15: 40800 | AR15: 101600 | AS15: 193700 | AT15: 23700 | AU15: 7910 | AV15: 9540 | AW15: 47400 | AX15: 46500 | AY15: 44600 | AZ15: 3720 | BA15: 10350 | BB15: 13850 | BC15: 8640 | BD15: 11300 | BE15: 47600 | BF15: 376300 | BG15: 41000 | BH15: 30100 | BI15: 44500 | BJ15: 4130 | BK15: 7580 | BL15: 21000 | BM15: 18000 | BN15: 27500 | BO15: 122400 | BP15: 17400 | BQ15: 29700 | BR15: 12400 | BS15: 52600 | BT15: 4350240 | BV15: 1439600 | BW15: 54800 | BX15: 89300 | BY15: 51400 | BZ15: 85600 | CA15: 57000 | CB15: 109500 | CC15: 48700 | CD15: 910 | CE15: 8380 | CF15: 75500 | CG15: 75400 | CH15: 98400 | CI15: 55100 | CJ15: 80800 | CK15: 72100 | CL15: 129000 | CM15: 73600 | CN15: 78500 | CO15: 84900 | CP15: 45600 | CQ15: 65200
B16: 2011 | C16: 60100 | D16: 82100 | E16: 20200 | F16: 343500 | G16: 236400 | H16: 323440 | I16: 556200 | J16: 27200 | K16: 18650 | L16: 65400 | M16: 32400 | N16: 145600 | O16: 47700 | P16: 9500 | Q16: 23300 | R16: 9590 | S16: 34300 | T16: 45600 | U16: 117200 | V16: 68800 | W16: 34400 | X16: 6890 | Y16: 9070 | Z16: 46800 | AA16: 8530 | AB16: 76200 | AC16: 59000 | AD16: 13450 | AE16: 75400 | AF16: 9160 | AG16: 27400 | AH16: 12950 | AI16: 43800 | AJ16: 14700 | AK16: 28000 | AL16: 82800 | AM16: 17750 | AN16: 31000 | AO16: 50200 | AP16: 53000 | AQ16: 41300 | AR16: 101700 | AS16: 195400 | AT16: 24000 | AU16: 8130 | AV16: 9690 | AW16: 48200 | AX16: 47500 | AY16: 44700 | AZ16: 3760 | BA16: 10500 | BB16: 13900 | BC16: 8680 | BD16: 11550 | BE16: 49400 | BF16: 362300 | BG16: 42900 | BH16: 31000 | BI16: 44900 | BJ16: 4210 | BK16: 7680 | BL16: 21200 | BM16: 18150 | BN16: 28400 | BO16: 123100 | BP16: 17500 | BQ16: 30000 | BR16: 12450 | BS16: 53200 | BT16: 4383080 | BV16: 1459600 | BW16: 55800 | BX16: 90600 | BY16: 53100 | BZ16: 86500 | CA16: 57500 | CB16: 111100 | CC16: 49300 | CD16: 930 | CE16: 8510 | CF16: 77100 | CG16: 76000 | CH16: 99400 | CI16: 55700 | CJ16: 81800 | CK16: 72900 | CL16: 131100 | CM16: 74100 | CN16: 79300 | CO16: 86000 | CP16: 46500 | CQ16: 66300
B17: 2012 | C17: 60400 | D17: 82800 | E17: 20300 | F17: 348600 | G17: 238500 | H17: 327020 | I17: 562600 | J17: 27200 | K17: 18600 | L17: 66100 | M17: 32600 | N17: 148100 | O17: 48200 | P17: 9570 | Q17: 23200 | R17: 9490 | S17: 34600 | T17: 45500 | U17: 118300 | V17: 68600 | W17: 34300 | X17: 6850 | Y17: 8870 | Z17: 47000 | AA17: 8350 | AB17: 76400 | AC17: 59400 | AD17: 13350 | AE17: 76200 | AF17: 9230 | AG17: 27400 | AH17: 12600 | AI17: 43600 | AJ17: 14550 | AK17: 28200 | AL17: 83300 | AM17: 17600 | AN17: 31200 | AO17: 50400 | AP17: 53400 | AQ17: 41300 | AR17: 101200 | AS17: 196600 | AT17: 24100 | AU17: 8310 | AV17: 9710 | AW17: 48600 | AX17: 48200 | AY17: 44600 | AZ17: 3680 | BA17: 10650 | BB17: 13900 | BC17: 8560 | BD17: 11800 | BE17: 50500 | BF17: 355100 | BG17: 44400 | BH17: 31700 | BI17: 45100 | BJ17: 4280 | BK17: 7720 | BL17: 21300 | BM17: 18200 | BN17: 28800 | BO17: 123500 | BP17: 17300 | BQ17: 30200 | BR17: 12400 | BS17: 53200 | BT17: 4407390 | BV17: 1476500 | BW17: 56700 | BX17: 91800 | BY17: 54900 | BZ17: 87300 | CA17: 57900 | CB17: 112300 | CC17: 49900 | CD17: 960 | CE17: 8660 | CF17: 78500 | CG17: 76300 | CH17: 100100 | CI17: 56100 | CJ17: 82700 | CK17: 73300 | CL17: 133700 | CM17: 74500 | CN17: 79800 | CO17: 86600 | CP17: 47400 | CQ17: 67300
B18: 2013 | C18: 60600 | D18: 83700 | E18: 20500 | F18: 353600 | G18: 240900 | H18: 330880 | I18: 567800 | J18: 27300 | K18: 18600 | L18: 66500 | M18: 32900 | N18: 150200 | O18: 48700 | P18: 9590 | Q18: 23200 | R18: 9340 | S18: 34800 | T18: 45500 | U18: 119800 | V18: 68400 | W18: 34200 | X18: 6650 | Y18: 8780 | Z18: 47000 | AA18: 8300 | AB18: 76700 | AC18: 59600 | AD18: 13250 | AE18: 77100 | AF18: 9210 | AG18: 27500 | AH18: 12450 | AI18: 43500 | AJ18: 14550 | AK18: 28500 | AL18: 83500 | AM18: 17450 | AN18: 31200 | AO18: 50700 | AP18: 53700 | AQ18: 41300 | AR18: 101200 | AS18: 197500 | AT18: 24100 | AU18: 8490 | AV18: 9800 | AW18: 48800 | AX18: 48700 | AY18: 44700 | AZ18: 3640 | BA18: 10650 | BB18: 13700 | BC18: 8570 | BD18: 12000 | BE18: 52300 | BF18: 356700 | BG18: 46700 | BH18: 32300 | BI18: 45400 | BJ18: 4300 | BK18: 7810 | BL18: 21400 | BM18: 18500 | BN18: 29700 | BO18: 123500 | BP18: 17250 | BQ18: 30300 | BR18: 12400 | BS18: 53200 | BT18: 4441560 | BV18: 1493200 | BW18: 57300 | BX18: 94000 | BY18: 56800 | BZ18: 87000 | CA18: 58500 | CB18: 113500 | CC18: 50700 | CD18: 950 | CE18: 8630 | CF18: 81300 | CG18: 76700 | CH18: 100000 | CI18: 56300 | CJ18: 83700 | CK18: 73700 | CL18: 135000 | CM18: 75300 | CN18: 80300 | CO18: 87000 | CP18: 48200 | CQ18: 68300
B19: 2014 | C19: 61900 | D19: 85400 | E19: 20900 | F19: 360100 | G19: 245300 | H19: 334600 | I19: 580400 | J19: 27900 | K19: 18900 | L19: 68200 | M19: 33300 | N19: 153200 | O19: 49500 | P19: 9720 | Q19: 23400 | R19: 9400 | S19: 35300 | T19: 46700 | U19: 123000 | V19: 69600 | W19: 34700 | X19: 6800 | Y19: 8910 | Z19: 47500 | AA19: 8390 | AB19: 78200 | AC19: 60500 | AD19: 13550 | AE19: 78200 | AF19: 9300 | AG19: 27600 | AH19: 12500 | AI19: 44100 | AJ19: 14700 | AK19: 29100 | AL19: 84300 | AM19: 17650 | AN19: 31700 | AO19: 51700 | AP19: 54600 | AQ19: 42100 | AR19: 102400 | AS19: 199900 | AT19: 24500 | AU19: 8710 | AV19: 9990 | AW19: 49700 | AX19: 49600 | AY19: 45400 | AZ19: 3740 | BA19: 10550 | BB19: 13700 | BC19: 8620 | BD19: 12200 | BE19: 54300 | BF19: 358000 | BG19: 49600 | BH19: 32800 | BI19: 45800 | BJ19: 4440 | BK19: 7870 | BL19: 21700 | BM19: 18950 | BN19: 31300 | BO19: 124900 | BP19: 17350 | BQ19: 30600 | BR19: 12450 | BS19: 53800 | BT19: 4515690 | BV19: 1520300 | BW19: 58700 | BX19: 96400 | BY19: 58200 | BZ19: 88000 | CA19: 58800 | CB19: 115700 | CC19: 51400 | CD19: 960 | CE19: 8740 | CF19: 82200 | CG19: 78200 | CH19: 100800 | CI19: 57300 | CJ19: 84600 | CK19: 74800 | CL19: 137800 | CM19: 76700 | CN19: 81900 | CO19: 88900 | CP19: 50600 | CQ19: 69700
B20: 2015 | C20: 63300 | D20: 87200 | E20: 21500 | F20: 368600 | G20: 249900 | H20: 338860 | I20: 595600 | J20: 28500 | K20: 19250 | L20: 70400 | M20: 33700 | N20: 156800 | O20: 50900 | P20: 9900 | Q20: 23800 | R20: 9470 | S20: 35900 | T20: 47900 | U20: 126800 | V20: 70900 | W20: 35300 | X20: 6960 | Y20: 9100 | Z20: 48100 | AA20: 8490 | AB20: 79900 | AC20: 61400 | AD20: 13800 | AE20: 79500 | AF20: 9420 | AG20: 27900 | AH20: 12550 | AI20: 44800 | AJ20: 14900 | AK20: 29600 | AL20: 85300 | AM20: 17850 | AN20: 32200 | AO20: 52600 | AP20: 55600 | AQ20: 42900 | AR20: 103800 | AS20: 202900 | AT20: 24900 | AU20: 8880 | AV20: 10200 | AW20: 50700 | AX20: 50500 | AY20: 46200 | AZ20: 3840 | BA20: 10400 | BB20: 13750 | BC20: 8670 | BD20: 12450 | BE20: 56800 | BF20: 365600 | BG20: 53100 | BH20: 33300 | BI20: 46300 | BJ20: 4550 | BK20: 7950 | BL20: 22000 | BM20: 19550 | BN20: 33400 | BO20: 126600 | BP20: 17550 | BQ20: 30900 | BR20: 12550 | BS20: 54300 | BT20: 4608990 | BV20: 1552800 | BW20: 60600 | BX20: 99000 | BY20: 60600 | BZ20: 89100 | CA20: 59300 | CB20: 118100 | CC20: 52100 | CD20: 960 | CE20: 8900 | CF20: 83500 | CG20: 79700 | CH20: 101500 | CI20: 58300 | CJ20: 85700 | CK20: 76000 | CL20: 141500 | CM20: 78100 | CN20: 84200 | CO20: 91500 | CP20: 53100 | CQ20: 71200
B21: 2016 | C21: 64900 | D21: 89300 | E21: 22200 | F21: 378200 | G21: 254700 | H21: 344160 | I21: 612800 | J21: 29100 | K21: 19700 | L21: 72600 | M21: 34200 | N21: 160800 | O21: 52200 | P21: 10150 | Q21: 24100 | R21: 9580 | S21: 36800 | T21: 49400 | U21: 131100 | V21: 72300 | W21: 35900 | X21: 7120 | Y21: 9300 | Z21: 48800 | AA21: 8590 | AB21: 81600 | AC21: 62400 | AD21: 14150 | AE21: 80900 | AF21: 9560 | AG21: 28100 | AH21: 12650 | AI21: 45600 | AJ21: 15100 | AK21: 30100 | AL21: 86400 | AM21: 18100 | AN21: 32900 | AO21: 53500 | AP21: 56800 | AQ21: 43800 | AR21: 105700 | AS21: 206000 | AT21: 25400 | AU21: 9060 | AV21: 10400 | AW21: 51900 | AX21: 51400 | AY21: 47100 | AZ21: 3950 | BA21: 10300 | BB21: 13850 | BC21: 8780 | BD21: 12700 | BE21: 58700 | BF21: 374600 | BG21: 56400 | BH21: 33900 | BI21: 47000 | BJ21: 4720 | BK21: 8060 | BL21: 22400 | BM21: 20200 | BN21: 36100 | BO21: 128400 | BP21: 17750 | BQ21: 31400 | BR21: 12700 | BS21: 54900 | BT21: 4713430 | BV21: 1589700 | BW21: 63200 | BX21: 102100 | BY21: 62900 | BZ21: 90300 | CA21: 59700 | CB21: 120500 | CC21: 52800 | CD21: 970 | CE21: 9090 | CF21: 85700 | CG21: 81400 | CH21: 102500 | CI21: 59300 | CJ21: 86600 | CK21: 77800 | CL21: 144900 | CM21: 79800 | CN21: 86300 | CO21: 95100 | CP21: 55800 | CQ21: 73100
B22: 2017 | C22: 66500 | D22: 91800 | E22: 23000 | F22: 388600 | G22: 259000 | H22: 348410 | I22: 628900 | J22: 29900 | K22: 20200 | L22: 75600 | M22: 34800 | N22: 165100 | O22: 53700 | P22: 10300 | Q22: 24500 | R22: 9610 | S22: 37700 | T22: 51500 | U22: 136600 | V22: 73700 | W22: 36600 | X22: 7300 | Y22: 9510 | Z22: 49200 | AA22: 8670 | AB22: 83200 | AC22: 63400 | AD22: 14400 | AE22: 82200 | AF22: 9650 | AG22: 28300 | AH22: 12700 | AI22: 46200 | AJ22: 15300 | AK22: 30600 | AL22: 87300 | AM22: 18300 | AN22: 33700 | AO22: 54300 | AP22: 57800 | AQ22: 44600 | AR22: 107500 | AS22: 208400 | AT22: 25800 | AU22: 9240 | AV22: 10650 | AW22: 53000 | AX22: 52000 | AY22: 47900 | AZ22: 3990 | BA22: 10100 | BB22: 13800 | BC22: 8790 | BD22: 12850 | BE22: 60300 | BF22: 380400 | BG22: 60000 | BH22: 34400 | BI22: 47400 | BJ22: 4900 | BK22: 8120 | BL22: 22700 | BM22: 21100 | BN22: 39000 | BO22: 129900 | BP22: 17850 | BQ22: 31600 | BR22: 12750 | BS22: 55500 | BT22: 4812590 | BV22: 1625000 | BW22: 66100 | BX22: 105600 | BY22: 64900 | BZ22: 91900 | CA22: 60100 | CB22: 122600 | CC22: 53600 | CD22: 970 | CE22: 9240 | CF22: 87300 | CG22: 82800 | CH22: 103400 | CI22: 60100 | CJ22: 87400 | CK22: 79200 | CL22: 147800 | CM22: 81500 | CN22: 88400 | CO22: 98000 | CP22: 58700 | CQ22: 75300
B23: 2018 | C23: 67900 | D23: 94100 | E23: 23700 | F23: 397800 | G23: 262900 | H23: 351120 | I23: 642800 | J23: 30700 | K23: 20700 | L23: 78200 | M23: 35300 | N23: 168600 | O23: 55000 | P23: 10500 | Q23: 24800 | R23: 9630 | S23: 38600 | T23: 53400 | U23: 142000 | V23: 74800 | W23: 37100 | X23: 7460 | Y23: 9670 | Z23: 49500 | AA23: 8720 | AB23: 84700 | AC23: 64200 | AD23: 14650 | AE23: 83300 | AF23: 9710 | AG23: 28300 | AH23: 12750 | AI23: 46800 | AJ23: 15450 | AK23: 31100 | AL23: 88300 | AM23: 18450 | AN23: 34500 | AO23: 55200 | AP23: 58900 | AQ23: 45400 | AR23: 108600 | AS23: 211200 | AT23: 26400 | AU23: 9510 | AV23: 10900 | AW23: 54000 | AX23: 52700 | AY23: 48700 | AZ23: 4060 | BA23: 9850 | BB23: 13750 | BC23: 8830 | BD23: 12950 | BE23: 61300 | BF23: 383800 | BG23: 63300 | BH23: 34600 | BI23: 47600 | BJ23: 5100 | BK23: 8120 | BL23: 22900 | BM23: 22200 | BN23: 42500 | BO23: 131200 | BP23: 18050 | BQ23: 31900 | BR23: 12800 | BS23: 55900 | BT23: 4899430 | BV23: 1654800 | BW23: 69100 | BX23: 108500 | BY23: 66800 | BZ23: 92900 | CA23: 60500 | CB23: 124600 | CC23: 54200 | CD23: 960 | CE23: 9360 | CF23: 88500 | CG23: 84100 | CH23: 103700 | CI23: 60900 | CJ23: 87700 | CK23: 80500 | CL23: 149400 | CM23: 82700 | CN23: 90500 | CO23: 100900 | CP23: 61100 | CQ23: 77700
A25: Stats NZ Projections Based on 2013 Census | B25: 2013 | C25: 60600 | D25: 83700 | E25: 20500 | F25: =SUM(BW25:CA25) -> 353600 | G25: =CB25+CC25+CG25 -> 240900 | H25: =SUM(CD25:CJ25)-CG25 -> 330880 | I25: =SUM(CK25:CQ25) -> 567800 | J25: 27300 | K25: 18600 | L25: 66500 | M25: 32900 | N25: 150200 | O25: 48700 | P25: 9590 | Q25: 23200 | R25: 9340 | S25: 34800 | T25: 45500 | U25: 119800 | V25: 68400 | W25: 34200 | X25: 6650 | Y25: 8780 | Z25: 47000 | AA25: 8300 | AB25: 76700 | AC25: 59600 | AD25: 13250 | AE25: 77100 | AF25: 9210 | AG25: 27500 | AH25: 12450 | AI25: 43500 | AJ25: 14550 | AK25: 28500 | AL25: 83500 | AM25: 17450 | AN25: 31200 | AO25: 50700 | AP25: 53700 | AQ25: 41300 | AR25: 101200 | AS25: 197500 | AT25: 24100 | AU25: 8490 | AV25: 9800 | AW25: 48800 | AX25: 48700 | AY25: 44700 | AZ25: 3640 | BA25: 10650 | BB25: 13700 | BC25: 8570 | BD25: 12000 | BE25: 52300 | BF25: 356700 | BG25: 46700 | BH25: 32300 | BI25: 45400 | BJ25: 4300 | BK25: 7810 | BL25: 21400 | BM25: 18500 | BN25: 29700 | BO25: 123500 | BP25: 17250 | BQ25: 30300 | BR25: 12400 | BS25: 53200 | BT25: 4442160 | BV25: 1493200 | BW25: 57300 | BX25: 94000 | BY25: 56800 | BZ25: 87000 | CA25: 58500 | CB25: 113500 | CC25: 50700 | CD25: 950 | CE25: 8630 | CF25: 81300 | CG25: 76700 | CH25: 100000 | CI25: 56300 | CJ25: 83700 | CK25: 73700 | CL25: 135000 | CM25: 75300 | CN25: 80300 | CO25: 87000 | CP25: 48200 | CQ25: 68300
B26: 2018 | C26: 62900 | D26: 90600 | E26: 22600 | F26: =SUM(BW26:CA26) -> 402900 | G26: =CB26+CC26+CG26 -> 267300 | H26: =SUM(CD26:CJ26)-CG26 -> 391540 | I26: =SUM(CK26:CQ26) -> 638200 | J26: 29000 | K26: 20200 | L26: 75200 | M26: 35000 | N26: 168700 | O26: 53900 | P26: 10300 | Q26: 24000 | R26: 9830 | S26: 37200 | T26: 49500 | U26: 134600 | V26: 71800 | W26: 35800 | X26: 6840 | Y26: 8800 | Z26: 48500 | AA26: 8140 | AB26: 80000 | AC26: 62100 | AD26: 13850 | AE26: 81900 | AF26: 9370 | AG26: 27900 | AH26: 12600 | AI26: 44200 | AJ26: 14950 | AK26: 30700 | AL26: 88200 | AM26: 17500 | AN26: 32200 | AO26: 53100 | AP26: 56600 | AQ26: 43400 | AR26: 105000 | AS26: 212800 | AT26: 25000 | AU26: 9070 | AV26: 10250 | AW26: 51300 | AX26: 51800 | AY26: 46000 | AZ26: 3670 | BA26: 10100 | BB26: 13600 | BC26: 8850 | BD26: 12950 | BE26: 60900 | BF26: 387200 | BG26: 61900 | BH26: 34700 | BI26: 47400 | BJ26: 4680 | BK26: 8040 | BL26: 22300 | BM26: 20500 | BN26: 38300 | BO26: 129000 | BP26: 17600 | BQ26: 31400 | BR26: 12500 | BS26: 55300 | BT26: 4864640 | BV26: 1699900 | BW26: 66800 | BX26: 109000 | BY26: 69100 | BZ26: 94900 | CA26: 63100 | CB26: 125000 | CC26: 55500 | CD26: 980 | CE26: 9560 | CF26: 114000 | CG26: 86800 | CH26: 110200 | CI26: 63700 | CJ26: 93100 | CK26: 82700 | CL26: 153700 | CM26: 82900 | CN26: 88900 | CO26: 96600 | CP26: 56200 | CQ26: 77200
B27: 2023 | C27: 64100 | D27: 95500 | E27: 23600 | F27: 443300 | G27: 290000 | H27: 430600 | I27: 695300 | J27: 29400 | K27: 20700 | L27: 81700 | M27: 35900 | N27: 182100 | O27: 57200 | P27: 10850 | Q27: 24000 | R27: 9770 | S27: 38100 | T27: 51800 | U27: 145800 | V27: 73400 | W27: 36200 | X27: 6630 | Y27: 8550 | Z27: 49400 | AA27: 7890 | AB27: 82100 | AC27: 63400 | AD27: 13900 | AE27: 85100 | AF27: 9440 | AG27: 28100 | AH27: 12100 | AI27: 44400 | AJ27: 14900 | AK27: 31900 | AL27: 91400 | AM27: 17300 | AN27: 32500 | AO27: 54700 | AP27: 58300 | AQ27: 44900 | AR27: 106800 | AS27: 222600 | AT27: 25500 | AU27: 9330 | AV27: 10500 | AW27: 53000 | AX27: 53700 | AY27: 46900 | AZ27: 3690 | BA27: 10000 | BB27: 13550 | BC27: 8910 | BD27: 13450 | BE27: 66800 | BF27: 408800 | BG27: 71900 | BH27: 36300 | BI27: 48500 | BJ27: 4790 | BK27: 8190 | BL27: 22800 | BM27: 21400 | BN27: 44000 | BO27: 132000 | BP27: 17550 | BQ27: 31800 | BR27: 12400 | BS27: 55900 | BT27: 5157900 | BV27: 1859300 | BW27: 76100 | BX27: 119900 | BY27: 80500 | BZ27: 100300 | CA27: 66500 | CB27: 136100 | CC27: 58900 | CD27: 1000 | CE27: 10100 | CF27: 132700 | CG27: 95000 | CH27: 117800 | CI27: 68900 | CJ27: 100100 | CK27: 91700 | CL27: 167300 | CM27: 89000 | CN27: 95800 | CO27: 101700 | CP27: 63200 | CQ27: 86600
B28: 2028 | C28: 64900 | D28: 99200 | E28: 24400 | F28: 478100 | G28: 310900 | H28: 458860 | I28: 742200 | J28: 29600 | K28: 20900 | L28: 87200 | M28: 36500 | N28: 193500 | O28: 59900 | P28: 11000 | Q28: 23800 | R28: 9650 | S28: 38700 | T28: 53800 | U28: 154900 | V28: 74000 | W28: 36400 | X28: 6370 | Y28: 8220 | Z28: 50000 | AA28: 7610 | AB28: 83900 | AC28: 64400 | AD28: 13800 | AE28: 88000 | AF28: 9490 | AG28: 28200 | AH28: 11500 | AI28: 44400 | AJ28: 14750 | AK28: 32900 | AL28: 94200 | AM28: 17000 | AN28: 32600 | AO28: 56200 | AP28: 59500 | AQ28: 46100 | AR28: 107800 | AS28: 230500 | AT28: 25800 | AU28: 9530 | AV28: 10650 | AW28: 54300 | AX28: 55300 | AY28: 47400 | AZ28: 3680 | BA28: 9910 | BB28: 13450 | BC28: 8910 | BD28: 13850 | BE28: 71500 | BF28: 423800 | BG28: 79200 | BH28: 37800 | BI28: 49400 | BJ28: 4880 | BK28: 8330 | BL28: 23300 | BM28: 22200 | BN28: 47700 | BO28: 133900 | BP28: 17500 | BQ28: 32100 | BR28: 12300 | BS28: 56300 | BT28: 5389450 | BV28: 1990100 | BW28: 84600 | BX28: 128900 | BY28: 91200 | BZ28: 103900 | CA28: 69500 | CB28: 147400 | CC28: 61100 | CD28: 1010 | CE28: 10650 | CF28: 144600 | CG28: 102400 | CH28: 123600 | CI28: 73200 | CJ28: 105800 | CK28: 99900 | CL28: 177500 | CM28: 94300 | CN28: 100900 | CO28: 104100 | CP28: 69200 | CQ28: 96300
B29: 2033 | C29: 65200 | D29: 102400 | E29: 24900 | F29: 510800 | G29: 330800 | H29: 485330 | I29: 785200 | J29: 29500 | K29: 20900 | L29: 92400 | M29: 36900 | N29: 204400 | O29: 62300 | P29: 11000 | Q29: 23300 | R29: 9430 | S29: 39000 | T29: 55500 | U29: 163600 | V29: 74100 | W29: 36300 | X29: 6030 | Y29: 7790 | Z29: 50300 | AA29: 7250 | AB29: 85200 | AC29: 65100 | AD29: 13550 | AE29: 90400 | AF29: 9510 | AG29: 28000 | AH29: 10750 | AI29: 44000 | AJ29: 14450 | AK29: 33800 | AL29: 96700 | AM29: 16600 | AN29: 32400 | AO29: 57500 | AP29: 60300 | AQ29: 47100 | AR29: 108100 | AS29: 238000 | AT29: 25900 | AU29: 9670 | AV29: 10800 | AW29: 55300 | AX29: 56500 | AY29: 47600 | AZ29: 3640 | BA29: 9800 | BB29: 13250 | BC29: 8820 | BD29: 14200 | BE29: 75800 | BF29: 437500 | BG29: 86200 | BH29: 39200 | BI29: 50000 | BJ29: 4930 | BK29: 8420 | BL29: 23600 | BM29: 22900 | BN29: 51100 | BO29: 135300 | BP29: 17300 | BQ29: 32200 | BR29: 12100 | BS29: 56300 | BT29: 5595040 | BV29: 2112000 | BW29: 92900 | BX29: 137300 | BY29: 101600 | BZ29: 106700 | CA29: 72300 | CB29: 158400 | CC29: 62900 | CD29: 1030 | CE29: 11100 | CF29: 156000 | CG29: 109500 | CH29: 129000 | CI29: 77100 | CJ29: 111100 | CK29: 107800 | CL29: 186600 | CM29: 99000 | CN29: 105400 | CO29: 105400 | CP29: 75000 | CQ29: 106000
B30: 2038 | C30: 64900 | D30: 105000 | E30: 25200 | F30: 540900 | G30: 349400 | H30: 509250 | I30: 823300 | J30: 29000 | K30: 20700 | L30: 97200 | M30: 37100 | N30: 214700 | O30: 64300 | P30: 10950 | Q30: 22600 | R30: 9120 | S30: 39100 | T30: 56900 | U30: 171700 | V30: 73600 | W30: 35800 | X30: 5620 | Y30: 7260 | Z30: 50200 | AA30: 6810 | AB30: 86000 | AC30: 65300 | AD30: 13150 | AE30: 92400 | AF30: 9470 | AG30: 27800 | AH30: 9920 | AI30: 43400 | AJ30: 14000 | AK30: 34400 | AL30: 98800 | AM30: 16050 | AN30: 32000 | AO30: 58500 | AP30: 60600 | AQ30: 47700 | AR30: 107700 | AS30: 244600 | AT30: 25800 | AU30: 9720 | AV30: 10850 | AW30: 55800 | AX30: 57400 | AY30: 47500 | AZ30: 3580 | BA30: 9670 | BB30: 12950 | BC30: 8680 | BD30: 14400 | BE30: 79600 | BF30: 449100 | BG30: 92900 | BH30: 40500 | BI30: 50200 | BJ30: 4980 | BK30: 8480 | BL30: 23900 | BM30: 23300 | BN30: 54300 | BO30: 136200 | BP30: 17000 | BQ30: 32100 | BR30: 11800 | BS30: 56000 | BT30: 5769730 | BV30: 2222700 | BW30: 100700 | BX30: 144800 | BY30: 111700 | BZ30: 109000 | CA30: 74700 | CB30: 169100 | CC30: 64200 | CD30: 1050 | CE30: 11400 | CF30: 166600 | CG30: 116100 | CH30: 133900 | CI30: 80500 | CJ30: 115800 | CK30: 115200 | CL30: 194500 | CM30: 103100 | CN30: 109100 | CO30: 105500 | CP30: 80600 | CQ30: 115300
B31: 2043 | C31: 64200 | D31: 107300 | E31: 25200 | F31: 569300 | G31: 367500 | H31: 531120 | I31: 858100 | J31: 28400 | K31: 20300 | L31: 101700 | M31: 37000 | N31: 224800 | O31: 65900 | P31: 10850 | Q31: 21700 | R31: 8760 | S31: 39000 | T31: 57900 | U31: 179500 | V31: 72600 | W31: 35100 | X31: 5180 | Y31: 6670 | Z31: 49900 | AA31: 6310 | AB31: 86300 | AC31: 65400 | AD31: 12700 | AE31: 94100 | AF31: 9420 | AG31: 27400 | AH31: 8980 | AI31: 42500 | AJ31: 13550 | AK31: 34800 | AL31: 100700 | AM31: 15350 | AN31: 31500 | AO31: 59400 | AP31: 60500 | AQ31: 48100 | AR31: 106700 | AS31: 250400 | AT31: 25600 | AU31: 9740 | AV31: 10850 | AW31: 55800 | AX31: 58000 | AY31: 47200 | AZ31: 3510 | BA31: 9500 | BB31: 12600 | BC31: 8500 | BD31: 14550 | BE31: 83100 | BF31: 459100 | BG31: 99500 | BH31: 41900 | BI31: 50200 | BJ31: 5030 | BK31: 8540 | BL31: 24100 | BM31: 23600 | BN31: 57400 | BO31: 136500 | BP31: 16500 | BQ31: 32000 | BR31: 11450 | BS31: 55500 | BT31: 5922980 | BV31: 2326200 | BW31: 108000 | BX31: 151900 | BY31: 121400 | BZ31: 111100 | CA31: 76900 | CB31: 179700 | CC31: 65200 | CD31: 1070 | CE31: 11650 | CF31: 176700 | CG31: 122600 | CH31: 138100 | CI31: 83600 | CJ31: 120000 | CK31: 122300 | CL31: 201600 | CM31: 106600 | CN31: 112500 | CO31: 104800 | CP31: 86100 | CQ31: 124200
A33: Revised on 2018 Census | B33: 2018 | C33: =C23 -> 67900 | D33: =D23 -> 94100 | E33: 23700 | F33: 397800 | G33: 262900 | H33: 351120 | I33: 642800 | J33: 30700 | K33: 20700 | L33: 78200 | M33: 35300 | N33: 168600 | O33: 55000 | P33: 10500 | Q33: 24800 | R33: 9630 | S33: 38600 | T33: 53400 | U33: 142000 | V33: 74800 | W33: 37100 | X33: 7460 | Y33: 9670 | Z33: 49500 | AA33: 8720 | AB33: 84700 | AC33: 64200 | AD33: 14650 | AE33: 83300 | AF33: 9710 | AG33: 28300 | AH33: 12750 | AI33: 46800 | AJ33: 15450 | AK33: 31100 | AL33: 88300 | AM33: 18450 | AN33: 34500 | AO33: 55200 | AP33: 58900 | AQ33: 45400 | AR33: 108600 | AS33: 211200 | AT33: 26400 | AU33: 9510 | AV33: 10900 | AW33: 54000 | AX33: 52700 | AY33: 48700 | AZ33: 4060 | BA33: 9850 | BB33: 13750 | BC33: 8830 | BD33: 12950 | BE33: 61300 | BF33: 383800 | BG33: 63300 | BH33: 34600 | BI33: 47600 | BJ33: 5100 | BK33: 8120 | BL33: 22900 | BM33: 22200 | BN33: 42500 | BO33: 131200 | BP33: =BP23 -> 18050 | BQ33: 31900 | BR33: 12800 | BS33: 55900 | BT33: 4899430 | BV33: 1654800 | BW33: 69100 | BX33: 108500 | BY33: 66800 | BZ33: 92900 | CA33: 60500 | CB33: 124600 | CC33: 54200 | CD33: 960 | CE33: 9360 | CF33: 88500 | CG33: 84100 | CH33: 103700 | CI33: 60900 | CJ33: 87700 | CK33: 80500 | CL33: 149400 | CM33: 82700 | CN33: 90500 | CO33: 100900 | CP33: 61100 | CQ33: 77700
A34: Estimated Projections Using Stats NZ Revision for 2018 | B34: 2023 | C34: =C27/C$26*C$33 -> 69195.38951 | D34: =D27/D$26*D$33 -> 99189.2936 | E34: 24748.67257 | F34: 437688.6076 | G34: 285226.3374 | H34: 386147.7039 | I34: 700311.5638 | J34: 31123.44828 | K34: 21212.37624 | L34: 84959.30851 | M34: 36207.71429 | N34: 181992.0569 | O34: 58367.34694 | P34: 11060.67961 | Q34: 24800 | R34: 9571.220753 | S34: 39533.87097 | T34: 55881.21212 | U34: 153815.7504 | V34: 76466.85237 | W34: 37514.52514 | X34: 7230.964912 | Y34: 9395.284091 | Z34: 50418.5567 | AA34: 8452.186732 | AB34: 86923.375 | AC34: 65543.96135 | AD34: 14702.88809 | AE34: 86554.70085 | AF34: 9782.540021 | AG34: 28502.86738 | AH34: 12244.04762 | AI34: 47011.76471 | AJ34: 15398.32776 | AK34: 32315.63518 | AL34: 91503.62812 | AM34: 18239.14286 | AN34: 34821.42857 | AO34: 56863.27684 | AP34: 60669.08127 | AQ34: 46969.12442 | AR34: 110461.7143 | AS34: 220926.3158 | AT34: 26928 | AU34: 9782.61301 | AV34: 11165.85366 | AW34: 55789.47368 | AX34: 54633.01158 | AY34: 49652.82609 | AZ34: 4082.125341 | BA34: 9752.475248 | BB34: 13699.44853 | BC34: 8889.864407 | BD34: 13450 | BE34: 67238.75205 | BF34: 405210.3306 | BG34: 73526.17124 | BH34: 36195.38905 | BI34: 48704.64135 | BJ34: 5219.871795 | BK34: 8271.492537 | BL34: 23413.45291 | BM34: 23174.63415 | BN34: 48825.06527 | BO34: 134251.1628 | BP34: =BP27/BP$26*BP$33 -> 17998.72159 | BQ34: 32306.36943 | BR34: 12697.6 | BS34: 56506.50995 | BT34: 5194787.281
B35: 2028 | C35: =C28/C$26*C$33 -> 70058.98251 | D35: 103032.2296 | E35: 25587.61062 | F35: 472048.1013 | G35: 305782.3045 | H35: 411490.3284 | I35: 747549.6083 | J35: 31335.17241 | K35: 21417.32673 | L35: 90678.7234 | M35: 36812.85714 | N35: 193385.2993 | O35: 61122.44898 | P35: 11213.59223 | Q35: 24593.33333 | R35: 9453.662258 | S35: 40156.45161 | T35: 58038.78788 | U35: 163416.0475 | V35: 77091.92201 | W35: 37721.78771 | X35: 6947.397661 | Y35: 9032.659091 | Z35: 51030.92784 | AA35: 8152.235872 | AB35: 88829.125 | AC35: 66577.77778 | AD35: 14597.11191 | AE35: 89504.2735 | AF35: 9834.354322 | AG35: 28604.30108 | AH35: 11636.90476 | AI35: 47011.76471 | AJ35: 15243.31104 | AK35: 33328.6645 | AL35: 94306.80272 | AM35: 17922.85714 | AN35: 34928.57143 | AO35: 58422.59887 | AP35: 61917.84452 | AQ35: 48224.42396 | AR35: 111496 | AS35: 228766.9173 | AT35: 27244.8 | AU35: 9992.315325 | AV35: 11325.36585 | AW35: 57157.89474 | AX35: 56260.81081 | AY35: 50182.17391 | AZ35: 4071.06267 | BA35: 9664.70297 | BB35: 13598.34559 | BC35: 8889.864407 | BD35: 13850 | BE35: 71969.62233 | BF35: 420078.6157 | BG35: 80991.27625 | BH35: 37691.06628 | BI35: 49608.43882 | BJ35: 5317.948718 | BK35: 8412.885572 | BL35: 23926.90583 | BM35: 24040.97561 | BN35: 52930.8094 | BO35: 136183.5659 | BP35: 17947.44318 | BQ35: 32611.1465 | BR35: 12595.2 | BS35: 56910.84991 | BT35: 5427993.236
B36: 2033 | C36: 70382.82989 | D36: 106355.8499 | E36: 26111.9469 | F36: 504334.1772 | G36: 325354.7325 | H36: 435227.7407 | I36: 790859.5425 | J36: 31229.31034 | K36: 21417.32673 | L36: 96086.17021 | M36: 37216.28571 | N36: 204278.8382 | O36: 63571.42857 | P36: 11213.59223 | Q36: 24076.66667 | R36: 9238.138352 | S36: 40467.74194 | T36: 59872.72727 | U36: 172594.3536 | V36: 77196.10028 | W36: 37618.15642 | X36: 6576.578947 | Y36: 8560.147727 | Z36: 51337.1134 | AA36: 7766.584767 | AB36: 90205.5 | AC36: 67301.44928 | AD36: 14332.67148 | AE36: 91945.29915 | AF36: 9855.080043 | AG36: 28401.43369 | AH36: 10877.97619 | AI36: 46588.23529 | AJ36: 14933.27759 | AK36: 34240.39088 | AL36: 96809.63719 | AM36: 17501.14286 | AN36: 34714.28571 | AO36: 59774.0113 | AP36: 62750.35336 | AQ36: 49270.50691 | AR36: 111806.2857 | AS36: 236210.5263 | AT36: 27350.4 | AU36: 10139.10695 | AV36: 11484.87805 | AW36: 58210.52632 | AX36: 57481.66023 | AY36: 50393.91304 | AZ36: 4026.811989 | BA36: 9557.425743 | BB36: 13396.13971 | BC36: 8800.067797 | BD36: 14200 | BE36: 76297.86535 | BF36: 433658.3161 | BG36: 88149.59612 | BH36: 39087.0317 | BI36: 50210.97046 | BJ36: 5372.435897 | BK36: 8503.781095 | BL36: 24234.97758 | BM36: 24799.02439 | BN36: 56703.65535 | BO36: 137607.4419 | BP36: 17742.32955 | BQ36: 32712.73885 | BR36: 12390.4 | BS36: 56910.84991 | BT36: 5635053.535
B37: 2038 | C37: 70058.98251 | D37: 109056.2914 | E37: 26426.54867 | F37: 534053.1646 | G37: 343648.5597 | H37: 456678.3981 | I37: 829234.1586 | J37: 30700 | K37: 21212.37624 | L37: 101077.6596 | M37: 37418 | N37: 214572.7327 | O37: 65612.2449 | P37: 11162.62136 | Q37: 23353.33333 | R37: 8934.445575 | S37: 40571.50538 | T37: 61383.0303 | U37: 181139.6731 | V37: 76675.20891 | W37: 37100 | X37: 6129.415205 | Y37: 7977.75 | Z37: 51235.05155 | AA37: 7295.233415 | AB37: 91052.5 | AC37: 67508.21256 | AD37: 13909.56679 | AE37: 93979.48718 | AF37: 9813.628602 | AG37: 28198.56631 | AH37: 10038.09524 | AI37: 45952.94118 | AJ37: 14468.22742 | AK37: 34848.20847 | AL37: 98912.01814 | AM37: 16921.28571 | AN37: 34285.71429 | AO37: 60813.55932 | AP37: 63062.54417 | AQ37: 49898.15668 | AR37: 111392.5714 | AS37: 242760.9023 | AT37: 27244.8 | AU37: 10191.53252 | AV37: 11538.04878 | AW37: 58736.84211 | AX37: 58397.2973 | AY37: 50288.04348 | AZ37: 3960.435967 | BA37: 9430.643564 | BB37: 13092.83088 | BC37: 8660.384181 | BD37: 14400 | BE37: 80122.8243 | BF37: 445156.4566 | BG37: 95001.13086 | BH37: 40383.2853 | BI37: 50411.81435 | BJ37: 5426.923077 | BK37: 8564.378109 | BL37: 24543.04933 | BM37: 25232.19512 | BN37: 60254.56919 | BO37: 138522.7907 | BP37: 17434.65909 | BQ37: 32611.1465 | BR37: 12083.2 | BS37: 56607.59494 | BT37: 5810992.849
B38: 2043 | C38: 69303.33863 | D38: 111445.1435 | E38: 26426.54867 | F38: 562093.6709 | G38: 361450.6173 | H38: 476290.684 | I38: 864284.989 | J38: 30064.82759 | K38: 20802.47525 | L38: 105757.1809 | M38: 37317.14286 | N38: 224666.7457 | O38: 67244.89796 | P38: 11060.67961 | Q38: 22423.33333 | R38: 8581.770092 | S38: 40467.74194 | T38: 62461.81818 | U38: 189368.4993 | V38: 75633.42618 | W38: 36374.58101 | X38: 5649.532164 | Y38: 7329.420455 | Z38: 50928.86598 | AA38: 6759.60688 | AB38: 91370.125 | AC38: 67611.5942 | AD38: 13433.57401 | AE38: 95708.54701 | AF38: 9761.814301 | AG38: 27792.83154 | AH38: 9086.904762 | AI38: 45000 | AJ38: =AJ31/AJ$26*AJ$33 -> 14003.17726 | AK38: 35253.4202 | AL38: 100814.1723 | AM38: 16183.28571 | AN38: 33750 | AO38: 61749.15254 | AP38: 62958.48057 | AQ38: 50316.58986 | AR38: 110358.2857 | AS38: 248517.2932 | AT38: 27033.6 | AU38: 10212.50276 | AV38: 11538.04878 | AW38: 58736.84211 | AX38: 59007.72201 | AY38: 49970.43478 | AZ38: 3882.997275 | BA38: 9264.851485 | BB38: 12738.97059 | BC38: 8480.79096 | BD38: 14550 | BE38: 83645.81281 | BF38: 455068.6467 | BG38: 101750.4039 | BH38: 41779.25072 | BI38: 50411.81435 | BJ38: 5481.410256 | BK38: 8624.975124 | BL38: 24748.43049 | BM38: 25557.07317 | BN38: 63694.51697 | BO38: 138827.907 | BP38: 16921.875 | BQ38: 32509.55414 | BR38: 11724.8 | BS38: 56102.16998 | BT38: 5965338.833
A40: Interpolated | B40: 2018 | C40: =TREND(C$33:C$38,$B$33:$B$38^{1,2,3},$B40^{1,2,3}) -> 67889.71913 | D40: =TREND(D$33:D$38,$B$33:$B$38^{1,2,3},$B40^{1,2,3}) -> 94119.78345 | E40: =TREND(E$33:E$38,$B$33:$B$38^{1,2,3},$B40^{1,2,3}) -> 23698.33544 | F40: =TREND(F$33:F$38,$B$33:$B$38^{1,2,3},$B40^{1,2,3}) -> 397912.8391 | G40: =TREND(G$33:G$38,$B$33:$B$38^{1,2,3},$B40^{1,2,3}) -> 262908.5865 | H40: =TREND(H$33:H$38,$B$33:$B$38^{1,2,3},$B40^{1,2,3}) -> 351431.8043 | I40: =TREND(I$33:I$38,$B$33:$B$38^{1,2,3},$B40^{1,2,3}) -> 643008.6359 | J40: =TREND(J$33:J$38,$B$33:$B$38^{1,2,3},$B40^{1,2,3}) -> 30686.5572 | K40: =TREND(K$33:K$38,$B$33:$B$38^{1,2,3},$B40^{1,2,3}) -> 20704.06648 | L40: =TREND(L$33:L$38,$B$33:$B$38^{1,2,3},$B40^{1,2,3}) -> 78226.41 | M40: =TREND(M$33:M$38,$B$33:$B$38^{1,2,3},$B40^{1,2,3}) -> 35307.20408 | N40: =TREND(N$33:N$38,$B$33:$B$38^{1,2,3},$B40^{1,2,3}) -> 168647.5908 | O40: =TREND(O$33:O$38,$B$33:$B$38^{1,2,3},$B40^{1,2,3}) -> 55012.95756 | P40: =TREND(P$33:P$38,$B$33:$B$38^{1,2,3},$B40^{1,2,3}) -> 10509.30421 | Q40: =TREND(Q$33:Q$38,$B$33:$B$38^{1,2,3},$B40^{1,2,3}) -> 24795.07937 | R40: =TREND(R$33:R$38,$B$33:$B$38^{1,2,3},$B40^{1,2,3}) -> 9627.123238 | S40: =TREND(S$33:S$38,$B$33:$B$38^{1,2,3},$B40^{1,2,3}) -> 38599.17648 | T40: =TREND(T$33:T$38,$B$33:$B$38^{1,2,3},$B40^{1,2,3}) -> 53403.42472 | U40: =TREND(U$33:U$38,$B$33:$B$38^{1,2,3},$B40^{1,2,3}) -> 142062.7963 | V40: =TREND(V$33:V$38,$B$33:$B$38^{1,2,3},$B40^{1,2,3}) -> 74818.18986 | W40: =TREND(W$33:W$38,$B$33:$B$38^{1,2,3},$B40^{1,2,3}) -> 37090.13035 | X40: =TREND(X$33:X$38,$B$33:$B$38^{1,2,3},$B40^{1,2,3}) -> 7457.230112 | Y40: =TREND(Y$33:Y$38,$B$33:$B$38^{1,2,3},$B40^{1,2,3}) -> 9667.732504 | Z40: =TREND(Z$33:Z$38,$B$33:$B$38^{1,2,3},$B40^{1,2,3}) -> 49494.3299 | AA40: =TREND(AA$33:AA$38,$B$33:$B$38^{1,2,3},$B40^{1,2,3}) -> 8717.194337 | AB40: =TREND(AB$33:AB$38,$B$33:$B$38^{1,2,3},$B40^{1,2,3}) -> 84691.59722 | AC40: =TREND(AC$33:AC$38,$B$33:$B$38^{1,2,3},$B40^{1,2,3}) -> 64188.51315 | AD40: =TREND(AD$33:AD$38,$B$33:$B$38^{1,2,3},$B40^{1,2,3}) -> 14646.64203 | AE40: =TREND(AE$33:AE$38,$B$33:$B$38^{1,2,3},$B40^{1,2,3}) -> 83287.89174 | AF40: =TREND(AF$33:AF$38,$B$33:$B$38^{1,2,3},$B40^{1,2,3}) -> 9708.190612 | AG40: =TREND(AG$33:AG$38,$B$33:$B$38^{1,2,3},$B40^{1,2,3}) -> 28295.97485 | AH40: =TREND(AH$33:AH$38,$B$33:$B$38^{1,2,3},$B40^{1,2,3}) -> 12748.3938 | AI40: =TREND(AI$33:AI$38,$B$33:$B$38^{1,2,3},$B40^{1,2,3}) -> 46793.27731 | AJ40: =TREND(AJ$33:AJ$38,$B$33:$B$38^{1,2,3},$B40^{1,2,3}) -> 15443.02835 | AK40: =TREND(AK$33:AK$38,$B$33:$B$38^{1,2,3},$B40^{1,2,3}) -> 31102.41197 | AL40: =TREND(AL$33:AL$38,$B$33:$B$38^{1,2,3},$B40^{1,2,3}) -> 88298.4109 | AM40: =TREND(AM$33:AM$38,$B$33:$B$38^{1,2,3},$B40^{1,2,3}) -> 18450.41837 | AN40: =TREND(AN$33:AN$38,$B$33:$B$38^{1,2,3},$B40^{1,2,3}) -> 34491.4966 | AO40: =TREND(AO$33:AO$38,$B$33:$B$38^{1,2,3},$B40^{1,2,3}) -> 55190.09954 | AP40: =TREND(AP$33:AP$38,$B$33:$B$38^{1,2,3},$B40^{1,2,3}) -> 58901.6518 | AQ40: =TREND(AQ$33:AQ$38,$B$33:$B$38^{1,2,3},$B40^{1,2,3}) -> 45399.16978 | AR40: =TREND(AR$33:AR$38,$B$33:$B$38^{1,2,3},$B40^{1,2,3}) -> 108600.8209 | AS40: =TREND(AS$33:AS$38,$B$33:$B$38^{1,2,3},$B40^{1,2,3}) -> 211259.8639 | AT40: =TREND(AT$33:AT$38,$B$33:$B$38^{1,2,3},$B40^{1,2,3}) -> 26396.64762 | AU40: =TREND(AU$33:AU$38,$B$33:$B$38^{1,2,3},$B40^{1,2,3}) -> 9508.252481 | AV40: =TREND(AV$33:AV$38,$B$33:$B$38^{1,2,3},$B40^{1,2,3}) -> 10903.37592 | AW40: =TREND(AW$33:AW$38,$B$33:$B$38^{1,2,3},$B40^{1,2,3}) -> 54005.84795 | AX40: =TREND(AX$33:AX$38,$B$33:$B$38^{1,2,3},$B40^{1,2,3}) -> 52695.15536 | AY40: =TREND(AY$33:AY$38,$B$33:$B$38^{1,2,3},$B40^{1,2,3}) -> 48700.84023 | AZ40: =TREND(AZ$33:AZ$38,$B$33:$B$38^{1,2,3},$B40^{1,2,3}) -> 4059.561005 | BA40: =TREND(BA$33:BA$38,$B$33:$B$38^{1,2,3},$B40^{1,2,3}) -> 9849.458196 | BB40: =TREND(BB$33:BB$38,$B$33:$B$38^{1,2,3},$B40^{1,2,3}) -> 13746.38918 | BC40: =TREND(BC$33:BC$38,$B$33:$B$38^{1,2,3},$B40^{1,2,3}) -> 8828.178728 | BD40: =TREND(BD$33:BD$38,$B$33:$B$38^{1,2,3},$B40^{1,2,3}) -> 12949.60317 | BE40: =TREND(BE$33:BE$38,$B$33:$B$38^{1,2,3},$B40^{1,2,3}) -> 61326.3625 | BF40: =TREND(BF$33:BF$38,$B$33:$B$38^{1,2,3},$B40^{1,2,3}) -> 383999.0305 | BG40: =TREND(BG$33:BG$38,$B$33:$B$38^{1,2,3},$B40^{1,2,3}) -> 63390.8993 | BH40: =TREND(BH$33:BH$38,$B$33:$B$38^{1,2,3},$B40^{1,2,3}) -> 34593.66909 | BI40: =TREND(BI$33:BI$38,$B$33:$B$38^{1,2,3},$B40^{1,2,3}) -> 47590.43601 | BJ40: =TREND(BJ$33:BJ$38,$B$33:$B$38^{1,2,3},$B40^{1,2,3}) -> 5098.789174 | BK40: =TREND(BK$33:BK$38,$B$33:$B$38^{1,2,3},$B40^{1,2,3}) -> 8117.274737 | BL40: =TREND(BL$33:BL$38,$B$33:$B$38^{1,2,3},$B40^{1,2,3}) -> 22893.47996 | BM40: =TREND(BM$33:BM$38,$B$33:$B$38^{1,2,3},$B40^{1,2,3}) -> 22194.84321 | BN40: =TREND(BN$33:BN$38,$B$33:$B$38^{1,2,3},$B40^{1,2,3}) -> 42570.45464 | BO40: =TREND(BO$33:BO$38,$B$33:$B$38^{1,2,3},$B40^{1,2,3}) -> 131227.4443 | BP40: =TREND(BP$33:BP$38,$B$33:$B$38^{1,2,3},$B40^{1,2,3}) -> 18046.74423 | BQ40: =TREND(BQ$33:BQ$38,$B$33:$B$38^{1,2,3},$B40^{1,2,3}) -> 31889.51825 | BR40: =TREND(BR$33:BR$38,$B$33:$B$38^{1,2,3},$B40^{1,2,3}) -> 12794.31111 | BS40: =TREND(BS$33:BS$38,$B$33:$B$38^{1,2,3},$B40^{1,2,3}) -> 55887.96607 | BT40: =TREND(BT$33:BT$38,$B$33:$B$38^{1,2,3},$B40^{1,2,3}) -> 4900595.818
B41: =B40+1 -> 2019 | C41: =TREND(C$33:C$38,$B$33:$B$38^{1,2,3},$B41^{1,2,3}) -> 68196.35633 | D41: =TREND(D$33:D$38,$B$33:$B$38^{1,2,3},$B41^{1,2,3}) -> 95212.18623 | E41: =TREND(E$33:E$38,$B$33:$B$38^{1,2,3},$B41^{1,2,3}) -> 23929.08335 | F41: =TREND(F$33:F$38,$B$33:$B$38^{1,2,3},$B41^{1,2,3}) -> 406179.9928 | G41: =TREND(G$33:G$38,$B$33:$B$38^{1,2,3},$B41^{1,2,3}) -> 267505.4421 | H41: =TREND(H$33:H$38,$B$33:$B$38^{1,2,3},$B41^{1,2,3}) -> 358783.9975 | I41: =TREND(I$33:I$38,$B$33:$B$38^{1,2,3},$B41^{1,2,3}) -> 655046.4954 | J41: =TREND(J$33:J$38,$B$33:$B$38^{1,2,3},$B41^{1,2,3}) -> 30806.89716 | K41: =TREND(K$33:K$38,$B$33:$B$38^{1,2,3},$B41^{1,2,3}) -> 20825.76803 | L41: =TREND(L$33:L$38,$B$33:$B$38^{1,2,3},$B41^{1,2,3}) -> 79624.58163 | M41: =TREND(M$33:M$38,$B$33:$B$38^{1,2,3},$B41^{1,2,3}) -> 35502.00245 | N41: =TREND(N$33:N$38,$B$33:$B$38^{1,2,3},$B41^{1,2,3}) -> 171425.4289 | O41: =TREND(O$33:O$38,$B$33:$B$38^{1,2,3},$B41^{1,2,3}) -> 55714.86233 | P41: =TREND(P$33:P$38,$B$33:$B$38^{1,2,3},$B41^{1,2,3}) -> 10645.21683 | Q41: =TREND(Q$33:Q$38,$B$33:$B$38^{1,2,3},$B41^{1,2,3}) -> 24821.59175 | R41: =TREND(R$33:R$38,$B$33:$B$38^{1,2,3},$B41^{1,2,3}) -> 9624.75714 | S41: =TREND(S$33:S$38,$B$33:$B$38^{1,2,3},$B41^{1,2,3}) -> 38815.43926 | T41: =TREND(T$33:T$38,$B$33:$B$38^{1,2,3},$B41^{1,2,3}) -> 53919.4963 | U41: =TREND(U$33:U$38,$B$33:$B$38^{1,2,3},$B41^{1,2,3}) -> 144517.6993 | V41: =TREND(V$33:V$38,$B$33:$B$38^{1,2,3},$B41^{1,2,3}) -> 75208.8683 | W41: =TREND(W$33:W$38,$B$33:$B$38^{1,2,3},$B41^{1,2,3}) -> 37202.11136 | X41: =TREND(X$33:X$38,$B$33:$B$38^{1,2,3},$B41^{1,2,3}) -> 7420.432847 | Y41: =TREND(Y$33:Y$38,$B$33:$B$38^{1,2,3},$B41^{1,2,3}) -> 9623.443066 | Z41: =TREND(Z$33:Z$38,$B$33:$B$38^{1,2,3},$B41^{1,2,3}) -> 49709.49573 | AA41: =TREND(AA$33:AA$38,$B$33:$B$38^{1,2,3},$B41^{1,2,3}) -> 8670.212238 | AB41: =TREND(AB$33:AB$38,$B$33:$B$38^{1,2,3},$B41^{1,2,3}) -> 85172.77389 | AC41: =TREND(AC$33:AC$38,$B$33:$B$38^{1,2,3},$B41^{1,2,3}) -> 64496.2163 | AD41: =TREND(AD$33:AD$38,$B$33:$B$38^{1,2,3},$B41^{1,2,3}) -> 14675.8564 | AE41: =TREND(AE$33:AE$38,$B$33:$B$38^{1,2,3},$B41^{1,2,3}) -> 83984.10712 | AF41: =TREND(AF$33:AF$38,$B$33:$B$38^{1,2,3},$B41^{1,2,3}) -> 9726.437141 | AG41: =TREND(AG$33:AG$38,$B$33:$B$38^{1,2,3},$B41^{1,2,3}) -> 28357.33741 | AH41: =TREND(AH$33:AH$38,$B$33:$B$38^{1,2,3},$B41^{1,2,3}) -> 12659.37317 | AI41: =TREND(AI$33:AI$38,$B$33:$B$38^{1,2,3},$B41^{1,2,3}) -> 46867.07227 | AJ41: =TREND(AJ$33:AJ$38,$B$33:$B$38^{1,2,3},$B41^{1,2,3}) -> 15452.37856 | AK41: =TREND(AK$33:AK$38,$B$33:$B$38^{1,2,3},$B41^{1,2,3}) -> 31353.18015 | AL41: =TREND(AL$33:AL$38,$B$33:$B$38^{1,2,3},$B41^{1,2,3}) -> 88972.75555 | AM41: =TREND(AM$33:AM$38,$B$33:$B$38^{1,2,3},$B41^{1,2,3}) -> 18414.35176 | AN41: =TREND(AN$33:AN$38,$B$33:$B$38^{1,2,3},$B41^{1,2,3}) -> 34589.29252 | AO41: =TREND(AO$33:AO$38,$B$33:$B$38^{1,2,3},$B41^{1,2,3}) -> 55543.60527 | AP41: =TREND(AP$33:AP$38,$B$33:$B$38^{1,2,3},$B41^{1,2,3}) -> 59292.89131 | AQ41: =TREND(AQ$33:AQ$38,$B$33:$B$38^{1,2,3},$B41^{1,2,3}) -> 45735.13177 | AR41: =TREND(AR$33:AR$38,$B$33:$B$38^{1,2,3},$B41^{1,2,3}) -> 109039.752 | AS41: =TREND(AS$33:AS$38,$B$33:$B$38^{1,2,3},$B41^{1,2,3}) -> 213261.6513 | AT41: =TREND(AT$33:AT$38,$B$33:$B$38^{1,2,3},$B41^{1,2,3}) -> 26525.07733 | AU41: =TREND(AU$33:AU$38,$B$33:$B$38^{1,2,3},$B41^{1,2,3}) -> 9569.952893 | AV41: =TREND(AV$33:AV$38,$B$33:$B$38^{1,2,3},$B41^{1,2,3}) -> 10957.77211 | AW41: =TREND(AW$33:AW$38,$B$33:$B$38^{1,2,3},$B41^{1,2,3}) -> 54382.60986 | AX41: =TREND(AX$33:AX$38,$B$33:$B$38^{1,2,3},$B41^{1,2,3}) -> 53115.9996 | AY41: =TREND(AY$33:AY$38,$B$33:$B$38^{1,2,3},$B41^{1,2,3}) -> 48925.68703 | AZ41: =TREND(AZ$33:AZ$38,$B$33:$B$38^{1,2,3},$B41^{1,2,3}) -> 4067.751595 | BA41: =TREND(BA$33:BA$38,$B$33:$B$38^{1,2,3},$B41^{1,2,3}) -> 9829.609587 | BB41: =TREND(BB$33:BB$38,$B$33:$B$38^{1,2,3},$B41^{1,2,3}) -> 13745.81145 | BC41: =TREND(BC$33:BC$38,$B$33:$B$38^{1,2,3},$B41^{1,2,3}) -> 8848.832899 | BD41: =TREND(BD$33:BD$38,$B$33:$B$38^{1,2,3},$B41^{1,2,3}) -> 13056.18413 | BE41: =TREND(BE$33:BE$38,$B$33:$B$38^{1,2,3},$B41^{1,2,3}) -> 62575.42729 | BF41: =TREND(BF$33:BF$38,$B$33:$B$38^{1,2,3},$B41^{1,2,3}) -> 388522.0855 | BG41: =TREND(BG$33:BG$38,$B$33:$B$38^{1,2,3},$B41^{1,2,3}) -> 65539.95354 | BH41: =TREND(BH$33:BH$38,$B$33:$B$38^{1,2,3},$B41^{1,2,3}) -> 34931.92956 | BI41: =TREND(BI$33:BI$38,$B$33:$B$38^{1,2,3},$B41^{1,2,3}) -> 47839.5398 | BJ41: =TREND(BJ$33:BJ$38,$B$33:$B$38^{1,2,3},$B41^{1,2,3}) -> 5127.57501 | BK41: =TREND(BK$33:BK$38,$B$33:$B$38^{1,2,3},$B41^{1,2,3}) -> 8153.092383 | BL41: =TREND(BL$33:BL$38,$B$33:$B$38^{1,2,3},$B41^{1,2,3}) -> 23010.23427 | BM41: =TREND(BM$33:BM$38,$B$33:$B$38^{1,2,3},$B41^{1,2,3}) -> 22401.03247 | BN41: =TREND(BN$33:BN$38,$B$33:$B$38^{1,2,3},$B41^{1,2,3}) -> 43925.33963 | BO41: =TREND(BO$33:BO$38,$B$33:$B$38^{1,2,3},$B41^{1,2,3}) -> 131889.4982 | BP41: =TREND(BP$33:BP$38,$B$33:$B$38^{1,2,3},$B41^{1,2,3}) -> 18041.04988 | BQ41: =TREND(BQ$33:BQ$38,$B$33:$B$38^{1,2,3},$B41^{1,2,3}) -> 31995.65807 | BR41: =TREND(BR$33:BR$38,$B$33:$B$38^{1,2,3},$B41^{1,2,3}) -> 12782.07187 | BS41: =TREND(BS$33:BS$38,$B$33:$B$38^{1,2,3},$B41^{1,2,3}) -> 56046.17852 | BT41: =TREND(BT$33:BT$38,$B$33:$B$38^{1,2,3},$B41^{1,2,3}) -> 4963068.87
B42: =B41+1 -> 2020 | C42: =TREND(C$33:C$38,$B$33:$B$38^{1,2,3},$B42^{1,2,3}) -> 68483.21314 | D42: =TREND(D$33:D$38,$B$33:$B$38^{1,2,3},$B42^{1,2,3}) -> 96256.47564 | E42: =TREND(E$33:E$38,$B$33:$B$38^{1,2,3},$B42^{1,2,3}) -> 24150.41652 | F42: =TREND(F$33:F$38,$B$33:$B$38^{1,2,3},$B42^{1,2,3}) -> 414245.1646 | G42: =TREND(G$33:G$38,$B$33:$B$38^{1,2,3},$B42^{1,2,3}) -> 272028.9039 | H42: =TREND(H$33:H$38,$B$33:$B$38^{1,2,3},$B42^{1,2,3}) -> 365813.7641 | I42: =TREND(I$33:I$38,$B$33:$B$38^{1,2,3},$B42^{1,2,3}) -> 666711.1125 | J42: =TREND(J$33:J$38,$B$33:$B$38^{1,2,3},$B42^{1,2,3}) -> 30914.35893 | K42: =TREND(K$33:K$38,$B$33:$B$38^{1,2,3},$B42^{1,2,3}) -> 20935.92079 | L42: =TREND(L$33:L$38,$B$33:$B$38^{1,2,3},$B42^{1,2,3}) -> 80986.73002 | M42: =TREND(M$33:M$38,$B$33:$B$38^{1,2,3},$B42^{1,2,3}) -> 35687.29143 | N42: =TREND(N$33:N$38,$B$33:$B$38^{1,2,3},$B42^{1,2,3}) -> 174128.9873 | O42: =TREND(O$33:O$38,$B$33:$B$38^{1,2,3},$B42^{1,2,3}) -> 56396.64399 | P42: =TREND(P$33:P$38,$B$33:$B$38^{1,2,3},$B42^{1,2,3}) -> 10764.55016 | Q42: =TREND(Q$33:Q$38,$B$33:$B$38^{1,2,3},$B42^{1,2,3}) -> 24836.92444 | R42: =TREND(R$33:R$38,$B$33:$B$38^{1,2,3},$B42^{1,2,3}) -> 9618.827589 | S42: =TREND(S$33:S$38,$B$33:$B$38^{1,2,3},$B42^{1,2,3}) -> 39017.08292 | T42: =TREND(T$33:T$38,$B$33:$B$38^{1,2,3},$B42^{1,2,3}) -> 54424.60875 | U42: =TREND(U$33:U$38,$B$33:$B$38^{1,2,3},$B42^{1,2,3}) -> 146895.6592 | V42: =TREND(V$33:V$38,$B$33:$B$38^{1,2,3},$B42^{1,2,3}) -> 75561.93674 | W42: =TREND(W$33:W$38,$B$33:$B$38^{1,2,3},$B42^{1,2,3}) -> 37303.39367 | X42: =TREND(X$33:X$38,$B$33:$B$38^{1,2,3},$B42^{1,2,3}) -> 7380.184301 | Y42: =TREND(Y$33:Y$38,$B$33:$B$38^{1,2,3},$B42^{1,2,3}) -> 9574.667475 | Z42: =TREND(Z$33:Z$38,$B$33:$B$38^{1,2,3},$B42^{1,2,3}) -> 49910.78763 | AA42: =TREND(AA$33:AA$38,$B$33:$B$38^{1,2,3},$B42^{1,2,3}) -> 8621.15905 | AB42: =TREND(AB$33:AB$38,$B$33:$B$38^{1,2,3},$B42^{1,2,3}) -> 85639.69944 | AC42: =TREND(AC$33:AC$38,$B$33:$B$38^{1,2,3},$B42^{1,2,3}) -> 64788.21857 | AD42: =TREND(AD$33:AD$38,$B$33:$B$38^{1,2,3},$B42^{1,2,3}) -> 14696.77657 | AE42: =TREND(AE$33:AE$38,$B$33:$B$38^{1,2,3},$B42^{1,2,3}) -> 84662.63476 | AF42: =TREND(AF$33:AF$38,$B$33:$B$38^{1,2,3},$B42^{1,2,3}) -> 9743.474341 | AG42: =TREND(AG$33:AG$38,$B$33:$B$38^{1,2,3},$B42^{1,2,3}) -> 28410.54018 | AH42: =TREND(AH$33:AH$38,$B$33:$B$38^{1,2,3},$B42^{1,2,3}) -> 12565.01481 | AI42: =TREND(AI$33:AI$38,$B$33:$B$38^{1,2,3},$B42^{1,2,3}) -> 46928.37647 | AJ42: =TREND(AJ$33:AJ$38,$B$33:$B$38^{1,2,3},$B42^{1,2,3}) -> 15454.36343 | AK42: =TREND(AK$33:AK$38,$B$33:$B$38^{1,2,3},$B42^{1,2,3}) -> 31598.95071 | AL42: =TREND(AL$33:AL$38,$B$33:$B$38^{1,2,3},$B42^{1,2,3}) -> 89630.21759 | AM42: =TREND(AM$33:AM$38,$B$33:$B$38^{1,2,3},$B42^{1,2,3}) -> 18375.16914 | AN42: =TREND(AN$33:AN$38,$B$33:$B$38^{1,2,3},$B42^{1,2,3}) -> 34673.52381 | AO42: =TREND(AO$33:AO$38,$B$33:$B$38^{1,2,3},$B42^{1,2,3}) -> 55890.5371 | AP42: =TREND(AP$33:AP$38,$B$33:$B$38^{1,2,3},$B42^{1,2,3}) -> 59664.33561 | AQ42: =TREND(AQ$33:AQ$38,$B$33:$B$38^{1,2,3},$B42^{1,2,3}) -> 46059.82263 | AR42: =TREND(AR$33:AR$38,$B$33:$B$38^{1,2,3},$B42^{1,2,3}) -> 109444.4368 | AS42: =TREND(AS$33:AS$38,$B$33:$B$38^{1,2,3},$B42^{1,2,3}) -> 215207.4185 | AT42: =TREND(AT$33:AT$38,$B$33:$B$38^{1,2,3},$B42^{1,2,3}) -> 26643.11467 | AU42: =TREND(AU$33:AU$38,$B$33:$B$38^{1,2,3},$B42^{1,2,3}) -> 9628.63559 | AV42: =TREND(AV$33:AV$38,$B$33:$B$38^{1,2,3},$B42^{1,2,3}) -> 11009.93344 | AW42: =TREND(AW$33:AW$38,$B$33:$B$38^{1,2,3},$B42^{1,2,3}) -> 54747.69591 | AX42: =TREND(AX$33:AX$38,$B$33:$B$38^{1,2,3},$B42^{1,2,3}) -> 53521.76731 | AY42: =TREND(AY$33:AY$38,$B$33:$B$38^{1,2,3},$B42^{1,2,3}) -> 49132.41836 | AZ42: =TREND(AZ$33:AZ$38,$B$33:$B$38^{1,2,3},$B42^{1,2,3}) -> 4074.179885 | BA42: =TREND(BA$33:BA$38,$B$33:$B$38^{1,2,3},$B42^{1,2,3}) -> 9810.29659 | BB42: =TREND(BB$33:BB$38,$B$33:$B$38^{1,2,3},$B42^{1,2,3}) -> 13741.91176 | BC42: =TREND(BC$33:BC$38,$B$33:$B$38^{1,2,3},$B42^{1,2,3}) -> 8865.856562 | BD42: =TREND(BD$33:BD$38,$B$33:$B$38^{1,2,3},$B42^{1,2,3}) -> 13159.37778 | BE42: =TREND(BE$33:BE$38,$B$33:$B$38^{1,2,3},$B42^{1,2,3}) -> 63780.45233 | BF42: =TREND(BF$33:BF$38,$B$33:$B$38^{1,2,3},$B42^{1,2,3}) -> 392829.2562 | BG42: =TREND(BG$33:BG$38,$B$33:$B$38^{1,2,3},$B42^{1,2,3}) -> 67592.71944 | BH42: =TREND(BH$33:BH$38,$B$33:$B$38^{1,2,3},$B42^{1,2,3}) -> 35262.52962 | BI42: =TREND(BI$33:BI$38,$B$33:$B$38^{1,2,3},$B42^{1,2,3}) -> 48078.27623 | BJ42: =TREND(BJ$33:BJ$38,$B$33:$B$38^{1,2,3},$B42^{1,2,3}) -> 5154.419373 | BK42: =TREND(BK$33:BK$38,$B$33:$B$38^{1,2,3},$B42^{1,2,3}) -> 8187.231266 | BL42: =TREND(BL$33:BL$38,$B$33:$B$38^{1,2,3},$B42^{1,2,3}) -> 23123.08959 | BM42: =TREND(BM$33:BM$38,$B$33:$B$38^{1,2,3},$B42^{1,2,3}) -> 22603.42634 | BN42: =TREND(BN$33:BN$38,$B$33:$B$38^{1,2,3},$B42^{1,2,3}) -> 45200.86452 | BO42: =TREND(BO$33:BO$38,$B$33:$B$38^{1,2,3},$B42^{1,2,3}) -> 132513.1301 | BP42: =TREND(BP$33:BP$38,$B$33:$B$38^{1,2,3},$B42^{1,2,3}) -> 18035.04949 | BQ42: =TREND(BQ$33:BQ$38,$B$33:$B$38^{1,2,3},$B42^{1,2,3}) -> 32093.25124 | BR42: =TREND(BR$33:BR$38,$B$33:$B$38^{1,2,3},$B42^{1,2,3}) -> 12768.14222 | BS42: =TREND(BS$33:BS$38,$B$33:$B$38^{1,2,3},$B42^{1,2,3}) -> 56190.85521 | BT42: =TREND(BT$33:BT$38,$B$33:$B$38^{1,2,3},$B42^{1,2,3}) -> 5023247.267
B43: 2021 | C43: =TREND(C$33:C$38,$B$33:$B$38^{1,2,3},$B43^{1,2,3}) -> 68750.14563 | D43: =TREND(D$33:D$38,$B$33:$B$38^{1,2,3},$B43^{1,2,3}) -> 97254.59048 | E43: =TREND(E$33:E$38,$B$33:$B$38^{1,2,3},$B43^{1,2,3}) -> 24362.24172 | F43: =TREND(F$33:F$38,$B$33:$B$38^{1,2,3},$B43^{1,2,3}) -> 422116.2532 | G43: =TREND(G$33:G$38,$B$33:$B$38^{1,2,3},$B43^{1,2,3}) -> 276481.4197 | H43: =TREND(H$33:H$38,$B$33:$B$38^{1,2,3},$B43^{1,2,3}) -> 372537.6325 | I43: =TREND(I$33:I$38,$B$33:$B$38^{1,2,3},$B43^{1,2,3}) -> 678016.5881 | J43: =TREND(J$33:J$38,$B$33:$B$38^{1,2,3},$B43^{1,2,3}) -> 31009.03658 | K43: =TREND(K$33:K$38,$B$33:$B$38^{1,2,3},$B43^{1,2,3}) -> 21034.75248 | L43: =TREND(L$33:L$38,$B$33:$B$38^{1,2,3},$B43^{1,2,3}) -> 82314.33414 | M43: =TREND(M$33:M$38,$B$33:$B$38^{1,2,3},$B43^{1,2,3}) -> 35863.07102 | N43: =TREND(N$33:N$38,$B$33:$B$38^{1,2,3},$B43^{1,2,3}) -> 176762.1303 | O43: =TREND(O$33:O$38,$B$33:$B$38^{1,2,3},$B43^{1,2,3}) -> 57058.62002 | P43: =TREND(P$33:P$38,$B$33:$B$38^{1,2,3},$B43^{1,2,3}) -> 10868.23301 | Q43: =TREND(Q$33:Q$38,$B$33:$B$38^{1,2,3},$B43^{1,2,3}) -> 24841.21524 | R43: =TREND(R$33:R$38,$B$33:$B$38^{1,2,3},$B43^{1,2,3}) -> 9609.369417 | S43: =TREND(S$33:S$38,$B$33:$B$38^{1,2,3},$B43^{1,2,3}) -> 39204.4764 | T43: =TREND(T$33:T$38,$B$33:$B$38^{1,2,3},$B43^{1,2,3}) -> 54918.52237 | U43: =TREND(U$33:U$38,$B$33:$B$38^{1,2,3},$B43^{1,2,3}) -> 149200.6147 | V43: =TREND(V$33:V$38,$B$33:$B$38^{1,2,3},$B43^{1,2,3}) -> 75878.41379 | W43: =TREND(W$33:W$38,$B$33:$B$38^{1,2,3},$B43^{1,2,3}) -> 37393.83911 | X43: =TREND(X$33:X$38,$B$33:$B$38^{1,2,3},$B43^{1,2,3}) -> 7336.547491 | Y43: =TREND(Y$33:Y$38,$B$33:$B$38^{1,2,3},$B43^{1,2,3}) -> 9521.454567 | Z43: =TREND(Z$33:Z$38,$B$33:$B$38^{1,2,3},$B43^{1,2,3}) -> 50098.29632 | AA43: =TREND(AA$33:AA$38,$B$33:$B$38^{1,2,3},$B43^{1,2,3}) -> 8569.963356 | AB43: =TREND(AB$33:AB$38,$B$33:$B$38^{1,2,3},$B43^{1,2,3}) -> 86091.90333 | AC43: =TREND(AC$33:AC$38,$B$33:$B$38^{1,2,3},$B43^{1,2,3}) -> 65064.70375 | AD43: =TREND(AD$33:AD$38,$B$33:$B$38^{1,2,3},$B43^{1,2,3}) -> 14709.63761 | AE43: =TREND(AE$33:AE$38,$B$33:$B$38^{1,2,3},$B43^{1,2,3}) -> 85323.61026 | AF43: =TREND(AF$33:AF$38,$B$33:$B$38^{1,2,3},$B43^{1,2,3}) -> 9759.283789 | AG43: =TREND(AG$33:AG$38,$B$33:$B$38^{1,2,3},$B43^{1,2,3}) -> 28455.76351 | AH43: =TREND(AH$33:AH$38,$B$33:$B$38^{1,2,3},$B43^{1,2,3}) -> 12465.3907 | AI43: =TREND(AI$33:AI$38,$B$33:$B$38^{1,2,3},$B43^{1,2,3}) -> 46977.23697 | AJ43: =TREND(AJ$33:AJ$38,$B$33:$B$38^{1,2,3},$B43^{1,2,3}) -> 15449.21261 | AK43: =TREND(AK$33:AK$38,$B$33:$B$38^{1,2,3},$B43^{1,2,3}) -> 31839.45351 | AL43: =TREND(AL$33:AL$38,$B$33:$B$38^{1,2,3},$B43^{1,2,3}) -> 90271.10848 | AM43: =TREND(AM$33:AM$38,$B$33:$B$38^{1,2,3},$B43^{1,2,3}) -> 18332.6831 | AN43: =TREND(AN$33:AN$38,$B$33:$B$38^{1,2,3},$B43^{1,2,3}) -> 34744.57143 | AO43: =TREND(AO$33:AO$38,$B$33:$B$38^{1,2,3},$B43^{1,2,3}) -> 56230.75642 | AP43: =TREND(AP$33:AP$38,$B$33:$B$38^{1,2,3},$B43^{1,2,3}) -> 60016.0772 | AQ43: =TREND(AQ$33:AQ$38,$B$33:$B$38^{1,2,3},$B43^{1,2,3}) -> 46373.19587 | AR43: =TREND(AR$33:AR$38,$B$33:$B$38^{1,2,3},$B43^{1,2,3}) -> 109815.335 | AS43: =TREND(AS$33:AS$38,$B$33:$B$38^{1,2,3},$B43^{1,2,3}) -> 217098.9302 | AT43: =TREND(AT$33:AT$38,$B$33:$B$38^{1,2,3},$B43^{1,2,3}) -> 26750.99429 | AU43: =TREND(AU$33:AU$38,$B$33:$B$38^{1,2,3},$B43^{1,2,3}) -> 9684.32853 | AV43: =TREND(AV$33:AV$38,$B$33:$B$38^{1,2,3},$B43^{1,2,3}) -> 11059.83628 | AW43: =TREND(AW$33:AW$38,$B$33:$B$38^{1,2,3},$B43^{1,2,3}) -> 55100.59148 | AX43: =TREND(AX$33:AX$38,$B$33:$B$38^{1,2,3},$B43^{1,2,3}) -> 53912.59415 | AY43: =TREND(AY$33:AY$38,$B$33:$B$38^{1,2,3},$B43^{1,2,3}) -> 49321.50476 | AZ43: =TREND(AZ$33:AZ$38,$B$33:$B$38^{1,2,3},$B43^{1,2,3}) -> 4078.909791 | BA43: =TREND(BA$33:BA$38,$B$33:$B$38^{1,2,3},$B43^{1,2,3}) -> 9791.410844 | BB43: =TREND(BB$33:BB$38,$B$33:$B$38^{1,2,3},$B43^{1,2,3}) -> 13734.69013 | BC43: =TREND(BC$33:BC$38,$B$33:$B$38^{1,2,3},$B43^{1,2,3}) -> 8879.347276 | BD43: =TREND(BD$33:BD$38,$B$33:$B$38^{1,2,3},$B43^{1,2,3}) -> 13259.1619 | BE43: =TREND(BE$33:BE$38,$B$33:$B$38^{1,2,3},$B43^{1,2,3}) -> 64943.31654 | BF43: =TREND(BF$33:BF$38,$B$33:$B$38^{1,2,3},$B43^{1,2,3}) -> 396930.4988 | BG43: =TREND(BG$33:BG$38,$B$33:$B$38^{1,2,3},$B43^{1,2,3}) -> 69555.10547 | BH43: =TREND(BH$33:BH$38,$B$33:$B$38^{1,2,3},$B43^{1,2,3}) -> 35585.91245 | BI43: =TREND(BI$33:BI$38,$B$33:$B$38^{1,2,3},$B43^{1,2,3}) -> 48306.51139 | BJ43: =TREND(BJ$33:BJ$38,$B$33:$B$38^{1,2,3},$B43^{1,2,3}) -> 5179.428816 | BK43: =TREND(BK$33:BK$38,$B$33:$B$38^{1,2,3},$B43^{1,2,3}) -> 8219.740763 | BL43: =TREND(BL$33:BL$38,$B$33:$B$38^{1,2,3},$B43^{1,2,3}) -> 23232.09157 | BM43: =TREND(BM$33:BM$38,$B$33:$B$38^{1,2,3},$B43^{1,2,3}) -> 22801.73603 | BN43: =TREND(BN$33:BN$38,$B$33:$B$38^{1,2,3},$B43^{1,2,3}) -> 46401.86249 | BO43: =TREND(BO$33:BO$38,$B$33:$B$38^{1,2,3},$B43^{1,2,3}) -> 133099.4699 | BP43: =TREND(BP$33:BP$38,$B$33:$B$38^{1,2,3},$B43^{1,2,3}) -> 18028.35563 | BQ43: =TREND(BQ$33:BQ$38,$B$33:$B$38^{1,2,3},$B43^{1,2,3}) -> 32182.52351 | BR43: =TREND(BR$33:BR$38,$B$33:$B$38^{1,2,3},$B43^{1,2,3}) -> 12752.40838 | BS43: =TREND(BS$33:BS$38,$B$33:$B$38^{1,2,3},$B43^{1,2,3}) -> 56322.13092 | BT43: =TREND(BT$33:BT$38,$B$33:$B$38^{1,2,3},$B43^{1,2,3}) -> 5081214.504
B44: 2022 | C44: =TREND(C$33:C$38,$B$33:$B$38^{1,2,3},$B44^{1,2,3}) -> 68997.00986 | D44: =TREND(D$33:D$38,$B$33:$B$38^{1,2,3},$B44^{1,2,3}) -> 98208.4695 | E44: =TREND(E$33:E$38,$B$33:$B$38^{1,2,3},$B44^{1,2,3}) -> 24564.46574 | F44: =TREND(F$33:F$38,$B$33:$B$38^{1,2,3},$B44^{1,2,3}) -> 429801.1573 | G44: =TREND(G$33:G$38,$B$33:$B$38^{1,2,3},$B44^{1,2,3}) -> 280865.4375 | H44: =TREND(H$33:H$38,$B$33:$B$38^{1,2,3},$B44^{1,2,3}) -> 378972.1311 | I44: =TREND(I$33:I$38,$B$33:$B$38^{1,2,3},$B44^{1,2,3}) -> 688977.023 | J44: =TREND(J$33:J$38,$B$33:$B$38^{1,2,3},$B44^{1,2,3}) -> 31091.02424 | K44: =TREND(K$33:K$38,$B$33:$B$38^{1,2,3},$B44^{1,2,3}) -> 21122.49081 | L44: =TREND(L$33:L$38,$B$33:$B$38^{1,2,3},$B44^{1,2,3}) -> 83608.87295 | M44: =TREND(M$33:M$38,$B$33:$B$38^{1,2,3},$B44^{1,2,3}) -> 36029.34122 | N44: =TREND(N$33:N$38,$B$33:$B$38^{1,2,3},$B44^{1,2,3}) -> 179328.7223 | O44: =TREND(O$33:O$38,$B$33:$B$38^{1,2,3},$B44^{1,2,3}) -> 57701.10787 | P44: =TREND(P$33:P$38,$B$33:$B$38^{1,2,3},$B44^{1,2,3}) -> 10957.19417 | Q44: =TREND(Q$33:Q$38,$B$33:$B$38^{1,2,3},$B44^{1,2,3}) -> 24834.6019 | R44: =TREND(R$33:R$38,$B$33:$B$38^{1,2,3},$B44^{1,2,3}) -> 9596.417457 | S44: =TREND(S$33:S$38,$B$33:$B$38^{1,2,3},$B44^{1,2,3}) -> 39377.98863 | T44: =TREND(T$33:T$38,$B$33:$B$38^{1,2,3},$B44^{1,2,3}) -> 55400.9974 | U44: =TREND(U$33:U$38,$B$33:$B$38^{1,2,3},$B44^{1,2,3}) -> 151436.5044 | V44: =TREND(V$33:V$38,$B$33:$B$38^{1,2,3},$B44^{1,2,3}) -> 76159.31811 | W44: =TREND(W$33:W$38,$B$33:$B$38^{1,2,3},$B44^{1,2,3}) -> 37473.3095 | X44: =TREND(X$33:X$38,$B$33:$B$38^{1,2,3},$B44^{1,2,3}) -> 7289.58543 | Y44: =TREND(Y$33:Y$38,$B$33:$B$38^{1,2,3},$B44^{1,2,3}) -> 9463.853182 | Z44: =TREND(Z$33:Z$38,$B$33:$B$38^{1,2,3},$B44^{1,2,3}) -> 50272.11252 | AA44: =TREND(AA$33:AA$38,$B$33:$B$38^{1,2,3},$B44^{1,2,3}) -> 8516.553738 | AB44: =TREND(AB$33:AB$38,$B$33:$B$38^{1,2,3},$B44^{1,2,3}) -> 86528.915 | AC44: =TREND(AC$33:AC$38,$B$33:$B$38^{1,2,3},$B44^{1,2,3}) -> 65325.85562 | AD44: =TREND(AD$33:AD$38,$B$33:$B$38^{1,2,3},$B44^{1,2,3}) -> 14714.67457 | AE44: =TREND(AE$33:AE$38,$B$33:$B$38^{1,2,3},$B44^{1,2,3}) -> 85967.16923 | AF44: =TREND(AF$33:AF$38,$B$33:$B$38^{1,2,3},$B44^{1,2,3}) -> 9773.847062 | AG44: =TREND(AG$33:AG$38,$B$33:$B$38^{1,2,3},$B44^{1,2,3}) -> 28493.18771 | AH44: =TREND(AH$33:AH$38,$B$33:$B$38^{1,2,3},$B44^{1,2,3}) -> 12360.57279 | AI44: =TREND(AI$33:AI$38,$B$33:$B$38^{1,2,3},$B44^{1,2,3}) -> 47013.70084 | AJ44: =TREND(AJ$33:AJ$38,$B$33:$B$38^{1,2,3},$B44^{1,2,3}) -> 15437.15576 | AK44: =TREND(AK$33:AK$38,$B$33:$B$38^{1,2,3},$B44^{1,2,3}) -> 32074.41843 | AL44: =TREND(AL$33:AL$38,$B$33:$B$38^{1,2,3},$B44^{1,2,3}) -> 90895.73968 | AM44: =TREND(AM$33:AM$38,$B$33:$B$38^{1,2,3},$B44^{1,2,3}) -> 18286.7062 | AN44: =TREND(AN$33:AN$38,$B$33:$B$38^{1,2,3},$B44^{1,2,3}) -> 34802.81633 | AO44: =TREND(AO$33:AO$38,$B$33:$B$38^{1,2,3},$B44^{1,2,3}) -> 56564.12462 | AP44: =TREND(AP$33:AP$38,$B$33:$B$38^{1,2,3},$B44^{1,2,3}) -> 60348.20858 | AQ44: =TREND(AQ$33:AQ$38,$B$33:$B$38^{1,2,3},$B44^{1,2,3}) -> 46675.205 | AR44: =TREND(AR$33:AR$38,$B$33:$B$38^{1,2,3},$B44^{1,2,3}) -> 110152.9061 | AS44: =TREND(AS$33:AS$38,$B$33:$B$38^{1,2,3},$B44^{1,2,3}) -> 218937.9506 | AT44: =TREND(AT$33:AT$38,$B$33:$B$38^{1,2,3},$B44^{1,2,3}) -> 26848.95086 | AU44: =TREND(AU$33:AU$38,$B$33:$B$38^{1,2,3},$B44^{1,2,3}) -> 9737.059676 | AV44: =TREND(AV$33:AV$38,$B$33:$B$38^{1,2,3},$B44^{1,2,3}) -> 11107.457 | AW44: =TREND(AW$33:AW$38,$B$33:$B$38^{1,2,3},$B44^{1,2,3}) -> 55440.78195 | AX44: =TREND(AX$33:AX$38,$B$33:$B$38^{1,2,3},$B44^{1,2,3}) -> 54288.61577 | AY44: =TREND(AY$33:AY$38,$B$33:$B$38^{1,2,3},$B44^{1,2,3}) -> 49493.41677 | AZ44: =TREND(AZ$33:AZ$38,$B$33:$B$38^{1,2,3},$B44^{1,2,3}) -> 4082.005232 | BA44: =TREND(BA$33:BA$38,$B$33:$B$38^{1,2,3},$B44^{1,2,3}) -> 9772.843989 | BB44: =TREND(BB$33:BB$38,$B$33:$B$38^{1,2,3},$B44^{1,2,3}) -> 13724.14653 | BC44: =TREND(BC$33:BC$38,$B$33:$B$38^{1,2,3},$B44^{1,2,3}) -> 8889.402596 | BD44: =TREND(BD$33:BD$38,$B$33:$B$38^{1,2,3},$B44^{1,2,3}) -> 13355.51429 | BE44: =TREND(BE$33:BE$38,$B$33:$B$38^{1,2,3},$B44^{1,2,3}) -> 66065.89885 | BF44: =TREND(BF$33:BF$38,$B$33:$B$38^{1,2,3},$B44^{1,2,3}) -> 400835.7696 | BG44: =TREND(BG$33:BG$38,$B$33:$B$38^{1,2,3},$B44^{1,2,3}) -> 71433.02008 | BH44: =TREND(BH$33:BH$38,$B$33:$B$38^{1,2,3},$B44^{1,2,3}) -> 35902.5212 | BI44: =TREND(BI$33:BI$38,$B$33:$B$38^{1,2,3},$B44^{1,2,3}) -> 48524.11139 | BJ44: =TREND(BJ$33:BJ$38,$B$33:$B$38^{1,2,3},$B44^{1,2,3}) -> 5202.70989 | BK44: =TREND(BK$33:BK$38,$B$33:$B$38^{1,2,3},$B44^{1,2,3}) -> 8250.670249 | BL44: =TREND(BL$33:BL$38,$B$33:$B$38^{1,2,3},$B44^{1,2,3}) -> 23337.28584 | BM44: =TREND(BM$33:BM$38,$B$33:$B$38^{1,2,3},$B44^{1,2,3}) -> 22995.67275 | BN44: =TREND(BN$33:BN$38,$B$33:$B$38^{1,2,3},$B44^{1,2,3}) -> 47533.16673 | BO44: =TREND(BO$33:BO$38,$B$33:$B$38^{1,2,3},$B44^{1,2,3}) -> 133649.6478 | BP44: =TREND(BP$33:BP$38,$B$33:$B$38^{1,2,3},$B44^{1,2,3}) -> 18020.58084 | BQ44: =TREND(BQ$33:BQ$38,$B$33:$B$38^{1,2,3},$B44^{1,2,3}) -> 32263.70064 | BR44: =TREND(BR$33:BR$38,$B$33:$B$38^{1,2,3},$B44^{1,2,3}) -> 12734.75657 | BS44: =TREND(BS$33:BS$38,$B$33:$B$38^{1,2,3},$B44^{1,2,3}) -> 56440.14043 | BT44: =TREND(BT$33:BT$38,$B$33:$B$38^{1,2,3},$B44^{1,2,3}) -> 5137054.076
B45: 2023 | C45: =TREND(C$33:C$38,$B$33:$B$38^{1,2,3},$B45^{1,2,3}) -> 69223.6619 | D45: =TREND(D$33:D$38,$B$33:$B$38^{1,2,3},$B45^{1,2,3}) -> 99120.05151 | E45: =TREND(E$33:E$38,$B$33:$B$38^{1,2,3},$B45^{1,2,3}) -> 24756.99536 | F45: =TREND(F$33:F$38,$B$33:$B$38^{1,2,3},$B45^{1,2,3}) -> 437307.7758 | G45: =TREND(G$33:G$38,$B$33:$B$38^{1,2,3},$B45^{1,2,3}) -> 285183.4052 | H45: =TREND(H$33:H$38,$B$33:$B$38^{1,2,3},$B45^{1,2,3}) -> 385133.7883 | I45: =TREND(I$33:I$38,$B$33:$B$38^{1,2,3},$B45^{1,2,3}) -> 699606.5183 | J45: =TREND(J$33:J$38,$B$33:$B$38^{1,2,3},$B45^{1,2,3}) -> 31160.41598 | K45: =TREND(K$33:K$38,$B$33:$B$38^{1,2,3},$B45^{1,2,3}) -> 21199.36351 | L45: =TREND(L$33:L$38,$B$33:$B$38^{1,2,3},$B45^{1,2,3}) -> 84871.8254 | M45: =TREND(M$33:M$38,$B$33:$B$38^{1,2,3},$B45^{1,2,3}) -> 36186.10204 | N45: =TREND(N$33:N$38,$B$33:$B$38^{1,2,3},$B45^{1,2,3}) -> 181832.6277 | O45: =TREND(O$33:O$38,$B$33:$B$38^{1,2,3},$B45^{1,2,3}) -> 58324.42501 | P45: =TREND(P$33:P$38,$B$33:$B$38^{1,2,3},$B45^{1,2,3}) -> 11032.36246 | Q45: =TREND(Q$33:Q$38,$B$33:$B$38^{1,2,3},$B45^{1,2,3}) -> 24817.22222 | R45: =TREND(R$33:R$38,$B$33:$B$38^{1,2,3},$B45^{1,2,3}) -> 9580.00654 | S45: =TREND(S$33:S$38,$B$33:$B$38^{1,2,3},$B45^{1,2,3}) -> 39537.98856 | T45: =TREND(T$33:T$38,$B$33:$B$38^{1,2,3},$B45^{1,2,3}) -> 55871.79413 | U45: =TREND(U$33:U$38,$B$33:$B$38^{1,2,3},$B45^{1,2,3}) -> 153607.2667 | V45: =TREND(V$33:V$38,$B$33:$B$38^{1,2,3},$B45^{1,2,3}) -> 76405.6683 | W45: =TREND(W$33:W$38,$B$33:$B$38^{1,2,3},$B45^{1,2,3}) -> 37541.66667 | X45: =TREND(X$33:X$38,$B$33:$B$38^{1,2,3},$B45^{1,2,3}) -> 7239.361134 | Y45: =TREND(Y$33:Y$38,$B$33:$B$38^{1,2,3},$B45^{1,2,3}) -> 9401.912157 | Z45: =TREND(Z$33:Z$38,$B$33:$B$38^{1,2,3},$B45^{1,2,3}) -> 50432.32695 | AA45: =TREND(AA$33:AA$38,$B$33:$B$38^{1,2,3},$B45^{1,2,3}) -> 8460.858781 | AB45: =TREND(AB$33:AB$38,$B$33:$B$38^{1,2,3},$B45^{1,2,3}) -> 86950.26389 | AC45: =TREND(AC$33:AC$38,$B$33:$B$38^{1,2,3},$B45^{1,2,3}) -> 65571.85799 | AD45: =TREND(AD$33:AD$38,$B$33:$B$38^{1,2,3},$B45^{1,2,3}) -> 14712.12251 | AE45: =TREND(AE$33:AE$38,$B$33:$B$38^{1,2,3},$B45^{1,2,3}) -> 86593.44729 | AF45: =TREND(AF$33:AF$38,$B$33:$B$38^{1,2,3},$B45^{1,2,3}) -> 9787.145737 | AG45: =TREND(AG$33:AG$38,$B$33:$B$38^{1,2,3},$B45^{1,2,3}) -> 28522.99312 | AH45: =TREND(AH$33:AH$38,$B$33:$B$38^{1,2,3},$B45^{1,2,3}) -> 12250.63303 | AI45: =TREND(AI$33:AI$38,$B$33:$B$38^{1,2,3},$B45^{1,2,3}) -> 47037.81513 | AJ45: =TREND(AJ$33:AJ$38,$B$33:$B$38^{1,2,3},$B45^{1,2,3}) -> 15418.42252 | AK45: =TREND(AK$33:AK$38,$B$33:$B$38^{1,2,3},$B45^{1,2,3}) -> 32303.57531 | AL45: =TREND(AL$33:AL$38,$B$33:$B$38^{1,2,3},$B45^{1,2,3}) -> 91504.42267 | AM45: =TREND(AM$33:AM$38,$B$33:$B$38^{1,2,3},$B45^{1,2,3}) -> 18237.05102 | AN45: =TREND(AN$33:AN$38,$B$33:$B$38^{1,2,3},$B45^{1,2,3}) -> 34848.63946 | AO45: =TREND(AO$33:AO$38,$B$33:$B$38^{1,2,3},$B45^{1,2,3}) -> 56890.50309 | AP45: =TREND(AP$33:AP$38,$B$33:$B$38^{1,2,3},$B45^{1,2,3}) -> 60660.82226 | AQ45: =TREND(AQ$33:AQ$38,$B$33:$B$38^{1,2,3},$B45^{1,2,3}) -> 46965.80353 | AR45: =TREND(AR$33:AR$38,$B$33:$B$38^{1,2,3},$B45^{1,2,3}) -> 110457.61 | AS45: =TREND(AS$33:AS$38,$B$33:$B$38^{1,2,3},$B45^{1,2,3}) -> 220726.2442 | AT45: =TREND(AT$33:AT$38,$B$33:$B$38^{1,2,3},$B45^{1,2,3}) -> 26937.21905 | AU45: =TREND(AU$33:AU$38,$B$33:$B$38^{1,2,3},$B45^{1,2,3}) -> 9786.856985 | AV45: =TREND(AV$33:AV$38,$B$33:$B$38^{1,2,3},$B45^{1,2,3}) -> 11152.77197 | AW45: =TREND(AW$33:AW$38,$B$33:$B$38^{1,2,3},$B45^{1,2,3}) -> 55767.75272 | AX45: =TREND(AX$33:AX$38,$B$33:$B$38^{1,2,3},$B45^{1,2,3}) -> 54649.96782 | AY45: =TREND(AY$33:AY$38,$B$33:$B$38^{1,2,3},$B45^{1,2,3}) -> 49648.62491 | AZ45: =TREND(AZ$33:AZ$38,$B$33:$B$38^{1,2,3},$B45^{1,2,3}) -> 4083.530124 | BA45: =TREND(BA$33:BA$38,$B$33:$B$38^{1,2,3},$B45^{1,2,3}) -> 9754.487663 | BB45: =TREND(BB$33:BB$38,$B$33:$B$38^{1,2,3},$B45^{1,2,3}) -> 13710.28099 | BC45: =TREND(BC$33:BC$38,$B$33:$B$38^{1,2,3},$B45^{1,2,3}) -> 8896.120079 | BD45: =TREND(BD$33:BD$38,$B$33:$B$38^{1,2,3},$B45^{1,2,3}) -> 13448.4127 | BE45: =TREND(BE$33:BE$38,$B$33:$B$38^{1,2,3},$B45^{1,2,3}) -> 67150.07819 | BF45: =TREND(BF$33:BF$38,$B$33:$B$38^{1,2,3},$B45^{1,2,3}) -> 404555.0247 | BG45: =TREND(BG$33:BG$38,$B$33:$B$38^{1,2,3},$B45^{1,2,3}) -> 73232.37172 | BH45: =TREND(BH$33:BH$38,$B$33:$B$38^{1,2,3},$B45^{1,2,3}) -> 36212.79905 | BI45: =TREND(BI$33:BI$38,$B$33:$B$38^{1,2,3},$B45^{1,2,3}) -> 48730.94233 | BJ45: =TREND(BJ$33:BJ$38,$B$33:$B$38^{1,2,3},$B45^{1,2,3}) -> 5224.369149 | BK45: =TREND(BK$33:BK$38,$B$33:$B$38^{1,2,3},$B45^{1,2,3}) -> 8280.069099 | BL45: =TREND(BL$33:BL$38,$B$33:$B$38^{1,2,3},$B45^{1,2,3}) -> 23438.71806 | BM45: =TREND(BM$33:BM$38,$B$33:$B$38^{1,2,3},$B45^{1,2,3}) -> 23184.94774 | BN45: =TREND(BN$33:BN$38,$B$33:$B$38^{1,2,3},$B45^{1,2,3}) -> 48599.61043 | BO45: =TREND(BO$33:BO$38,$B$33:$B$38^{1,2,3},$B45^{1,2,3}) -> 134164.7939 | BP45: =TREND(BP$33:BP$38,$B$33:$B$38^{1,2,3},$B45^{1,2,3}) -> 18011.33771 | BQ45: =TREND(BQ$33:BQ$38,$B$33:$B$38^{1,2,3},$B45^{1,2,3}) -> 32337.00839 | BR45: =TREND(BR$33:BR$38,$B$33:$B$38^{1,2,3},$B45^{1,2,3}) -> 12715.07302 | BS45: =TREND(BS$33:BS$38,$B$33:$B$38^{1,2,3},$B45^{1,2,3}) -> 56545.01851 | BT45: =TREND(BT$33:BT$38,$B$33:$B$38^{1,2,3},$B45^{1,2,3}) -> 5190849.478
B46: 2024 | C46: =TREND(C$33:C$38,$B$33:$B$38^{1,2,3},$B46^{1,2,3}) -> 69429.95782 | D46: =TREND(D$33:D$38,$B$33:$B$38^{1,2,3},$B46^{1,2,3}) -> 99991.27527 | E46: =TREND(E$33:E$38,$B$33:$B$38^{1,2,3},$B46^{1,2,3}) -> 24939.73738 | F46: =TREND(F$33:F$38,$B$33:$B$38^{1,2,3},$B46^{1,2,3}) -> 444644.0072 | G46: =TREND(G$33:G$38,$B$33:$B$38^{1,2,3},$B46^{1,2,3}) -> 289437.7707 | H46: =TREND(H$33:H$38,$B$33:$B$38^{1,2,3},$B46^{1,2,3}) -> 391039.1325 | I46: =TREND(I$33:I$38,$B$33:$B$38^{1,2,3},$B46^{1,2,3}) -> 709919.1748 | J46: =TREND(J$33:J$38,$B$33:$B$38^{1,2,3},$B46^{1,2,3}) -> 31217.30592 | K46: =TREND(K$33:K$38,$B$33:$B$38^{1,2,3},$B46^{1,2,3}) -> 21265.5983 | L46: =TREND(L$33:L$38,$B$33:$B$38^{1,2,3},$B46^{1,2,3}) -> 86104.67045 | M46: =TREND(M$33:M$38,$B$33:$B$38^{1,2,3},$B46^{1,2,3}) -> 36333.35347 | N46: =TREND(N$33:N$38,$B$33:$B$38^{1,2,3},$B46^{1,2,3}) -> 184277.7108 | O46: =TREND(O$33:O$38,$B$33:$B$38^{1,2,3},$B46^{1,2,3}) -> 58928.88889 | P46: =TREND(P$33:P$38,$B$33:$B$38^{1,2,3},$B46^{1,2,3}) -> 11094.66667 | Q46: =TREND(Q$33:Q$38,$B$33:$B$38^{1,2,3},$B46^{1,2,3}) -> 24789.21397 | R46: =TREND(R$33:R$38,$B$33:$B$38^{1,2,3},$B46^{1,2,3}) -> 9560.171498 | S46: =TREND(S$33:S$38,$B$33:$B$38^{1,2,3},$B46^{1,2,3}) -> 39684.84513 | T46: =TREND(T$33:T$38,$B$33:$B$38^{1,2,3},$B46^{1,2,3}) -> 56330.67282 | U46: =TREND(U$33:U$38,$B$33:$B$38^{1,2,3},$B46^{1,2,3}) -> 155716.8403 | V46: =TREND(V$33:V$38,$B$33:$B$38^{1,2,3},$B46^{1,2,3}) -> 76618.48302 | W46: =TREND(W$33:W$38,$B$33:$B$38^{1,2,3},$B46^{1,2,3}) -> 37598.77244 | X46: =TREND(X$33:X$38,$B$33:$B$38^{1,2,3},$B46^{1,2,3}) -> 7185.937618 | Y46: =TREND(Y$33:Y$38,$B$33:$B$38^{1,2,3},$B46^{1,2,3}) -> 9335.680332 | Z46: =TREND(Z$33:Z$38,$B$33:$B$38^{1,2,3},$B46^{1,2,3}) -> 50579.03034 | AA46: =TREND(AA$33:AA$38,$B$33:$B$38^{1,2,3},$B46^{1,2,3}) -> 8402.807067 | AB46: =TREND(AB$33:AB$38,$B$33:$B$38^{1,2,3},$B46^{1,2,3}) -> 87355.47944 | AC46: =TREND(AC$33:AC$38,$B$33:$B$38^{1,2,3},$B46^{1,2,3}) -> 65802.89462 | AD46: =TREND(AD$33:AD$38,$B$33:$B$38^{1,2,3},$B46^{1,2,3}) -> 14702.21649 | AE46: =TREND(AE$33:AE$38,$B$33:$B$38^{1,2,3},$B46^{1,2,3}) -> 87202.58006 | AF46: =TREND(AF$33:AF$38,$B$33:$B$38^{1,2,3},$B46^{1,2,3}) -> 9799.161391 | AG46: =TREND(AG$33:AG$38,$B$33:$B$38^{1,2,3},$B46^{1,2,3}) -> 28545.36005 | AH46: =TREND(AH$33:AH$38,$B$33:$B$38^{1,2,3},$B46^{1,2,3}) -> 12135.64339 | AI46: =TREND(AI$33:AI$38,$B$33:$B$38^{1,2,3},$B46^{1,2,3}) -> 47049.62689 | AJ46: =TREND(AJ$33:AJ$38,$B$33:$B$38^{1,2,3},$B46^{1,2,3}) -> 15393.24255 | AK46: =TREND(AK$33:AK$38,$B$33:$B$38^{1,2,3},$B46^{1,2,3}) -> 32526.65401 | AL46: =TREND(AL$33:AL$38,$B$33:$B$38^{1,2,3},$B46^{1,2,3}) -> 92097.4689 | AM46: =TREND(AM$33:AM$38,$B$33:$B$38^{1,2,3},$B46^{1,2,3}) -> 18183.53012 | AN46: =TREND(AN$33:AN$38,$B$33:$B$38^{1,2,3},$B46^{1,2,3}) -> 34882.42177 | AO46: =TREND(AO$33:AO$38,$B$33:$B$38^{1,2,3},$B46^{1,2,3}) -> 57209.75324 | AP46: =TREND(AP$33:AP$38,$B$33:$B$38^{1,2,3},$B46^{1,2,3}) -> 60954.01072 | AQ46: =TREND(AQ$33:AQ$38,$B$33:$B$38^{1,2,3},$B46^{1,2,3}) -> 47244.94495 | AR46: =TREND(AR$33:AR$38,$B$33:$B$38^{1,2,3},$B46^{1,2,3}) -> 110729.9062 | AS46: =TREND(AS$33:AS$38,$B$33:$B$38^{1,2,3},$B46^{1,2,3}) -> 222465.5754 | AT46: =TREND(AT$33:AT$38,$B$33:$B$38^{1,2,3},$B46^{1,2,3}) -> 27016.03352 | AU46: =TREND(AU$33:AU$38,$B$33:$B$38^{1,2,3},$B46^{1,2,3}) -> 9833.74842 | AV46: =TREND(AV$33:AV$38,$B$33:$B$38^{1,2,3},$B46^{1,2,3}) -> 11195.75755 | AW46: =TREND(AW$33:AW$38,$B$33:$B$38^{1,2,3},$B46^{1,2,3}) -> 56080.98914 | AX46: =TREND(AX$33:AX$38,$B$33:$B$38^{1,2,3},$B46^{1,2,3}) -> 54996.78595 | AY46: =TREND(AY$33:AY$38,$B$33:$B$38^{1,2,3},$B46^{1,2,3}) -> 49787.59972 | AZ46: =TREND(AZ$33:AZ$38,$B$33:$B$38^{1,2,3},$B46^{1,2,3}) -> 4083.548386 | BA46: =TREND(BA$33:BA$38,$B$33:$B$38^{1,2,3},$B46^{1,2,3}) -> 9736.233506 | BB46: =TREND(BB$33:BB$38,$B$33:$B$38^{1,2,3},$B46^{1,2,3}) -> 13693.09349 | BC46: =TREND(BC$33:BC$38,$B$33:$B$38^{1,2,3},$B46^{1,2,3}) -> 8899.597282 | BD46: =TREND(BD$33:BD$38,$B$33:$B$38^{1,2,3},$B46^{1,2,3}) -> 13537.83492 | BE46: =TREND(BE$33:BE$38,$B$33:$B$38^{1,2,3},$B46^{1,2,3}) -> 68197.73349 | BF46: =TREND(BF$33:BF$38,$B$33:$B$38^{1,2,3},$B46^{1,2,3}) -> 408098.2204 | BG46: =TREND(BG$33:BG$38,$B$33:$B$38^{1,2,3},$B46^{1,2,3}) -> 74959.06885 | BH46: =TREND(BH$33:BH$38,$B$33:$B$38^{1,2,3},$B46^{1,2,3}) -> 36517.18915 | BI46: =TREND(BI$33:BI$38,$B$33:$B$38^{1,2,3},$B46^{1,2,3}) -> 48926.87032 | BJ46: =TREND(BJ$33:BJ$38,$B$33:$B$38^{1,2,3},$B46^{1,2,3}) -> 5244.513146 | BK46: =TREND(BK$33:BK$38,$B$33:$B$38^{1,2,3},$B46^{1,2,3}) -> 8307.986689 | BL46: =TREND(BL$33:BL$38,$B$33:$B$38^{1,2,3},$B46^{1,2,3}) -> 23536.43385 | BM46: =TREND(BM$33:BM$38,$B$33:$B$38^{1,2,3},$B46^{1,2,3}) -> 23369.2722 | BN46: =TREND(BN$33:BN$38,$B$33:$B$38^{1,2,3},$B46^{1,2,3}) -> 49606.02678 | BO46: =TREND(BO$33:BO$38,$B$33:$B$38^{1,2,3},$B46^{1,2,3}) -> 134646.0381 | BP46: =TREND(BP$33:BP$38,$B$33:$B$38^{1,2,3},$B46^{1,2,3}) -> 18000.23878 | BQ46: =TREND(BQ$33:BQ$38,$B$33:$B$38^{1,2,3},$B46^{1,2,3}) -> 32402.67253 | BR46: =TREND(BR$33:BR$38,$B$33:$B$38^{1,2,3},$B46^{1,2,3}) -> 12693.24394 | BS46: =TREND(BS$33:BS$38,$B$33:$B$38^{1,2,3},$B46^{1,2,3}) -> 56636.89996 | BT46: =TREND(BT$33:BT$38,$B$33:$B$38^{1,2,3},$B46^{1,2,3}) -> 5242684.205
B47: 2025 | C47: =TREND(C$33:C$38,$B$33:$B$38^{1,2,3},$B47^{1,2,3}) -> 69615.75368 | D47: =TREND(D$33:D$38,$B$33:$B$38^{1,2,3},$B47^{1,2,3}) -> 100824.0796 | E47: =TREND(E$33:E$38,$B$33:$B$38^{1,2,3},$B47^{1,2,3}) -> 25112.59857 | F47: =TREND(F$33:F$38,$B$33:$B$38^{1,2,3},$B47^{1,2,3}) -> 451817.7505 | G47: =TREND(G$33:G$38,$B$33:$B$38^{1,2,3},$B47^{1,2,3}) -> 293630.9819 | H47: =TREND(H$33:H$38,$B$33:$B$38^{1,2,3},$B47^{1,2,3}) -> 396704.6922 | I47: =TREND(I$33:I$38,$B$33:$B$38^{1,2,3},$B47^{1,2,3}) -> 719929.0934 | J47: =TREND(J$33:J$38,$B$33:$B$38^{1,2,3},$B47^{1,2,3}) -> 31261.78816 | K47: =TREND(K$33:K$38,$B$33:$B$38^{1,2,3},$B47^{1,2,3}) -> 21321.42291 | L47: =TREND(L$33:L$38,$B$33:$B$38^{1,2,3},$B47^{1,2,3}) -> 87308.88706 | M47: =TREND(M$33:M$38,$B$33:$B$38^{1,2,3},$B47^{1,2,3}) -> 36471.09551 | N47: =TREND(N$33:N$38,$B$33:$B$38^{1,2,3},$B47^{1,2,3}) -> 186667.836 | O47: =TREND(O$33:O$38,$B$33:$B$38^{1,2,3},$B47^{1,2,3}) -> 59514.81697 | P47: =TREND(P$33:P$38,$B$33:$B$38^{1,2,3},$B47^{1,2,3}) -> 11145.0356 | Q47: =TREND(Q$33:Q$38,$B$33:$B$38^{1,2,3},$B47^{1,2,3}) -> 24750.71492 | R47: =TREND(R$33:R$38,$B$33:$B$38^{1,2,3},$B47^{1,2,3}) -> 9536.947165 | S47: =TREND(S$33:S$38,$B$33:$B$38^{1,2,3},$B47^{1,2,3}) -> 39818.92726 | T47: =TREND(T$33:T$38,$B$33:$B$38^{1,2,3},$B47^{1,2,3}) -> 56777.39375 | U47: =TREND(U$33:U$38,$B$33:$B$38^{1,2,3},$B47^{1,2,3}) -> 157769.1638 | V47: =TREND(V$33:V$38,$B$33:$B$38^{1,2,3},$B47^{1,2,3}) -> 76798.78088 | W47: =TREND(W$33:W$38,$B$33:$B$38^{1,2,3},$B47^{1,2,3}) -> 37644.48864 | X47: =TREND(X$33:X$38,$B$33:$B$38^{1,2,3},$B47^{1,2,3}) -> 7129.377897 | Y47: =TREND(Y$33:Y$38,$B$33:$B$38^{1,2,3},$B47^{1,2,3}) -> 9265.206544 | Z47: =TREND(Z$33:Z$38,$B$33:$B$38^{1,2,3},$B47^{1,2,3}) -> 50712.3134 | AA47: =TREND(AA$33:AA$38,$B$33:$B$38^{1,2,3},$B47^{1,2,3}) -> 8342.327179 | AB47: =TREND(AB$33:AB$38,$B$33:$B$38^{1,2,3},$B47^{1,2,3}) -> 87744.09111 | AC47: =TREND(AC$33:AC$38,$B$33:$B$38^{1,2,3},$B47^{1,2,3}) -> 66019.14933 | AD47: =TREND(AD$33:AD$38,$B$33:$B$38^{1,2,3},$B47^{1,2,3}) -> 14685.19156 | AE47: =TREND(AE$33:AE$38,$B$33:$B$38^{1,2,3},$B47^{1,2,3}) -> 87794.70313 | AF47: =TREND(AF$33:AF$38,$B$33:$B$38^{1,2,3},$B47^{1,2,3}) -> 9809.875602 | AG47: =TREND(AG$33:AG$38,$B$33:$B$38^{1,2,3},$B47^{1,2,3}) -> 28560.46884 | AH47: =TREND(AH$33:AH$38,$B$33:$B$38^{1,2,3},$B47^{1,2,3}) -> 12015.67581 | AI47: =TREND(AI$33:AI$38,$B$33:$B$38^{1,2,3},$B47^{1,2,3}) -> 47049.18319 | AJ47: =TREND(AJ$33:AJ$38,$B$33:$B$38^{1,2,3},$B47^{1,2,3}) -> 15361.84552 | AK47: =TREND(AK$33:AK$38,$B$33:$B$38^{1,2,3},$B47^{1,2,3}) -> 32743.3844 | AL47: =TREND(AL$33:AL$38,$B$33:$B$38^{1,2,3},$B47^{1,2,3}) -> 92675.18984 | AM47: =TREND(AM$33:AM$38,$B$33:$B$38^{1,2,3},$B47^{1,2,3}) -> 18125.95608 | AN47: =TREND(AN$33:AN$38,$B$33:$B$38^{1,2,3},$B47^{1,2,3}) -> 34904.54422 | AO47: =TREND(AO$33:AO$38,$B$33:$B$38^{1,2,3},$B47^{1,2,3}) -> 57521.73645 | AP47: =TREND(AP$33:AP$38,$B$33:$B$38^{1,2,3},$B47^{1,2,3}) -> 61227.86649 | AQ47: =TREND(AQ$33:AQ$38,$B$33:$B$38^{1,2,3},$B47^{1,2,3}) -> 47512.58278 | AR47: =TREND(AR$33:AR$38,$B$33:$B$38^{1,2,3},$B47^{1,2,3}) -> 110970.2545 | AS47: =TREND(AS$33:AS$38,$B$33:$B$38^{1,2,3},$B47^{1,2,3}) -> 224157.7086 | AT47: =TREND(AT$33:AT$38,$B$33:$B$38^{1,2,3},$B47^{1,2,3}) -> 27085.62895 | AU47: =TREND(AU$33:AU$38,$B$33:$B$38^{1,2,3},$B47^{1,2,3}) -> 9877.76194 | AV47: =TREND(AV$33:AV$38,$B$33:$B$38^{1,2,3},$B47^{1,2,3}) -> 11236.39012 | AW47: =TREND(AW$33:AW$38,$B$33:$B$38^{1,2,3},$B47^{1,2,3}) -> 56379.97661 | AX47: =TREND(AX$33:AX$38,$B$33:$B$38^{1,2,3},$B47^{1,2,3}) -> 55329.20581 | AY47: =TREND(AY$33:AY$38,$B$33:$B$38^{1,2,3},$B47^{1,2,3}) -> 49910.81173 | AZ47: =TREND(AZ$33:AZ$38,$B$33:$B$38^{1,2,3},$B47^{1,2,3}) -> 4082.123936 | BA47: =TREND(BA$33:BA$38,$B$33:$B$38^{1,2,3},$B47^{1,2,3}) -> 9717.973157 | BB47: =TREND(BB$33:BB$38,$B$33:$B$38^{1,2,3},$B47^{1,2,3}) -> 13672.58403 | BC47: =TREND(BC$33:BC$38,$B$33:$B$38^{1,2,3},$B47^{1,2,3}) -> 8899.931763 | BD47: =TREND(BD$33:BD$38,$B$33:$B$38^{1,2,3},$B47^{1,2,3}) -> 13623.75873 | BE47: =TREND(BE$33:BE$38,$B$33:$B$38^{1,2,3},$B47^{1,2,3}) -> 69210.74367 | BF47: =TREND(BF$33:BF$38,$B$33:$B$38^{1,2,3},$B47^{1,2,3}) -> 411475.313 | BG47: =TREND(BG$33:BG$38,$B$33:$B$38^{1,2,3},$B47^{1,2,3}) -> 76619.01993 | BH47: =TREND(BH$33:BH$38,$B$33:$B$38^{1,2,3},$B47^{1,2,3}) -> 36816.13467 | BI47: =TREND(BI$33:BI$38,$B$33:$B$38^{1,2,3},$B47^{1,2,3}) -> 49111.76146 | BJ47: =TREND(BJ$33:BJ$38,$B$33:$B$38^{1,2,3},$B47^{1,2,3}) -> 5263.248433 | BK47: =TREND(BK$33:BK$38,$B$33:$B$38^{1,2,3},$B47^{1,2,3}) -> 8334.472394 | BL47: =TREND(BL$33:BL$38,$B$33:$B$38^{1,2,3},$B47^{1,2,3}) -> 23630.47887 | BM47: =TREND(BM$33:BM$38,$B$33:$B$38^{1,2,3},$B47^{1,2,3}) -> 23548.35735 | BN47: =TREND(BN$33:BN$38,$B$33:$B$38^{1,2,3},$B47^{1,2,3}) -> 50557.24895 | BO47: =TREND(BO$33:BO$38,$B$33:$B$38^{1,2,3},$B47^{1,2,3}) -> 135094.5106 | BP47: =TREND(BP$33:BP$38,$B$33:$B$38^{1,2,3},$B47^{1,2,3}) -> 17986.89663 | BQ47: =TREND(BQ$33:BQ$38,$B$33:$B$38^{1,2,3},$B47^{1,2,3}) -> 32460.91881 | BR47: =TREND(BR$33:BR$38,$B$33:$B$38^{1,2,3},$B47^{1,2,3}) -> 12669.15556 | BS47: =TREND(BS$33:BS$38,$B$33:$B$38^{1,2,3},$B47^{1,2,3}) -> 56715.91954 | BT47: =TREND(BT$33:BT$38,$B$33:$B$38^{1,2,3},$B47^{1,2,3}) -> 5292641.752
B48: 2026 | C48: =TREND(C$33:C$38,$B$33:$B$38^{1,2,3},$B48^{1,2,3}) -> 69780.90556 | D48: =TREND(D$33:D$38,$B$33:$B$38^{1,2,3},$B48^{1,2,3}) -> 101620.4032 | E48: =TREND(E$33:E$38,$B$33:$B$38^{1,2,3},$B48^{1,2,3}) -> 25275.48571 | F48: =TREND(F$33:F$38,$B$33:$B$38^{1,2,3},$B48^{1,2,3}) -> 458836.9042 | G48: =TREND(G$33:G$38,$B$33:$B$38^{1,2,3},$B48^{1,2,3}) -> 297765.4867 | H48: =TREND(H$33:H$38,$B$33:$B$38^{1,2,3},$B48^{1,2,3}) -> 402146.9957 | I48: =TREND(I$33:I$38,$B$33:$B$38^{1,2,3},$B48^{1,2,3}) -> 729650.3751 | J48: =TREND(J$33:J$38,$B$33:$B$38^{1,2,3},$B48^{1,2,3}) -> 31293.95678 | K48: =TREND(K$33:K$38,$B$33:$B$38^{1,2,3},$B48^{1,2,3}) -> 21367.06506 | L48: =TREND(L$33:L$38,$B$33:$B$38^{1,2,3},$B48^{1,2,3}) -> 88485.9542 | M48: =TREND(M$33:M$38,$B$33:$B$38^{1,2,3},$B48^{1,2,3}) -> 36599.32816 | N48: =TREND(N$33:N$38,$B$33:$B$38^{1,2,3},$B48^{1,2,3}) -> 189006.8677 | O48: =TREND(O$33:O$38,$B$33:$B$38^{1,2,3},$B48^{1,2,3}) -> 60082.52672 | P48: =TREND(P$33:P$38,$B$33:$B$38^{1,2,3},$B48^{1,2,3}) -> 11184.39806 | Q48: =TREND(Q$33:Q$38,$B$33:$B$38^{1,2,3},$B48^{1,2,3}) -> 24701.86286 | R48: =TREND(R$33:R$38,$B$33:$B$38^{1,2,3},$B48^{1,2,3}) -> 9510.368371 | S48: =TREND(S$33:S$38,$B$33:$B$38^{1,2,3},$B48^{1,2,3}) -> 39940.60389 | T48: =TREND(T$33:T$38,$B$33:$B$38^{1,2,3},$B48^{1,2,3}) -> 57211.71717 | U48: =TREND(U$33:U$38,$B$33:$B$38^{1,2,3},$B48^{1,2,3}) -> 159768.1758 | V48: =TREND(V$33:V$38,$B$33:$B$38^{1,2,3},$B48^{1,2,3}) -> 76947.58053 | W48: =TREND(W$33:W$38,$B$33:$B$38^{1,2,3},$B48^{1,2,3}) -> 37678.6771 | X48: =TREND(X$33:X$38,$B$33:$B$38^{1,2,3},$B48^{1,2,3}) -> 7069.744985 | Y48: =TREND(Y$33:Y$38,$B$33:$B$38^{1,2,3},$B48^{1,2,3}) -> 9190.539632 | Z48: =TREND(Z$33:Z$38,$B$33:$B$38^{1,2,3},$B48^{1,2,3}) -> 50832.26686 | AA48: =TREND(AA$33:AA$38,$B$33:$B$38^{1,2,3},$B48^{1,2,3}) -> 8279.347701 | AB48: =TREND(AB$33:AB$38,$B$33:$B$38^{1,2,3},$B48^{1,2,3}) -> 88115.62833 | AC48: =TREND(AC$33:AC$38,$B$33:$B$38^{1,2,3},$B48^{1,2,3}) -> 66220.80589 | AD48: =TREND(AD$33:AD$38,$B$33:$B$38^{1,2,3},$B48^{1,2,3}) -> 14661.28279 | AE48: =TREND(AE$33:AE$38,$B$33:$B$38^{1,2,3},$B48^{1,2,3}) -> 88369.95214 | AF48: =TREND(AF$33:AF$38,$B$33:$B$38^{1,2,3},$B48^{1,2,3}) -> 9819.269946 | AG48: =TREND(AG$33:AG$38,$B$33:$B$38^{1,2,3},$B48^{1,2,3}) -> 28568.49981 | AH48: =TREND(AH$33:AH$38,$B$33:$B$38^{1,2,3},$B48^{1,2,3}) -> 11890.80227 | AI48: =TREND(AI$33:AI$38,$B$33:$B$38^{1,2,3},$B48^{1,2,3}) -> 47036.53109 | AJ48: =TREND(AJ$33:AJ$38,$B$33:$B$38^{1,2,3},$B48^{1,2,3}) -> 15324.46106 | AK48: =TREND(AK$33:AK$38,$B$33:$B$38^{1,2,3},$B48^{1,2,3}) -> 32953.49632 | AL48: =TREND(AL$33:AL$38,$B$33:$B$38^{1,2,3},$B48^{1,2,3}) -> 93237.89694 | AM48: =TREND(AM$33:AM$38,$B$33:$B$38^{1,2,3},$B48^{1,2,3}) -> 18064.14147 | AN48: =TREND(AN$33:AN$38,$B$33:$B$38^{1,2,3},$B48^{1,2,3}) -> 34915.38776 | AO48: =TREND(AO$33:AO$38,$B$33:$B$38^{1,2,3},$B48^{1,2,3}) -> 57826.31412 | AP48: =TREND(AP$33:AP$38,$B$33:$B$38^{1,2,3},$B48^{1,2,3}) -> 61482.48205 | AQ48: =TREND(AQ$33:AQ$38,$B$33:$B$38^{1,2,3},$B48^{1,2,3}) -> 47768.67053 | AR48: =TREND(AR$33:AR$38,$B$33:$B$38^{1,2,3},$B48^{1,2,3}) -> 111179.1146 | AS48: =TREND(AS$33:AS$38,$B$33:$B$38^{1,2,3},$B48^{1,2,3}) -> 225804.4082 | AT48: =TREND(AT$33:AT$38,$B$33:$B$38^{1,2,3},$B48^{1,2,3}) -> 27146.24 | AU48: =TREND(AU$33:AU$38,$B$33:$B$38^{1,2,3},$B48^{1,2,3}) -> 9918.925506 | AV48: =TREND(AV$33:AV$38,$B$33:$B$38^{1,2,3},$B48^{1,2,3}) -> 11274.64604 | AW48: =TREND(AW$33:AW$38,$B$33:$B$38^{1,2,3},$B48^{1,2,3}) -> 56664.2005 | AX48: =TREND(AX$33:AX$38,$B$33:$B$38^{1,2,3},$B48^{1,2,3}) -> 55647.36304 | AY48: =TREND(AY$33:AY$38,$B$33:$B$38^{1,2,3},$B48^{1,2,3}) -> 50018.73147 | AZ48: =TREND(AZ$33:AZ$38,$B$33:$B$38^{1,2,3},$B48^{1,2,3}) -> 4079.32069 | BA48: =TREND(BA$33:BA$38,$B$33:$B$38^{1,2,3},$B48^{1,2,3}) -> 9699.598256 | BB48: =TREND(BB$33:BB$38,$B$33:$B$38^{1,2,3},$B48^{1,2,3}) -> 13648.75263 | BC48: =TREND(BC$33:BC$38,$B$33:$B$38^{1,2,3},$B48^{1,2,3}) -> 8897.221077 | BD48: =TREND(BD$33:BD$38,$B$33:$B$38^{1,2,3},$B48^{1,2,3}) -> 13706.1619 | BE48: =TREND(BE$33:BE$38,$B$33:$B$38^{1,2,3},$B48^{1,2,3}) -> 70190.98766 | BF48: =TREND(BF$33:BF$38,$B$33:$B$38^{1,2,3},$B48^{1,2,3}) -> 414696.2587 | BG48: =TREND(BG$33:BG$38,$B$33:$B$38^{1,2,3},$B48^{1,2,3}) -> 78218.1334 | BH48: =TREND(BH$33:BH$38,$B$33:$B$38^{1,2,3},$B48^{1,2,3}) -> 37110.07877 | BI48: =TREND(BI$33:BI$38,$B$33:$B$38^{1,2,3},$B48^{1,2,3}) -> 49285.48186 | BJ48: =TREND(BJ$33:BJ$38,$B$33:$B$38^{1,2,3},$B48^{1,2,3}) -> 5280.681563 | BK48: =TREND(BK$33:BK$38,$B$33:$B$38^{1,2,3},$B48^{1,2,3}) -> 8359.575589 | BL48: =TREND(BL$33:BL$38,$B$33:$B$38^{1,2,3},$B48^{1,2,3}) -> 23720.89874 | BM48: =TREND(BM$33:BM$38,$B$33:$B$38^{1,2,3},$B48^{1,2,3}) -> 23721.91443 | BN48: =TREND(BN$33:BN$38,$B$33:$B$38^{1,2,3},$B48^{1,2,3}) -> 51458.11016 | BO48: =TREND(BO$33:BO$38,$B$33:$B$38^{1,2,3},$B48^{1,2,3}) -> 135511.3415 | BP48: =TREND(BP$33:BP$38,$B$33:$B$38^{1,2,3},$B48^{1,2,3}) -> 17970.92381 | BQ48: =TREND(BQ$33:BQ$38,$B$33:$B$38^{1,2,3},$B48^{1,2,3}) -> 32511.97301 | BR48: =TREND(BR$33:BR$38,$B$33:$B$38^{1,2,3},$B48^{1,2,3}) -> 12642.6941 | BS48: =TREND(BS$33:BS$38,$B$33:$B$38^{1,2,3},$B48^{1,2,3}) -> 56782.21204 | BT48: =TREND(BT$33:BT$38,$B$33:$B$38^{1,2,3},$B48^{1,2,3}) -> 5340805.615
B49: 2027 | C49: =TREND(C$33:C$38,$B$33:$B$38^{1,2,3},$B49^{1,2,3}) -> 69925.26953 | D49: =TREND(D$33:D$38,$B$33:$B$38^{1,2,3},$B49^{1,2,3}) -> 102382.1848 | E49: =TREND(E$33:E$38,$B$33:$B$38^{1,2,3},$B49^{1,2,3}) -> 25428.3056 | F49: =TREND(F$33:F$38,$B$33:$B$38^{1,2,3},$B49^{1,2,3}) -> 465709.3671 | G49: =TREND(G$33:G$38,$B$33:$B$38^{1,2,3},$B49^{1,2,3}) -> 301843.7331 | H49: =TREND(H$33:H$38,$B$33:$B$38^{1,2,3},$B49^{1,2,3}) -> 407382.5714 | I49: =TREND(I$33:I$38,$B$33:$B$38^{1,2,3},$B49^{1,2,3}) -> 739097.1206 | J49: =TREND(J$33:J$38,$B$33:$B$38^{1,2,3},$B49^{1,2,3}) -> 31313.9059 | K49: =TREND(K$33:K$38,$B$33:$B$38^{1,2,3},$B49^{1,2,3}) -> 21402.75248 | L49: =TREND(L$33:L$38,$B$33:$B$38^{1,2,3},$B49^{1,2,3}) -> 89637.35083 | M49: =TREND(M$33:M$38,$B$33:$B$38^{1,2,3},$B49^{1,2,3}) -> 36718.05143 | N49: =TREND(N$33:N$38,$B$33:$B$38^{1,2,3},$B49^{1,2,3}) -> 191298.6703 | O49: =TREND(O$33:O$38,$B$33:$B$38^{1,2,3},$B49^{1,2,3}) -> 60632.3356 | P49: =TREND(P$33:P$38,$B$33:$B$38^{1,2,3},$B49^{1,2,3}) -> 11213.68285 | Q49: =TREND(Q$33:Q$38,$B$33:$B$38^{1,2,3},$B49^{1,2,3}) -> 24642.79556 | R49: =TREND(R$33:R$38,$B$33:$B$38^{1,2,3},$B49^{1,2,3}) -> 9480.469949 | S49: =TREND(S$33:S$38,$B$33:$B$38^{1,2,3},$B49^{1,2,3}) -> 40050.24397 | T49: =TREND(T$33:T$38,$B$33:$B$38^{1,2,3},$B49^{1,2,3}) -> 57633.40337 | U49: =TREND(U$33:U$38,$B$33:$B$38^{1,2,3},$B49^{1,2,3}) -> 161717.8148 | V49: =TREND(V$33:V$38,$B$33:$B$38^{1,2,3},$B49^{1,2,3}) -> 77065.90059 | W49: =TREND(W$33:W$38,$B$33:$B$38^{1,2,3},$B49^{1,2,3}) -> 37701.19963 | X49: =TREND(X$33:X$38,$B$33:$B$38^{1,2,3},$B49^{1,2,3}) -> 7007.101897 | Y49: =TREND(Y$33:Y$38,$B$33:$B$38^{1,2,3},$B49^{1,2,3}) -> 9111.728434 | Z49: =TREND(Z$33:Z$38,$B$33:$B$38^{1,2,3},$B49^{1,2,3}) -> 50938.98144 | AA49: =TREND(AA$33:AA$38,$B$33:$B$38^{1,2,3},$B49^{1,2,3}) -> 8213.797215 | AB49: =TREND(AB$33:AB$38,$B$33:$B$38^{1,2,3},$B49^{1,2,3}) -> 88469.62056 | AC49: =TREND(AC$33:AC$38,$B$33:$B$38^{1,2,3},$B49^{1,2,3}) -> 66408.04809 | AD49: =TREND(AD$33:AD$38,$B$33:$B$38^{1,2,3},$B49^{1,2,3}) -> 14630.72523 | AE49: =TREND(AE$33:AE$38,$B$33:$B$38^{1,2,3},$B49^{1,2,3}) -> 88928.46268 | AF49: =TREND(AF$33:AF$38,$B$33:$B$38^{1,2,3},$B49^{1,2,3}) -> 9827.326 | AG49: =TREND(AG$33:AG$38,$B$33:$B$38^{1,2,3},$B49^{1,2,3}) -> 28569.63329 | AH49: =TREND(AH$33:AH$38,$B$33:$B$38^{1,2,3},$B49^{1,2,3}) -> 11761.09471 | AI49: =TREND(AI$33:AI$38,$B$33:$B$38^{1,2,3},$B49^{1,2,3}) -> 47011.71765 | AJ49: =TREND(AJ$33:AJ$38,$B$33:$B$38^{1,2,3},$B49^{1,2,3}) -> 15281.31884 | AK49: =TREND(AK$33:AK$38,$B$33:$B$38^{1,2,3},$B49^{1,2,3}) -> 33156.71965 | AL49: =TREND(AL$33:AL$38,$B$33:$B$38^{1,2,3},$B49^{1,2,3}) -> 93785.90169 | AM49: =TREND(AM$33:AM$38,$B$33:$B$38^{1,2,3},$B49^{1,2,3}) -> 17997.89886 | AN49: =TREND(AN$33:AN$38,$B$33:$B$38^{1,2,3},$B49^{1,2,3}) -> 34915.33333 | AO49: =TREND(AO$33:AO$38,$B$33:$B$38^{1,2,3},$B49^{1,2,3}) -> 58123.34765 | AP49: =TREND(AP$33:AP$38,$B$33:$B$38^{1,2,3},$B49^{1,2,3}) -> 61717.9499 | AQ49: =TREND(AQ$33:AQ$38,$B$33:$B$38^{1,2,3},$B49^{1,2,3}) -> 48013.1617 | AR49: =TREND(AR$33:AR$38,$B$33:$B$38^{1,2,3},$B49^{1,2,3}) -> 111356.946 | AS49: =TREND(AS$33:AS$38,$B$33:$B$38^{1,2,3},$B49^{1,2,3}) -> 227407.4386 | AT49: =TREND(AT$33:AT$38,$B$33:$B$38^{1,2,3},$B49^{1,2,3}) -> 27198.10133 | AU49: =TREND(AU$33:AU$38,$B$33:$B$38^{1,2,3},$B49^{1,2,3}) -> 9957.267078 | AV49: =TREND(AV$33:AV$38,$B$33:$B$38^{1,2,3},$B49^{1,2,3}) -> 11310.50168 | AW49: =TREND(AW$33:AW$38,$B$33:$B$38^{1,2,3},$B49^{1,2,3}) -> 56933.1462 | AX49: =TREND(AX$33:AX$38,$B$33:$B$38^{1,2,3},$B49^{1,2,3}) -> 55951.39331 | AY49: =TREND(AY$33:AY$38,$B$33:$B$38^{1,2,3},$B49^{1,2,3}) -> 50111.82947 | AZ49: =TREND(AZ$33:AZ$38,$B$33:$B$38^{1,2,3},$B49^{1,2,3}) -> 4075.202567 | BA49: =TREND(BA$33:BA$38,$B$33:$B$38^{1,2,3},$B49^{1,2,3}) -> 9681.00044 | BB49: =TREND(BB$33:BB$38,$B$33:$B$38^{1,2,3},$B49^{1,2,3}) -> 13621.59926 | BC49: =TREND(BC$33:BC$38,$B$33:$B$38^{1,2,3},$B49^{1,2,3}) -> 8891.562782 | BD49: =TREND(BD$33:BD$38,$B$33:$B$38^{1,2,3},$B49^{1,2,3}) -> 13785.02222 | BE49: =TREND(BE$33:BE$38,$B$33:$B$38^{1,2,3},$B49^{1,2,3}) -> 71140.34439 | BF49: =TREND(BF$33:BF$38,$B$33:$B$38^{1,2,3},$B49^{1,2,3}) -> 417771.0138 | BG49: =TREND(BG$33:BG$38,$B$33:$B$38^{1,2,3},$B49^{1,2,3}) -> 79762.31772 | BH49: =TREND(BH$33:BH$38,$B$33:$B$38^{1,2,3},$B49^{1,2,3}) -> 37399.46462 | BI49: =TREND(BI$33:BI$38,$B$33:$B$38^{1,2,3},$B49^{1,2,3}) -> 49447.89761 | BJ49: =TREND(BJ$33:BJ$38,$B$33:$B$38^{1,2,3},$B49^{1,2,3}) -> 5296.919088 | BK49: =TREND(BK$33:BK$38,$B$33:$B$38^{1,2,3},$B49^{1,2,3}) -> 8383.34565 | BL49: =TREND(BL$33:BL$38,$B$33:$B$38^{1,2,3},$B49^{1,2,3}) -> 23807.73911 | BM49: =TREND(BM$33:BM$38,$B$33:$B$38^{1,2,3},$B49^{1,2,3}) -> 23889.65463 | BN49: =TREND(BN$33:BN$38,$B$33:$B$38^{1,2,3},$B49^{1,2,3}) -> 52313.44357 | BO49: =TREND(BO$33:BO$38,$B$33:$B$38^{1,2,3},$B49^{1,2,3}) -> 135897.6606 | BP49: =TREND(BP$33:BP$38,$B$33:$B$38^{1,2,3},$B49^{1,2,3}) -> 17951.93289 | BQ49: =TREND(BQ$33:BQ$38,$B$33:$B$38^{1,2,3},$B49^{1,2,3}) -> 32556.06086 | BR49: =TREND(BR$33:BR$38,$B$33:$B$38^{1,2,3},$B49^{1,2,3}) -> 12613.74578 | BS49: =TREND(BS$33:BS$38,$B$33:$B$38^{1,2,3},$B49^{1,2,3}) -> 56835.91224 | BT49: =TREND(BT$33:BT$38,$B$33:$B$38^{1,2,3},$B49^{1,2,3}) -> 5387259.289
B50: 2028 | C50: =TREND(C$33:C$38,$B$33:$B$38^{1,2,3},$B50^{1,2,3}) -> 70048.70164 | D50: =TREND(D$33:D$38,$B$33:$B$38^{1,2,3},$B50^{1,2,3}) -> 103111.3634 | E50: =TREND(E$33:E$38,$B$33:$B$38^{1,2,3},$B50^{1,2,3}) -> 25570.96502 | F50: =TREND(F$33:F$38,$B$33:$B$38^{1,2,3},$B50^{1,2,3}) -> 472443.038 | G50: =TREND(G$33:G$38,$B$33:$B$38^{1,2,3},$B50^{1,2,3}) -> 305868.169 | H50: =TREND(H$33:H$38,$B$33:$B$38^{1,2,3},$B50^{1,2,3}) -> 412427.9478 | I50: =TREND(I$33:I$38,$B$33:$B$38^{1,2,3},$B50^{1,2,3}) -> 748283.4311 | J50: =TREND(J$33:J$38,$B$33:$B$38^{1,2,3},$B50^{1,2,3}) -> 31321.72961 | K50: =TREND(K$33:K$38,$B$33:$B$38^{1,2,3},$B50^{1,2,3}) -> 21428.71287 | L50: =TREND(L$33:L$38,$B$33:$B$38^{1,2,3},$B50^{1,2,3}) -> 90764.55589 | M50: =TREND(M$33:M$38,$B$33:$B$38^{1,2,3},$B50^{1,2,3}) -> 36827.26531 | N50: =TREND(N$33:N$38,$B$33:$B$38^{1,2,3},$B50^{1,2,3}) -> 193547.1081 | O50: =TREND(O$33:O$38,$B$33:$B$38^{1,2,3},$B50^{1,2,3}) -> 61164.56106 | P50: =TREND(P$33:P$38,$B$33:$B$38^{1,2,3},$B50^{1,2,3}) -> 11233.81877 | Q50: =TREND(Q$33:Q$38,$B$33:$B$38^{1,2,3},$B50^{1,2,3}) -> 24573.65079 | R50: =TREND(R$33:R$38,$B$33:$B$38^{1,2,3},$B50^{1,2,3}) -> 9447.286732 | S50: =TREND(S$33:S$38,$B$33:$B$38^{1,2,3},$B50^{1,2,3}) -> 40148.21642 | T50: =TREND(T$33:T$38,$B$33:$B$38^{1,2,3},$B50^{1,2,3}) -> 58042.2126 | U50: =TREND(U$33:U$38,$B$33:$B$38^{1,2,3},$B50^{1,2,3}) -> 163622.0194 | V50: =TREND(V$33:V$38,$B$33:$B$38^{1,2,3},$B50^{1,2,3}) -> 77154.75969 | W50: =TREND(W$33:W$38,$B$33:$B$38^{1,2,3},$B50^{1,2,3}) -> 37711.91806 | X50: =TREND(X$33:X$38,$B$33:$B$38^{1,2,3},$B50^{1,2,3}) -> 6941.511649 | Y50: =TREND(Y$33:Y$38,$B$33:$B$38^{1,2,3},$B50^{1,2,3}) -> 9028.821789 | Z50: =TREND(Z$33:Z$38,$B$33:$B$38^{1,2,3},$B50^{1,2,3}) -> 51032.54786 | AA50: =TREND(AA$33:AA$38,$B$33:$B$38^{1,2,3},$B50^{1,2,3}) -> 8145.604306 | AB50: =TREND(AB$33:AB$38,$B$33:$B$38^{1,2,3},$B50^{1,2,3}) -> 88805.59722 | AC50: =TREND(AC$33:AC$38,$B$33:$B$38^{1,2,3},$B50^{1,2,3}) -> 66581.05973 | AD50: =TREND(AD$33:AD$38,$B$33:$B$38^{1,2,3},$B50^{1,2,3}) -> 14593.75394 | AE50: =TREND(AE$33:AE$38,$B$33:$B$38^{1,2,3},$B50^{1,2,3}) -> 89470.37037 | AF50: =TREND(AF$33:AF$38,$B$33:$B$38^{1,2,3},$B50^{1,2,3}) -> 9834.025343 | AG50: =TREND(AG$33:AG$38,$B$33:$B$38^{1,2,3},$B50^{1,2,3}) -> 28564.04961 | AH50: =TREND(AH$33:AH$38,$B$33:$B$38^{1,2,3},$B50^{1,2,3}) -> 11626.62509 | AI50: =TREND(AI$33:AI$38,$B$33:$B$38^{1,2,3},$B50^{1,2,3}) -> 46974.78992 | AJ50: =TREND(AJ$33:AJ$38,$B$33:$B$38^{1,2,3},$B50^{1,2,3}) -> 15232.64851 | AK50: =TREND(AK$33:AK$38,$B$33:$B$38^{1,2,3},$B50^{1,2,3}) -> 33352.78424 | AL50: =TREND(AL$33:AL$38,$B$33:$B$38^{1,2,3},$B50^{1,2,3}) -> 94319.51553 | AM50: =TREND(AM$33:AM$38,$B$33:$B$38^{1,2,3},$B50^{1,2,3}) -> 17927.04082 | AN50: =TREND(AN$33:AN$38,$B$33:$B$38^{1,2,3},$B50^{1,2,3}) -> 34904.7619 | AO50: =TREND(AO$33:AO$38,$B$33:$B$38^{1,2,3},$B50^{1,2,3}) -> 58412.69841 | AP50: =TREND(AP$33:AP$38,$B$33:$B$38^{1,2,3},$B50^{1,2,3}) -> 61934.36256 | AQ50: =TREND(AQ$33:AQ$38,$B$33:$B$38^{1,2,3},$B50^{1,2,3}) -> 48246.0098 | AR50: =TREND(AR$33:AR$38,$B$33:$B$38^{1,2,3},$B50^{1,2,3}) -> 111504.2086 | AS50: =TREND(AS$33:AS$38,$B$33:$B$38^{1,2,3},$B50^{1,2,3}) -> 228968.5643 | AT50: =TREND(AT$33:AT$38,$B$33:$B$38^{1,2,3},$B50^{1,2,3}) -> 27241.44762 | AU50: =TREND(AU$33:AU$38,$B$33:$B$38^{1,2,3},$B50^{1,2,3}) -> 9992.814616 | AV50: =TREND(AV$33:AV$38,$B$33:$B$38^{1,2,3},$B50^{1,2,3}) -> 11343.93341 | AW50: =TREND(AW$33:AW$38,$B$33:$B$38^{1,2,3},$B50^{1,2,3}) -> 57186.29908 | AX50: =TREND(AX$33:AX$38,$B$33:$B$38^{1,2,3},$B50^{1,2,3}) -> 56241.43225 | AY50: =TREND(AY$33:AY$38,$B$33:$B$38^{1,2,3},$B50^{1,2,3}) -> 50190.57626 | AZ50: =TREND(AZ$33:AZ$38,$B$33:$B$38^{1,2,3},$B50^{1,2,3}) -> 4069.833485 | BA50: =TREND(BA$33:BA$38,$B$33:$B$38^{1,2,3},$B50^{1,2,3}) -> 9662.07135 | BB50: =TREND(BB$33:BB$38,$B$33:$B$38^{1,2,3},$B50^{1,2,3}) -> 13591.12395 | BC50: =TREND(BC$33:BC$38,$B$33:$B$38^{1,2,3},$B50^{1,2,3}) -> 8883.054435 | BD50: =TREND(BD$33:BD$38,$B$33:$B$38^{1,2,3},$B50^{1,2,3}) -> 13860.31746 | BE50: =TREND(BE$33:BE$38,$B$33:$B$38^{1,2,3},$B50^{1,2,3}) -> 72060.69278 | BF50: =TREND(BF$33:BF$38,$B$33:$B$38^{1,2,3},$B50^{1,2,3}) -> 420709.5345 | BG50: =TREND(BG$33:BG$38,$B$33:$B$38^{1,2,3},$B50^{1,2,3}) -> 81257.48135 | BH50: =TREND(BH$33:BH$38,$B$33:$B$38^{1,2,3},$B50^{1,2,3}) -> 37684.73537 | BI50: =TREND(BI$33:BI$38,$B$33:$B$38^{1,2,3},$B50^{1,2,3}) -> 49598.87482 | BJ50: =TREND(BJ$33:BJ$38,$B$33:$B$38^{1,2,3},$B50^{1,2,3}) -> 5312.067562 | BK50: =TREND(BK$33:BK$38,$B$33:$B$38^{1,2,3},$B50^{1,2,3}) -> 8405.831951 | BL50: =TREND(BL$33:BL$38,$B$33:$B$38^{1,2,3},$B50^{1,2,3}) -> 23891.04563 | BM50: =TREND(BM$33:BM$38,$B$33:$B$38^{1,2,3},$B50^{1,2,3}) -> 24051.2892 | BN50: =TREND(BN$33:BN$38,$B$33:$B$38^{1,2,3},$B50^{1,2,3}) -> 53128.08239 | BO50: =TREND(BO$33:BO$38,$B$33:$B$38^{1,2,3},$B50^{1,2,3}) -> 136254.5983 | BP50: =TREND(BP$33:BP$38,$B$33:$B$38^{1,2,3},$B50^{1,2,3}) -> 17929.53644 | BQ50: =TREND(BQ$33:BQ$38,$B$33:$B$38^{1,2,3},$B50^{1,2,3}) -> 32593.40815 | BR50: =TREND(BR$33:BR$38,$B$33:$B$38^{1,2,3},$B50^{1,2,3}) -> 12582.19683 | BS50: =TREND(BS$33:BS$38,$B$33:$B$38^{1,2,3},$B50^{1,2,3}) -> 56877.15491 | BT50: =TREND(BT$33:BT$38,$B$33:$B$38^{1,2,3},$B50^{1,2,3}) -> 5432086.268
B51: 2029 | C51: =TREND(C$33:C$38,$B$33:$B$38^{1,2,3},$B51^{1,2,3}) -> 70151.05798 | D51: =TREND(D$33:D$38,$B$33:$B$38^{1,2,3},$B51^{1,2,3}) -> 103809.8776 | E51: =TREND(E$33:E$38,$B$33:$B$38^{1,2,3},$B51^{1,2,3}) -> 25703.37075 | F51: =TREND(F$33:F$38,$B$33:$B$38^{1,2,3},$B51^{1,2,3}) -> 479045.8156 | G51: =TREND(G$33:G$38,$B$33:$B$38^{1,2,3},$B51^{1,2,3}) -> 309841.2424 | H51: =TREND(H$33:H$38,$B$33:$B$38^{1,2,3},$B51^{1,2,3}) -> 417299.6532 | I51: =TREND(I$33:I$38,$B$33:$B$38^{1,2,3},$B51^{1,2,3}) -> 757223.4073 | J51: =TREND(J$33:J$38,$B$33:$B$38^{1,2,3},$B51^{1,2,3}) -> 31317.52201 | K51: =TREND(K$33:K$38,$B$33:$B$38^{1,2,3},$B51^{1,2,3}) -> 21445.17397 | L51: =TREND(L$33:L$38,$B$33:$B$38^{1,2,3},$B51^{1,2,3}) -> 91869.04836 | M51: =TREND(M$33:M$38,$B$33:$B$38^{1,2,3},$B51^{1,2,3}) -> 36926.9698 | N51: =TREND(N$33:N$38,$B$33:$B$38^{1,2,3},$B51^{1,2,3}) -> 195756.0456 | O51: =TREND(O$33:O$38,$B$33:$B$38^{1,2,3},$B51^{1,2,3}) -> 61679.52057 | P51: =TREND(P$33:P$38,$B$33:$B$38^{1,2,3},$B51^{1,2,3}) -> 11245.73463 | Q51: =TREND(Q$33:Q$38,$B$33:$B$38^{1,2,3},$B51^{1,2,3}) -> 24494.56635 | R51: =TREND(R$33:R$38,$B$33:$B$38^{1,2,3},$B51^{1,2,3}) -> 9410.85355 | S51: =TREND(S$33:S$38,$B$33:$B$38^{1,2,3},$B51^{1,2,3}) -> 40234.89019 | T51: =TREND(T$33:T$38,$B$33:$B$38^{1,2,3},$B51^{1,2,3}) -> 58437.90515 | U51: =TREND(U$33:U$38,$B$33:$B$38^{1,2,3},$B51^{1,2,3}) -> 165484.7282 | V51: =TREND(V$33:V$38,$B$33:$B$38^{1,2,3},$B51^{1,2,3}) -> 77215.17648 | W51: =TREND(W$33:W$38,$B$33:$B$38^{1,2,3},$B51^{1,2,3}) -> 37710.69423 | X51: =TREND(X$33:X$38,$B$33:$B$38^{1,2,3},$B51^{1,2,3}) -> 6873.037256 | Y51: =TREND(Y$33:Y$38,$B$33:$B$38^{1,2,3},$B51^{1,2,3}) -> 8941.868535 | Z51: =TREND(Z$33:Z$38,$B$33:$B$38^{1,2,3},$B51^{1,2,3}) -> 51113.05685 | AA51: =TREND(AA$33:AA$38,$B$33:$B$38^{1,2,3},$B51^{1,2,3}) -> 8074.697555 | AB51: =TREND(AB$33:AB$38,$B$33:$B$38^{1,2,3},$B51^{1,2,3}) -> 89123.08778 | AC51: =TREND(AC$33:AC$38,$B$33:$B$38^{1,2,3},$B51^{1,2,3}) -> 66740.0246 | AD51: =TREND(AD$33:AD$38,$B$33:$B$38^{1,2,3},$B51^{1,2,3}) -> 14550.60398 | AE51: =TREND(AE$33:AE$38,$B$33:$B$38^{1,2,3},$B51^{1,2,3}) -> 89995.81083 | AF51: =TREND(AF$33:AF$38,$B$33:$B$38^{1,2,3},$B51^{1,2,3}) -> 9839.34955 | AG51: =TREND(AG$33:AG$38,$B$33:$B$38^{1,2,3},$B51^{1,2,3}) -> 28551.92909 | AH51: =TREND(AH$33:AH$38,$B$33:$B$38^{1,2,3},$B51^{1,2,3}) -> 11487.46538 | AI51: =TREND(AI$33:AI$38,$B$33:$B$38^{1,2,3},$B51^{1,2,3}) -> 46925.79496 | AJ51: =TREND(AJ$33:AJ$38,$B$33:$B$38^{1,2,3},$B51^{1,2,3}) -> 15178.67973 | AK51: =TREND(AK$33:AK$38,$B$33:$B$38^{1,2,3},$B51^{1,2,3}) -> 33541.41995 | AL51: =TREND(AL$33:AL$38,$B$33:$B$38^{1,2,3},$B51^{1,2,3}) -> 94839.04994 | AM51: =TREND(AM$33:AM$38,$B$33:$B$38^{1,2,3},$B51^{1,2,3}) -> 17851.37992 | AN51: =TREND(AN$33:AN$38,$B$33:$B$38^{1,2,3},$B51^{1,2,3}) -> 34884.05442 | AO51: =TREND(AO$33:AO$38,$B$33:$B$38^{1,2,3},$B51^{1,2,3}) -> 58694.22782 | AP51: =TREND(AP$33:AP$38,$B$33:$B$38^{1,2,3},$B51^{1,2,3}) -> 62131.81251 | AQ51: =TREND(AQ$33:AQ$38,$B$33:$B$38^{1,2,3},$B51^{1,2,3}) -> 48467.16834 | AR51: =TREND(AR$33:AR$38,$B$33:$B$38^{1,2,3},$B51^{1,2,3}) -> 111621.362 | AS51: =TREND(AS$33:AS$38,$B$33:$B$38^{1,2,3},$B51^{1,2,3}) -> 230489.5496 | AT51: =TREND(AT$33:AT$38,$B$33:$B$38^{1,2,3},$B51^{1,2,3}) -> 27276.51352 | AU51: =TREND(AU$33:AU$38,$B$33:$B$38^{1,2,3},$B51^{1,2,3}) -> 10025.59608 | AV51: =TREND(AV$33:AV$38,$B$33:$B$38^{1,2,3},$B51^{1,2,3}) -> 11374.9176 | AW51: =TREND(AW$33:AW$38,$B$33:$B$38^{1,2,3},$B51^{1,2,3}) -> 57423.14453 | AX51: =TREND(AX$33:AX$38,$B$33:$B$38^{1,2,3},$B51^{1,2,3}) -> 56517.61552 | AY51: =TREND(AY$33:AY$38,$B$33:$B$38^{1,2,3},$B51^{1,2,3}) -> 50255.44237 | AZ51: =TREND(AZ$33:AZ$38,$B$33:$B$38^{1,2,3},$B51^{1,2,3}) -> 4063.27736 | BA51: =TREND(BA$33:BA$38,$B$33:$B$38^{1,2,3},$B51^{1,2,3}) -> 9642.702625 | BB51: =TREND(BB$33:BB$38,$B$33:$B$38^{1,2,3},$B51^{1,2,3}) -> 13557.32668 | BC51: =TREND(BC$33:BC$38,$B$33:$B$38^{1,2,3},$B51^{1,2,3}) -> 8871.793591 | BD51: =TREND(BD$33:BD$38,$B$33:$B$38^{1,2,3},$B51^{1,2,3}) -> 13932.0254 | BE51: =TREND(BE$33:BE$38,$B$33:$B$38^{1,2,3},$B51^{1,2,3}) -> 72953.91177 | BF51: =TREND(BF$33:BF$38,$B$33:$B$38^{1,2,3},$B51^{1,2,3}) -> 423521.777 | BG51: =TREND(BG$33:BG$38,$B$33:$B$38^{1,2,3},$B51^{1,2,3}) -> 82709.53273 | BH51: =TREND(BH$33:BH$38,$B$33:$B$38^{1,2,3},$B51^{1,2,3}) -> 37966.3342 | BI51: =TREND(BI$33:BI$38,$B$33:$B$38^{1,2,3},$B51^{1,2,3}) -> 49738.27961 | BJ51: =TREND(BJ$33:BJ$38,$B$33:$B$38^{1,2,3},$B51^{1,2,3}) -> 5326.233537 | BK51: =TREND(BK$33:BK$38,$B$33:$B$38^{1,2,3},$B51^{1,2,3}) -> 8427.08387 | BL51: =TREND(BL$33:BL$38,$B$33:$B$38^{1,2,3},$B51^{1,2,3}) -> 23970.86392 | BM51: =TREND(BM$33:BM$38,$B$33:$B$38^{1,2,3},$B51^{1,2,3}) -> 24206.52934 | BN51: =TREND(BN$33:BN$38,$B$33:$B$38^{1,2,3},$B51^{1,2,3}) -> 53906.8598 | BO51: =TREND(BO$33:BO$38,$B$33:$B$38^{1,2,3},$B51^{1,2,3}) -> 136583.2844 | BP51: =TREND(BP$33:BP$38,$B$33:$B$38^{1,2,3},$B51^{1,2,3}) -> 17903.34701 | BQ51: =TREND(BQ$33:BQ$38,$B$33:$B$38^{1,2,3},$B51^{1,2,3}) -> 32624.24062 | BR51: =TREND(BR$33:BR$38,$B$33:$B$38^{1,2,3},$B51^{1,2,3}) -> 12547.93346 | BS51: =TREND(BS$33:BS$38,$B$33:$B$38^{1,2,3},$B51^{1,2,3}) -> 56906.07485 | BT51: =TREND(BT$33:BT$38,$B$33:$B$38^{1,2,3},$B51^{1,2,3}) -> 5475370.047
B52: 2030 | C52: =TREND(C$33:C$38,$B$33:$B$38^{1,2,3},$B52^{1,2,3}) -> 70232.19459 | D52: =TREND(D$33:D$38,$B$33:$B$38^{1,2,3},$B52^{1,2,3}) -> 104479.6662 | E52: =TREND(E$33:E$38,$B$33:$B$38^{1,2,3},$B52^{1,2,3}) -> 25825.42958 | F52: =TREND(F$33:F$38,$B$33:$B$38^{1,2,3},$B52^{1,2,3}) -> 485525.5986 | G52: =TREND(G$33:G$38,$B$33:$B$38^{1,2,3},$B52^{1,2,3}) -> 313765.401 | H52: =TREND(H$33:H$38,$B$33:$B$38^{1,2,3},$B52^{1,2,3}) -> 422014.216 | I52: =TREND(I$33:I$38,$B$33:$B$38^{1,2,3},$B52^{1,2,3}) -> 765931.1501 | J52: =TREND(J$33:J$38,$B$33:$B$38^{1,2,3},$B52^{1,2,3}) -> 31301.37721 | K52: =TREND(K$33:K$38,$B$33:$B$38^{1,2,3},$B52^{1,2,3}) -> 21452.36351 | L52: =TREND(L$33:L$38,$B$33:$B$38^{1,2,3},$B52^{1,2,3}) -> 92952.30719 | M52: =TREND(M$33:M$38,$B$33:$B$38^{1,2,3},$B52^{1,2,3}) -> 37017.1649 | N52: =TREND(N$33:N$38,$B$33:$B$38^{1,2,3},$B52^{1,2,3}) -> 197929.347 | O52: =TREND(O$33:O$38,$B$33:$B$38^{1,2,3},$B52^{1,2,3}) -> 62177.53158 | P52: =TREND(P$33:P$38,$B$33:$B$38^{1,2,3},$B52^{1,2,3}) -> 11250.35922 | Q52: =TREND(Q$33:Q$38,$B$33:$B$38^{1,2,3},$B52^{1,2,3}) -> 24405.68 | R52: =TREND(R$33:R$38,$B$33:$B$38^{1,2,3},$B52^{1,2,3}) -> 9371.205238 | S52: =TREND(S$33:S$38,$B$33:$B$38^{1,2,3},$B52^{1,2,3}) -> 40310.6342 | T52: =TREND(T$33:T$38,$B$33:$B$38^{1,2,3},$B52^{1,2,3}) -> 58820.24127 | U52: =TREND(U$33:U$38,$B$33:$B$38^{1,2,3},$B52^{1,2,3}) -> 167309.8799 | V52: =TREND(V$33:V$38,$B$33:$B$38^{1,2,3},$B52^{1,2,3}) -> 77248.16957 | W52: =TREND(W$33:W$38,$B$33:$B$38^{1,2,3},$B52^{1,2,3}) -> 37697.38994 | X52: =TREND(X$33:X$38,$B$33:$B$38^{1,2,3},$B52^{1,2,3}) -> 6801.741732 | Y52: =TREND(Y$33:Y$38,$B$33:$B$38^{1,2,3},$B52^{1,2,3}) -> 8850.917511 | Z52: =TREND(Z$33:Z$38,$B$33:$B$38^{1,2,3},$B52^{1,2,3}) -> 51180.59912 | AA52: =TREND(AA$33:AA$38,$B$33:$B$38^{1,2,3},$B52^{1,2,3}) -> 8001.005546 | AB52: =TREND(AB$33:AB$38,$B$33:$B$38^{1,2,3},$B52^{1,2,3}) -> 89421.62167 | AC52: =TREND(AC$33:AC$38,$B$33:$B$38^{1,2,3},$B52^{1,2,3}) -> 66885.12648 | AD52: =TREND(AD$33:AD$38,$B$33:$B$38^{1,2,3},$B52^{1,2,3}) -> 14501.5104 | AE52: =TREND(AE$33:AE$38,$B$33:$B$38^{1,2,3},$B52^{1,2,3}) -> 90504.91966 | AF52: =TREND(AF$33:AF$38,$B$33:$B$38^{1,2,3},$B52^{1,2,3}) -> 9843.280199 | AG52: =TREND(AG$33:AG$38,$B$33:$B$38^{1,2,3},$B52^{1,2,3}) -> 28533.45206 | AH52: =TREND(AH$33:AH$38,$B$33:$B$38^{1,2,3},$B52^{1,2,3}) -> 11343.68753 | AI52: =TREND(AI$33:AI$38,$B$33:$B$38^{1,2,3},$B52^{1,2,3}) -> 46864.77983 | AJ52: =TREND(AJ$33:AJ$38,$B$33:$B$38^{1,2,3},$B52^{1,2,3}) -> 15119.64214 | AK52: =TREND(AK$33:AK$38,$B$33:$B$38^{1,2,3},$B52^{1,2,3}) -> 33722.35663 | AL52: =TREND(AL$33:AL$38,$B$33:$B$38^{1,2,3},$B52^{1,2,3}) -> 95344.81637 | AM52: =TREND(AM$33:AM$38,$B$33:$B$38^{1,2,3},$B52^{1,2,3}) -> 17770.72873 | AN52: =TREND(AN$33:AN$38,$B$33:$B$38^{1,2,3},$B52^{1,2,3}) -> 34853.59184 | AO52: =TREND(AO$33:AO$38,$B$33:$B$38^{1,2,3},$B52^{1,2,3}) -> 58967.79726 | AP52: =TREND(AP$33:AP$38,$B$33:$B$38^{1,2,3},$B52^{1,2,3}) -> 62310.39226 | AQ52: =TREND(AQ$33:AQ$38,$B$33:$B$38^{1,2,3},$B52^{1,2,3}) -> 48676.59083 | AR52: =TREND(AR$33:AR$38,$B$33:$B$38^{1,2,3},$B52^{1,2,3}) -> 111708.8659 | AS52: =TREND(AS$33:AS$38,$B$33:$B$38^{1,2,3},$B52^{1,2,3}) -> 231972.159 | AT52: =TREND(AT$33:AT$38,$B$33:$B$38^{1,2,3},$B52^{1,2,3}) -> 27303.53371 | AU52: =TREND(AU$33:AU$38,$B$33:$B$38^{1,2,3},$B52^{1,2,3}) -> 10055.63943 | AV52: =TREND(AV$33:AV$38,$B$33:$B$38^{1,2,3},$B52^{1,2,3}) -> 11403.43062 | AW52: =TREND(AW$33:AW$38,$B$33:$B$38^{1,2,3},$B52^{1,2,3}) -> 57643.16792 | AX52: =TREND(AX$33:AX$38,$B$33:$B$38^{1,2,3},$B52^{1,2,3}) -> 56780.07876 | AY52: =TREND(AY$33:AY$38,$B$33:$B$38^{1,2,3},$B52^{1,2,3}) -> 50306.89834 | AZ52: =TREND(AZ$33:AZ$38,$B$33:$B$38^{1,2,3},$B52^{1,2,3}) -> 4055.598111 | BA52: =TREND(BA$33:BA$38,$B$33:$B$38^{1,2,3},$B52^{1,2,3}) -> 9622.785903 | BB52: =TREND(BB$33:BB$38,$B$33:$B$38^{1,2,3},$B52^{1,2,3}) -> 13520.20746 | BC52: =TREND(BC$33:BC$38,$B$33:$B$38^{1,2,3},$B52^{1,2,3}) -> 8857.877809 | BD52: =TREND(BD$33:BD$38,$B$33:$B$38^{1,2,3},$B52^{1,2,3}) -> 14000.12381 | BE52: =TREND(BE$33:BE$38,$B$33:$B$38^{1,2,3},$B52^{1,2,3}) -> 73821.88027 | BF52: =TREND(BF$33:BF$38,$B$33:$B$38^{1,2,3},$B52^{1,2,3}) -> 426217.6976 | BG52: =TREND(BG$33:BG$38,$B$33:$B$38^{1,2,3},$B52^{1,2,3}) -> 84124.38034 | BH52: =TREND(BH$33:BH$38,$B$33:$B$38^{1,2,3},$B52^{1,2,3}) -> 38244.70427 | BI52: =TREND(BI$33:BI$38,$B$33:$B$38^{1,2,3},$B52^{1,2,3}) -> 49865.97806 | BJ52: =TREND(BJ$33:BJ$38,$B$33:$B$38^{1,2,3},$B52^{1,2,3}) -> 5339.523565 | BK52: =TREND(BK$33:BK$38,$B$33:$B$38^{1,2,3},$B52^{1,2,3}) -> 8447.150779 | BL52: =TREND(BL$33:BL$38,$B$33:$B$38^{1,2,3},$B52^{1,2,3}) -> 24047.23963 | BM52: =TREND(BM$33:BM$38,$B$33:$B$38^{1,2,3},$B52^{1,2,3}) -> 24355.08627 | BN52: =TREND(BN$33:BN$38,$B$33:$B$38^{1,2,3},$B52^{1,2,3}) -> 54654.60898 | BO52: =TREND(BO$33:BO$38,$B$33:$B$38^{1,2,3},$B52^{1,2,3}) -> 136884.849 | BP52: =TREND(BP$33:BP$38,$B$33:$B$38^{1,2,3},$B52^{1,2,3}) -> 17872.97716 | BQ52: =TREND(BQ$33:BQ$38,$B$33:$B$38^{1,2,3},$B52^{1,2,3}) -> 32648.78405 | BR52: =TREND(BR$33:BR$38,$B$33:$B$38^{1,2,3},$B52^{1,2,3}) -> 12510.8419 | BS52: =TREND(BS$33:BS$38,$B$33:$B$38^{1,2,3},$B52^{1,2,3}) -> 56922.80682 | BT52: =TREND(BT$33:BT$38,$B$33:$B$38^{1,2,3},$B52^{1,2,3}) -> 5517194.123
B53: 2031 | C53: =TREND(C$33:C$38,$B$33:$B$38^{1,2,3},$B53^{1,2,3}) -> 70291.96757 | D53: =TREND(D$33:D$38,$B$33:$B$38^{1,2,3},$B53^{1,2,3}) -> 105122.6681 | E53: =TREND(E$33:E$38,$B$33:$B$38^{1,2,3},$B53^{1,2,3}) -> 25937.04829 | F53: =TREND(F$33:F$38,$B$33:$B$38^{1,2,3},$B53^{1,2,3}) -> 491890.2857 | G53: =TREND(G$33:G$38,$B$33:$B$38^{1,2,3},$B53^{1,2,3}) -> 317643.0928 | H53: =TREND(H$33:H$38,$B$33:$B$38^{1,2,3},$B53^{1,2,3}) -> 426588.1647 | I53: =TREND(I$33:I$38,$B$33:$B$38^{1,2,3},$B53^{1,2,3}) -> 774420.7605 | J53: =TREND(J$33:J$38,$B$33:$B$38^{1,2,3},$B53^{1,2,3}) -> 31273.38929 | K53: =TREND(K$33:K$38,$B$33:$B$38^{1,2,3},$B53^{1,2,3}) -> 21450.50919 | L53: =TREND(L$33:L$38,$B$33:$B$38^{1,2,3},$B53^{1,2,3}) -> 94015.81135 | M53: =TREND(M$33:M$38,$B$33:$B$38^{1,2,3},$B53^{1,2,3}) -> 37097.85061 | N53: =TREND(N$33:N$38,$B$33:$B$38^{1,2,3},$B53^{1,2,3}) -> 200070.8769 | O53: =TREND(O$33:O$38,$B$33:$B$38^{1,2,3},$B53^{1,2,3}) -> 62658.91156 | P53: =TREND(P$33:P$38,$B$33:$B$38^{1,2,3},$B53^{1,2,3}) -> 11248.62136 | Q53: =TREND(Q$33:Q$38,$B$33:$B$38^{1,2,3},$B53^{1,2,3}) -> 24307.12952 | R53: =TREND(R$33:R$38,$B$33:$B$38^{1,2,3},$B53^{1,2,3}) -> 9328.376625 | S53: =TREND(S$33:S$38,$B$33:$B$38^{1,2,3},$B53^{1,2,3}) -> 40375.81741 | T53: =TREND(T$33:T$38,$B$33:$B$38^{1,2,3},$B53^{1,2,3}) -> 59188.98124 | U53: =TREND(U$33:U$38,$B$33:$B$38^{1,2,3},$B53^{1,2,3}) -> 169101.4129 | V53: =TREND(V$33:V$38,$B$33:$B$38^{1,2,3},$B53^{1,2,3}) -> 77254.75761 | W53: =TREND(W$33:W$38,$B$33:$B$38^{1,2,3},$B53^{1,2,3}) -> 37671.86704 | X53: =TREND(X$33:X$38,$B$33:$B$38^{1,2,3},$B53^{1,2,3}) -> 6727.688092 | Y53: =TREND(Y$33:Y$38,$B$33:$B$38^{1,2,3},$B53^{1,2,3}) -> 8756.017554 | Z53: =TREND(Z$33:Z$38,$B$33:$B$38^{1,2,3},$B53^{1,2,3}) -> 51235.26539 | AA53: =TREND(AA$33:AA$38,$B$33:$B$38^{1,2,3},$B53^{1,2,3}) -> 7924.456862 | AB53: =TREND(AB$33:AB$38,$B$33:$B$38^{1,2,3},$B53^{1,2,3}) -> 89700.72833 | AC53: =TREND(AC$33:AC$38,$B$33:$B$38^{1,2,3},$B53^{1,2,3}) -> 67016.54916 | AD53: =TREND(AD$33:AD$38,$B$33:$B$38^{1,2,3},$B53^{1,2,3}) -> 14446.70827 | AE53: =TREND(AE$33:AE$38,$B$33:$B$38^{1,2,3},$B53^{1,2,3}) -> 90997.83248 | AF53: =TREND(AF$33:AF$38,$B$33:$B$38^{1,2,3},$B53^{1,2,3}) -> 9845.798868 | AG53: =TREND(AG$33:AG$38,$B$33:$B$38^{1,2,3},$B53^{1,2,3}) -> 28508.79884 | AH53: =TREND(AH$33:AH$38,$B$33:$B$38^{1,2,3},$B53^{1,2,3}) -> 11195.36349 | AI53: =TREND(AI$33:AI$38,$B$33:$B$38^{1,2,3},$B53^{1,2,3}) -> 46791.7916 | AJ53: =TREND(AJ$33:AJ$38,$B$33:$B$38^{1,2,3},$B53^{1,2,3}) -> 15055.76541 | AK53: =TREND(AK$33:AK$38,$B$33:$B$38^{1,2,3},$B53^{1,2,3}) -> 33895.32415 | AL53: =TREND(AL$33:AL$38,$B$33:$B$38^{1,2,3},$B53^{1,2,3}) -> 95837.12629 | AM53: =TREND(AM$33:AM$38,$B$33:$B$38^{1,2,3},$B53^{1,2,3}) -> 17684.89984 | AN53: =TREND(AN$33:AN$38,$B$33:$B$38^{1,2,3},$B53^{1,2,3}) -> 34813.7551 | AO53: =TREND(AO$33:AO$38,$B$33:$B$38^{1,2,3},$B53^{1,2,3}) -> 59233.26812 | AP53: =TREND(AP$33:AP$38,$B$33:$B$38^{1,2,3},$B53^{1,2,3}) -> 62470.19431 | AQ53: =TREND(AQ$33:AQ$38,$B$33:$B$38^{1,2,3},$B53^{1,2,3}) -> 48874.23077 | AR53: =TREND(AR$33:AR$38,$B$33:$B$38^{1,2,3},$B53^{1,2,3}) -> 111767.1799 | AS53: =TREND(AS$33:AS$38,$B$33:$B$38^{1,2,3},$B53^{1,2,3}) -> 233418.1568 | AT53: =TREND(AT$33:AT$38,$B$33:$B$38^{1,2,3},$B53^{1,2,3}) -> 27322.74286 | AU53: =TREND(AU$33:AU$38,$B$33:$B$38^{1,2,3},$B53^{1,2,3}) -> 10082.97263 | AV53: =TREND(AV$33:AV$38,$B$33:$B$38^{1,2,3},$B53^{1,2,3}) -> 11429.44883 | AW53: =TREND(AW$33:AW$38,$B$33:$B$38^{1,2,3},$B53^{1,2,3}) -> 57845.85464 | AX53: =TREND(AX$33:AX$38,$B$33:$B$38^{1,2,3},$B53^{1,2,3}) -> 57028.95764 | AY53: =TREND(AY$33:AY$38,$B$33:$B$38^{1,2,3},$B53^{1,2,3}) -> 50345.4147 | AZ53: =TREND(AZ$33:AZ$38,$B$33:$B$38^{1,2,3},$B53^{1,2,3}) -> 4046.859655 | BA53: =TREND(BA$33:BA$38,$B$33:$B$38^{1,2,3},$B53^{1,2,3}) -> 9602.212824 | BB53: =TREND(BB$33:BB$38,$B$33:$B$38^{1,2,3},$B53^{1,2,3}) -> 13479.76628 | BC53: =TREND(BC$33:BC$38,$B$33:$B$38^{1,2,3},$B53^{1,2,3}) -> 8841.404645 | BD53: =TREND(BD$33:BD$38,$B$33:$B$38^{1,2,3},$B53^{1,2,3}) -> 14064.59048 | BE53: =TREND(BE$33:BE$38,$B$33:$B$38^{1,2,3},$B53^{1,2,3}) -> 74666.47722 | BF53: =TREND(BF$33:BF$38,$B$33:$B$38^{1,2,3},$B53^{1,2,3}) -> 428807.2525 | BG53: =TREND(BG$33:BG$38,$B$33:$B$38^{1,2,3},$B53^{1,2,3}) -> 85507.93261 | BH53: =TREND(BH$33:BH$38,$B$33:$B$38^{1,2,3},$B53^{1,2,3}) -> 38520.28873 | BI53: =TREND(BI$33:BI$38,$B$33:$B$38^{1,2,3},$B53^{1,2,3}) -> 49981.83629 | BJ53: =TREND(BJ$33:BJ$38,$B$33:$B$38^{1,2,3},$B53^{1,2,3}) -> 5352.0442 | BK53: =TREND(BK$33:BK$38,$B$33:$B$38^{1,2,3},$B53^{1,2,3}) -> 8466.082056 | BL53: =TREND(BL$33:BL$38,$B$33:$B$38^{1,2,3},$B53^{1,2,3}) -> 24120.21841 | BM53: =TREND(BM$33:BM$38,$B$33:$B$38^{1,2,3},$B53^{1,2,3}) -> 24496.67122 | BN53: =TREND(BN$33:BN$38,$B$33:$B$38^{1,2,3},$B53^{1,2,3}) -> 55376.16312 | BO53: =TREND(BO$33:BO$38,$B$33:$B$38^{1,2,3},$B53^{1,2,3}) -> 137160.4223 | BP53: =TREND(BP$33:BP$38,$B$33:$B$38^{1,2,3},$B53^{1,2,3}) -> 17838.03947 | BQ53: =TREND(BQ$33:BQ$38,$B$33:$B$38^{1,2,3},$B53^{1,2,3}) -> 32667.26418 | BR53: =TREND(BR$33:BR$38,$B$33:$B$38^{1,2,3},$B53^{1,2,3}) -> 12470.80838 | BS53: =TREND(BS$33:BS$38,$B$33:$B$38^{1,2,3},$B53^{1,2,3}) -> 56927.48561 | BT53: =TREND(BT$33:BT$38,$B$33:$B$38^{1,2,3},$B53^{1,2,3}) -> 5557641.99
B54: 2032 | C54: =TREND(C$33:C$38,$B$33:$B$38^{1,2,3},$B54^{1,2,3}) -> 70330.23296 | D54: =TREND(D$33:D$38,$B$33:$B$38^{1,2,3},$B54^{1,2,3}) -> 105740.8219 | E54: =TREND(E$33:E$38,$B$33:$B$38^{1,2,3},$B54^{1,2,3}) -> 26038.13367 | F54: =TREND(F$33:F$38,$B$33:$B$38^{1,2,3},$B54^{1,2,3}) -> 498147.7758 | G54: =TREND(G$33:G$38,$B$33:$B$38^{1,2,3},$B54^{1,2,3}) -> 321476.7659 | H54: =TREND(H$33:H$38,$B$33:$B$38^{1,2,3},$B54^{1,2,3}) -> 431038.0277 | I54: =TREND(I$33:I$38,$B$33:$B$38^{1,2,3},$B54^{1,2,3}) -> 782706.3394 | J54: =TREND(J$33:J$38,$B$33:$B$38^{1,2,3},$B54^{1,2,3}) -> 31233.65237 | K54: =TREND(K$33:K$38,$B$33:$B$38^{1,2,3},$B54^{1,2,3}) -> 21439.83876 | L54: =TREND(L$33:L$38,$B$33:$B$38^{1,2,3},$B54^{1,2,3}) -> 95061.03978 | M54: =TREND(M$33:M$38,$B$33:$B$38^{1,2,3},$B54^{1,2,3}) -> 37169.02694 | N54: =TREND(N$33:N$38,$B$33:$B$38^{1,2,3},$B54^{1,2,3}) -> 202184.4994 | O54: =TREND(O$33:O$38,$B$33:$B$38^{1,2,3},$B54^{1,2,3}) -> 63123.97797 | P54: =TREND(P$33:P$38,$B$33:$B$38^{1,2,3},$B54^{1,2,3}) -> 11241.44984 | Q54: =TREND(Q$33:Q$38,$B$33:$B$38^{1,2,3},$B54^{1,2,3}) -> 24199.0527 | R54: =TREND(R$33:R$38,$B$33:$B$38^{1,2,3},$B54^{1,2,3}) -> 9282.402546 | S54: =TREND(S$33:S$38,$B$33:$B$38^{1,2,3},$B54^{1,2,3}) -> 40430.80874 | T54: =TREND(T$33:T$38,$B$33:$B$38^{1,2,3},$B54^{1,2,3}) -> 59543.88533 | U54: =TREND(U$33:U$38,$B$33:$B$38^{1,2,3},$B54^{1,2,3}) -> 170863.2658 | V54: =TREND(V$33:V$38,$B$33:$B$38^{1,2,3},$B54^{1,2,3}) -> 77235.95922 | W54: =TREND(W$33:W$38,$B$33:$B$38^{1,2,3},$B54^{1,2,3}) -> 37633.98734 | X54: =TREND(X$33:X$38,$B$33:$B$38^{1,2,3},$B54^{1,2,3}) -> 6650.939352 | Y54: =TREND(Y$33:Y$38,$B$33:$B$38^{1,2,3},$B54^{1,2,3}) -> 8657.217504 | Z54: =TREND(Z$33:Z$38,$B$33:$B$38^{1,2,3},$B54^{1,2,3}) -> 51277.14639 | AA54: =TREND(AA$33:AA$38,$B$33:$B$38^{1,2,3},$B54^{1,2,3}) -> 7844.980087 | AB54: =TREND(AB$33:AB$38,$B$33:$B$38^{1,2,3},$B54^{1,2,3}) -> 89959.93722 | AC54: =TREND(AC$33:AC$38,$B$33:$B$38^{1,2,3},$B54^{1,2,3}) -> 67134.47644 | AD54: =TREND(AD$33:AD$38,$B$33:$B$38^{1,2,3},$B54^{1,2,3}) -> 14386.43264 | AE54: =TREND(AE$33:AE$38,$B$33:$B$38^{1,2,3},$B54^{1,2,3}) -> 91474.6849 | AF54: =TREND(AF$33:AF$38,$B$33:$B$38^{1,2,3},$B54^{1,2,3}) -> 9846.887133 | AG54: =TREND(AG$33:AG$38,$B$33:$B$38^{1,2,3},$B54^{1,2,3}) -> 28478.14976 | AH54: =TREND(AH$33:AH$38,$B$33:$B$38^{1,2,3},$B54^{1,2,3}) -> 11042.56523 | AI54: =TREND(AI$33:AI$38,$B$33:$B$38^{1,2,3},$B54^{1,2,3}) -> 46706.87731 | AJ54: =TREND(AJ$33:AJ$38,$B$33:$B$38^{1,2,3},$B54^{1,2,3}) -> 14987.27918 | AK54: =TREND(AK$33:AK$38,$B$33:$B$38^{1,2,3},$B54^{1,2,3}) -> 34060.05237 | AL54: =TREND(AL$33:AL$38,$B$33:$B$38^{1,2,3},$B54^{1,2,3}) -> 96316.29117 | AM54: =TREND(AM$33:AM$38,$B$33:$B$38^{1,2,3},$B54^{1,2,3}) -> 17593.7058 | AN54: =TREND(AN$33:AN$38,$B$33:$B$38^{1,2,3},$B54^{1,2,3}) -> 34764.92517 | AO54: =TREND(AO$33:AO$38,$B$33:$B$38^{1,2,3},$B54^{1,2,3}) -> 59490.5018 | AP54: =TREND(AP$33:AP$38,$B$33:$B$38^{1,2,3},$B54^{1,2,3}) -> 62611.31117 | AQ54: =TREND(AQ$33:AQ$38,$B$33:$B$38^{1,2,3},$B54^{1,2,3}) -> 49060.04166 | AR54: =TREND(AR$33:AR$38,$B$33:$B$38^{1,2,3},$B54^{1,2,3}) -> 111796.7637 | AS54: =TREND(AS$33:AS$38,$B$33:$B$38^{1,2,3},$B54^{1,2,3}) -> 234829.3076 | AT54: =TREND(AT$33:AT$38,$B$33:$B$38^{1,2,3},$B54^{1,2,3}) -> 27334.37562 | AU54: =TREND(AU$33:AU$38,$B$33:$B$38^{1,2,3},$B54^{1,2,3}) -> 10107.62364 | AV54: =TREND(AV$33:AV$38,$B$33:$B$38^{1,2,3},$B54^{1,2,3}) -> 11452.9486 | AW54: =TREND(AW$33:AW$38,$B$33:$B$38^{1,2,3},$B54^{1,2,3}) -> 58030.69006 | AX54: =TREND(AX$33:AX$38,$B$33:$B$38^{1,2,3},$B54^{1,2,3}) -> 57264.38779 | AY54: =TREND(AY$33:AY$38,$B$33:$B$38^{1,2,3},$B54^{1,2,3}) -> 50371.46197 | AZ54: =TREND(AZ$33:AZ$38,$B$33:$B$38^{1,2,3},$B54^{1,2,3}) -> 4037.12591 | BA54: =TREND(BA$33:BA$38,$B$33:$B$38^{1,2,3},$B54^{1,2,3}) -> 9580.875028 | BB54: =TREND(BB$33:BB$38,$B$33:$B$38^{1,2,3},$B54^{1,2,3}) -> 13436.00315 | BC54: =TREND(BC$33:BC$38,$B$33:$B$38^{1,2,3},$B54^{1,2,3}) -> 8822.471655 | BD54: =TREND(BD$33:BD$38,$B$33:$B$38^{1,2,3},$B54^{1,2,3}) -> 14125.40317 | BE54: =TREND(BE$33:BE$38,$B$33:$B$38^{1,2,3},$B54^{1,2,3}) -> 75489.58155 | BF54: =TREND(BF$33:BF$38,$B$33:$B$38^{1,2,3},$B54^{1,2,3}) -> 431300.398 | BG54: =TREND(BG$33:BG$38,$B$33:$B$38^{1,2,3},$B54^{1,2,3}) -> 86866.09801 | BH54: =TREND(BH$33:BH$38,$B$33:$B$38^{1,2,3},$B54^{1,2,3}) -> 38793.53076 | BI54: =TREND(BI$33:BI$38,$B$33:$B$38^{1,2,3},$B54^{1,2,3}) -> 50085.72039 | BJ54: =TREND(BJ$33:BJ$38,$B$33:$B$38^{1,2,3},$B54^{1,2,3}) -> 5363.901994 | BK54: =TREND(BK$33:BK$38,$B$33:$B$38^{1,2,3},$B54^{1,2,3}) -> 8483.927076 | BL54: =TREND(BL$33:BL$38,$B$33:$B$38^{1,2,3},$B54^{1,2,3}) -> 24189.84588 | BM54: =TREND(BM$33:BM$38,$B$33:$B$38^{1,2,3},$B54^{1,2,3}) -> 24630.9954 | BN54: =TREND(BN$33:BN$38,$B$33:$B$38^{1,2,3},$B54^{1,2,3}) -> 56076.35543 | BO54: =TREND(BO$33:BO$38,$B$33:$B$38^{1,2,3},$B54^{1,2,3}) -> 137411.1342 | BP54: =TREND(BP$33:BP$38,$B$33:$B$38^{1,2,3},$B54^{1,2,3}) -> 17798.1465 | BQ54: =TREND(BQ$33:BQ$38,$B$33:$B$38^{1,2,3},$B54^{1,2,3}) -> 32679.90678 | BR54: =TREND(BR$33:BR$38,$B$33:$B$38^{1,2,3},$B54^{1,2,3}) -> 12427.71911 | BS54: =TREND(BS$33:BS$38,$B$33:$B$38^{1,2,3},$B54^{1,2,3}) -> 56920.246 | BT54: =TREND(BT$33:BT$38,$B$33:$B$38^{1,2,3},$B54^{1,2,3}) -> 5596797.142
B55: 2033 | C55: =TREND(C$33:C$38,$B$33:$B$38^{1,2,3},$B55^{1,2,3}) -> 70346.84685 | D55: =TREND(D$33:D$38,$B$33:$B$38^{1,2,3},$B55^{1,2,3}) -> 106336.0664 | E55: =TREND(E$33:E$38,$B$33:$B$38^{1,2,3},$B55^{1,2,3}) -> 26128.5925 | F55: =TREND(F$33:F$38,$B$33:$B$38^{1,2,3},$B55^{1,2,3}) -> 504305.9675 | G55: =TREND(G$33:G$38,$B$33:$B$38^{1,2,3},$B55^{1,2,3}) -> 325268.868 | H55: =TREND(H$33:H$38,$B$33:$B$38^{1,2,3},$B55^{1,2,3}) -> 435380.3334 | I55: =TREND(I$33:I$38,$B$33:$B$38^{1,2,3},$B55^{1,2,3}) -> 790801.9877 | J55: =TREND(J$33:J$38,$B$33:$B$38^{1,2,3},$B55^{1,2,3}) -> 31182.26054 | K55: =TREND(K$33:K$38,$B$33:$B$38^{1,2,3},$B55^{1,2,3}) -> 21420.57992 | L55: =TREND(L$33:L$38,$B$33:$B$38^{1,2,3},$B55^{1,2,3}) -> 96089.47146 | M55: =TREND(M$33:M$38,$B$33:$B$38^{1,2,3},$B55^{1,2,3}) -> 37230.69388 | N55: =TREND(N$33:N$38,$B$33:$B$38^{1,2,3},$B55^{1,2,3}) -> 204274.0791 | O55: =TREND(O$33:O$38,$B$33:$B$38^{1,2,3},$B55^{1,2,3}) -> 63573.04827 | P55: =TREND(P$33:P$38,$B$33:$B$38^{1,2,3},$B55^{1,2,3}) -> 11229.77346 | Q55: =TREND(Q$33:Q$38,$B$33:$B$38^{1,2,3},$B55^{1,2,3}) -> 24081.5873 | R55: =TREND(R$33:R$38,$B$33:$B$38^{1,2,3},$B55^{1,2,3}) -> 9233.317832 | S55: =TREND(S$33:S$38,$B$33:$B$38^{1,2,3},$B55^{1,2,3}) -> 40475.97713 | T55: =TREND(T$33:T$38,$B$33:$B$38^{1,2,3},$B55^{1,2,3}) -> 59884.7138 | U55: =TREND(U$33:U$38,$B$33:$B$38^{1,2,3},$B55^{1,2,3}) -> 172599.3773 | V55: =TREND(V$33:V$38,$B$33:$B$38^{1,2,3},$B55^{1,2,3}) -> 77192.79303 | W55: =TREND(W$33:W$38,$B$33:$B$38^{1,2,3},$B55^{1,2,3}) -> 37583.61266 | X55: =TREND(X$33:X$38,$B$33:$B$38^{1,2,3},$B55^{1,2,3}) -> 6571.558526 | Y55: =TREND(Y$33:Y$38,$B$33:$B$38^{1,2,3},$B55^{1,2,3}) -> 8554.566198 | Z55: =TREND(Z$33:Z$38,$B$33:$B$38^{1,2,3},$B55^{1,2,3}) -> 51306.33284 | AA55: =TREND(AA$33:AA$38,$B$33:$B$38^{1,2,3},$B55^{1,2,3}) -> 7762.503803 | AB55: =TREND(AB$33:AB$38,$B$33:$B$38^{1,2,3},$B55^{1,2,3}) -> 90198.77778 | AC55: =TREND(AC$33:AC$38,$B$33:$B$38^{1,2,3},$B55^{1,2,3}) -> 67239.09209 | AD55: =TREND(AD$33:AD$38,$B$33:$B$38^{1,2,3},$B55^{1,2,3}) -> 14320.91857 | AE55: =TREND(AE$33:AE$38,$B$33:$B$38^{1,2,3},$B55^{1,2,3}) -> 91935.61254 | AF55: =TREND(AF$33:AF$38,$B$33:$B$38^{1,2,3},$B55^{1,2,3}) -> 9846.526571 | AG55: =TREND(AG$33:AG$38,$B$33:$B$38^{1,2,3},$B55^{1,2,3}) -> 28441.68516 | AH55: =TREND(AH$33:AH$38,$B$33:$B$38^{1,2,3},$B55^{1,2,3}) -> 10885.3647 | AI55: =TREND(AI$33:AI$38,$B$33:$B$38^{1,2,3},$B55^{1,2,3}) -> 46610.08403 | AJ55: =TREND(AJ$33:AJ$38,$B$33:$B$38^{1,2,3},$B55^{1,2,3}) -> 14914.41312 | AK55: =TREND(AK$33:AK$38,$B$33:$B$38^{1,2,3},$B55^{1,2,3}) -> 34216.27113 | AL55: =TREND(AL$33:AL$38,$B$33:$B$38^{1,2,3},$B55^{1,2,3}) -> 96782.62247 | AM55: =TREND(AM$33:AM$38,$B$33:$B$38^{1,2,3},$B55^{1,2,3}) -> 17496.95918 | AN55: =TREND(AN$33:AN$38,$B$33:$B$38^{1,2,3},$B55^{1,2,3}) -> 34707.48299 | AO55: =TREND(AO$33:AO$38,$B$33:$B$38^{1,2,3},$B55^{1,2,3}) -> 59739.3597 | AP55: =TREND(AP$33:AP$38,$B$33:$B$38^{1,2,3},$B55^{1,2,3}) -> 62733.83532 | AQ55: =TREND(AQ$33:AQ$38,$B$33:$B$38^{1,2,3},$B55^{1,2,3}) -> 49233.97703 | AR55: =TREND(AR$33:AR$38,$B$33:$B$38^{1,2,3},$B55^{1,2,3}) -> 111798.0771 | AS55: =TREND(AS$33:AS$38,$B$33:$B$38^{1,2,3},$B55^{1,2,3}) -> 236207.3756 | AT55: =TREND(AT$33:AT$38,$B$33:$B$38^{1,2,3},$B55^{1,2,3}) -> 27338.66667 | AU55: =TREND(AU$33:AU$38,$B$33:$B$38^{1,2,3},$B55^{1,2,3}) -> 10129.62041 | AV55: =TREND(AV$33:AV$38,$B$33:$B$38^{1,2,3},$B55^{1,2,3}) -> 11473.90631 | AW55: =TREND(AW$33:AW$38,$B$33:$B$38^{1,2,3},$B55^{1,2,3}) -> 58197.15957 | AX55: =TREND(AX$33:AX$38,$B$33:$B$38^{1,2,3},$B55^{1,2,3}) -> 57486.50487 | AY55: =TREND(AY$33:AY$38,$B$33:$B$38^{1,2,3},$B55^{1,2,3}) -> 50385.5107 | AZ55: =TREND(AZ$33:AZ$38,$B$33:$B$38^{1,2,3},$B55^{1,2,3}) -> 4026.460793 | BA55: =TREND(BA$33:BA$38,$B$33:$B$38^{1,2,3},$B55^{1,2,3}) -> 9558.664152 | BB55: =TREND(BB$33:BB$38,$B$33:$B$38^{1,2,3},$B55^{1,2,3}) -> 13388.91807 | BC55: =TREND(BC$33:BC$38,$B$33:$B$38^{1,2,3},$B55^{1,2,3}) -> 8801.176397 | BD55: =TREND(BD$33:BD$38,$B$33:$B$38^{1,2,3},$B55^{1,2,3}) -> 14182.53968 | BE55: =TREND(BE$33:BE$38,$B$33:$B$38^{1,2,3},$B55^{1,2,3}) -> 76293.07217 | BF55: =TREND(BF$33:BF$38,$B$33:$B$38^{1,2,3},$B55^{1,2,3}) -> 433707.0904 | BG55: =TREND(BG$33:BG$38,$B$33:$B$38^{1,2,3},$B55^{1,2,3}) -> 88204.78498 | BH55: =TREND(BH$33:BH$38,$B$33:$B$38^{1,2,3},$B55^{1,2,3}) -> 39064.87352 | BI55: =TREND(BI$33:BI$38,$B$33:$B$38^{1,2,3},$B55^{1,2,3}) -> 50177.49648 | BJ55: =TREND(BJ$33:BJ$38,$B$33:$B$38^{1,2,3},$B55^{1,2,3}) -> 5375.2035 | BK55: =TREND(BK$33:BK$38,$B$33:$B$38^{1,2,3},$B55^{1,2,3}) -> 8500.735213 | BL55: =TREND(BL$33:BL$38,$B$33:$B$38^{1,2,3},$B55^{1,2,3}) -> 24256.1677 | BM55: =TREND(BM$33:BM$38,$B$33:$B$38^{1,2,3},$B55^{1,2,3}) -> 24757.77003 | BN55: =TREND(BN$33:BN$38,$B$33:$B$38^{1,2,3},$B55^{1,2,3}) -> 56760.01906 | BO55: =TREND(BO$33:BO$38,$B$33:$B$38^{1,2,3},$B55^{1,2,3}) -> 137638.1149 | BP55: =TREND(BP$33:BP$38,$B$33:$B$38^{1,2,3},$B55^{1,2,3}) -> 17752.9108 | BQ55: =TREND(BQ$33:BQ$38,$B$33:$B$38^{1,2,3},$B55^{1,2,3}) -> 32686.93762 | BR55: =TREND(BR$33:BR$38,$B$33:$B$38^{1,2,3},$B55^{1,2,3}) -> 12381.46032 | BS55: =TREND(BS$33:BS$38,$B$33:$B$38^{1,2,3},$B55^{1,2,3}) -> 56901.22277 | BT55: =TREND(BT$33:BT$38,$B$33:$B$38^{1,2,3},$B55^{1,2,3}) -> 5634743.076
B56: 2034 | C56: =TREND(C$33:C$38,$B$33:$B$38^{1,2,3},$B56^{1,2,3}) -> 70341.66529 | D56: =TREND(D$33:D$38,$B$33:$B$38^{1,2,3},$B56^{1,2,3}) -> 106910.3405 | E56: =TREND(E$33:E$38,$B$33:$B$38^{1,2,3},$B56^{1,2,3}) -> 26208.33156 | F56: =TREND(F$33:F$38,$B$33:$B$38^{1,2,3},$B56^{1,2,3}) -> 510372.7595 | G56: =TREND(G$33:G$38,$B$33:$B$38^{1,2,3},$B56^{1,2,3}) -> 329021.8471 | H56: =TREND(H$33:H$38,$B$33:$B$38^{1,2,3},$B56^{1,2,3}) -> 439631.6101 | I56: =TREND(I$33:I$38,$B$33:$B$38^{1,2,3},$B56^{1,2,3}) -> 798721.8063 | J56: =TREND(J$33:J$38,$B$33:$B$38^{1,2,3},$B56^{1,2,3}) -> 31119.30789 | K56: =TREND(K$33:K$38,$B$33:$B$38^{1,2,3},$B56^{1,2,3}) -> 21392.9604 | L56: =TREND(L$33:L$38,$B$33:$B$38^{1,2,3},$B56^{1,2,3}) -> 97102.58534 | M56: =TREND(M$33:M$38,$B$33:$B$38^{1,2,3},$B56^{1,2,3}) -> 37282.85143 | N56: =TREND(N$33:N$38,$B$33:$B$38^{1,2,3},$B56^{1,2,3}) -> 206343.4803 | O56: =TREND(O$33:O$38,$B$33:$B$38^{1,2,3},$B56^{1,2,3}) -> 64006.43991 | P56: =TREND(P$33:P$38,$B$33:$B$38^{1,2,3},$B56^{1,2,3}) -> 11214.52104 | Q56: =TREND(Q$33:Q$38,$B$33:$B$38^{1,2,3},$B56^{1,2,3}) -> 23954.87111 | R56: =TREND(R$33:R$38,$B$33:$B$38^{1,2,3},$B56^{1,2,3}) -> 9181.157314 | S56: =TREND(S$33:S$38,$B$33:$B$38^{1,2,3},$B56^{1,2,3}) -> 40511.69152 | T56: =TREND(T$33:T$38,$B$33:$B$38^{1,2,3},$B56^{1,2,3}) -> 60211.22694 | U56: =TREND(U$33:U$38,$B$33:$B$38^{1,2,3},$B56^{1,2,3}) -> 174313.686 | V56: =TREND(V$33:V$38,$B$33:$B$38^{1,2,3},$B56^{1,2,3}) -> 77126.27768 | W56: =TREND(W$33:W$38,$B$33:$B$38^{1,2,3},$B56^{1,2,3}) -> 37520.60484 | X56: =TREND(X$33:X$38,$B$33:$B$38^{1,2,3},$B56^{1,2,3}) -> 6489.608629 | Y56: =TREND(Y$33:Y$38,$B$33:$B$38^{1,2,3},$B56^{1,2,3}) -> 8448.112475 | Z56: =TREND(Z$33:Z$38,$B$33:$B$38^{1,2,3},$B56^{1,2,3}) -> 51322.91546 | AA56: =TREND(AA$33:AA$38,$B$33:$B$38^{1,2,3},$B56^{1,2,3}) -> 7676.956593 | AB56: =TREND(AB$33:AB$38,$B$33:$B$38^{1,2,3},$B56^{1,2,3}) -> 90416.77944 | AC56: =TREND(AC$33:AC$38,$B$33:$B$38^{1,2,3},$B56^{1,2,3}) -> 67330.57992 | AD56: =TREND(AD$33:AD$38,$B$33:$B$38^{1,2,3},$B56^{1,2,3}) -> 14250.40112 | AE56: =TREND(AE$33:AE$38,$B$33:$B$38^{1,2,3},$B56^{1,2,3}) -> 92380.751 | AF56: =TREND(AF$33:AF$38,$B$33:$B$38^{1,2,3},$B56^{1,2,3}) -> 9844.69876 | AG56: =TREND(AG$33:AG$38,$B$33:$B$38^{1,2,3},$B56^{1,2,3}) -> 28399.58534 | AH56: =TREND(AH$33:AH$38,$B$33:$B$38^{1,2,3},$B56^{1,2,3}) -> 10723.83386 | AI56: =TREND(AI$33:AI$38,$B$33:$B$38^{1,2,3},$B56^{1,2,3}) -> 46501.45882 | AJ56: =TREND(AJ$33:AJ$38,$B$33:$B$38^{1,2,3},$B56^{1,2,3}) -> 14837.39688 | AK56: =TREND(AK$33:AK$38,$B$33:$B$38^{1,2,3},$B56^{1,2,3}) -> 34363.71032 | AL56: =TREND(AL$33:AL$38,$B$33:$B$38^{1,2,3},$B56^{1,2,3}) -> 97236.43165 | AM56: =TREND(AM$33:AM$38,$B$33:$B$38^{1,2,3},$B56^{1,2,3}) -> 17394.47257 | AN56: =TREND(AN$33:AN$38,$B$33:$B$38^{1,2,3},$B56^{1,2,3}) -> 34641.80952 | AO56: =TREND(AO$33:AO$38,$B$33:$B$38^{1,2,3},$B56^{1,2,3}) -> 59979.7032 | AP56: =TREND(AP$33:AP$38,$B$33:$B$38^{1,2,3},$B56^{1,2,3}) -> 62837.85929 | AQ56: =TREND(AQ$33:AQ$38,$B$33:$B$38^{1,2,3},$B56^{1,2,3}) -> 49395.99037 | AR56: =TREND(AR$33:AR$38,$B$33:$B$38^{1,2,3},$B56^{1,2,3}) -> 111771.5797 | AS56: =TREND(AS$33:AS$38,$B$33:$B$38^{1,2,3},$B56^{1,2,3}) -> 237554.1253 | AT56: =TREND(AT$33:AT$38,$B$33:$B$38^{1,2,3},$B56^{1,2,3}) -> 27335.85067 | AU56: =TREND(AU$33:AU$38,$B$33:$B$38^{1,2,3},$B56^{1,2,3}) -> 10148.99092 | AV56: =TREND(AV$33:AV$38,$B$33:$B$38^{1,2,3},$B56^{1,2,3}) -> 11492.29832 | AW56: =TREND(AW$33:AW$38,$B$33:$B$38^{1,2,3},$B56^{1,2,3}) -> 58344.74854 | AX56: =TREND(AX$33:AX$38,$B$33:$B$38^{1,2,3},$B56^{1,2,3}) -> 57695.44453 | AY56: =TREND(AY$33:AY$38,$B$33:$B$38^{1,2,3},$B56^{1,2,3}) -> 50388.0314 | AZ56: =TREND(AZ$33:AZ$38,$B$33:$B$38^{1,2,3},$B56^{1,2,3}) -> 4014.928223 | BA56: =TREND(BA$33:BA$38,$B$33:$B$38^{1,2,3},$B56^{1,2,3}) -> 9535.471837 | BB56: =TREND(BB$33:BB$38,$B$33:$B$38^{1,2,3},$B56^{1,2,3}) -> 13338.51103 | BC56: =TREND(BC$33:BC$38,$B$33:$B$38^{1,2,3},$B56^{1,2,3}) -> 8777.616427 | BD56: =TREND(BD$33:BD$38,$B$33:$B$38^{1,2,3},$B56^{1,2,3}) -> 14235.97778 | BE56: =TREND(BE$33:BE$38,$B$33:$B$38^{1,2,3},$B56^{1,2,3}) -> 77078.82802 | BF56: =TREND(BF$33:BF$38,$B$33:$B$38^{1,2,3},$B56^{1,2,3}) -> 436037.2858 | BG56: =TREND(BG$33:BG$38,$B$33:$B$38^{1,2,3},$B56^{1,2,3}) -> 89529.90199 | BH56: =TREND(BH$33:BH$38,$B$33:$B$38^{1,2,3},$B56^{1,2,3}) -> 39334.76017 | BI56: =TREND(BI$33:BI$38,$B$33:$B$38^{1,2,3},$B56^{1,2,3}) -> 50257.03066 | BJ56: =TREND(BJ$33:BJ$38,$B$33:$B$38^{1,2,3},$B56^{1,2,3}) -> 5386.055271 | BK56: =TREND(BK$33:BK$38,$B$33:$B$38^{1,2,3},$B56^{1,2,3}) -> 8516.555843 | BL56: =TREND(BL$33:BL$38,$B$33:$B$38^{1,2,3},$B56^{1,2,3}) -> 24319.2295 | BM56: =TREND(BM$33:BM$38,$B$33:$B$38^{1,2,3},$B56^{1,2,3}) -> 24876.70634 | BN56: =TREND(BN$33:BN$38,$B$33:$B$38^{1,2,3},$B56^{1,2,3}) -> 57431.98723 | BO56: =TREND(BO$33:BO$38,$B$33:$B$38^{1,2,3},$B56^{1,2,3}) -> 137842.4944 | BP56: =TREND(BP$33:BP$38,$B$33:$B$38^{1,2,3},$B56^{1,2,3}) -> 17701.94495 | BQ56: =TREND(BQ$33:BQ$38,$B$33:$B$38^{1,2,3},$B56^{1,2,3}) -> 32688.58245 | BR56: =TREND(BR$33:BR$38,$B$33:$B$38^{1,2,3},$B56^{1,2,3}) -> 12331.91822 | BS56: =TREND(BS$33:BS$38,$B$33:$B$38^{1,2,3},$B56^{1,2,3}) -> 56870.55069 | BT56: =TREND(BT$33:BT$38,$B$33:$B$38^{1,2,3},$B56^{1,2,3}) -> 5671563.286
B57: 2035 | C57: =TREND(C$33:C$38,$B$33:$B$38^{1,2,3},$B57^{1,2,3}) -> 70314.54436 | D57: =TREND(D$33:D$38,$B$33:$B$38^{1,2,3},$B57^{1,2,3}) -> 107465.583 | E57: =TREND(E$33:E$38,$B$33:$B$38^{1,2,3},$B57^{1,2,3}) -> 26277.25765 | F57: =TREND(F$33:F$38,$B$33:$B$38^{1,2,3},$B57^{1,2,3}) -> 516356.0506 | G57: =TREND(G$33:G$38,$B$33:$B$38^{1,2,3},$B57^{1,2,3}) -> 332738.1511 | H57: =TREND(H$33:H$38,$B$33:$B$38^{1,2,3},$B57^{1,2,3}) -> 443808.3863 | I57: =TREND(I$33:I$38,$B$33:$B$38^{1,2,3},$B57^{1,2,3}) -> 806479.8961 | J57: =TREND(J$33:J$38,$B$33:$B$38^{1,2,3},$B57^{1,2,3}) -> 31044.88854 | K57: =TREND(K$33:K$38,$B$33:$B$38^{1,2,3},$B57^{1,2,3}) -> 21357.20792 | L57: =TREND(L$33:L$38,$B$33:$B$38^{1,2,3},$B57^{1,2,3}) -> 98101.86038 | M57: =TREND(M$33:M$38,$B$33:$B$38^{1,2,3},$B57^{1,2,3}) -> 37325.49959 | N57: =TREND(N$33:N$38,$B$33:$B$38^{1,2,3},$B57^{1,2,3}) -> 208396.5673 | O57: =TREND(O$33:O$38,$B$33:$B$38^{1,2,3},$B57^{1,2,3}) -> 64424.47036 | P57: =TREND(P$33:P$38,$B$33:$B$38^{1,2,3},$B57^{1,2,3}) -> 11196.62136 | Q57: =TREND(Q$33:Q$38,$B$33:$B$38^{1,2,3},$B57^{1,2,3}) -> 23819.0419 | R57: =TREND(R$33:R$38,$B$33:$B$38^{1,2,3},$B57^{1,2,3}) -> 9125.955826 | S57: =TREND(S$33:S$38,$B$33:$B$38^{1,2,3},$B57^{1,2,3}) -> 40538.32084 | T57: =TREND(T$33:T$38,$B$33:$B$38^{1,2,3},$B57^{1,2,3}) -> 60523.18499 | U57: =TREND(U$33:U$38,$B$33:$B$38^{1,2,3},$B57^{1,2,3}) -> 176010.1303 | V57: =TREND(V$33:V$38,$B$33:$B$38^{1,2,3},$B57^{1,2,3}) -> 77037.43181 | W57: =TREND(W$33:W$38,$B$33:$B$38^{1,2,3},$B57^{1,2,3}) -> 37444.8257 | X57: =TREND(X$33:X$38,$B$33:$B$38^{1,2,3},$B57^{1,2,3}) -> 6405.152676 | Y57: =TREND(Y$33:Y$38,$B$33:$B$38^{1,2,3},$B57^{1,2,3}) -> 8337.905173 | Z57: =TREND(Z$33:Z$38,$B$33:$B$38^{1,2,3},$B57^{1,2,3}) -> 51326.98498 | AA57: =TREND(AA$33:AA$38,$B$33:$B$38^{1,2,3},$B57^{1,2,3}) -> 7588.267041 | AB57: =TREND(AB$33:AB$38,$B$33:$B$38^{1,2,3},$B57^{1,2,3}) -> 90613.47167 | AC57: =TREND(AC$33:AC$38,$B$33:$B$38^{1,2,3},$B57^{1,2,3}) -> 67409.12372 | AD57: =TREND(AD$33:AD$38,$B$33:$B$38^{1,2,3},$B57^{1,2,3}) -> 14175.11535 | AE57: =TREND(AE$33:AE$38,$B$33:$B$38^{1,2,3},$B57^{1,2,3}) -> 92810.2359 | AF57: =TREND(AF$33:AF$38,$B$33:$B$38^{1,2,3},$B57^{1,2,3}) -> 9841.385276 | AG57: =TREND(AG$33:AG$38,$B$33:$B$38^{1,2,3},$B57^{1,2,3}) -> 28352.03065 | AH57: =TREND(AH$33:AH$38,$B$33:$B$38^{1,2,3},$B57^{1,2,3}) -> 10558.04467 | AI57: =TREND(AI$33:AI$38,$B$33:$B$38^{1,2,3},$B57^{1,2,3}) -> 46381.04874 | AJ57: =TREND(AJ$33:AJ$38,$B$33:$B$38^{1,2,3},$B57^{1,2,3}) -> 14756.46011 | AK57: =TREND(AK$33:AK$38,$B$33:$B$38^{1,2,3},$B57^{1,2,3}) -> 34502.09977 | AL57: =TREND(AL$33:AL$38,$B$33:$B$38^{1,2,3},$B57^{1,2,3}) -> 97678.03017 | AM57: =TREND(AM$33:AM$38,$B$33:$B$38^{1,2,3},$B57^{1,2,3}) -> 17286.05853 | AN57: =TREND(AN$33:AN$38,$B$33:$B$38^{1,2,3},$B57^{1,2,3}) -> 34568.28571 | AO57: =TREND(AO$33:AO$38,$B$33:$B$38^{1,2,3},$B57^{1,2,3}) -> 60211.3937 | AP57: =TREND(AP$33:AP$38,$B$33:$B$38^{1,2,3},$B57^{1,2,3}) -> 62923.47555 | AQ57: =TREND(AQ$33:AQ$38,$B$33:$B$38^{1,2,3},$B57^{1,2,3}) -> 49546.0352 | AR57: =TREND(AR$33:AR$38,$B$33:$B$38^{1,2,3},$B57^{1,2,3}) -> 111717.7312 | AS57: =TREND(AS$33:AS$38,$B$33:$B$38^{1,2,3},$B57^{1,2,3}) -> 238871.3212 | AT57: =TREND(AT$33:AT$38,$B$33:$B$38^{1,2,3},$B57^{1,2,3}) -> 27326.16229 | AU57: =TREND(AU$33:AU$38,$B$33:$B$38^{1,2,3},$B57^{1,2,3}) -> 10165.76311 | AV57: =TREND(AV$33:AV$38,$B$33:$B$38^{1,2,3},$B57^{1,2,3}) -> 11508.101 | AW57: =TREND(AW$33:AW$38,$B$33:$B$38^{1,2,3},$B57^{1,2,3}) -> 58472.94236 | AX57: =TREND(AX$33:AX$38,$B$33:$B$38^{1,2,3},$B57^{1,2,3}) -> 57891.34242 | AY57: =TREND(AY$33:AY$38,$B$33:$B$38^{1,2,3},$B57^{1,2,3}) -> 50379.49462 | AZ57: =TREND(AZ$33:AZ$38,$B$33:$B$38^{1,2,3},$B57^{1,2,3}) -> 4002.592116 | BA57: =TREND(BA$33:BA$38,$B$33:$B$38^{1,2,3},$B57^{1,2,3}) -> 9511.189722 | BB57: =TREND(BB$33:BB$38,$B$33:$B$38^{1,2,3},$B57^{1,2,3}) -> 13284.78204 | BC57: =TREND(BC$33:BC$38,$B$33:$B$38^{1,2,3},$B57^{1,2,3}) -> 8751.889302 | BD57: =TREND(BD$33:BD$38,$B$33:$B$38^{1,2,3},$B57^{1,2,3}) -> 14285.69524 | BE57: =TREND(BE$33:BE$38,$B$33:$B$38^{1,2,3},$B57^{1,2,3}) -> 77848.72803 | BF57: =TREND(BF$33:BF$38,$B$33:$B$38^{1,2,3},$B57^{1,2,3}) -> 438300.9405 | BG57: =TREND(BG$33:BG$38,$B$33:$B$38^{1,2,3},$B57^{1,2,3}) -> 90847.35749 | BH57: =TREND(BH$33:BH$38,$B$33:$B$38^{1,2,3},$B57^{1,2,3}) -> 39603.63387 | BI57: =TREND(BI$33:BI$38,$B$33:$B$38^{1,2,3},$B57^{1,2,3}) -> 50324.18903 | BJ57: =TREND(BJ$33:BJ$38,$B$33:$B$38^{1,2,3},$B57^{1,2,3}) -> 5396.563858 | BK57: =TREND(BK$33:BK$38,$B$33:$B$38^{1,2,3},$B57^{1,2,3}) -> 8531.438342 | BL57: =TREND(BL$33:BL$38,$B$33:$B$38^{1,2,3},$B57^{1,2,3}) -> 24379.07692 | BM57: =TREND(BM$33:BM$38,$B$33:$B$38^{1,2,3},$B57^{1,2,3}) -> 24987.51554 | BN57: =TREND(BN$33:BN$38,$B$33:$B$38^{1,2,3},$B57^{1,2,3}) -> 58097.09313 | BO57: =TREND(BO$33:BO$38,$B$33:$B$38^{1,2,3},$B57^{1,2,3}) -> 138025.4027 | BP57: =TREND(BP$33:BP$38,$B$33:$B$38^{1,2,3},$B57^{1,2,3}) -> 17644.8615 | BQ57: =TREND(BQ$33:BQ$38,$B$33:$B$38^{1,2,3},$B57^{1,2,3}) -> 32685.06703 | BR57: =TREND(BR$33:BR$38,$B$33:$B$38^{1,2,3},$B57^{1,2,3}) -> 12278.97905 | BS57: =TREND(BS$33:BS$38,$B$33:$B$38^{1,2,3},$B57^{1,2,3}) -> 56828.36456 | BT57: =TREND(BT$33:BT$38,$B$33:$B$38^{1,2,3},$B57^{1,2,3}) -> 5707341.268
B58: 2036 | C58: =TREND(C$33:C$38,$B$33:$B$38^{1,2,3},$B58^{1,2,3}) -> 70265.34012 | D58: =TREND(D$33:D$38,$B$33:$B$38^{1,2,3},$B58^{1,2,3}) -> 108003.7325 | E58: =TREND(E$33:E$38,$B$33:$B$38^{1,2,3},$B58^{1,2,3}) -> 26335.27754 | F58: =TREND(F$33:F$38,$B$33:$B$38^{1,2,3},$B58^{1,2,3}) -> 522263.7396 | G58: =TREND(G$33:G$38,$B$33:$B$38^{1,2,3},$B58^{1,2,3}) -> 336420.228 | H58: =TREND(H$33:H$38,$B$33:$B$38^{1,2,3},$B58^{1,2,3}) -> 447927.1904 | I58: =TREND(I$33:I$38,$B$33:$B$38^{1,2,3},$B58^{1,2,3}) -> 814090.3581 | J58: =TREND(J$33:J$38,$B$33:$B$38^{1,2,3},$B58^{1,2,3}) -> 30959.09657 | K58: =TREND(K$33:K$38,$B$33:$B$38^{1,2,3},$B58^{1,2,3}) -> 21313.55021 | L58: =TREND(L$33:L$38,$B$33:$B$38^{1,2,3},$B58^{1,2,3}) -> 99088.77555 | M58: =TREND(M$33:M$38,$B$33:$B$38^{1,2,3},$B58^{1,2,3}) -> 37358.63837 | N58: =TREND(N$33:N$38,$B$33:$B$38^{1,2,3},$B58^{1,2,3}) -> 210437.2046 | O58: =TREND(O$33:O$38,$B$33:$B$38^{1,2,3},$B58^{1,2,3}) -> 64827.45708 | P58: =TREND(P$33:P$38,$B$33:$B$38^{1,2,3},$B58^{1,2,3}) -> 11177.00324 | Q58: =TREND(Q$33:Q$38,$B$33:$B$38^{1,2,3},$B58^{1,2,3}) -> 23674.23746 | R58: =TREND(R$33:R$38,$B$33:$B$38^{1,2,3},$B58^{1,2,3}) -> 9067.748199 | S58: =TREND(S$33:S$38,$B$33:$B$38^{1,2,3},$B58^{1,2,3}) -> 40556.23403 | T58: =TREND(T$33:T$38,$B$33:$B$38^{1,2,3},$B58^{1,2,3}) -> 60820.34824 | U58: =TREND(U$33:U$38,$B$33:$B$38^{1,2,3},$B58^{1,2,3}) -> 177692.649 | V58: =TREND(V$33:V$38,$B$33:$B$38^{1,2,3},$B58^{1,2,3}) -> 76927.27403 | W58: =TREND(W$33:W$38,$B$33:$B$38^{1,2,3},$B58^{1,2,3}) -> 37356.13706 | X58: =TREND(X$33:X$38,$B$33:$B$38^{1,2,3},$B58^{1,2,3}) -> 6318.253682 | Y58: =TREND(Y$33:Y$38,$B$33:$B$38^{1,2,3},$B58^{1,2,3}) -> 8223.993131 | Z58: =TREND(Z$33:Z$38,$B$33:$B$38^{1,2,3},$B58^{1,2,3}) -> 51318.63211 | AA58: =TREND(AA$33:AA$38,$B$33:$B$38^{1,2,3},$B58^{1,2,3}) -> 7496.36373 | AB58: =TREND(AB$33:AB$38,$B$33:$B$38^{1,2,3},$B58^{1,2,3}) -> 90788.38389 | AC58: =TREND(AC$33:AC$38,$B$33:$B$38^{1,2,3},$B58^{1,2,3}) -> 67474.90726 | AD58: =TREND(AD$33:AD$38,$B$33:$B$38^{1,2,3},$B58^{1,2,3}) -> 14095.29632 | AE58: =TREND(AE$33:AE$38,$B$33:$B$38^{1,2,3},$B58^{1,2,3}) -> 93224.20285 | AF58: =TREND(AF$33:AF$38,$B$33:$B$38^{1,2,3},$B58^{1,2,3}) -> 9836.567698 | AG58: =TREND(AG$33:AG$38,$B$33:$B$38^{1,2,3},$B58^{1,2,3}) -> 28299.20141 | AH58: =TREND(AH$33:AH$38,$B$33:$B$38^{1,2,3},$B58^{1,2,3}) -> 10388.06909 | AI58: =TREND(AI$33:AI$38,$B$33:$B$38^{1,2,3},$B58^{1,2,3}) -> 46248.90084 | AJ58: =TREND(AJ$33:AJ$38,$B$33:$B$38^{1,2,3},$B58^{1,2,3}) -> 14671.83246 | AK58: =TREND(AK$33:AK$38,$B$33:$B$38^{1,2,3},$B58^{1,2,3}) -> 34631.16935 | AL58: =TREND(AL$33:AL$38,$B$33:$B$38^{1,2,3},$B58^{1,2,3}) -> 98107.7295 | AM58: =TREND(AM$33:AM$38,$B$33:$B$38^{1,2,3},$B58^{1,2,3}) -> 17171.52963 | AN58: =TREND(AN$33:AN$38,$B$33:$B$38^{1,2,3},$B58^{1,2,3}) -> 34487.29252 | AO58: =TREND(AO$33:AO$38,$B$33:$B$38^{1,2,3},$B58^{1,2,3}) -> 60434.2926 | AP58: =TREND(AP$33:AP$38,$B$33:$B$38^{1,2,3},$B58^{1,2,3}) -> 62990.77662 | AQ58: =TREND(AQ$33:AQ$38,$B$33:$B$38^{1,2,3},$B58^{1,2,3}) -> 49684.06501 | AR58: =TREND(AR$33:AR$38,$B$33:$B$38^{1,2,3},$B58^{1,2,3}) -> 111636.9912 | AS58: =TREND(AS$33:AS$38,$B$33:$B$38^{1,2,3},$B58^{1,2,3}) -> 240160.7275 | AT58: =TREND(AT$33:AT$38,$B$33:$B$38^{1,2,3},$B58^{1,2,3}) -> 27309.83619 | AU58: =TREND(AU$33:AU$38,$B$33:$B$38^{1,2,3},$B58^{1,2,3}) -> 10179.96495 | AV58: =TREND(AV$33:AV$38,$B$33:$B$38^{1,2,3},$B58^{1,2,3}) -> 11521.29072 | AW58: =TREND(AW$33:AW$38,$B$33:$B$38^{1,2,3},$B58^{1,2,3}) -> 58581.2264 | AX58: =TREND(AX$33:AX$38,$B$33:$B$38^{1,2,3},$B58^{1,2,3}) -> 58074.33418 | AY58: =TREND(AY$33:AY$38,$B$33:$B$38^{1,2,3},$B58^{1,2,3}) -> 50360.37088 | AZ58: =TREND(AZ$33:AZ$38,$B$33:$B$38^{1,2,3},$B58^{1,2,3}) -> 3989.516391 | BA58: =TREND(BA$33:BA$38,$B$33:$B$38^{1,2,3},$B58^{1,2,3}) -> 9485.709445 | BB58: =TREND(BB$33:BB$38,$B$33:$B$38^{1,2,3},$B58^{1,2,3}) -> 13227.73109 | BC58: =TREND(BC$33:BC$38,$B$33:$B$38^{1,2,3},$B58^{1,2,3}) -> 8724.092579 | BD58: =TREND(BD$33:BD$38,$B$33:$B$38^{1,2,3},$B58^{1,2,3}) -> 14331.66984 | BE58: =TREND(BE$33:BE$38,$B$33:$B$38^{1,2,3},$B58^{1,2,3}) -> 78604.65112 | BF58: =TREND(BF$33:BF$38,$B$33:$B$38^{1,2,3},$B58^{1,2,3}) -> 440508.0108 | BG58: =TREND(BG$33:BG$38,$B$33:$B$38^{1,2,3},$B58^{1,2,3}) -> 92163.05993 | BH58: =TREND(BH$33:BH$38,$B$33:$B$38^{1,2,3},$B58^{1,2,3}) -> 39871.93779 | BI58: =TREND(BI$33:BI$38,$B$33:$B$38^{1,2,3},$B58^{1,2,3}) -> 50378.83769 | BJ58: =TREND(BJ$33:BJ$38,$B$33:$B$38^{1,2,3},$B58^{1,2,3}) -> 5406.835816 | BK58: =TREND(BK$33:BK$38,$B$33:$B$38^{1,2,3},$B58^{1,2,3}) -> 8545.432084 | BL58: =TREND(BL$33:BL$38,$B$33:$B$38^{1,2,3},$B58^{1,2,3}) -> 24435.7556 | BM58: =TREND(BM$33:BM$38,$B$33:$B$38^{1,2,3},$B58^{1,2,3}) -> 25089.90885 | BN58: =TREND(BN$33:BN$38,$B$33:$B$38^{1,2,3},$B58^{1,2,3}) -> 58760.16992 | BO58: =TREND(BO$33:BO$38,$B$33:$B$38^{1,2,3},$B58^{1,2,3}) -> 138187.97 | BP58: =TREND(BP$33:BP$38,$B$33:$B$38^{1,2,3},$B58^{1,2,3}) -> 17581.27302 | BQ58: =TREND(BQ$33:BQ$38,$B$33:$B$38^{1,2,3},$B58^{1,2,3}) -> 32676.61713 | BR58: =TREND(BR$33:BR$38,$B$33:$B$38^{1,2,3},$B58^{1,2,3}) -> 12222.52902 | BS58: =TREND(BS$33:BS$38,$B$33:$B$38^{1,2,3},$B58^{1,2,3}) -> 56774.79914 | BT58: =TREND(BT$33:BT$38,$B$33:$B$38^{1,2,3},$B58^{1,2,3}) -> 5742160.516
B59: 2037 | C59: =TREND(C$33:C$38,$B$33:$B$38^{1,2,3},$B59^{1,2,3}) -> 70193.90864 | D59: =TREND(D$33:D$38,$B$33:$B$38^{1,2,3},$B59^{1,2,3}) -> 108526.7279 | E59: =TREND(E$33:E$38,$B$33:$B$38^{1,2,3},$B59^{1,2,3}) -> 26382.29802 | F59: =TREND(F$33:F$38,$B$33:$B$38^{1,2,3},$B59^{1,2,3}) -> 528103.7251 | G59: =TREND(G$33:G$38,$B$33:$B$38^{1,2,3},$B59^{1,2,3}) -> 340070.5256 | H59: =TREND(H$33:H$38,$B$33:$B$38^{1,2,3},$B59^{1,2,3}) -> 452004.5507 | I59: =TREND(I$33:I$38,$B$33:$B$38^{1,2,3},$B59^{1,2,3}) -> 821567.293 | J59: =TREND(J$33:J$38,$B$33:$B$38^{1,2,3},$B59^{1,2,3}) -> 30862.0261 | K59: =TREND(K$33:K$38,$B$33:$B$38^{1,2,3},$B59^{1,2,3}) -> 21262.21499 | L59: =TREND(L$33:L$38,$B$33:$B$38^{1,2,3},$B59^{1,2,3}) -> 100064.8098 | M59: =TREND(M$33:M$38,$B$33:$B$38^{1,2,3},$B59^{1,2,3}) -> 37382.26776 | N59: =TREND(N$33:N$38,$B$33:$B$38^{1,2,3},$B59^{1,2,3}) -> 212469.2565 | O59: =TREND(O$33:O$38,$B$33:$B$38^{1,2,3},$B59^{1,2,3}) -> 65215.71752 | P59: =TREND(P$33:P$38,$B$33:$B$38^{1,2,3},$B59^{1,2,3}) -> 11156.59547 | Q59: =TREND(Q$33:Q$38,$B$33:$B$38^{1,2,3},$B59^{1,2,3}) -> 23520.59556 | R59: =TREND(R$33:R$38,$B$33:$B$38^{1,2,3},$B59^{1,2,3}) -> 9006.569266 | S59: =TREND(S$33:S$38,$B$33:$B$38^{1,2,3},$B59^{1,2,3}) -> 40565.80003 | T59: =TREND(T$33:T$38,$B$33:$B$38^{1,2,3},$B59^{1,2,3}) -> 61102.47696 | U59: =TREND(U$33:U$38,$B$33:$B$38^{1,2,3},$B59^{1,2,3}) -> 179365.1805 | V59: =TREND(V$33:V$38,$B$33:$B$38^{1,2,3},$B59^{1,2,3}) -> 76796.82299 | W59: =TREND(W$33:W$38,$B$33:$B$38^{1,2,3},$B59^{1,2,3}) -> 37254.40074 | X59: =TREND(X$33:X$38,$B$33:$B$38^{1,2,3},$B59^{1,2,3}) -> 6228.974662 | Y59: =TREND(Y$33:Y$38,$B$33:$B$38^{1,2,3},$B59^{1,2,3}) -> 8106.425188 | Z59: =TREND(Z$33:Z$38,$B$33:$B$38^{1,2,3},$B59^{1,2,3}) -> 51297.94757 | AA59: =TREND(AA$33:AA$38,$B$33:$B$38^{1,2,3},$B59^{1,2,3}) -> 7401.175243 | AB59: =TREND(AB$33:AB$38,$B$33:$B$38^{1,2,3},$B59^{1,2,3}) -> 90941.04556 | AC59: =TREND(AC$33:AC$38,$B$33:$B$38^{1,2,3},$B59^{1,2,3}) -> 67528.11435 | AD59: =TREND(AD$33:AD$38,$B$33:$B$38^{1,2,3},$B59^{1,2,3}) -> 14011.17907 | AE59: =TREND(AE$33:AE$38,$B$33:$B$38^{1,2,3},$B59^{1,2,3}) -> 93622.78746 | AF59: =TREND(AF$33:AF$38,$B$33:$B$38^{1,2,3},$B59^{1,2,3}) -> 9830.227601 | AG59: =TREND(AG$33:AG$38,$B$33:$B$38^{1,2,3},$B59^{1,2,3}) -> 28241.27794 | AH59: =TREND(AH$33:AH$38,$B$33:$B$38^{1,2,3},$B59^{1,2,3}) -> 10213.97906 | AI59: =TREND(AI$33:AI$38,$B$33:$B$38^{1,2,3},$B59^{1,2,3}) -> 46105.06218 | AJ59: =TREND(AJ$33:AJ$38,$B$33:$B$38^{1,2,3},$B59^{1,2,3}) -> 14583.74359 | AK59: =TREND(AK$33:AK$38,$B$33:$B$38^{1,2,3},$B59^{1,2,3}) -> 34750.64892 | AL59: =TREND(AL$33:AL$38,$B$33:$B$38^{1,2,3},$B59^{1,2,3}) -> 98525.84111 | AM59: =TREND(AM$33:AM$38,$B$33:$B$38^{1,2,3},$B59^{1,2,3}) -> 17050.69845 | AN59: =TREND(AN$33:AN$38,$B$33:$B$38^{1,2,3},$B59^{1,2,3}) -> 34399.21088 | AO59: =TREND(AO$33:AO$38,$B$33:$B$38^{1,2,3},$B59^{1,2,3}) -> 60648.26129 | AP59: =TREND(AP$33:AP$38,$B$33:$B$38^{1,2,3},$B59^{1,2,3}) -> 63039.855 | AQ59: =TREND(AQ$33:AQ$38,$B$33:$B$38^{1,2,3},$B59^{1,2,3}) -> 49810.03333 | AR59: =TREND(AR$33:AR$38,$B$33:$B$38^{1,2,3},$B59^{1,2,3}) -> 111529.8195 | AS59: =TREND(AS$33:AS$38,$B$33:$B$38^{1,2,3},$B59^{1,2,3}) -> 241424.1088 | AT59: =TREND(AT$33:AT$38,$B$33:$B$38^{1,2,3},$B59^{1,2,3}) -> 27287.10705 | AU59: =TREND(AU$33:AU$38,$B$33:$B$38^{1,2,3},$B59^{1,2,3}) -> 10191.62439 | AV59: =TREND(AV$33:AV$38,$B$33:$B$38^{1,2,3},$B59^{1,2,3}) -> 11531.84384 | AW59: =TREND(AW$33:AW$38,$B$33:$B$38^{1,2,3},$B59^{1,2,3}) -> 58669.08605 | AX59: =TREND(AX$33:AX$38,$B$33:$B$38^{1,2,3},$B59^{1,2,3}) -> 58244.55547 | AY59: =TREND(AY$33:AY$38,$B$33:$B$38^{1,2,3},$B59^{1,2,3}) -> 50331.13071 | AZ59: =TREND(AZ$33:AZ$38,$B$33:$B$38^{1,2,3},$B59^{1,2,3}) -> 3975.764965 | BA59: =TREND(BA$33:BA$38,$B$33:$B$38^{1,2,3},$B59^{1,2,3}) -> 9458.922647 | BB59: =TREND(BB$33:BB$38,$B$33:$B$38^{1,2,3},$B59^{1,2,3}) -> 13167.35819 | BC59: =TREND(BC$33:BC$38,$B$33:$B$38^{1,2,3},$B59^{1,2,3}) -> 8694.323815 | BD59: =TREND(BD$33:BD$38,$B$33:$B$38^{1,2,3},$B59^{1,2,3}) -> 14373.87937 | BE59: =TREND(BE$33:BE$38,$B$33:$B$38^{1,2,3},$B59^{1,2,3}) -> 79348.47622 | BF59: =TREND(BF$33:BF$38,$B$33:$B$38^{1,2,3},$B59^{1,2,3}) -> 442668.4528 | BG59: =TREND(BG$33:BG$38,$B$33:$B$38^{1,2,3},$B59^{1,2,3}) -> 93482.91777 | BH59: =TREND(BH$33:BH$38,$B$33:$B$38^{1,2,3},$B59^{1,2,3}) -> 40140.11509 | BI59: =TREND(BI$33:BI$38,$B$33:$B$38^{1,2,3},$B59^{1,2,3}) -> 50420.84276 | BJ59: =TREND(BJ$33:BJ$38,$B$33:$B$38^{1,2,3},$B59^{1,2,3}) -> 5416.977696 | BK59: =TREND(BK$33:BK$38,$B$33:$B$38^{1,2,3},$B59^{1,2,3}) -> 8558.586446 | BL59: =TREND(BL$33:BL$38,$B$33:$B$38^{1,2,3},$B59^{1,2,3}) -> 24489.31118 | BM59: =TREND(BM$33:BM$38,$B$33:$B$38^{1,2,3},$B59^{1,2,3}) -> 25183.59749 | BN59: =TREND(BN$33:BN$38,$B$33:$B$38^{1,2,3},$B59^{1,2,3}) -> 59426.05081 | BO59: =TREND(BO$33:BO$38,$B$33:$B$38^{1,2,3},$B59^{1,2,3}) -> 138331.3262 | BP59: =TREND(BP$33:BP$38,$B$33:$B$38^{1,2,3},$B59^{1,2,3}) -> 17510.79206 | BQ59: =TREND(BQ$33:BQ$38,$B$33:$B$38^{1,2,3},$B59^{1,2,3}) -> 32663.4585 | BR59: =TREND(BR$33:BR$38,$B$33:$B$38^{1,2,3},$B59^{1,2,3}) -> 12162.45435 | BS59: =TREND(BS$33:BS$38,$B$33:$B$38^{1,2,3},$B59^{1,2,3}) -> 56709.98922 | BT59: =TREND(BT$33:BT$38,$B$33:$B$38^{1,2,3},$B59^{1,2,3}) -> 5776104.525
B60: 2038 | C60: =TREND(C$33:C$38,$B$33:$B$38^{1,2,3},$B60^{1,2,3}) -> 70100.10599 | D60: =TREND(D$33:D$38,$B$33:$B$38^{1,2,3},$B60^{1,2,3}) -> 109036.5079 | E60: =TREND(E$33:E$38,$B$33:$B$38^{1,2,3},$B60^{1,2,3}) -> 26418.22587 | F60: =TREND(F$33:F$38,$B$33:$B$38^{1,2,3},$B60^{1,2,3}) -> 533883.906 | G60: =TREND(G$33:G$38,$B$33:$B$38^{1,2,3},$B60^{1,2,3}) -> 343691.4919 | H60: =TREND(H$33:H$38,$B$33:$B$38^{1,2,3},$B60^{1,2,3}) -> 456056.9958 | I60: =TREND(I$33:I$38,$B$33:$B$38^{1,2,3},$B60^{1,2,3}) -> 828924.8019 | J60: =TREND(J$33:J$38,$B$33:$B$38^{1,2,3},$B60^{1,2,3}) -> 30753.77121 | K60: =TREND(K$33:K$38,$B$33:$B$38^{1,2,3},$B60^{1,2,3}) -> 21203.42999 | L60: =TREND(L$33:L$38,$B$33:$B$38^{1,2,3},$B60^{1,2,3}) -> 101031.4421 | M60: =TREND(M$33:M$38,$B$33:$B$38^{1,2,3},$B60^{1,2,3}) -> 37396.38776 | N60: =TREND(N$33:N$38,$B$33:$B$38^{1,2,3},$B60^{1,2,3}) -> 214496.5873 | O60: =TREND(O$33:O$38,$B$33:$B$38^{1,2,3},$B60^{1,2,3}) -> 65589.56916 | P60: =TREND(P$33:P$38,$B$33:$B$38^{1,2,3},$B60^{1,2,3}) -> 11136.32686 | Q60: =TREND(Q$33:Q$38,$B$33:$B$38^{1,2,3},$B60^{1,2,3}) -> 23358.25397 | R60: =TREND(R$33:R$38,$B$33:$B$38^{1,2,3},$B60^{1,2,3}) -> 8942.453858 | S60: =TREND(S$33:S$38,$B$33:$B$38^{1,2,3},$B60^{1,2,3}) -> 40567.38778 | T60: =TREND(T$33:T$38,$B$33:$B$38^{1,2,3},$B60^{1,2,3}) -> 61369.33141 | U60: =TREND(U$33:U$38,$B$33:$B$38^{1,2,3},$B60^{1,2,3}) -> 181031.6635 | V60: =TREND(V$33:V$38,$B$33:$B$38^{1,2,3},$B60^{1,2,3}) -> 76647.09732 | W60: =TREND(W$33:W$38,$B$33:$B$38^{1,2,3},$B60^{1,2,3}) -> 37139.47858 | X60: =TREND(X$33:X$38,$B$33:$B$38^{1,2,3},$B60^{1,2,3}) -> 6137.378632 | Y60: =TREND(Y$33:Y$38,$B$33:$B$38^{1,2,3},$B60^{1,2,3}) -> 7985.25018 | Z60: =TREND(Z$33:Z$38,$B$33:$B$38^{1,2,3},$B60^{1,2,3}) -> 51265.02209 | AA60: =TREND(AA$33:AA$38,$B$33:$B$38^{1,2,3},$B60^{1,2,3}) -> 7302.630163 | AB60: =TREND(AB$33:AB$38,$B$33:$B$38^{1,2,3},$B60^{1,2,3}) -> 91070.98611 | AC60: =TREND(AC$33:AC$38,$B$33:$B$38^{1,2,3},$B60^{1,2,3}) -> 67568.92876 | AD60: =TREND(AD$33:AD$38,$B$33:$B$38^{1,2,3},$B60^{1,2,3}) -> 13922.99868 | AE60: =TREND(AE$33:AE$38,$B$33:$B$38^{1,2,3},$B60^{1,2,3}) -> 94006.12536 | AF60: =TREND(AF$33:AF$38,$B$33:$B$38^{1,2,3},$B60^{1,2,3}) -> 9822.346564 | AG60: =TREND(AG$33:AG$38,$B$33:$B$38^{1,2,3},$B60^{1,2,3}) -> 28178.44058 | AH60: =TREND(AH$33:AH$38,$B$33:$B$38^{1,2,3},$B60^{1,2,3}) -> 10035.84656 | AI60: =TREND(AI$33:AI$38,$B$33:$B$38^{1,2,3},$B60^{1,2,3}) -> 45949.57983 | AJ60: =TREND(AJ$33:AJ$38,$B$33:$B$38^{1,2,3},$B60^{1,2,3}) -> 14492.42316 | AK60: =TREND(AK$33:AK$38,$B$33:$B$38^{1,2,3},$B60^{1,2,3}) -> 34860.26834 | AL60: =TREND(AL$33:AL$38,$B$33:$B$38^{1,2,3},$B60^{1,2,3}) -> 98932.67646 | AM60: =TREND(AM$33:AM$38,$B$33:$B$38^{1,2,3},$B60^{1,2,3}) -> 16923.37755 | AN60: =TREND(AN$33:AN$38,$B$33:$B$38^{1,2,3},$B60^{1,2,3}) -> 34304.42177 | AO60: =TREND(AO$33:AO$38,$B$33:$B$38^{1,2,3},$B60^{1,2,3}) -> 60853.16115 | AP60: =TREND(AP$33:AP$38,$B$33:$B$38^{1,2,3},$B60^{1,2,3}) -> 63070.80319 | AQ60: =TREND(AQ$33:AQ$38,$B$33:$B$38^{1,2,3},$B60^{1,2,3}) -> 49923.89364 | AR60: =TREND(AR$33:AR$38,$B$33:$B$38^{1,2,3},$B60^{1,2,3}) -> 111396.6757 | AS60: =TREND(AS$33:AS$38,$B$33:$B$38^{1,2,3},$B60^{1,2,3}) -> 242663.2295 | AT60: =TREND(AT$33:AT$38,$B$33:$B$38^{1,2,3},$B60^{1,2,3}) -> 27258.20952 | AU60: =TREND(AU$33:AU$38,$B$33:$B$38^{1,2,3},$B60^{1,2,3}) -> 10200.76941 | AV60: =TREND(AV$33:AV$38,$B$33:$B$38^{1,2,3},$B60^{1,2,3}) -> 11539.73674 | AW60: =TREND(AW$33:AW$38,$B$33:$B$38^{1,2,3},$B60^{1,2,3}) -> 58736.00668 | AX60: =TREND(AX$33:AX$38,$B$33:$B$38^{1,2,3},$B60^{1,2,3}) -> 58402.14194 | AY60: =TREND(AY$33:AY$38,$B$33:$B$38^{1,2,3},$B60^{1,2,3}) -> 50292.24465 | AZ60: =TREND(AZ$33:AZ$38,$B$33:$B$38^{1,2,3},$B60^{1,2,3}) -> 3961.401756 | BA60: =TREND(BA$33:BA$38,$B$33:$B$38^{1,2,3},$B60^{1,2,3}) -> 9430.720965 | BB60: =TREND(BB$33:BB$38,$B$33:$B$38^{1,2,3},$B60^{1,2,3}) -> 13103.66334 | BC60: =TREND(BC$33:BC$38,$B$33:$B$38^{1,2,3},$B60^{1,2,3}) -> 8662.680567 | BD60: =TREND(BD$33:BD$38,$B$33:$B$38^{1,2,3},$B60^{1,2,3}) -> 14412.30159 | BE60: =TREND(BE$33:BE$38,$B$33:$B$38^{1,2,3},$B60^{1,2,3}) -> 80082.08226 | BF60: =TREND(BF$33:BF$38,$B$33:$B$38^{1,2,3},$B60^{1,2,3}) -> 444792.223 | BG60: =TREND(BG$33:BG$38,$B$33:$B$38^{1,2,3},$B60^{1,2,3}) -> 94812.83945 | BH60: =TREND(BH$33:BH$38,$B$33:$B$38^{1,2,3},$B60^{1,2,3}) -> 40408.60894 | BI60: =TREND(BI$33:BI$38,$B$33:$B$38^{1,2,3},$B60^{1,2,3}) -> 50450.07032 | BJ60: =TREND(BJ$33:BJ$38,$B$33:$B$38^{1,2,3},$B60^{1,2,3}) -> 5427.096052 | BK60: =TREND(BK$33:BK$38,$B$33:$B$38^{1,2,3},$B60^{1,2,3}) -> 8570.950802 | BL60: =TREND(BL$33:BL$38,$B$33:$B$38^{1,2,3},$B60^{1,2,3}) -> 24539.78931 | BM60: =TREND(BM$33:BM$38,$B$33:$B$38^{1,2,3},$B60^{1,2,3}) -> 25268.29268 | BN60: =TREND(BN$33:BN$38,$B$33:$B$38^{1,2,3},$B60^{1,2,3}) -> 60099.56898 | BO60: =TREND(BO$33:BO$38,$B$33:$B$38^{1,2,3},$B60^{1,2,3}) -> 138456.6015 | BP60: =TREND(BP$33:BP$38,$B$33:$B$38^{1,2,3},$B60^{1,2,3}) -> 17433.0312 | BQ60: =TREND(BQ$33:BQ$38,$B$33:$B$38^{1,2,3},$B60^{1,2,3}) -> 32645.8169 | BR60: =TREND(BR$33:BR$38,$B$33:$B$38^{1,2,3},$B60^{1,2,3}) -> 12098.64127 | BS60: =TREND(BS$33:BS$38,$B$33:$B$38^{1,2,3},$B60^{1,2,3}) -> 56634.06958 | BT60: =TREND(BT$33:BT$38,$B$33:$B$38^{1,2,3},$B60^{1,2,3}) -> 5809256.791
B61: 2039 | C61: =TREND(C$33:C$38,$B$33:$B$38^{1,2,3},$B61^{1,2,3}) -> 69983.78824 | D61: =TREND(D$33:D$38,$B$33:$B$38^{1,2,3},$B61^{1,2,3}) -> 109535.0114 | E61: =TREND(E$33:E$38,$B$33:$B$38^{1,2,3},$B61^{1,2,3}) -> 26442.96789 | F61: =TREND(F$33:F$38,$B$33:$B$38^{1,2,3},$B61^{1,2,3}) -> 539612.1808 | G61: =TREND(G$33:G$38,$B$33:$B$38^{1,2,3},$B61^{1,2,3}) -> 347285.5748 | H61: =TREND(H$33:H$38,$B$33:$B$38^{1,2,3},$B61^{1,2,3}) -> 460101.0539 | I61: =TREND(I$33:I$38,$B$33:$B$38^{1,2,3},$B61^{1,2,3}) -> 836176.9856 | J61: =TREND(J$33:J$38,$B$33:$B$38^{1,2,3},$B61^{1,2,3}) -> 30634.42601 | K61: =TREND(K$33:K$38,$B$33:$B$38^{1,2,3},$B61^{1,2,3}) -> 21137.42291 | L61: =TREND(L$33:L$38,$B$33:$B$38^{1,2,3},$B61^{1,2,3}) -> 101990.1514 | M61: =TREND(M$33:M$38,$B$33:$B$38^{1,2,3},$B61^{1,2,3}) -> 37400.99837 | N61: =TREND(N$33:N$38,$B$33:$B$38^{1,2,3},$B61^{1,2,3}) -> 216523.0616 | O61: =TREND(O$33:O$38,$B$33:$B$38^{1,2,3},$B61^{1,2,3}) -> 65949.32945 | P61: =TREND(P$33:P$38,$B$33:$B$38^{1,2,3},$B61^{1,2,3}) -> 11117.12621 | Q61: =TREND(Q$33:Q$38,$B$33:$B$38^{1,2,3},$B61^{1,2,3}) -> 23187.35048 | R61: =TREND(R$33:R$38,$B$33:$B$38^{1,2,3},$B61^{1,2,3}) -> 8875.436809 | S61: =TREND(S$33:S$38,$B$33:$B$38^{1,2,3},$B61^{1,2,3}) -> 40561.36621 | T61: =TREND(T$33:T$38,$B$33:$B$38^{1,2,3},$B61^{1,2,3}) -> 61620.67186 | U61: =TREND(U$33:U$38,$B$33:$B$38^{1,2,3},$B61^{1,2,3}) -> 182696.0365 | V61: =TREND(V$33:V$38,$B$33:$B$38^{1,2,3},$B61^{1,2,3}) -> 76479.11564 | W61: =TREND(W$33:W$38,$B$33:$B$38^{1,2,3},$B61^{1,2,3}) -> 37011.2324 | X61: =TREND(X$33:X$38,$B$33:$B$38^{1,2,3},$B61^{1,2,3}) -> 6043.528605 | Y61: =TREND(Y$33:Y$38,$B$33:$B$38^{1,2,3},$B61^{1,2,3}) -> 7860.516948 | Z61: =TREND(Z$33:Z$38,$B$33:$B$38^{1,2,3},$B61^{1,2,3}) -> 51219.94639 | AA61: =TREND(AA$33:AA$38,$B$33:$B$38^{1,2,3},$B61^{1,2,3}) -> 7200.657073 | AB61: =TREND(AB$33:AB$38,$B$33:$B$38^{1,2,3},$B61^{1,2,3}) -> 91177.735 | AC61: =TREND(AC$33:AC$38,$B$33:$B$38^{1,2,3},$B61^{1,2,3}) -> 67597.5343 | AD61: =TREND(AD$33:AD$38,$B$33:$B$38^{1,2,3},$B61^{1,2,3}) -> 13830.9902 | AE61: =TREND(AE$33:AE$38,$B$33:$B$38^{1,2,3},$B61^{1,2,3}) -> 94374.35214 | AF61: =TREND(AF$33:AF$38,$B$33:$B$38^{1,2,3},$B61^{1,2,3}) -> 9812.906163 | AG61: =TREND(AG$33:AG$38,$B$33:$B$38^{1,2,3},$B61^{1,2,3}) -> 28110.86964 | AH61: =TREND(AH$33:AH$38,$B$33:$B$38^{1,2,3},$B61^{1,2,3}) -> 9853.743537 | AI61: =TREND(AI$33:AI$38,$B$33:$B$38^{1,2,3},$B61^{1,2,3}) -> 45782.50084 | AJ61: =TREND(AJ$33:AJ$38,$B$33:$B$38^{1,2,3},$B61^{1,2,3}) -> 14398.10081 | AK61: =TREND(AK$33:AK$38,$B$33:$B$38^{1,2,3},$B61^{1,2,3}) -> 34959.75747 | AL61: =TREND(AL$33:AL$38,$B$33:$B$38^{1,2,3},$B61^{1,2,3}) -> 99328.547 | AM61: =TREND(AM$33:AM$38,$B$33:$B$38^{1,2,3},$B61^{1,2,3}) -> 16789.37951 | AN61: =TREND(AN$33:AN$38,$B$33:$B$38^{1,2,3},$B61^{1,2,3}) -> 34203.30612 | AO61: =TREND(AO$33:AO$38,$B$33:$B$38^{1,2,3},$B61^{1,2,3}) -> 61048.85359 | AP61: =TREND(AP$33:AP$38,$B$33:$B$38^{1,2,3},$B61^{1,2,3}) -> 63083.71368 | AQ61: =TREND(AQ$33:AQ$38,$B$33:$B$38^{1,2,3},$B61^{1,2,3}) -> 50025.59947 | AR61: =TREND(AR$33:AR$38,$B$33:$B$38^{1,2,3},$B61^{1,2,3}) -> 111238.0196 | AS61: =TREND(AS$33:AS$38,$B$33:$B$38^{1,2,3},$B61^{1,2,3}) -> 243879.8539 | AT61: =TREND(AT$33:AT$38,$B$33:$B$38^{1,2,3},$B61^{1,2,3}) -> 27223.37829 | AU61: =TREND(AU$33:AU$38,$B$33:$B$38^{1,2,3},$B61^{1,2,3}) -> 10207.42796 | AV61: =TREND(AV$33:AV$38,$B$33:$B$38^{1,2,3},$B61^{1,2,3}) -> 11544.94578 | AW61: =TREND(AW$33:AW$38,$B$33:$B$38^{1,2,3},$B61^{1,2,3}) -> 58781.47368 | AX61: =TREND(AX$33:AX$38,$B$33:$B$38^{1,2,3},$B61^{1,2,3}) -> 58547.22923 | AY61: =TREND(AY$33:AY$38,$B$33:$B$38^{1,2,3},$B61^{1,2,3}) -> 50244.18323 | AZ61: =TREND(AZ$33:AZ$38,$B$33:$B$38^{1,2,3},$B61^{1,2,3}) -> 3946.490681 | BA61: =TREND(BA$33:BA$38,$B$33:$B$38^{1,2,3},$B61^{1,2,3}) -> 9400.99604 | BB61: =TREND(BB$33:BB$38,$B$33:$B$38^{1,2,3},$B61^{1,2,3}) -> 13036.64653 | BC61: =TREND(BC$33:BC$38,$B$33:$B$38^{1,2,3},$B61^{1,2,3}) -> 8629.260391 | BD61: =TREND(BD$33:BD$38,$B$33:$B$38^{1,2,3},$B61^{1,2,3}) -> 14446.91429 | BE61: =TREND(BE$33:BE$38,$B$33:$B$38^{1,2,3},$B61^{1,2,3}) -> 80807.34816 | BF61: =TREND(BF$33:BF$38,$B$33:$B$38^{1,2,3},$B61^{1,2,3}) -> 446889.2774 | BG61: =TREND(BG$33:BG$38,$B$33:$B$38^{1,2,3},$B61^{1,2,3}) -> 96158.73344 | BH61: =TREND(BH$33:BH$38,$B$33:$B$38^{1,2,3},$B61^{1,2,3}) -> 40677.86249 | BI61: =TREND(BI$33:BI$38,$B$33:$B$38^{1,2,3},$B61^{1,2,3}) -> 50466.3865 | BJ61: =TREND(BJ$33:BJ$38,$B$33:$B$38^{1,2,3},$B61^{1,2,3}) -> 5437.297436 | BK61: =TREND(BK$33:BK$38,$B$33:$B$38^{1,2,3},$B61^{1,2,3}) -> 8582.574527 | BL61: =TREND(BL$33:BL$38,$B$33:$B$38^{1,2,3},$B61^{1,2,3}) -> 24587.23562 | BM61: =TREND(BM$33:BM$38,$B$33:$B$38^{1,2,3},$B61^{1,2,3}) -> 25343.70564 | BN61: =TREND(BN$33:BN$38,$B$33:$B$38^{1,2,3},$B61^{1,2,3}) -> 60785.55763 | BO61: =TREND(BO$33:BO$38,$B$33:$B$38^{1,2,3},$B61^{1,2,3}) -> 138564.9258 | BP61: =TREND(BP$33:BP$38,$B$33:$B$38^{1,2,3},$B61^{1,2,3}) -> 17347.603 | BQ61: =TREND(BQ$33:BQ$38,$B$33:$B$38^{1,2,3},$B61^{1,2,3}) -> 32623.91811 | BR61: =TREND(BR$33:BR$38,$B$33:$B$38^{1,2,3},$B61^{1,2,3}) -> 12030.976 | BS61: =TREND(BS$33:BS$38,$B$33:$B$38^{1,2,3},$B61^{1,2,3}) -> 56547.17499 | BT61: =TREND(BT$33:BT$38,$B$33:$B$38^{1,2,3},$B61^{1,2,3}) -> 5841700.81
B62: 2040 | C62: =TREND(C$33:C$38,$B$33:$B$38^{1,2,3},$B62^{1,2,3}) -> 69844.81145 | D62: =TREND(D$33:D$38,$B$33:$B$38^{1,2,3},$B62^{1,2,3}) -> 110024.1771 | E62: =TREND(E$33:E$38,$B$33:$B$38^{1,2,3},$B62^{1,2,3}) -> 26456.43085 | F62: =TREND(F$33:F$38,$B$33:$B$38^{1,2,3},$B62^{1,2,3}) -> 545296.4485 | G62: =TREND(G$33:G$38,$B$33:$B$38^{1,2,3},$B62^{1,2,3}) -> 350855.2223 | H62: =TREND(H$33:H$38,$B$33:$B$38^{1,2,3},$B62^{1,2,3}) -> 464153.2536 | I62: =TREND(I$33:I$38,$B$33:$B$38^{1,2,3},$B62^{1,2,3}) -> 843337.9451 | J62: =TREND(J$33:J$38,$B$33:$B$38^{1,2,3},$B62^{1,2,3}) -> 30504.0846 | K62: =TREND(K$33:K$38,$B$33:$B$38^{1,2,3},$B62^{1,2,3}) -> 21064.4215 | L62: =TREND(L$33:L$38,$B$33:$B$38^{1,2,3},$B62^{1,2,3}) -> 102942.4166 | M62: =TREND(M$33:M$38,$B$33:$B$38^{1,2,3},$B62^{1,2,3}) -> 37396.09959 | N62: =TREND(N$33:N$38,$B$33:$B$38^{1,2,3},$B62^{1,2,3}) -> 218552.5436 | O62: =TREND(O$33:O$38,$B$33:$B$38^{1,2,3},$B62^{1,2,3}) -> 66295.31584 | P62: =TREND(P$33:P$38,$B$33:$B$38^{1,2,3},$B62^{1,2,3}) -> 11099.92233 | Q62: =TREND(Q$33:Q$38,$B$33:$B$38^{1,2,3},$B62^{1,2,3}) -> 23008.02286 | R62: =TREND(R$33:R$38,$B$33:$B$38^{1,2,3},$B62^{1,2,3}) -> 8805.552949 | S62: =TREND(S$33:S$38,$B$33:$B$38^{1,2,3},$B62^{1,2,3}) -> 40548.10425 | T62: =TREND(T$33:T$38,$B$33:$B$38^{1,2,3},$B62^{1,2,3}) -> 61856.25859 | U62: =TREND(U$33:U$38,$B$33:$B$38^{1,2,3},$B62^{1,2,3}) -> 184362.2382 | V62: =TREND(V$33:V$38,$B$33:$B$38^{1,2,3},$B62^{1,2,3}) -> 76293.89659 | W62: =TREND(W$33:W$38,$B$33:$B$38^{1,2,3},$B62^{1,2,3}) -> 36869.52402 | X62: =TREND(X$33:X$38,$B$33:$B$38^{1,2,3},$B62^{1,2,3}) -> 5947.487597 | Y62: =TREND(Y$33:Y$38,$B$33:$B$38^{1,2,3},$B62^{1,2,3}) -> 7732.274329 | Z62: =TREND(Z$33:Z$38,$B$33:$B$38^{1,2,3},$B62^{1,2,3}) -> 51162.81119 | AA62: =TREND(AA$33:AA$38,$B$33:$B$38^{1,2,3},$B62^{1,2,3}) -> 7095.184556 | AB62: =TREND(AB$33:AB$38,$B$33:$B$38^{1,2,3},$B62^{1,2,3}) -> 91260.82167 | AC62: =TREND(AC$33:AC$38,$B$33:$B$38^{1,2,3},$B62^{1,2,3}) -> 67614.11475 | AD62: =TREND(AD$33:AD$38,$B$33:$B$38^{1,2,3},$B62^{1,2,3}) -> 13735.38869 | AE62: =TREND(AE$33:AE$38,$B$33:$B$38^{1,2,3},$B62^{1,2,3}) -> 94727.60342 | AF62: =TREND(AF$33:AF$38,$B$33:$B$38^{1,2,3},$B62^{1,2,3}) -> 9801.887975 | AG62: =TREND(AG$33:AG$38,$B$33:$B$38^{1,2,3},$B62^{1,2,3}) -> 28038.74545 | AH62: =TREND(AH$33:AH$38,$B$33:$B$38^{1,2,3},$B62^{1,2,3}) -> 9667.74195 | AI62: =TREND(AI$33:AI$38,$B$33:$B$38^{1,2,3},$B62^{1,2,3}) -> 45603.87227 | AJ62: =TREND(AJ$33:AJ$38,$B$33:$B$38^{1,2,3},$B62^{1,2,3}) -> 14301.00621 | AK62: =TREND(AK$33:AK$38,$B$33:$B$38^{1,2,3},$B62^{1,2,3}) -> 35048.84616 | AL62: =TREND(AL$33:AL$38,$B$33:$B$38^{1,2,3},$B62^{1,2,3}) -> 99713.76422 | AM62: =TREND(AM$33:AM$38,$B$33:$B$38^{1,2,3},$B62^{1,2,3}) -> 16648.5169 | AN62: =TREND(AN$33:AN$38,$B$33:$B$38^{1,2,3},$B62^{1,2,3}) -> 34096.2449 | AO62: =TREND(AO$33:AO$38,$B$33:$B$38^{1,2,3},$B62^{1,2,3}) -> 61235.2 | AP62: =TREND(AP$33:AP$38,$B$33:$B$38^{1,2,3},$B62^{1,2,3}) -> 63078.67898 | AQ62: =TREND(AQ$33:AQ$38,$B$33:$B$38^{1,2,3},$B62^{1,2,3}) -> 50115.10432 | AR62: =TREND(AR$33:AR$38,$B$33:$B$38^{1,2,3},$B62^{1,2,3}) -> 111054.3107 | AS62: =TREND(AS$33:AS$38,$B$33:$B$38^{1,2,3},$B62^{1,2,3}) -> 245075.7465 | AT62: =TREND(AT$33:AT$38,$B$33:$B$38^{1,2,3},$B62^{1,2,3}) -> 27182.848 | AU62: =TREND(AU$33:AU$38,$B$33:$B$38^{1,2,3},$B62^{1,2,3}) -> 10211.628 | AV62: =TREND(AV$33:AV$38,$B$33:$B$38^{1,2,3},$B62^{1,2,3}) -> 11547.44734 | AW62: =TREND(AW$33:AW$38,$B$33:$B$38^{1,2,3},$B62^{1,2,3}) -> 58804.97243 | AX62: =TREND(AX$33:AX$38,$B$33:$B$38^{1,2,3},$B62^{1,2,3}) -> 58679.95301 | AY62: =TREND(AY$33:AY$38,$B$33:$B$38^{1,2,3},$B62^{1,2,3}) -> 50187.41698 | AZ62: =TREND(AZ$33:AZ$38,$B$33:$B$38^{1,2,3},$B62^{1,2,3}) -> 3931.095658 | BA62: =TREND(BA$33:BA$38,$B$33:$B$38^{1,2,3},$B62^{1,2,3}) -> 9369.63951 | BB62: =TREND(BB$33:BB$38,$B$33:$B$38^{1,2,3},$B62^{1,2,3}) -> 12966.30777 | BC62: =TREND(BC$33:BC$38,$B$33:$B$38^{1,2,3},$B62^{1,2,3}) -> 8594.160844 | BD62: =TREND(BD$33:BD$38,$B$33:$B$38^{1,2,3},$B62^{1,2,3}) -> 14477.69524 | BE62: =TREND(BE$33:BE$38,$B$33:$B$38^{1,2,3},$B62^{1,2,3}) -> 81526.15285 | BF62: =TREND(BF$33:BF$38,$B$33:$B$38^{1,2,3},$B62^{1,2,3}) -> 448969.5723 | BG62: =TREND(BG$33:BG$38,$B$33:$B$38^{1,2,3},$B62^{1,2,3}) -> 97526.50819 | BH62: =TREND(BH$33:BH$38,$B$33:$B$38^{1,2,3},$B62^{1,2,3}) -> 40948.31892 | BI62: =TREND(BI$33:BI$38,$B$33:$B$38^{1,2,3},$B62^{1,2,3}) -> 50469.65738 | BJ62: =TREND(BJ$33:BJ$38,$B$33:$B$38^{1,2,3},$B62^{1,2,3}) -> 5447.6884 | BK62: =TREND(BK$33:BK$38,$B$33:$B$38^{1,2,3},$B62^{1,2,3}) -> 8593.506998 | BL62: =TREND(BL$33:BL$38,$B$33:$B$38^{1,2,3},$B62^{1,2,3}) -> 24631.69575 | BM62: =TREND(BM$33:BM$38,$B$33:$B$38^{1,2,3},$B62^{1,2,3}) -> 25409.5476 | BN62: =TREND(BN$33:BN$38,$B$33:$B$38^{1,2,3},$B62^{1,2,3}) -> 61488.84993 | BO62: =TREND(BO$33:BO$38,$B$33:$B$38^{1,2,3},$B62^{1,2,3}) -> 138657.4293 | BP62: =TREND(BP$33:BP$38,$B$33:$B$38^{1,2,3},$B62^{1,2,3}) -> 17254.12002 | BQ62: =TREND(BQ$33:BQ$38,$B$33:$B$38^{1,2,3},$B62^{1,2,3}) -> 32597.98787 | BR62: =TREND(BR$33:BR$38,$B$33:$B$38^{1,2,3},$B62^{1,2,3}) -> 11959.34476 | BS62: =TREND(BS$33:BS$38,$B$33:$B$38^{1,2,3},$B62^{1,2,3}) -> 56449.44025 | BT62: =TREND(BT$33:BT$38,$B$33:$B$38^{1,2,3},$B62^{1,2,3}) -> 5873520.075
